Workbook

Sheet Hoja4 (hidden)

Sheet Base original
B1: COLOCACIONES (*) | G1: TASAS DE INTERÉS POR TIPO (*) | AG1: AGREGADOS MONETARIOS (*) | BE1: TASAS DE INTERÉS DE CAPTACIÓN POR PLAZO (*)
B2: Colocaciones balances individuales | G2: Consumo ($) | Q2: Comerciales ($) | Y2: Comercio exterior (USS$) | AE2: Vivienda (UF) | AG2: M1 | AL2: M2 | AS2: M3 | BE2: 30 a 89 días nominal | BG2: 90 días a 1 año nominal | BI2: 1 a 3 años nominal | BK2: más de 3 años nominal
B3: Comerciales | C3: Consumo | D3: Vivienda | E3: Comercio exterior | F3: Total | G3: Consumo | I3: Tarjeta crédito rotativo | K3: Tarjeta crédito cuota | M3: Crédito en cuotas | O3: Sobregiros | Q3: Comercio | S3: Tarjeta y otros | U3: Crédito en cuotas | W3: Sobregiros | Y3: Comex | AA3: Exportación | AC3: Importación | AG3: Base monetaria | AH3: C | AI3: D1 | AJ3: Dvb + Ahv | AK3: M1 | AL3: Dp | AM3: Ahp | AN3: Cuotas de FM en instr. de hasta un año | AO3: Captaciones de CAC | AP3: Inversiones de FM en M2 | AQ3: Inversiones de CAC en M2 | AR3: M2 | AS3: Depósito en moneda extranjera | AT3: Documentos del Banco Central | AU3: Bonos de Tesorería | AV3: Letras de crédito | AW3: Efectos de comercio | AX3: Bono de Empresa | AY3: Cuotas del resto de FM | AZ3: Cuotas de ahorro voluntario AFP | BA3: Inversión de FM en M3 | BB3: Inversión de AFP en M3 | BC3: M3 | BE3: 30 a 89 días nominal | BG3: 90 días a 1 año nominal | BI3: 1 a 3 años nominal | BK3: más de 3 años nominal
G4: Tasa | H4: Flujo | I4: Tasa | J4: Flujo | K4: Tasa | L4: Flujo | M4: Tasa | N4: Flujo | O4: Tasa | P4: Flujo | Q4: Tasa | R4: Flujo | S4: Tasa | T4: Flujo | U4: Tasa | V4: Flujo | W4: Tasa | X4: Flujo | Y4: Tasa | Z4: Flujo | AA4: Tasa | AB4: Flujo | AC4: Tasa | AD4: Flujo | AE4: Tasa | AF4: Flujo | BE4: Tasa | BF4: Flujo | BG4: Tasa | BH4: Flujo | BI4: Tasa | BJ4: Flujo | BK4: Tasa | BL4: Flujo
B5: miles de millones de pesos | G5: tasas base anual 360 días; flujo en miles de millones de pesos | AG5: miles de millones de pesos | BE5: tasas base anual 360 días, porcentaje
B6: Fuente: Banco Central de Chile y Superintendencia de Bancos e Instituciones Financieras. | G6: Fuente: Banco Central de Chile | AG6: Fuente: Banco Central de Chile | BE6: Fuente: Banco Central de Chile
B7: F022.COMBI.STO.Z.Z.CLP.M | C7: F022.CONBI.STO.Z.Z.CLP.M | D7: F022.VIVBI.STO.Z.Z.CLP.M | E7: F022.CMXBI.STO.Z.Z.CLP.M | F7: F022.CTOBI.STO.Z.Z.CLP.M | G7: F022.CON.TIP.Z.NO.Z.M | H7: F022.CON.FLU.Z.NO.Z.M | I7: F022.CONTARJR.TIP.Z.NO.Z.M | J7: F022.CONTARJR.FLU.Z.NO.Z.M | K7: F022.CONTARJC.TIP.Z.NO.Z.M | L7: F022.CONTARJC.FLU.Z.NO.Z.M | M7: F022.CONCUOT.TIP.Z.NO.Z.M | N7: F022.CONCUOT.FLU.Z.NO.Z.M | O7: F022.CONSOBR.TIP.Z.NO.Z.M | P7: F022.CONSOBR.FLU.Z.NO.Z.M | Q7: F022.COM.TIP.Z.NO.Z.M | R7: F022.COM.FLU.Z.NO.Z.M | S7: F022.COMTARJ.TIP.Z.NO.Z.M | T7: F022.CONTARJ.FLU.Z.NO.Z.M | U7: F022.COMCUOT.TIP.Z.NO.Z.M | V7: F022.COMCUOT.FLU.Z.NO.Z.M | W7: F022.COMSOBR.TIP.Z.NO.Z.M | X7: F022.COMSOBR.FLU.Z.NO.Z.M | Y7: F022.CMX.TIP.Z.US.Z.M | Z7: F022.CMX.FLU.Z.US.Z.M | AA7: F022.CMXEXPT.TIP.Z.US.Z.M | AB7: F022.CMXEXPT.FLU.Z.US.Z.M | AC7: F022.CMXIMPT.TIP.Z.US.Z.M | AD7: F022.CMXIMPT.FLU.Z.US.Z.M | AE7: F022.VIV.TIP.MA03.UF.Z.M | AF7: F022.VIV.FLU.MA03.UF.Z.M | AG7: F021.BMO.STO.N.CLP.0.M | AH7: F021.CIR.STO.N.CLP.0.M | AI7: F021.DCC.STO.N.CLP.0.M | AJ7: F021.DA.STO.N.CLP.0.M | AK7: F021.M1.STO.N.CLP.0.M | AL7: F021.DP.STO.N.CLP.0.M | AM7: F021.AHP.STO.N.CLP.0.M | AN7: F021.FM.STO.N.CLP.0.M | AO7: F021.CAC.STO.N.CLP.0.M | AP7: F021.FM2.STO.N.CLP.0.M | AQ7: F021.CA2.STO.N.CLP.0.M | AR7: F021.M2.STO.N.CLP.0.M | AS7: F021.DME.STO.N.CLP.0.M | AT7: F021.DBC.STO.N.CLP.0.M | AU7: F021.BOT.STO.N.CLP.0.M | AV7: F021.LCR.STO.N.CLP.0.M | AW7: F021.ECO.STO.N.CLP.0.M | AX7: F021.BOE.STO.N.CLP.0.M | AY7: F021.FMR.STO.N.CLP.0.M | AZ7: F021.CAV.STO.N.CLP.0.M | BA7: F021.FM3.STO.N.CLP.0.M | BB7: F021.AF3.STO.N.CLP.0.M | BC7: F021.M3.STO.N.CLP.0.M | BE7: F022.CAP.TIN.D089.NO.Z.M | BF7: F022.CAP.FLU.D089.NO.Z.M | BG7: F022.CAP.TIN.AN01.NO.Z.M | BH7: F022.CAP.FLU.AN01.NO.Z.M | BI7: F022.CAP.TIN.AN03.NO.Z.M | BJ7: F022.CAP.FLU.AN03.NO.Z.M | BK7: F022.CAP.TIN.MA03.NO.Z.M | BL7: F022.CAP.FLU.MA03.NO.Z.M
A8: 2006-01-01 | B8: 25877.189 | C8: 5571.003 | D8: 9317.488 | E8: 3905.426 | F8: 44671.106 | G8: 26.84010551 | Q8: 10.27317257 | Y8: 5.289234388 | AE8: 5.31 | AG8: 2757.702 | AH8: 1694 | AI8: 4523.31 | AJ8: 1360.3 | AK8: 7577.61 | AL8: 23131.4875 | AM8: 2244.97 | AN8: 3330.57 | AO8: 110.16 | AP8: 3111.66 | AQ8: 8.47 | AR8: 33274.6675 | AS8: 3263.92 | AT8: 6603.07 | AU8: 1040.99 | AV8: 4253.96 | AW8: 352.74 | AX8: 8243.95 | AY8: 3443.76 | AZ8: 408.65 | BA8: 2312.86 | BB8: 161.41 | BC8: 58411.4375 | BE8: 4.92 | BG8: 5.52 | BI8: 6.24 | BK8: 6.36
A9: 2006-02-01 | B9: 25995.919 | C9: 5649.901 | D9: 9409.751 | E9: 3971.411 | F9: 45026.982 | G9: 28.08001067 | Q9: 10.69175166 | Y9: 5.488292681 | AE9: 5.33 | AG9: 2800.771 | AH9: 1718.6 | AI9: 4534.7425 | AJ9: 1295.0275 | AK9: 7548.37 | AL9: 23439.3055 | AM9: 2237.55 | AN9: 3233.72 | AO9: 123.01 | AP9: 3034.93 | AQ9: 5.84 | AR9: 33541.1855 | AS9: 3379.45 | AT9: 6469.58 | AU9: 1053.09 | AV9: 4269.98 | AW9: 358.48 | AX9: 8174.45 | AY9: 3670.98 | AZ9: 420.38 | BA9: 2365.22 | BB9: 163.97 | BC9: 58808.3855 | BE9: 4.56 | BG9: 5.16 | BI9: 6.36 | BK9: 7.2
A10: 2006-03-01 | B10: 26532.268 | C10: 5831.413 | D10: 9540.067 | E10: 4086.012 | F10: 45989.76 | G10: 25.2206299 | Q10: 10.24201215 | Y10: 5.847508201 | AE10: 5.22 | AG10: 2897.087 | AH10: 1708.3 | AI10: 4530.39725 | AJ10: 1300.88275 | AK10: 7539.58 | AL10: 23947.409 | AM10: 2238.86 | AN10: 3752.51 | AO10: 127.13 | AP10: 3546.99 | AQ10: 6.15 | AR10: 34052.349 | AS10: 3311.26 | AT10: 6343.46 | AU10: 1063.27 | AV10: 4348.74 | AW10: 354.14 | AX10: 8242.23 | AY10: 3777.33 | AZ10: 430.6 | BA10: 2420.59 | BB10: 166.01 | BC10: 59336.779 | BE10: 4.68 | BG10: 5.28 | BI10: 6 | BK10: 7.2
A11: 2006-04-01 | B11: 27144.354 | C11: 5934.604 | D11: 9634.727 | E11: 4126.392 | F11: 46840.077 | G11: 26.81238125 | Q11: 10.69633422 | Y11: 5.653472987 | AE11: 5.04 | AG11: 3019.939 | AH11: 1710.9 | AI11: 4668.0777 | AJ11: 1257.6623 | AK11: 7636.64 | AL11: 24350.179 | AM11: 2239.71 | AN11: 4222.62 | AO11: 123.45 | AP11: 4032.18 | AQ11: 11.32 | AR11: 34529.099 | AS11: 3342.52 | AT11: 6252.99 | AU11: 1067.84 | AV11: 4250.3 | AW11: 330.64 | AX11: 8372.4 | AY11: 3828.1 | AZ11: 445.85 | BA11: 2485.1 | BB11: 168.26 | BC11: 59766.379 | BE11: 4.8 | BG11: 5.52 | BI11: 6.12 | BK11: 6.96
A12: 2006-05-01 | B12: 27224.795 | C12: 6010.176 | D12: 9795.954 | E12: 4360.806 | F12: 47391.731 | G12: 27.49968525 | Q12: 10.69976304 | Y12: 6.069324926 | AE12: 5.03 | AG12: 2891.704 | AH12: 1719 | AI12: 4778.19615 | AJ12: 1198.34385 | AK12: 7695.54 | AL12: 24721.8365 | AM12: 2258.06 | AN12: 3957.82 | AO12: 124.65 | AP12: 3797.24 | AQ12: 11.71 | AR12: 34948.9565 | AS12: 3514.52 | AT12: 6039.46 | AU12: 1065.26 | AV12: 4309.05 | AW12: 313.96 | AX12: 8445.32 | AY12: 3866.9 | AZ12: 455.5 | BA12: 2471.92 | BB12: 179.66 | BC12: 60307.3465 | BE12: 4.92 | BG12: 5.52 | BI12: 6.12
A13: 2006-06-01 | B13: 27538.088 | C13: 6095.037 | D13: 9949.017 | E13: 4700.001 | F13: 48282.143 | G13: 27.54061454 | Q13: 10.0914888 | Y13: 6.098626848 | AE13: 5 | AG13: 2910.86 | AH13: 1755.2 | AI13: 4677.9574 | AJ13: 1388.6426 | AK13: 7821.8 | AL13: 24974.549 | AM13: 2289.71 | AN13: 4054.03 | AO13: 128.52 | AP13: 3856.88 | AQ13: 7.17 | AR13: 35404.559 | AS13: 3629.06 | AT13: 5881.13 | AU13: 1057.38 | AV13: 4419.18 | AW13: 316.05 | AX13: 8469.06 | AY13: 3777.34 | AZ13: 452.49 | BA13: 2419.68 | BB13: 184.36 | BC13: 60802.209 | BE13: 5.04 | BG13: 5.4 | BI13: 6.12 | BK13: 7.56
A14: 2006-07-01 | B14: 27878.936 | C14: 6188.033 | D14: 10134.075 | E14: 4504.95 | F14: 48705.994 | G14: 27.28323577 | Q14: 9.956696994 | Y14: 6.294930372 | AE14: 5.1 | AG14: 2889.248 | AH14: 1744.3 | AI14: 4593.77055 | AJ14: 1352.11945 | AK14: 7690.19 | AL14: 25128.757 | AM14: 2298.52 | AN14: 4091.77 | AO14: 128.53 | AP14: 3878.73 | AQ14: 8.41 | AR14: 35450.627 | AS14: 3630.31 | AT14: 5722.86 | AU14: 1063.1 | AV14: 4334.56 | AW14: 337.86 | AX14: 8430.67 | AY14: 3818.66 | AZ14: 455.8 | BA14: 2486.57 | BB14: 185.74 | BC14: 60572.137 | BE14: 5.04 | BG14: 5.52 | BI14: 6.12 | BK14: 7.68
A15: 2006-08-01 | B15: 28247.624 | C15: 6337.786 | D15: 10348.575 | E15: 4524.201 | F15: 49458.186 | G15: 26.63961018 | Q15: 10.30839481 | Y15: 6.222757439 | AE15: 5.05 | AG15: 2764.59 | AH15: 1724.9 | AI15: 4577.3335 | AJ15: 1355.3565 | AK15: 7657.59 | AL15: 25565.7825 | AM15: 2303.31 | AN15: 3801.64 | AO15: 127.65 | AP15: 3148.09 | AQ15: 9.9 | AR15: 36297.9825 | AS15: 3597.79 | AT15: 6004.8 | AU15: 1071.25 | AV15: 4281.36 | AW15: 363.45 | AX15: 8510.22 | AY15: 4004.45 | AZ15: 469 | BA15: 2893.12 | BB15: 189.31 | BC15: 61517.8725 | BE15: 5.16 | BG15: 5.52 | BI15: 6.12 | BK15: 7.8
A16: 2006-09-01 | B16: 28286.672 | C16: 6452.131 | D16: 10481.288 | E16: 4639.071 | F16: 49859.162 | G16: 26.5372798 | Q16: 10.34509493 | Y16: 6.288846604 | AE16: 5.01 | AG16: 3018.459 | AH16: 1805.7 | AI16: 4605.4865 | AJ16: 1513.8235 | AK16: 7925.01 | AL16: 26010.968 | AM16: 2309.45 | AN16: 4298.29 | AO16: 151.95 | AP16: 3592.98 | AQ16: 9.93 | AR16: 37092.758 | AS16: 3605.23 | AT16: 6394.11 | AU16: 1079.8 | AV16: 4379.06 | AW16: 371.07 | AX16: 8652.03 | AY16: 4126.88 | AZ16: 482.11 | BA16: 2999.78 | BB16: 191.47 | BC16: 62991.798 | BE16: 5.16 | BG16: 5.52 | BI16: 6 | BK16: 6.12
A17: 2006-10-01 | B17: 28525.246 | C17: 6567.021 | D17: 10583.667 | E17: 4580.337 | F17: 50256.271 | G17: 26.87426644 | Q17: 10.32842561 | Y17: 6.177634104 | AE17: 4.95 | AG17: 3003.052637 | AH17: 1781.4 | AI17: 4572.5085 | AJ17: 1385.6615 | AK17: 7739.57 | AL17: 26344.011 | AM17: 2313.98 | AN17: 4781.81 | AO17: 176.88 | AP17: 4504.55 | AQ17: 11.2 | AR17: 36840.501 | AS17: 3638.46 | AT17: 6187.42 | AU17: 1089.92 | AV17: 4337.05 | AW17: 371.05 | AX17: 8713.07 | AY17: 4168.04 | AZ17: 498.26 | BA17: 2737.7 | BB17: 193.7 | BC17: 62912.371 | BE17: 5.16 | BG17: 5.52 | BI17: 5.88 | BK17: 6.48
A18: 2006-11-01 | B18: 29148.369 | C18: 6690.599 | D18: 10695.628 | E18: 4696.927 | F18: 51231.523 | G18: 26.97083773 | Q18: 10.16942247 | Y18: 6.107811217 | AE18: 4.82 | AG18: 3011.76559 | AH18: 1804.2 | AI18: 4581.5053 | AJ18: 1481.5347 | AK18: 7867.24 | AL18: 26760.863 | AM18: 2304.87 | AN18: 4571.5 | AO18: 177.92 | AP18: 4354.2 | AQ18: 12.42 | AR18: 37315.773 | AS18: 3679.09 | AT18: 6044.24 | AU18: 1082.9 | AV18: 4440.1 | AW18: 368.02 | AX18: 8780.32 | AY18: 4245.68 | AZ18: 516.44 | BA18: 2714.6 | BB18: 197.76 | BC18: 63560.203 | BE18: 5.16 | BG18: 5.52 | BI18: 5.76 | BK18: 7.08
A19: 2006-12-01 | B19: 29910.708 | C19: 6786.221 | D19: 10799.63 | E19: 4805.611 | F19: 52302.17 | G19: 27.08498 | Q19: 10.24621563 | Y19: 6.077732562 | AE19: 4.77 | AG19: 3504.068652 | AH19: 1958.1 | AI19: 4912.8567 | AJ19: 1709.1433 | AK19: 8580.1 | AL19: 27389.04 | AM19: 2282.73 | AN19: 4613.79 | AO19: 174.56 | AP19: 4388.79 | AQ19: 12.87 | AR19: 38638.56 | AS19: 3630.32 | AT19: 5879.37 | AU19: 1058.49 | AV19: 4467.42 | AW19: 364.22 | AX19: 8999.03 | AY19: 4359.52 | AZ19: 538.89 | BA19: 2696.8 | BB19: 202.16 | BC19: 65036.86 | BE19: 5.28 | BG19: 5.64 | BI19: 5.88 | BK19: 6.12
A20: 2007-01-01 | B20: 30104.209 | C20: 6864.27 | D20: 10928.962 | E20: 4950.368 | F20: 52847.809 | G20: 27.90456465 | Q20: 10.08135097 | Y20: 6.104881737 | AE20: 4.68 | AG20: 3035.860502 | AH20: 1944.3 | AI20: 5174.8193 | AJ20: 1672.7307 | AK20: 8791.85 | AL20: 28083.5855 | AM20: 2275.7 | AN20: 4558.09 | AO20: 170.67 | AP20: 4356.94 | AQ20: 12.05 | AR20: 39510.9055 | AS20: 3630.65 | AT20: 5344.41 | AU20: 1039.43 | AV20: 4352.59 | AW20: 361.04 | AX20: 9272.74 | AY20: 4565.59 | AZ20: 558.19 | BA20: 2684.67 | BB20: 208.05 | BC20: 65742.8255 | BE20: 5.04 | BG20: 5.4 | BI20: 5.64 | BK20: 6.12
A21: 2007-02-01 | B21: 30453.855 | C21: 6925.246 | D21: 11070.237 | E21: 4981.741 | F21: 53431.079 | G21: 28.68203617 | Q21: 9.948701138 | Y21: 6.092187817 | AE21: 4.58 | AG21: 3250.881288 | AH21: 1974 | AI21: 5245.00435 | AJ21: 1520.43565 | AK21: 8739.44 | AL21: 28586.566 | AM21: 2273.95 | AN21: 4242.7 | AO21: 172.72 | AP21: 4138.21 | AQ21: 12.09 | AR21: 39865.076 | AS21: 3755.68 | AT21: 5159.6 | AU21: 1049.47 | AV21: 4365.9 | AW21: 363.87 | AX21: 9393.7 | AY21: 4755.82 | AZ21: 566.44 | BA21: 2714.44 | BB21: 205.13 | BC21: 66355.986 | BE21: 5.04 | BG21: 5.4 | BI21: 5.64 | BK21: 6.6
A22: 2007-03-01 | B22: 30797.955 | C22: 7057.045 | D22: 11237.238 | E22: 4974.938 | F22: 54067.176 | G22: 26.98843784 | Q22: 9.818966191 | Y22: 5.992904891 | AE22: 4.56 | AG22: 3466.206843 | AH22: 1967.6 | AI22: 5356.8645 | AJ22: 1457.0655 | AK22: 8781.53 | AL22: 29060.5155 | AM22: 2277.19 | AN22: 4764.35 | AO22: 176.15 | AP22: 4639.47 | AQ22: 11.9 | AR22: 40408.3655 | AS22: 3758.09 | AT22: 5135.92 | AU22: 1035.84 | AV22: 4402.84 | AW22: 369.8 | AX22: 9433.62 | AY22: 4940.53 | AZ22: 574.64 | BA22: 2836.48 | BB22: 210.66 | BC22: 67012.5055 | BE22: 5.04 | BG22: 5.28 | BI22: 5.52 | BK22: 6.6
A23: 2007-04-01 | B23: 31287.592 | C23: 7145.561 | D23: 11391.856 | E23: 5143.099 | F23: 54968.108 | G23: 27.73739058 | Q23: 9.949041121 | Y23: 6.026521309 | AE23: 4.54 | AG23: 3604.738 | AH23: 1972.8 | AI23: 5462.21375 | AJ23: 1561.00625 | AK23: 8996.02 | AL23: 29482.415 | AM23: 2277.08 | AN23: 5255.88 | AO23: 177.89 | AP23: 5054.87 | AQ23: 14.28 | AR23: 41120.135 | AS23: 3808.68 | AT23: 5050.13 | AU23: 1012.14 | AV23: 4048.81 | AW23: 372.27 | AX23: 9423.35 | AY23: 5234.03 | AZ23: 598.3 | BA23: 2952.32 | BB23: 213.44 | BC23: 67502.085 | BE23: 5.04 | BG23: 5.4 | BI23: 5.64 | BK23: 6
A24: 2007-05-01 | B24: 31686.086 | C24: 7187.303 | D24: 11616.996 | E24: 5319.282 | F24: 55809.667 | G24: 27.88672215 | Q24: 10.02925436 | Y24: 6.07313798 | AE24: 4.39 | AG24: 3718.443515 | AH24: 1985.9 | AI24: 5487.34035 | AJ24: 1575.64965 | AK24: 9048.89 | AL24: 29997.8555 | AM24: 2292.68 | AN24: 5086.24 | AO24: 189.13 | AP24: 4850.32 | AQ24: 16.92 | AR24: 41747.5555 | AS24: 3961.75 | AT24: 4914.41 | AU24: 1067.46 | AV24: 4189.04 | AW24: 372.17 | AX24: 9500.48 | AY24: 5422.62 | AZ24: 625.74 | BA24: 2894.61 | BB24: 220.86 | BC24: 68685.7555 | BE24: 5.04 | BG24: 5.64 | BI24: 5.76 | BK24: 6.72
A25: 2007-06-01 | B25: 32190.674 | C25: 7240.03 | D25: 11889.188 | E25: 5286.989 | F25: 56606.881 | G25: 27.94304786 | Q25: 9.824916651 | Y25: 6.135268702 | AE25: 4.42 | AG25: 3666.478785 | AH25: 2006.5 | AI25: 5406.4358 | AJ25: 1679.8542 | AK25: 9092.79 | AL25: 30655.1505 | AM25: 2317.05 | AN25: 5315.17 | AO25: 203.23 | AP25: 5089.07 | AQ25: 16.45 | AR25: 42477.8705 | AS25: 3932.11 | AT25: 4718.73 | AU25: 1133.57 | AV25: 4213.57 | AW25: 381.92 | AX25: 9597.02 | AY25: 5560.25 | AZ25: 650.12 | BA25: 2805.23 | BB25: 228.88 | BC25: 69631.0505 | BE25: 5.4 | BG25: 5.52 | BI25: 6.36 | BK25: 7.56
A26: 2007-07-01 | B26: 32687.58 | C26: 7329.254 | D26: 12122.924 | E26: 5263.157 | F26: 57402.915 | G26: 28.85455598 | Q26: 9.985638792 | Y26: 6.062530955 | AE26: 4.51 | AG26: 3650.588446 | AH26: 1991.3 | AI26: 5397.08635 | AJ26: 1752.80365 | AK26: 9141.19 | AL26: 31072.5525 | AM26: 2321.37 | AN26: 5253.62 | AO26: 211.65 | AP26: 4889.29 | AQ26: 17.42 | AR26: 43093.6725 | AS26: 3926.29 | AT26: 4653.62 | AU26: 1160.63 | AV26: 4096.74 | AW26: 389.69 | AX26: 9609.62 | AY26: 5782.33 | AZ26: 671.26 | BA26: 2805.97 | BB26: 234.6 | BC26: 70343.2825 | BE26: 5.4 | BG26: 5.76 | BI26: 6.36 | BK26: 7.08
A27: 2007-08-01 | B27: 33344.21 | C27: 7456.144 | D27: 12409.393 | E27: 5359.948 | F27: 58569.695 | G27: 27.59263685 | Q27: 9.911397133 | Y27: 6.19990909 | AE27: 4.69 | AG27: 3502.967405 | AH27: 1969.9 | AI27: 5408.1836 | AJ27: 1743.3664 | AK27: 9121.45 | AL27: 31127.8495 | AM27: 2327.08 | AN27: 5407.28 | AO27: 220.73 | AP27: 4995.61 | AQ27: 19.91 | AR27: 43188.8695 | AS27: 3958.81 | AT27: 4744.24 | AU27: 1160.28 | AV27: 4146.57 | AW27: 397.83 | AX27: 9734.06 | AY27: 5885.32 | AZ27: 672.26 | BA27: 2898.11 | BB27: 233.27 | BC27: 70756.8595 | BE27: 5.52 | BG27: 6.12 | BI27: 6.6 | BK27: 7.8
A28: 2007-09-01 | B28: 34064.347 | C28: 7529.568 | D28: 12721.028 | E28: 5310.816 | F28: 59625.759 | G28: 28.88864487 | Q28: 10.12611294 | Y28: 6.144116389 | AE28: 4.79 | AG28: 4118.501882 | AH28: 2059.3 | AI28: 5397.76535 | AJ28: 1952.16465 | AK28: 9409.23 | AL28: 31394.4335 | AM28: 2340.96 | AN28: 5425.09 | AO28: 229.26 | AP28: 5262.59 | AQ28: 19.99 | AR28: 43516.3935 | AS28: 3967.61 | AT28: 4687.45 | AU28: 1185.22 | AV28: 4227.91 | AW28: 397.53 | AX28: 9905.39 | AY28: 5964.2 | AZ28: 681.5 | BA28: 2984.07 | BB28: 225.16 | BC28: 71323.9735 | BE28: 5.88 | BG28: 6.36 | BI28: 6.72 | BK28: 7.68
A29: 2007-10-01 | B29: 34709.024 | C29: 7628.024 | D29: 12982.869 | E29: 5237.779 | F29: 60557.696 | G29: 29.01098504 | Q29: 10.15083518 | Y29: 5.853360697 | AE29: 4.83 | AG29: 3533.582524 | AH29: 2018.9 | AI29: 5351.5122 | AJ29: 1820.4178 | AK29: 9190.83 | AL29: 32192.0455 | AM29: 2357.69 | AN29: 5528.08 | AO29: 234.83 | AP29: 5508.11 | AQ29: 17.06 | AR29: 43978.3055 | AS29: 4089.22 | AT29: 4596.54 | AU29: 1184.14 | AV29: 4137.27 | AW29: 393.47 | AX29: 10064.37 | AY29: 6212.2 | AZ29: 716.88 | BA29: 3014.92 | BB29: 230.2 | BC29: 72127.2755 | BE29: 5.88 | BG29: 6.36 | BI29: 6.84 | BK29: 7.44
A30: 2007-11-01 | B30: 35764.525 | C30: 7740.683 | D30: 13182.559 | E30: 5543.69 | F30: 62231.457 | G30: 28.91827827 | Q30: 10.16639217 | Y30: 5.682430127 | AE30: 4.81 | AG30: 3515.065866 | AH30: 2041.2 | AI30: 5462.3509 | AJ30: 2066.9791 | AK30: 9570.53 | AL30: 33221.2125 | AM30: 2363.57 | AN30: 6338.14 | AO30: 229.9 | AP30: 6247.86 | AQ30: 15.74 | AR30: 45459.7525 | AS30: 4144.98 | AT30: 4450.98 | AU30: 1231.92 | AV30: 4167.13 | AW30: 405.73 | AX30: 10272.13 | AY30: 6296.57 | AZ30: 723.79 | BA30: 3081.23 | BB30: 242.1 | BC30: 73829.6525 | BE30: 5.88 | BG30: 6.36 | BI30: 6.84 | BK30: 10.2
A31: 2007-12-01 | B31: 36669.066 | C31: 7827.114911 | D31: 13431.649 | E31: 5403.179 | F31: 63331.00891 | G31: 29.9564244 | Q31: 10.20759446 | Y31: 5.890780774 | AE31: 4.83 | AG31: 3660.577562 | AH31: 2210.3 | AI31: 5873.0165 | AJ31: 2046.5435 | AK31: 10129.86 | AL31: 34305.203 | AM31: 2356.44 | AN31: 6176.76 | AO31: 221.39 | AP31: 6053.72 | AQ31: 16.56 | AR31: 47119.373 | AS31: 4142.89 | AT31: 4082.7 | AU31: 1327.55 | AV31: 4138.16 | AW31: 389.53 | AX31: 10443.17 | AY31: 6094.77 | AZ31: 706.55 | BA31: 3017.96 | BB31: 248.08 | BC31: 75178.653 | BE31: 6.48 | BG31: 6.96 | BI31: 7.08 | BK31: 7.32
A32: 2008-01-01 | B32: 36532.93751 | C32: 7916.375832 | D32: 13711.53259 | E32: 5095.808267 | F32: 63256.6542 | G32: 32.06297709 | Q32: 10.54607256 | Y32: 4.909974714 | AE32: 4.8 | AG32: 3746.548395 | AH32: 2190.6 | AI32: 6114.3455 | AJ32: 1899.1545 | AK32: 10204.1 | AL32: 35106.785 | AM32: 2362.9 | AN32: 5566.9 | AO32: 229.4 | AP32: 5520 | AQ32: 18.5 | AR32: 47931.585 | AS32: 4208.8 | AT32: 4142.8 | AU32: 1397.2 | AV32: 4131.3 | AW32: 368.7 | AX32: 10541.2 | AY32: 5674.1 | AZ32: 666 | BA32: 2953.2 | BB32: 253.8 | BC32: 75854.685 | BE32: 6.36 | BG32: 6.6 | BI32: 7.32 | BK32: 7.92
A33: 2008-02-01 | B33: 36902.59123 | C33: 7975.891219 | D33: 13854.58514 | E33: 5196.531323 | F33: 63929.59891 | G33: 31.96068943 | Q33: 10.52429586 | Y33: 4.19445297 | AE33: 4.9 | AG33: 3755.412361 | AH33: 2228.8 | AI33: 6031.2591 | AJ33: 1896.7409 | AK33: 10156.8 | AL33: 35534.999 | AM33: 2374.7 | AN33: 5860.6 | AO33: 240.4 | AP33: 5697.6 | AQ33: 16.6 | AR33: 48453.299 | AS33: 4258.9 | AT33: 4376.3 | AU33: 1301.8 | AV33: 4084 | AW33: 369.8 | AX33: 10558.6 | AY33: 5491.9 | AZ33: 638.8 | BA33: 3171 | BB33: 249 | BC33: 76113.399 | BE33: 6.24 | BG33: 6.6 | BI33: 7.08 | BK33: 7.68
A34: 2008-03-01 | B34: 37065.95947 | C34: 8059.479026 | D34: 14054.6845 | E34: 5151.148232 | F34: 64331.27123 | G34: 29.8751708 | Q34: 10.60816322 | Y34: 3.909952199 | AE34: 4.82 | AG34: 3909.475941 | AH34: 2229.3 | AI34: 6007.5789 | AJ34: 1864.8211 | AK34: 10101.7 | AL34: 36025.548 | AM34: 2380.3 | AN34: 5949.5 | AO34: 250.8 | AP34: 5714.1 | AQ34: 14.8 | AR34: 48978.948 | AS34: 4172.9 | AT34: 4370.4 | AU34: 1336.5 | AV34: 4081.2 | AW34: 365.9 | AX34: 10620.1 | AY34: 5702.6 | AZ34: 638.3 | BA34: 3450 | BB34: 258.2 | BC34: 76558.648 | BE34: 6.48 | BG34: 6.96 | BI34: 7.32 | BK34: 7.44
A35: 2008-04-01 | B35: 37929.25986 | C35: 8157.740165 | D35: 14333.60615 | E35: 5818.984932 | F35: 66239.59111 | G35: 30.12632972 | Q35: 10.5928774 | Y35: 4.016354928 | AE35: 4.76 | AG35: 3768.92997 | AH35: 2213.8 | AI35: 6050.28365 | AJ35: 1837.21635 | AK35: 10101.3 | AL35: 36664.9485 | AM35: 2392.4 | AN35: 6075.6 | AO35: 261.4 | AP35: 5909.6 | AQ35: 16.1 | AR35: 49569.9485 | AS35: 4431.3 | AT35: 4342.6 | AU35: 1426.3 | AV35: 4082.3 | AW35: 375.2 | AX35: 10823.6 | AY35: 5906.2 | AZ35: 636.6 | BA35: 3513.8 | BB35: 252.7 | BC35: 77827.5485 | BE35: 6.48 | BG35: 6.96 | BI35: 7.32 | BK35: 7.44
A36: 2008-05-01 | B36: 38480.92771 | C36: 8155.671818 | D36: 14529.4222 | E36: 6335.393903 | F36: 67501.41563 | G36: 30.9324869 | Q36: 10.67956961 | Y36: 4.116003773 | AE36: 4.63 | AG36: 3922.134447 | AH36: 2257.2 | AI36: 6158.41995 | AJ36: 2000.78005 | AK36: 10416.4 | AL36: 36940.379 | AM36: 2427.4 | AN36: 6895.9 | AO36: 274.5 | AP36: 6684 | AQ36: 18.8 | AR36: 50251.779 | AS36: 4876.2 | AT36: 4531.7 | AU36: 1556.6 | AV36: 3987.2 | AW36: 396 | AX36: 11137.4 | AY36: 6041 | AZ36: 655.2 | BA36: 3503.9 | BB36: 251 | BC36: 79678.179 | BE36: 6.6 | BG36: 6.96 | BI36: 7.32 | BK36: 7.8
A37: 2008-06-01 | B37: 39280.5813 | C37: 8190.377374 | D37: 14847.07102 | E37: 7018.991106 | F37: 69337.0208 | G37: 30.74424815 | Q37: 10.87630127 | Y37: 4.238679367 | AE37: 4.72 | AG37: 3942.236998 | AH37: 2274.2 | AI37: 6353.5361 | AJ37: 1863.9639 | AK37: 10491.7 | AL37: 36953.1865 | AM37: 2468.3 | AN37: 6562.2 | AO37: 293.5 | AP37: 6357.7 | AQ37: 22 | AR37: 50389.1865 | AS37: 5370 | AT37: 4879.8 | AU37: 1630.8 | AV37: 4083.1 | AW37: 413.2 | AX37: 11329.1 | AY37: 6013.4 | AZ37: 657.3 | BA37: 3453.4 | BB37: 250.4 | BC37: 81062.0865 | BE37: 6.72 | BG37: 7.32 | BI37: 7.68 | BK37: 8.52
A38: 2008-07-01 | B38: 39742.06483 | C38: 8230.370095 | D38: 15178.60382 | E38: 6694.507948 | F38: 69845.54669 | G38: 31.24031374 | Q38: 11.42875372 | Y38: 4.404424868 | AE38: 4.87 | AG38: 3885.245573 | AH38: 2254.4 | AI38: 6175.0858 | AJ38: 1520.7142 | AK38: 9950.2 | AL38: 37144.072 | AM38: 2498.7 | AN38: 6257 | AO38: 307.9 | AP38: 6006.6 | AQ38: 23.7 | AR38: 50127.572 | AS38: 5832.1 | AT38: 5436.9 | AU38: 1685.6 | AV38: 4002.9 | AW38: 420.3 | AX38: 11377.4 | AY38: 5891.9 | AZ38: 638.9 | BA38: 3507.2 | BB38: 263.5 | BC38: 81642.872 | BE38: 6.84 | BG38: 7.56 | BI38: 8.64 | BK38: 8.76
A39: 2008-08-01 | B39: 40257.88392 | C39: 8288.808897 | D39: 15482.081 | E39: 6706.784942 | F39: 70735.55877 | G39: 32.01457109 | Q39: 11.87277186 | Y39: 4.682843065 | AE39: 4.82 | AG39: 3888.735781 | AH39: 2232 | AI39: 5954.4933 | AJ39: 1876.3067 | AK39: 10062.8 | AL39: 37322.297 | AM39: 2523.5 | AN39: 6316.2 | AO39: 321.3 | AP39: 5907.8 | AQ39: 24.4 | AR39: 50613.897 | AS39: 6044.2 | AT39: 6257.8 | AU39: 1827.6 | AV39: 4007.5 | AW39: 436.4 | AX39: 11696.9 | AY39: 5802.1 | AZ39: 619.6 | BA39: 3699.5 | BB39: 266.2 | BC39: 83340.297 | BE39: 7.44 | BG39: 8.04 | BI39: 8.64 | BK39: 9.24
A40: 2008-09-01 | B40: 40957.88284 | C40: 8315.656005 | D40: 15741.79555 | E40: 7268.870571 | F40: 72284.20497 | G40: 34.02436491 | Q40: 12.80472031 | Y40: 5.126385627 | AE40: 4.8 | AG40: 3946.473005 | AH40: 2315 | AI40: 6148.6309 | AJ40: 1729.6691 | AK40: 10193.3 | AL40: 37743.865 | AM40: 2546.6 | AN40: 5893.7 | AO40: 328.1 | AP40: 5393 | AQ40: 22.8 | AR40: 51289.765 | AS40: 6220.8 | AT40: 6968.1 | AU40: 1974.3 | AV40: 3983.4 | AW40: 457.6 | AX40: 12067.3 | AY40: 5505.3 | AZ40: 582.1 | BA40: 3542.9 | BB40: 271.1 | BC40: 85234.665 | BE40: 8.4 | BG40: 9.48 | BI40: 9.6 | BK40: 9.36
A41: 2008-10-01 | B41: 42404.14236 | C41: 8325.853397 | D41: 15986.53123 | E41: 8464.093896 | F41: 75180.62088 | G41: 35.7608978 | Q41: 15.14850576 | Y41: 8.027125743 | AE41: 5.34 | AG41: 3936.598818 | AH41: 2305.9 | AI41: 6214.3885 | AJ41: 1896.2115 | AK41: 10416.5 | AL41: 39143.106 | AM41: 2563.5 | AN41: 6055.2 | AO41: 326.4 | AP41: 5559.3 | AQ41: 18.1 | AR41: 52927.306 | AS41: 6550.1 | AT41: 6842 | AU41: 2137.4 | AV41: 3925.9 | AW41: 465.1 | AX41: 12231.4 | AY41: 4853.4 | AZ41: 510.9 | BA41: 3183 | BB41: 268.3 | BC41: 86992.206 | BE41: 9 | BG41: 9.96 | BI41: 9.84
A42: 2008-11-01 | B42: 42751.92068 | C42: 8365.910376 | D42: 16177.99934 | E42: 8393.288363 | F42: 75689.11876 | G42: 36.07184204 | Q42: 15.12878623 | Y42: 5.927597244 | AE42: 5.69 | AG42: 4137.190968 | AH42: 2331.1 | AI42: 6159.8162 | AJ42: 1791.8838 | AK42: 10282.8 | AL42: 40446.7475 | AM42: 2571.9 | AN42: 6236.7 | AO42: 330.4 | AP42: 5757.5 | AQ42: 18.4 | AR42: 54092.6475 | AS42: 6857.2 | AT42: 6481.1 | AU42: 2293.6 | AV42: 3944.6 | AW42: 487 | AX42: 12405 | AY42: 4328.1 | AZ42: 465.9 | BA42: 3078.7 | BB42: 255 | BC42: 88021.4475 | BE42: 8.04 | BG42: 8.88 | BI42: 9.24 | BK42: 8.88
A43: 2008-12-01 | B43: 42262.40887 | C43: 8356.583898 | D43: 16275.07166 | E43: 7828.050024 | F43: 74722.11446 | G43: 36.85158168 | Q43: 14.91091061 | Y43: 5.831500249 | AE43: 5.77 | AG43: 4287.580488 | AH43: 2484.8 | AI43: 6340.7397 | AJ43: 1982.3603 | AK43: 10807.9 | AL43: 40974.225 | AM43: 2563.5 | AN43: 6512 | AO43: 342.6 | AP43: 6021.2 | AQ43: 22.2 | AR43: 55156.825 | AS43: 6666.5 | AT43: 6330.6 | AU43: 2335.7 | AV43: 3816.7 | AW43: 503.4 | AX43: 12650.5 | AY43: 4091.8 | AZ43: 459.9 | BA43: 2953.5 | BB43: 248.3 | BC43: 88810.125 | BE43: 8.28 | BG43: 8.76 | BI43: 8.52 | BK43: 7.2
A44: 2009-01-01 | B44: 41620.5329 | C44: 8342.315144 | D44: 16266.58066 | E44: 7488.709613 | F44: 73718.13831 | G44: 36.33417145 | Q44: 13.51124586 | Y44: 5.323566282 | AE44: 5.92 | AG44: 4305.789 | AH44: 2445.4 | AI44: 6472.36655 | AJ44: 1835.03345 | AK44: 10752.8 | AL44: 41131.805 | AM44: 2555 | AN44: 7657.4 | AO44: 348.9 | AP44: 7157.4 | AQ44: 24.9 | AR44: 55263.605 | AS44: 6548.5 | AT44: 6051.9 | AU44: 2350.2 | AV44: 3670.3 | AW44: 500.4 | AX44: 13010.6 | AY44: 4144.4 | AZ44: 453.1 | BA44: 3108.8 | BB44: 239 | BC44: 88645.205 | BE44: 7.08 | BG44: 6.72 | BI44: 6.6
A45: 2009-02-01 | B45: 41119.3856 | C45: 8282.983976 | D45: 16154.00607 | E45: 7068.389425 | F45: 72624.76507 | G45: 36.18977679 | Q45: 12.21579471 | Y45: 5.117256562 | AE45: 5.53 | AG45: 4164.7998 | AH45: 2446 | AI45: 6485.56095 | AJ45: 1603.63905 | AK45: 10535.2 | AL45: 40750.097 | AM45: 2541.2 | AN45: 8278.8 | AO45: 355.9 | AP45: 7709 | AQ45: 25.7 | AR45: 54726.497 | AS45: 6554.7 | AT45: 6124.9 | AU45: 2445.3 | AV45: 3715.3 | AW45: 529 | AX45: 13196.2 | AY45: 4551 | AZ45: 446.6 | BA45: 3610.3 | BB45: 239 | BC45: 88440.197 | BE45: 5.16 | BG45: 4.92 | BI45: 4.68 | BK45: 5.76
A46: 2009-03-01 | B46: 40445.08225 | C46: 8286.758878 | D46: 16177.83183 | E46: 6733.923758 | F46: 71643.59671 | G46: 32.23109006 | Q46: 10.05881629 | Y46: 4.683590798 | AE46: 4.9 | AG46: 4218.546834 | AH46: 2459.9 | AI46: 6613.87805 | AJ46: 1568.72195 | AK46: 10642.5 | AL46: 39918.085 | AM46: 2533.7 | AN46: 8098.2 | AO46: 363.2 | AP46: 7551.7 | AQ46: 25.9 | AR46: 53978.085 | AS46: 6489.1 | AT46: 6655.6 | AU46: 2500.7 | AV46: 3599.9 | AW46: 559.5 | AX46: 13297.4 | AY46: 4865.2 | AZ46: 445 | BA46: 4017.7 | BB46: 241.5 | BC46: 88131.285 | BE46: 2.88 | BG46: 3.12 | BI46: 3.24
A47: 2009-04-01 | B47: 40860.99227 | C47: 8322.734132 | D47: 16217.03066 | E47: 6398.891221 | F47: 71799.64829 | G47: 29.97497029 | Q47: 8.766351447 | Y47: 3.947299689 | AE47: 4.42 | AG47: 4234.410146 | AH47: 2462.6 | AI47: 6770.0209 | AJ47: 1657.1791 | AK47: 10889.8 | AL47: 39593.7535 | AM47: 2549.4 | AN47: 8882.9 | AO47: 367.1 | AP47: 8634.1 | AQ47: 22.1 | AR47: 53626.7535 | AS47: 6254.1 | AT47: 6811.1 | AU47: 2540.2 | AV47: 3479.9 | AW47: 581.5 | AX47: 13804.3 | AY47: 5011.4 | AZ47: 457.7 | BA47: 4069.3 | BB47: 234.3 | BC47: 88263.3535 | BE47: 2.28 | BG47: 2.52 | BI47: 2.88
A48: 2009-05-01 | B48: 40716.10378 | C48: 8264.660025 | D48: 16297.69606 | E48: 6183.376553 | F48: 71461.83641 | G48: 29.56658702 | Q48: 8.071368334 | Y48: 3.776842156 | AE48: 4.455645369 | AG48: 4344.859181 | AH48: 2493.5 | AI48: 6965.08455 | AJ48: 1875.71545 | AK48: 11334.3 | AL48: 39362.9995 | AM48: 2589.9 | AN48: 9185.3 | AO48: 373.4 | AP48: 8999.2 | AQ48: 23 | AR48: 53823.6995 | AS48: 5840.2 | AT48: 6723.3 | AU48: 2596.2 | AV48: 3469 | AW48: 600.2 | AX48: 14288.6 | AY48: 5157.5 | AZ48: 484.1 | BA48: 3958.6 | BB48: 222.5 | BC48: 88801.6995 | BE48: 1.56 | BG48: 1.8 | BI48: 2.52
A49: 2009-06-01 | B49: 40399.39512 | C49: 8203.665652 | D49: 16441.35447 | E49: 5403.769367 | F49: 70448.18461 | G49: 28.9061915 | Q49: 7.984518349 | Y49: 3.496964596 | AE49: 4.61 | AG49: 4430.577429 | AH49: 2504.8 | AI49: 7202.7768 | AJ49: 1907.3232 | AK49: 11614.9 | AL49: 38951.3265 | AM49: 2627.5 | AN49: 8599.7 | AO49: 371.3 | AP49: 8163.3 | AQ49: 26.3 | AR49: 53975.1265 | AS49: 5373.4 | AT49: 6917.2 | AU49: 2653.5 | AV49: 3435.3 | AW49: 598 | AX49: 14355.7 | AY49: 5191.6 | AZ49: 506.4 | BA49: 3819.8 | BB49: 208.4 | BC49: 88978.0265 | BE49: 1.32 | BG49: 1.68 | BI49: 2.76
A50: 2009-07-01 | B50: 40444.88165 | C50: 8213.907189 | D50: 16579.80784 | E50: 5362.954307 | F50: 70601.55098 | G50: 27.90935239 | Q50: 7.240847234 | Y50: 2.713315794 | AE50: 4.62 | AG50: 4308.172045 | AH50: 2487 | AI50: 7152.0186 | AJ50: 1963.0814 | AK50: 11602.1 | AL50: 39030.7115 | AM50: 2640.4 | AN50: 9977.7 | AO50: 367.8 | AP50: 9280 | AQ50: 24.2 | AR50: 54314.5115 | AS50: 5141.7 | AT50: 6460 | AU50: 2778.2 | AV50: 3339.5 | AW50: 609.4 | AX50: 14256.1 | AY50: 5355 | AZ50: 527.9 | BA50: 3911.6 | BB50: 206.6 | BC50: 88664.1115 | BE50: 0.84 | BG50: 1.44 | BI50: 1.8
A51: 2009-08-01 | B51: 40852.69961 | C51: 8220.545874 | D51: 16692.06583 | E51: 5389.531063 | F51: 71154.84237 | G51: 24.57374351 | Q51: 5.987396699 | Y51: 3.394973906 | AE51: 4.56 | AG51: 4487.901 | AH51: 2505.8 | AI51: 7240.88675 | AJ51: 2001.51325 | AK51: 11748.2 | AL51: 38922.2065 | AM51: 2652.7 | AN51: 10236.6 | AO51: 365.5 | AP51: 9492.9 | AQ51: 21.6 | AR51: 54410.7065 | AS51: 5360.1 | AT51: 6128.7 | AU51: 2906.9 | AV51: 3309.1 | AW51: 614.3 | AX51: 14330.7 | AY51: 5723.9 | AZ51: 552.7 | BA51: 4174.6 | BB51: 200.9 | BC51: 88961.6065 | BE51: 0.48 | BG51: 0.72 | BI51: 1.44 | BK51: 4.68
A52: 2009-09-01 | B52: 41035.87044 | C52: 8242.085323 | D52: 16810.68889 | E52: 5246.605182 | F52: 71335.24984 | G52: 26.52326424 | Q52: 5.774980921 | Y52: 2.545047012 | AE52: 4.49 | AG52: 4558.826714 | AH52: 2612.6 | AI52: 7467.18735 | AJ52: 2217.61265 | AK52: 12297.4 | AL52: 38276.271 | AM52: 2663.4 | AN52: 9042 | AO52: 363.8 | AP52: 8393.2 | AQ52: 21.5 | AR52: 54228.171 | AS52: 5369 | AT52: 6576.2 | AU52: 3040.4 | AV52: 3282.4 | AW52: 607 | AX52: 13900.9 | AY52: 6234.5 | AZ52: 580.9 | BA52: 4371.3 | BB52: 200.3 | BC52: 89247.871 | BE52: 0.6 | BG52: 1.08 | BI52: 2.16 | BK52: 4.44
A53: 2009-10-01 | B53: 41079.07672 | C53: 8300.790008 | D53: 17052.11346 | E53: 5224.977959 | F53: 71656.95815 | G53: 26.66781426 | Q53: 5.613465454 | Y53: 2.660928912 | AE53: 4.35 | AG53: 4379.120762 | AH53: 2571.2 | AI53: 7491.8483 | AJ53: 2281.1517 | AK53: 12344.2 | AL53: 37715.6185 | AM53: 2670.1 | AN53: 9653.9 | AO53: 358.3 | AP53: 8873.3 | AQ53: 24.8 | AR53: 53844.0185 | AS53: 5266 | AT53: 6458.5 | AU53: 3201.8 | AV53: 3182 | AW53: 591.6 | AX53: 13440.4 | AY53: 6669.4 | AZ53: 607.5 | BA53: 4552.1 | BB53: 192.7 | BC53: 88516.4185 | BE53: 0.6 | BG53: 1.2 | BI53: 2.52 | BK53: 5.04
A54: 2009-11-01 | B54: 40973.89827 | C54: 8346.10289 | D54: 17292.09993 | E54: 4819.113992 | F54: 71431.21508 | G54: 27.25833994 | Q54: 5.247571939 | Y54: 2.546599361 | AE54: 4.28 | AG54: 4558.89 | AH54: 2585.4 | AI54: 7611.999744 | AJ54: 2125.000256 | AK54: 12322.4 | AL54: 37243.5635 | AM54: 2643.8 | AN54: 9434.3 | AO54: 347.8 | AP54: 8629 | AQ54: 23.9 | AR54: 53338.9635 | AS54: 5365.9 | AT54: 6421.3 | AU54: 3396.7 | AV54: 2992.3 | AW54: 533.7 | AX54: 13640.6 | AY54: 6644.4 | AZ54: 615.5 | BA54: 4382.8 | BB54: 183.4 | BC54: 88383.1635 | BE54: 0.6 | BG54: 1.44 | BI54: 2.88 | BK54: 4.8
A55: 2009-12-01 | B55: 42490.42915 | C55: 8424.088013 | D55: 17435.79351 | E55: 4624.035573 | F55: 72974.34625 | G55: 26.55652398 | Q55: 4.739766636 | Y55: 2.220797364 | AE55: 4.541432542 | AG55: 4735.213 | AH55: 2754.5 | AI55: 8056.187294 | AJ55: 2468.412706 | AK55: 13279.1 | AL55: 37323.6455 | AM55: 2628 | AN55: 9448.2 | AO55: 346.3 | AP55: 8712.9 | AQ55: 24 | AR55: 54288.3455 | AS55: 5387.9 | AT55: 6214.4 | AU55: 3451.2 | AV55: 2965.1 | AW55: 496.9 | AX55: 13853.4 | AY55: 6548.9 | AZ55: 624.2 | BA55: 4071.8 | BB55: 180 | BC55: 89578.5455 | BE55: 0.72 | BG55: 1.44 | BI55: 2.52 | BK55: 4.68
A56: 2010-01-01 | B56: 42328.99862 | C56: 8459.64858 | D56: 17483.62977 | E56: 5245.58657 | F56: 73517.86355 | G56: 30.35391496 | Q56: 7.040624887 | Y56: 1.837065704 | AE56: 4.583830998 | AG56: 4802.93565 | AH56: 2744.3 | AI56: 8516.17675 | AJ56: 2520.12325 | AK56: 13780.6 | AL56: 37860.047 | AM56: 2656.8 | AN56: 9729.9 | AO56: 351.9 | AP56: 8973 | AQ56: 25 | AR56: 55381.247 | AS56: 5513.4 | AT56: 5823.5 | AU56: 3528.4 | AV56: 2818.5 | AW56: 495.1 | AX56: 13930.3 | AY56: 6640.9 | AZ56: 635.4 | BA56: 4138.9 | BB56: 218.4 | BC56: 90409.447 | BE56: 0.6 | BG56: 1.2 | BI56: 2.28 | BK56: 5.04
A57: 2010-02-01 | B57: 42565.73597 | C57: 8474.471061 | D57: 17597.78179 | E57: 5118.180715 | F57: 73756.16954 | G57: 29.546126 | Q57: 5.62794949 | Y57: 1.978243918 | AE57: 4.602983966 | AG57: 4952.2498 | AH57: 2801.8 | AI57: 8673.2252 | AJ57: 2401.0748 | AK57: 13876.1 | AL57: 38257.2145 | AM57: 2634.1 | AN57: 8937.2 | AO57: 358.3 | AP57: 8217.1 | AQ57: 25.2 | AR57: 55820.6145 | AS57: 5581.3 | AT57: 6024.2 | AU57: 3639.8 | AV57: 2773.5 | AW57: 477.8 | AX57: 13893.7 | AY57: 6848.9 | AZ57: 639.3 | BA57: 4291.7 | BB57: 219.3 | BC57: 91188.1145 | BE57: 0.6 | BG57: 1.56 | BI57: 2.88 | BK57: 4.8
A58: 2010-03-01 | B58: 42411.28149 | C58: 8531.434368 | D58: 17711.91058 | E58: 5141.598752 | F58: 73796.2252 | G58: 27.98245903 | Q58: 5.420358692 | Y58: 2.201231503 | AE58: 4.275585515 | AG58: 5065.956609 | AH58: 2869.8 | AI58: 8709.5172 | AJ58: 2625.3828 | AK58: 14204.7 | AL58: 38357.7815 | AM58: 2654.9 | AN58: 9111.7 | AO58: 363.7 | AP58: 8195.2 | AQ58: 22.5 | AR58: 56475.0815 | AS58: 5580.5 | AT58: 6253.2 | AU58: 3908.2 | AV58: 2940 | AW58: 465.5 | AX58: 13899.1 | AY58: 7295 | AZ58: 656.9 | BA58: 4671.3 | BB58: 222.4 | BC58: 92579.7815 | BE58: 0.6 | BG58: 1.32 | BI58: 2.52 | BK58: 5.64
A59: 2010-04-01 | B59: 42721.57489 | C59: 8650.120887 | D59: 17821.45227 | E59: 5346.385341 | F59: 74539.53339 | G59: 27.30835546 | Q59: 5.444336526 | Y59: 1.820821489 | AE59: 4.127527784 | AG59: 4965.60619 | AH59: 2918.6 | AI59: 9012.42705 | AJ59: 2402.77295 | AK59: 14333.8 | AL59: 38372.5365 | AM59: 2726.8 | AN59: 10228.3 | AO59: 378.7 | AP59: 9122 | AQ59: 21 | AR59: 56897.1365 | AS59: 5716.3 | AT59: 6582.8 | AU59: 4137.5 | AV59: 2734 | AW59: 468.9 | AX59: 13936 | AY59: 7771.4 | AZ59: 680.1 | BA59: 5179.6 | BB59: 225 | BC59: 93519.5365 | BE59: 0.6 | BG59: 1.2 | BI59: 2.88 | BK59: 6.24
A60: 2010-05-01 | B60: 43016.76997 | C60: 8664.317883 | D60: 18041.26693 | E60: 5634.652399 | F60: 75357.00718 | G60: 27.304549 | Q60: 5.104336024 | Y60: 2.343192732 | AE60: 4.180987597 | AG60: 5140.46495 | AH60: 2982.1 | AI60: 9661.58285 | AJ60: 2383.01715 | AK60: 15026.7 | AL60: 38750.0565 | AM60: 2738.3 | AN60: 10010.7 | AO60: 397.4 | AP60: 9143 | AQ60: 22.6 | AR60: 57757.5565 | AS60: 5942 | AT60: 5973.6 | AU60: 4394 | AV60: 2760.5 | AW60: 465.6 | AX60: 14023.2 | AY60: 7915.7 | AZ60: 678.3 | BA60: 5058.8 | BB60: 230.5 | BC60: 94621.1565 | BE60: 0.72 | BG60: 1.8 | BI60: 3.84 | BK60: 6
A61: 2010-06-01 | B61: 43297.5842 | C61: 8717.965819 | D61: 18296.44437 | E61: 5852.445006 | F61: 76164.43939 | G61: 27.30581746 | Q61: 5.264501639 | Y61: 2.17113661 | AE61: 4.064804216 | AG61: 5258.331762 | AH61: 3009.4 | AI61: 9852.5456 | AJ61: 2460.4544 | AK61: 15322.4 | AL61: 38568.084 | AM61: 2798.4 | AN61: 8713.5 | AO61: 407 | AP61: 8152.6 | AQ61: 22.9 | AR61: 57633.884 | AS61: 6170 | AT61: 5144.3 | AU61: 4613.5 | AV61: 2870.4 | AW61: 457 | AX61: 14141.4 | AY61: 7964.7 | AZ61: 677.6 | BA61: 4616.6 | BB61: 233.2 | BC61: 94822.984 | BE61: 0.96 | BG61: 2.16 | BI61: 3.96 | BK61: 5.28
A62: 2010-07-01 | B62: 42961.69648 | C62: 8799.311256 | D62: 18435.64867 | E62: 5574.450985 | F62: 75771.10739 | G62: 28.12090691 | Q62: 5.864711137 | Y62: 2.049669513 | AE62: 4.025876708 | AG62: 5172.57081 | AH62: 3005.2 | AI62: 9514.08205 | AJ62: 2626.01795 | AK62: 15145.3 | AL62: 38190.2745 | AM62: 2838.2 | AN62: 9277.2 | AO62: 405.8 | AP62: 8628.5 | AQ62: 23.8 | AR62: 57204.4745 | AS62: 6019.6 | AT62: 4632.7 | AU62: 4800.5 | AV62: 2778.6 | AW62: 411 | AX62: 14197.3 | AY62: 8126.9 | AZ62: 701.6 | BA62: 4952.2 | BB62: 229.6 | BC62: 93690.8745 | BE62: 1.68 | BG62: 2.64 | BI62: 4.56 | BK62: 5.4
A63: 2010-08-01 | B63: 43165.96213 | C63: 8927.681728 | D63: 18682.83754 | E63: 5506.390068 | F63: 76282.87147 | G63: 27.51463276 | Q63: 6.913705921 | Y63: 2.107778798 | AE63: 4.064727342 | AG63: 5211.829227 | AH63: 2950.8 | AI63: 9348.52045 | AJ63: 2826.27955 | AK63: 15125.6 | AL63: 38130.357 | AM63: 2831.9 | AN63: 8683 | AO63: 403.4 | AP63: 7991.7 | AQ63: 22.9 | AR63: 57159.657 | AS63: 5958.8 | AT63: 4398.4 | AU63: 4880.4 | AV63: 2781.2 | AW63: 356.8 | AX63: 14245.6 | AY63: 8407.2 | AZ63: 714.9 | BA63: 5060.1 | BB63: 228.1 | BC63: 93614.757 | BE63: 2.64 | BG63: 3.72 | BI63: 5.4 | BK63: 6.24
A64: 2010-09-01 | B64: 43483.00586 | C64: 9004.575778 | D64: 18850.86494 | E64: 5320.740188 | F64: 76659.18677 | G64: 28.00297126 | Q64: 6.868685981 | Y64: 1.959424999 | AE64: 4.000279187 | AG64: 5230.00125 | AH64: 3056.3 | AI64: 9287.37565 | AJ64: 3305.12435 | AK64: 15648.8 | AL64: 38170.4655 | AM64: 2869.5 | AN64: 7354.6 | AO64: 404.1 | AP64: 6787.8 | AQ64: 21.9 | AR64: 57637.7655 | AS64: 6293.5 | AT64: 4471.1 | AU64: 5042 | AV64: 2817 | AW64: 342.7 | AX64: 14343.3 | AY64: 8619.4 | AZ64: 728.6 | BA64: 4535.9 | BB64: 227.1 | BC64: 95532.3655 | BE64: 3 | BG64: 4.08 | BI64: 5.52 | BK64: 6.36
A65: 2010-10-01 | B65: 43988.90595 | C65: 9116.528754 | D65: 19068.30828 | E65: 5707.592108 | F65: 77881.33509 | G65: 27.25242528 | Q65: 7.13997477 | Y65: 1.765055047 | AE65: 4.140442383 | AG65: 5293.39775 | AH65: 3025.5 | AI65: 9274.7974 | AJ65: 3148.7026 | AK65: 15449 | AL65: 38748.2045 | AM65: 2849.5 | AN65: 8166.7 | AO65: 400.9 | AP65: 7487.8 | AQ65: 21.8 | AR65: 58104.7045 | AS65: 6754.4 | AT65: 4500.4 | AU65: 5267.3 | AV65: 2697.6 | AW65: 335 | AX65: 14370 | AY65: 8659.3 | AZ65: 753.2 | BA65: 4343.3 | BB65: 223.8 | BC65: 96874.8045 | BE65: 3.24 | BG65: 4.32 | BI65: 5.4 | BK65: 4.68
A66: 2010-11-01 | B66: 44217.75877 | C66: 9262.826265 | D66: 19244.20113 | E66: 5824.234729 | F66: 78549.02089 | G66: 27.34191012 | Q66: 7.187239134 | Y66: 1.86573893 | AE66: 4.350280261 | AG66: 5330.543333 | AH66: 3035.3 | AI66: 9401.23695 | AJ66: 2911.66305 | AK66: 15348.2 | AL66: 39528.4395 | AM66: 2861.7 | AN66: 8195.6 | AO66: 400 | AP66: 7605.3 | AQ66: 22.9 | AR66: 58705.7395 | AS66: 6943.4 | AT66: 4609.8 | AU66: 5680.4 | AV66: 2668.5 | AW66: 338.9 | AX66: 14413.2 | AY66: 8700.5 | AZ66: 766.5 | BA66: 4126.1 | BB66: 229.9 | BC66: 98470.9395 | BE66: 3.36 | BG66: 4.2 | BI66: 5.28 | BK66: 6.48
A67: 2010-12-01 | B67: 44826.24336 | C67: 9390.75168 | D67: 19481.39258 | E67: 5283.800004 | F67: 78982.18763 | G67: 26.44170293 | Q67: 7.379796927 | Y67: 1.934379118 | AE67: 4.371130622 | AG67: 5595.011429 | AH67: 3209.2 | AI67: 9745.1939 | AJ67: 3151.0061 | AK67: 16105.4 | AL67: 40025.0645 | AM67: 2840.7 | AN67: 8249.4 | AO67: 405 | AP67: 7601.9 | AQ67: 23.3 | AR67: 60000.3645 | AS67: 6927.6 | AT67: 4369 | AU67: 6063.7 | AV67: 2574.1 | AW67: 325.4 | AX67: 14487.8 | AY67: 8651.9 | AZ67: 773.1 | BA67: 3735.7 | BB67: 239 | BC67: 100198.2645 | BE67: 3.72 | BG67: 4.56 | BI67: 5.52 | BK67: 6.6
A68: 2011-01-01 | B68: 45140.2364 | C68: 9515.07226 | D68: 19599.88231 | E68: 6010.49504 | F68: 80265.68601 | G68: 27.09389282 | Q68: 7.599103818 | Y68: 1.777727046 | AE68: 4.337310721 | AG68: 5707.29 | AH68: 3195.2 | AI68: 10156.911 | AJ68: 3133.689 | AK68: 16485.8 | AL68: 40608.253 | AM68: 2861.7 | AN68: 8329.6 | AO68: 417.4 | AP68: 7828.5 | AQ68: 22.2 | AR68: 60852.053 | AS68: 7037.6 | AT68: 4404.9 | AU68: 6945.2 | AV68: 2333.5 | AW68: 307.3 | AX68: 14665.5 | AY68: 8534.2 | AZ68: 776.7 | BA68: 3339.2 | BB68: 241.3 | BC68: 102276.453 | BE68: 3.72 | BG68: 4.44 | BI68: 5.64 | BK68: 4.56
A69: 2011-02-01 | B69: 45314.42583 | C69: 9619.609073 | D69: 19752.34582 | E69: 6182.367385 | F69: 80868.74811 | G69: 26.44719241 | Q69: 7.906570832 | Y69: 1.742377773 | AE69: 4.353309404 | AG69: 5661.549 | AH69: 3217.8 | AI69: 10284.7682 | AJ69: 2595.3318 | AK69: 16097.9 | AL69: 41002.0365 | AM69: 2841.1 | AN69: 7469.7 | AO69: 427 | AP69: 7173.2 | AQ69: 23.4 | AR69: 60641.1365 | AS69: 6993.2 | AT69: 5082 | AU69: 7171.5 | AV69: 2329 | AW69: 306.7 | AX69: 14864.9 | AY69: 8344.2 | AZ69: 774.5 | BA69: 3128.1 | BB69: 243.7 | BC69: 103135.3365 | BE69: 3.84 | BG69: 4.8 | BI69: 5.4 | BK69: 4.56
A70: 2011-03-01 | B70: 45890.50077 | C70: 9832.270987 | D70: 19950.67805 | E70: 6472.759263 | F70: 82146.20908 | G70: 25.88126176 | Q70: 8.252341346 | Y70: 1.894617682 | AE70: 4.392648861 | AG70: 5614.734783 | AH70: 3174.1 | AI70: 10253.6952 | AJ70: 2598.7048 | AK70: 16026.5 | AL70: 41572.324 | AM70: 2827.7 | AN70: 7470.1 | AO70: 441.8 | AP70: 7029 | AQ70: 23.3 | AR70: 61286.124 | AS70: 6759.6 | AT70: 5282.3 | AU70: 7513.8 | AV70: 2501.8 | AW70: 306.5 | AX70: 14920.9 | AY70: 8378.6 | AZ70: 521.9 | BA70: 3397.7 | BB70: 250.4 | BC70: 103823.424 | BE70: 4.2 | BG70: 5.16 | BI70: 6.72 | BK70: 4.68
A71: 2011-04-01 | B71: 46504.27644 | C71: 9997.982936 | D71: 20168.48584 | E71: 6537.726729 | F71: 83208.47194 | G71: 27.11788572 | Q71: 8.423425558 | Y71: 1.639951833 | AE71: 4.305976651 | AG71: 5685.54395 | AH71: 3199.8 | AI71: 10332.5 | AJ71: 2769.2 | AK71: 16301.5 | AL71: 42519.936 | AM71: 2869 | AN71: 8298.4 | AO71: 473.1 | AP71: 7876.4 | AQ71: 20.3 | AR71: 62565.236 | AS71: 6689.8 | AT71: 5349.9 | AU71: 7688.1 | AV71: 2367.1 | AW71: 287.5 | AX71: 14987.4 | AY71: 8608.8 | AZ71: 801.3 | BA71: 3825.1 | BB71: 258.7 | BC71: 105261.336 | BE71: 4.68 | BG71: 5.52 | BI71: 6.36 | BK71: 5.4
A72: 2011-05-01 | B72: 47315.03892 | C72: 10061.32488 | D72: 20375.73539 | E72: 6969.563642 | F72: 84721.66284 | G72: 27.31975229 | Q72: 8.658781184 | Y72: 1.628783103 | AE72: 4.16 | AG72: 5966.27 | AH72: 3250.6 | AI72: 10529.42525 | AJ72: 2799.57475 | AK72: 16579.6 | AL72: 43652.3525 | AM72: 2878.3 | AN72: 8297.7 | AO72: 490.6 | AP72: 7890.4 | AQ72: 22.6 | AR72: 63985.5525 | AS72: 6778.7 | AT72: 5639.5 | AU72: 7823.7 | AV72: 2166.5 | AW72: 268.1 | AX72: 15081.7 | AY72: 8691.3 | AZ72: 811.3 | BA72: 3977.4 | BB72: 263.5 | BC72: 107005.4525 | BE72: 5.4 | BG72: 6 | BI72: 6.48 | BK72: 4.8
A73: 2011-06-01 | B73: 47636.25474 | C73: 10177.31521 | D73: 20615.75739 | E73: 6805.410625 | F73: 85234.73796 | G73: 26.94085067 | Q73: 9.099138038 | Y73: 1.775944227 | AE73: 4.13 | AG73: 5832.145238 | AH73: 3289.4 | AI73: 10554.3632 | AJ73: 2863.2368 | AK73: 16707 | AL73: 44557.904 | AM73: 2918.6 | AN73: 7394.5 | AO73: 495.5 | AP73: 6916.6 | AQ73: 24.5 | AR73: 65132.404 | AS73: 6771.4 | AT73: 5987.1 | AU73: 7918.3 | AV73: 2094.7 | AW73: 291.5 | AX73: 15310.3 | AY73: 8611.6 | AZ73: 809.6 | BA73: 3903.5 | BB73: 266.5 | BC73: 108756.904 | BE73: 5.64 | BG73: 6 | BI73: 5.76 | BK73: 4.08
A74: 2011-07-01 | B74: 47794.15562 | C74: 10296.95643 | D74: 20800.21688 | E74: 6964.254449 | F74: 85855.58338 | G74: 27.43814138 | Q74: 9.480908349 | Y74: 1.786425558 | AE74: 4.13 | AG74: 5952.678238 | AH74: 3288.1 | AI74: 10332.2862 | AJ74: 2678.3138 | AK74: 16298.7 | AL74: 45479.7875 | AM74: 2933.6 | AN74: 7167.1 | AO74: 495.3 | AP74: 6714.7 | AQ74: 24.5 | AR74: 65635.2875 | AS74: 6721.3 | AT74: 6584.2 | AU74: 8194.4 | AV74: 2143.8 | AW74: 309.3 | AX74: 15470 | AY74: 8258.5 | AZ74: 797.9 | BA74: 3848.4 | BB74: 277.8 | BC74: 109988.4875 | BE74: 5.76 | BG74: 6.12 | BI74: 6.6
A75: 2011-08-01 | B75: 48232.4719 | C75: 10469.93113 | D75: 20972.75349 | E75: 7219.442139 | F75: 86894.59866 | G75: 27.68 | Q75: 9.61 | Y75: 1.75 | AE75: 4.17 | AG75: 5765.861545 | AH75: 3274.4 | AI75: 10202.7961 | AJ75: 3054.8039 | AK75: 16532 | AL75: 47082.2875 | AM75: 2935.5 | AN75: 7212 | AO75: 492.2 | AP75: 7003.4 | AQ75: 25.8 | AR75: 67224.7875 | AS75: 6753.7 | AT75: 6997.6 | AU75: 8654.4 | AV75: 2182.8 | AW75: 301.6 | AX75: 15484.9 | AY75: 7832 | AZ75: 772.6 | BA75: 3849.3 | BB75: 297.5 | BC75: 112057.5875 | BE75: 5.64 | BG75: 5.88 | BI75: 6.24 | BK75: 5.16
A76: 2011-09-01 | B76: 49463.90602 | C76: 10567.06338 | D76: 21138.08055 | E76: 8180.102422 | F76: 89349.15237 | G76: 28.74 | Q76: 9.3 | Y76: 1.81 | AE76: 4.17 | AG76: 5932.959238 | AH76: 3394 | AI76: 10317.9333 | AJ76: 3100.0667 | AK76: 16812 | AL76: 48399.378 | AM76: 2964 | AN76: 8283 | AO76: 497 | AP76: 8111 | AQ76: 28 | AR76: 68816.378 | AS76: 7003 | AT76: 7895 | AU76: 9054 | AV76: 2287 | AW76: 310 | AX76: 15541 | AY76: 7565 | AZ76: 744 | BA76: 4006 | BB76: 313 | BC76: 114896.378 | BE76: 5.52 | BG76: 5.64 | BI76: 5.76 | BK76: 7.2
A77: 2011-10-01 | B77: 50153.98998 | C77: 10687.71499 | D77: 21334.41147 | E77: 7741.481012 | F77: 89917.59745 | G77: 27.73 | Q77: 9.59 | Y77: 2.02 | AE77: 4.11 | AG77: 6166.067263 | AH77: 3402.2 | AI77: 10414.15855 | AJ77: 3101.74145 | AK77: 16918.1 | AL77: 49404.4215 | AM77: 2979.3 | AN77: 9587.2 | AO77: 498.9 | AP77: 9319.3 | AQ77: 28.9 | AR77: 70039.7215 | AS77: 7200.1 | AT77: 8930.2 | AU77: 9495.6 | AV77: 2069.4 | AW77: 305.8 | AX77: 15692 | AY77: 7494.7 | AZ77: 738.2 | BA77: 4041 | BB77: 313.7 | BC77: 117611.0215 | BE77: 5.52 | BG77: 5.76 | BI77: 5.76 | BK77: 7.2
A78: 2011-11-01 | B78: 50977.5773 | C78: 10939.562 | D78: 21601.08746 | E78: 8058.723701 | F78: 91576.95046 | G78: 26.96 | Q78: 9.5 | Y78: 2.22 | AE78: 4.15 | AG78: 6145.23819 | AH78: 3458.7 | AI78: 10500.2325 | AJ78: 2847.4675 | AK78: 16806.4 | AL78: 50432.4935 | AM78: 2990.1 | AN78: 9160.3 | AO78: 497.2 | AP78: 8943.5 | AQ78: 26.9 | AR78: 70916.0935 | AS78: 7154.2 | AT78: 9203.3 | AU78: 9532.5 | AV78: 2115.2 | AW78: 288.5 | AX78: 15880.1 | AY78: 7413.4 | AZ78: 734.9 | BA78: 3852.4 | BB78: 308.3 | BC78: 119077.4935 | BE78: 5.76 | BG78: 5.88 | BI78: 6
A79: 2011-12-01 | B79: 51805.62433 | C79: 11054.38578 | D79: 21895.70707 | E79: 7604.47151 | F79: 92360.1887 | G79: 27.48 | Q79: 9.28 | Y79: 2.75 | AE79: 4.26 | AG79: 6719.61 | AH79: 3646.9 | AI79: 10872.13785 | AJ79: 3490.06215 | AK79: 18009.1 | AL79: 51368.1305 | AM79: 2984.7 | AN79: 9215.7 | AO79: 500.5 | AP79: 8903.9 | AQ79: 32.5 | AR79: 73141.7305 | AS79: 7085.4 | AT79: 8929.3 | AU79: 9719.2 | AV79: 2093.8 | AW79: 275.9 | AX79: 16073.8 | AY79: 7228.7 | AZ79: 724.2 | BA79: 3769 | BB79: 307.1 | BC79: 121195.9305 | BE79: 6.24 | BG79: 6.12 | BI79: 6.36 | BK79: 7.2
A80: 2012-01-01 | B80: 52322.87588 | C80: 11155.81596 | D80: 22101.95932 | E80: 7054.350622 | F80: 92635.00178 | G80: 28.04 | Q80: 9.39 | Y80: 2.7 | AE80: 4.33 | AG80: 6524.376273 | AH80: 3635.929 | AI80: 11086.1265 | AJ80: 3466.2575 | AK80: 18188.313 | AL80: 51741.173 | AM80: 2999.076 | AN80: 9465.568166 | AO80: 504.8856531 | AP80: 9013.687266 | AQ80: 31.25266642 | AR80: 73854.07589 | AS80: 7411.18 | AT80: 9154.34 | AU80: 9900.314 | AV80: 2343.864 | AW80: 274.5804445 | AX80: 16247.2624 | AY80: 7250.24569 | AZ80: 726.9968395 | BA80: 3788.633171 | BB80: 306.5393002 | BC80: 123067.6868 | BE80: 5.52 | BG80: 5.52 | BI80: 6 | BK80: 7.2
A81: 2012-02-01 | B81: 52673.6117 | C81: 11252.14866 | D81: 22284.89276 | E81: 7154.813511 | F81: 93365.46664 | G81: 29.81 | Q81: 9.46 | Y81: 2.5 | AE81: 4.32 | AG81: 6450.647476 | AH81: 3661.118 | AI81: 11005.47575 | AJ81: 3069.49725 | AK81: 17736.091 | AL81: 51951.418 | AM81: 3013.262 | AN81: 8673.488747 | AO81: 508.5559775 | AP81: 8474.064081 | AQ81: 25.02642235 | AR81: 73383.72522 | AS81: 7310.31 | AT81: 9648.501 | AU81: 9776.472 | AV81: 2434.177 | AW81: 292.4436995 | AX81: 16327.44581 | AY81: 7455.653888 | AZ81: 737.8202715 | BA81: 3820.738686 | BB81: 307.7448068 | BC81: 123238.0654 | BE81: 5.28 | BG81: 5.52 | BI81: 6
A82: 2012-03-01 | B82: 53657.9767 | C82: 11401.10618 | D82: 22517.07119 | E82: 7478.101969 | F82: 95054.25604 | G82: 27.97 | Q82: 9.33 | Y82: 2.34 | AE82: 4.29 | AG82: 6446.219045 | AH82: 3643.521 | AI82: 11256.1323 | AJ82: 2963.7307 | AK82: 17863.384 | AL82: 52688.3835 | AM82: 3033.127 | AN82: 8949.593973 | AO82: 512.6323701 | AP82: 8924.821379 | AQ82: 27.11221645 | AR82: 74095.18725 | AS82: 7483.0155 | AT82: 9818.9 | AU82: 9856.851 | AV82: 2226.57 | AW82: 284.5983425 | AX82: 16388.61157 | AY82: 7646.173202 | AZ82: 744.4243595 | BA82: 3827.311799 | BB82: 304.3709199 | BC82: 124412.6485 | BE82: 5.64 | BG82: 6 | BI82: 6.36 | BK82: 5.4
A83: 2012-04-01 | B83: 54225.70622 | C83: 11503.0073 | D83: 22710.35047 | E83: 7703.082728 | F83: 96142.14671 | G83: 28.97 | Q83: 9.84 | Y83: 2.45 | AE83: 4.37 | AG83: 6517.71905 | AH83: 3684.829 | AI83: 11473.033 | AJ83: 3111.951 | AK83: 18269.813 | AL83: 53970.4975 | AM83: 3062.04 | AN83: 9762.353286 | AO83: 487.3684326 | AP83: 9732.622863 | AQ83: 27.6982611 | AR83: 75791.75109 | AS83: 7598.71 | AT83: 9889.01 | AU83: 9909.42 | AV83: 2090.987 | AW83: 265.141608 | AX83: 16544.29128 | AY83: 7667.674436 | AZ83: 742.749658 | BA83: 3734.188049 | BB83: 303.2681857 | BC83: 126462.2788 | BE83: 5.76 | BG83: 6.12 | BI83: 6.6 | BK83: 10.08
A84: 2012-05-01 | B84: 55406.60762 | C84: 11567.54168 | D84: 22885.51588 | E84: 8574.771491 | F84: 98434.43667 | G84: 27.93154458 | Q84: 9.969018526 | Y84: 2.294966394 | AE84: 4.35 | AG84: 6701.867762 | AH84: 3749.783 | AI84: 11474.85145 | AJ84: 3514.18155 | AK84: 18738.816 | AL84: 55536.8535 | AM84: 3097.427 | AN84: 9235.778367 | AO84: 504.2732878 | AP84: 9363.780161 | AQ84: 26.88665777 | AR84: 77722.48134 | AS84: 7710.342 | AT84: 9929.83 | AU84: 9936.47 | AV84: 2022.715 | AW84: 262.152711 | AX84: 16678.41451 | AY84: 7515.817497 | AZ84: 733.5375985 | BA84: 3705.101962 | BB84: 309.9081552 | BC84: 128496.7505 | BE84: 5.76 | BG84: 6 | BI84: 6.6 | BK84: 6.6
A85: 2012-06-01 | B85: 56105.20379 | C85: 11645.66512 | D85: 23083.91106 | E85: 8315.527406 | F85: 99150.30737 | G85: 28.01329261 | Q85: 9.44907718 | Y85: 2.369475938 | AE85: 4.3 | AG85: 6716.810095 | AH85: 3788.317 | AI85: 11530.50795 | AJ85: 3111.57105 | AK85: 18430.396 | AL85: 56885.2255 | AM85: 3194.396 | AN85: 9427.956582 | AO85: 556.3529885 | AP85: 9386.651616 | AQ85: 28.49766907 | AR85: 79079.17779 | AS85: 7623.736 | AT85: 9811.431 | AU85: 9962.13 | AV85: 1941.626 | AW85: 257.99859 | AX85: 16623.34841 | AY85: 7352.503433 | AZ85: 726.6149785 | BA85: 3749.466706 | BB85: 313.6095991 | BC85: 129315.4899 | BE85: 5.76 | BG85: 6.12 | BI85: 6.6 | BK85: 6.24
A86: 2012-07-01 | B86: 56089.79431 | C86: 11737.52164 | D86: 23172.72478 | E86: 8120.903272 | F86: 99120.944 | G86: 28.00703443 | Q86: 9.428934698 | Y86: 2.177293478 | AE86: 4.35 | AG86: 6829.8286 | AH86: 3821.878 | AI86: 11420.04145 | AJ86: 3097.89855 | AK86: 18339.818 | AL86: 57658.697 | AM86: 3162.57 | AN86: 9877.499887 | AO86: 553.9071786 | AP86: 9748.931484 | AQ86: 31.04231781 | AR86: 79812.51826 | AS86: 7475.79 | AT86: 9741.712 | AU86: 10014.9 | AV86: 1825.82 | AW86: 220.0447975 | AX86: 16529.92883 | AY86: 7132.421692 | AZ86: 724.731136 | BA86: 3630.028803 | BB86: 313.6193411 | BC86: 129534.2186 | BE86: 5.52 | BG86: 5.76 | BI86: 6.36 | BK86: 6
A87: 2012-08-01 | B87: 56120.19828 | C87: 11899.88833 | D87: 23334.95977 | E87: 8380.348146 | F87: 99735.39453 | G87: 27.72897033 | Q87: 9.643124618 | Y87: 1.778553408 | AE87: 4.27 | AG87: 6675.824318 | AH87: 3815.609 | AI87: 11218.27055 | AJ87: 2774.23045 | AK87: 17808.11 | AL87: 57998.028 | AM87: 3214.391 | AN87: 10180.12029 | AO87: 553.1805573 | AP87: 10304.64565 | AQ87: 32.95418359 | AR87: 79416.23001 | AS87: 7291.74 | AT87: 10120.03029 | AU87: 10066.56 | AV87: 1844.4 | AW87: 178.745237 | AX87: 16537.1986 | AY87: 7014.604048 | AZ87: 721.011687 | BA87: 3644.445461 | BB87: 313.903513 | BC87: 129232.1709 | BE87: 5.52 | BG87: 5.52 | BI87: 6.36 | BK87: 6.24
A88: 2012-09-01 | B88: 56659.48563 | C88: 11974.53444 | D88: 23502.78464 | E88: 8206.639969 | F88: 100343.4447 | G88: 28.48198197 | Q88: 9.53469323 | Y88: 1.795980594 | AE88: 4.31 | AG88: 7014.227353 | AH88: 4002.335 | AI88: 11133.54005 | AJ88: 3502.86195 | AK88: 18638.737 | AL88: 58377.8975 | AM88: 3165.861 | AN88: 10011.32435 | AO88: 552.172394 | AP88: 10183.06897 | AQ88: 30.06356434 | AR88: 80532.85971 | AS88: 7141.35 | AT88: 10073.174 | AU88: 10202.66 | AV88: 1796.84 | AW88: 176.096407 | AX88: 16526.57696 | AY88: 7102.991203 | AZ88: 725.1906475 | BA88: 3668.740828 | BB88: 315.8669362 | BC88: 130293.1312 | BE88: 5.64 | BG88: 5.88 | BI88: 6.48 | BK88: 6.24
A89: 2012-10-01 | B89: 57336.54197 | C89: 12103.43232 | D89: 23791.32161 | E89: 8151.998943 | F89: 101383.2948 | G89: 27.42840714 | Q89: 9.428074432 | Y89: 1.806457925 | AE89: 4.34 | AG89: 6918.429 | AH89: 3917.452 | AI89: 11044.3623 | AJ89: 3350.9827 | AK89: 18312.797 | AL89: 58732.563 | AM89: 3183.35 | AN89: 10090.47875 | AO89: 535.0446437 | AP89: 10133.0429 | AQ89: 27.22417828 | AR89: 80693.96631 | AS89: 7301.2 | AT89: 10228.42 | AU89: 10347.36 | AV89: 1551.78 | AW89: 181.2706465 | AX89: 16438.67503 | AY89: 7231.505002 | AZ89: 732.3382395 | BA89: 3768.891909 | BB89: 315.7486086 | BC89: 130621.8747 | BE89: 5.76 | BG89: 6.12 | BI89: 6.6 | BK89: 6.72
A90: 2012-11-01 | B90: 58331.72409 | C90: 12245.00659 | D90: 24113.22909 | E90: 8170.370977 | F90: 102860.3307 | G90: 25.90477067 | Q90: 9.191525358 | Y90: 1.992071979 | AE90: 4.34 | AG90: 7052 | AH90: 3957.408 | AI90: 11176.9256 | AJ90: 3137.7004 | AK90: 18272.034 | AL90: 58880.646 | AM90: 3196.913 | AN90: 11169.68116 | AO90: 527.5382424 | AP90: 11179.92304 | AQ90: 28.92422472 | AR90: 80837.96513 | AS90: 7697.52 | AT90: 10694.7 | AU90: 10373.4 | AV90: 1419.86 | AW90: 196.574506 | AX90: 16453.53462 | AY90: 7291.999692 | AZ90: 733.36134 | BA90: 3955.957098 | BB90: 310.8083738 | BC90: 131432.1498 | BE90: 5.64 | BG90: 6.12 | BI90: 6.6 | BK90: 5.88
A91: 2012-12-01 | B91: 59124.13789 | C91: 12332.83773 | D91: 24293.66394 | E91: 8052.019987 | F91: 103802.6595 | G91: 25.65805527 | Q91: 8.938005482 | Y91: 1.93347586 | AE91: 4.38 | AG91: 7659.542 | AH91: 4199.081 | AI91: 12108.53925 | AJ91: 3290.79575 | AK91: 19598.416 | AL91: 58532.2855 | AM91: 3189.679 | AN91: 10935.48089 | AO91: 523.7141161 | AP91: 10835.85506 | AQ91: 26.46338428 | AR91: 81917.25707 | AS91: 8068.6 | AT91: 9420.48 | AU91: 10453.84 | AV91: 1490.72 | AW91: 209.4110235 | AX91: 16610.99121 | AY91: 7217.612406 | AZ91: 736.3422055 | BA91: 3745.45057 | BB91: 306.9823773 | BC91: 132072.821 | BE91: 5.88 | BG91: 6.12 | BI91: 6.72 | BK91: 6
A92: 2013-01-01 | B92: 59058.49436 | C92: 12430.11316 | D92: 24441.38699 | E92: 7941.889052 | F92: 103871.8836 | G92: 25.89170233 | M92: 17.8792415 | O92: 35.48727809 | Q92: 9.311266328 | U92: 7.93454902 | W92: 13.88597558 | Y92: 1.871029095 | AA92: 1.599260577 | AC92: 2.142317947 | AE92: 4.43 | AG92: 7586.608409 | AH92: 4180.455 | AI92: 12451.3273 | AJ92: 3481.7707 | AK92: 20113.553 | AL92: 58628.1985 | AM92: 3186.914 | AN92: 9935.896277 | AO92: 524.6539743 | AP92: 9749.685055 | AQ92: 26.63459876 | AR92: 82612.8961 | AS92: 8082.71 | AT92: 9113.26 | AU92: 11068.03 | AV92: 1478.92 | AW92: 222.8338685 | AX92: 16821.84678 | AY92: 7191.878636 | AZ92: 745.356212 | BA92: 3654.971506 | BB92: 301.0859187 | BC92: 133381.6742 | BE92: 5.52 | BG92: 5.52 | BI92: 6.6 | BK92: 6.84
A93: 2013-02-01 | B93: 59462.1138 | C93: 12490.05634 | D93: 24646.68703 | E93: 8031.979076 | F93: 104630.8362 | G93: 26.68675123 | M93: 18.0116299 | O93: 36.97620387 | Q93: 9.676705484 | U93: 8.747926564 | W93: 12.84107908 | Y93: 1.841396797 | AA93: 1.520183349 | AC93: 2.095366567 | AE93: 4.52 | AG93: 7432.5704 | AH93: 4212.295208 | AI93: 12069.05285 | AJ93: 3354.4937 | AK93: 19635.84176 | AL93: 59185.429 | AM93: 3193.579 | AN93: 9192.13919 | AO93: 530.6521215 | AP93: 9063.626735 | AQ93: 30.35186009 | AR93: 82643.66247 | AS93: 8002.754 | AT93: 9729.96 | AU93: 11053.27 | AV93: 1450.55 | AW93: 231.037621 | AX93: 16932.29529 | AY93: 7304.973782 | AZ93: 754.293234 | BA93: 3768.253393 | BB93: 299.3039784 | BC93: 134035.239 | BE93: 5.28 | BG93: 5.4 | BI93: 5.64 | BK93: 5.76
A94: 2013-03-01 | B94: 59953.77853 | C94: 12643.4891 | D94: 24884.62805 | E94: 8215.005209 | F94: 105696.9009 | G94: 26.56176715 | M94: 15.95679296 | O94: 35.53668681 | Q94: 9.285254494 | U94: 6.842489207 | W94: 10.99320885 | Y94: 1.721195408 | AA94: 1.453641926 | AC94: 2.050779484 | AE94: 4.53 | AG94: 7537.5744 | AH94: 4204.371923 | AI94: 12123.8761 | AJ94: 3598.07535 | AK94: 19926.32337 | AL94: 59984.015 | AM94: 3214.194 | AN94: 9313.492355 | AO94: 540.2446586 | AP94: 9174.924468 | AQ94: 30.67166512 | AR94: 83772.67325 | AS94: 8012.34 | AT94: 9597.14 | AU94: 11168.83 | AV94: 1527.664 | AW94: 218.2914475 | AX94: 16967.06351 | AY94: 7442.963225 | AZ94: 760.2649925 | BA94: 3687.849685 | BB94: 302.6438966 | BC94: 135476.7368 | BE94: 5.28 | BG94: 5.4 | BI94: 6 | BK94: 5.52
A95: 2013-04-01 | B95: 60066.75263 | C95: 12768.33474 | D95: 25126.47963 | E95: 8447.866076 | F95: 106409.4331 | G95: 25.74 | M95: 16.21847419 | O95: 35.47639022 | Q95: 9.22 | U95: 7.153719351 | W95: 11.11862966 | Y95: 1.52 | AA95: 1.276649063 | AC95: 1.887655636 | AE95: 4.53 | AG95: 7364.748621 | AH95: 4208.288 | AI95: 12221.61215 | AJ95: 3562.06185 | AK95: 19991.962 | AL95: 60604.8595 | AM95: 3241.144 | AN95: 10557.86644 | AO95: 545.5120548 | AP95: 10287.60457 | AQ95: 30.5164186 | AR95: 84623.22301 | AS95: 8184.93 | AT95: 10276.59 | AU95: 11433.98 | AV95: 1333.83 | AW95: 212.920044 | AX95: 17134.2639 | AY95: 7462.843477 | AZ95: 764.0567085 | BA95: 3893.433591 | BB95: 312.8101646 | BC95: 137220.3934 | BE95: 4.92 | BG95: 5.04 | BI95: 5.76 | BK95: 5.28
A96: 2013-05-01 | B96: 60844.64044 | C96: 12814.39697 | D96: 25239.42067 | E96: 9149.131648 | F96: 108047.5897 | G96: 26.62 | M96: 16.35023127 | O96: 35.79288413 | Q96: 9.13 | U96: 7.092409215 | W96: 10.89278011 | Y96: 1.44 | AA96: 1.165245712 | AC96: 1.983332412 | AE96: 4.51 | AG96: 7436.335619 | AH96: 4336.638 | AI96: 12518.7413 | AJ96: 3515.1547 | AK96: 20370.534 | AL96: 61312.448 | AM96: 3267.82 | AN96: 12144.49614 | AO96: 548.2430393 | AP96: 11585.0931 | AQ96: 31.77693609 | AR96: 86026.67114 | AS96: 8517.53 | AT96: 10687.8 | AU96: 11865.38 | AV96: 1390.55 | AW96: 216.2504905 | AX96: 17265.9813 | AY96: 7487.394721 | AZ96: 770.9913175 | BA96: 4156.63852 | BB96: 325.0270946 | BC96: 139746.8834 | BE96: 4.8 | BG96: 5.04 | BI96: 5.52 | BK96: 5.4
A97: 2013-06-01 | B97: 61379.84658 | C97: 12885.66427 | D97: 25410.53529 | E97: 9282.431959 | F97: 108958.4781 | G97: 26.36 | M97: 15.95695295 | O97: 36.18346076 | Q97: 9.036 | U97: 7.004507965 | W97: 11.06908942 | Y97: 1.43 | AA97: 1.159442062 | AC97: 1.883987212 | AE97: 4.45 | AG97: 7677.1089 | AH97: 4335.136 | AI97: 12745.0643 | AJ97: 3693.7857 | AK97: 20773.986 | AL97: 62329.648 | AM97: 3297.049 | AN97: 11437.07152 | AO97: 559.5195715 | AP97: 10854.71345 | AQ97: 37.98757357 | AR97: 87504.57307 | AS97: 8809.85 | AT97: 10366.28 | AU97: 12198.08 | AV97: 1288.87 | AW97: 212.1981955 | AX97: 17235.91085 | AY97: 7489.206983 | AZ97: 769.0622315 | BA97: 3962.033876 | BB97: 327.9308469 | BC97: 141584.0666 | BE97: 5.04 | BG97: 5.16 | BI97: 5.4 | BK97: 5.64
A98: 2013-07-01 | B98: 61638.65262 | C98: 12968.27827 | D98: 25677.00684 | E98: 9555.318032 | F98: 109839.2558 | G98: 26.99 | M98: 16.27740703 | O98: 36.1954457 | Q98: 9.22 | U98: 7.236011947 | W98: 11.11571504 | Y98: 1.48 | AA98: 1.282517037 | AC98: 1.792275279 | AE98: 4.46 | AG98: 7727.267 | AH98: 4346.928 | AI98: 12640.7035 | AJ98: 3861.11105 | AK98: 20848.74255 | AL98: 62829.702 | AM98: 3317.72 | AN98: 10500.76447 | AO98: 559.2739151 | AP98: 9960.011141 | AQ98: 41.1508482 | AR98: 88055.04095 | AS98: 9258.087691 | AT98: 10551.92 | AU98: 12470.28 | AV98: 1115.013 | AW98: 180.996845 | AX98: 17073.43242 | AY98: 7512.896635 | AZ98: 766.4512335 | BA98: 3859.395454 | BB98: 326.9726766 | BC98: 142797.7506 | BE98: 5.16 | BG98: 5.28 | BI98: 5.52 | BK98: 5.76
A99: 2013-08-01 | B99: 62324.26529 | C99: 13121.27123 | D99: 25931.97845 | E99: 9463.472032 | F99: 110840.987 | G99: 27.4107645 | M99: 15.59156267 | O99: 35.90296594 | Q99: 8.896549356 | U99: 7.125036704 | W99: 10.66653508 | Y99: 1.682150506 | AA99: 1.520400806 | AC99: 1.879668396 | AE99: 4.49 | AG99: 7587.377857 | AH99: 4303.226 | AI99: 12462.7079 | AJ99: 3678.9731 | AK99: 20444.907 | AL99: 63499.5205 | AM99: 3334.85 | AN99: 11598.58671 | AO99: 546.0747603 | AP99: 10964.77422 | AQ99: 41.31202009 | AR99: 88417.85273 | AS99: 9605.48 | AT99: 10931 | AU99: 12812.89 | AV99: 1136.63 | AW99: 150.166041 | AX99: 17682.20253 | AY99: 7572.596565 | AZ99: 764.6164465 | BA99: 4068.42109 | BB99: 330.7036872 | BC99: 144674.3095 | BE99: 5.16 | BG99: 5.28 | BI99: 5.4 | BK99: 5.52
A100: 2013-09-01 | B100: 62676.91915 | C100: 13184.39819 | D100: 26179.95204 | E100: 8993.848613 | F100: 111035.118 | G100: 27.45671466 | M100: 14.20804883 | O100: 35.70490559 | Q100: 9.243501248 | U100: 6.894534037 | W100: 11.02230596 | Y100: 1.455340848 | AA100: 1.313564134 | AC100: 1.769106387 | AE100: 4.37 | AG100: 7836.387394 | AH100: 4567.361059 | AI100: 12514.8717 | AJ100: 4021.61215 | AK100: 21103.84491 | AL100: 63824.336 | AM100: 3349.022 | AN100: 11510.73919 | AO100: 535.1759542 | AP100: 10994.72555 | AQ100: 42.32748438 | AR100: 89286.06501 | AS100: 9548.106836 | AT100: 11082.25962 | AU100: 13067.57579 | AV100: 1143.596 | AW100: 149.3244355 | AX100: 18101.05445 | AY100: 7573.975943 | AZ100: 766.228913 | BA100: 4111.744204 | BB100: 335.8508904 | BC100: 146270.5919 | BE100: 5.16 | BG100: 5.4 | BI100: 5.52 | BK100: 5.76
A101: 2013-10-01 | B101: 63074.79261 | C101: 13343.26479 | D101: 26484.3399 | E101: 8901.431467 | F101: 111803.8288 | G101: 26.86396937 | M101: 15.76672794 | O101: 35.53734965 | Q101: 8.81718567 | U101: 7.188372445 | W101: 10.17488585 | Y101: 1.668779538 | AA101: 1.563421632 | AC101: 1.790576668 | AE101: 4.39 | AG101: 7635.905455 | AH101: 4493.905032 | AI101: 12508.89535 | AJ101: 3397.8576 | AK101: 20400.65798 | AL101: 64032.9605 | AM101: 3357.605 | AN101: 11653.90572 | AO101: 529.9913844 | AP101: 11357.64865 | AQ101: 41.32336756 | AR101: 88576.14857 | AS101: 9431.419289 | AT101: 11107.27955 | AU101: 13407.93987 | AV101: 1069.69 | AW101: 156.883451 | AX101: 17907.50132 | AY101: 7753.710809 | AZ101: 782.2287705 | BA101: 4182.943859 | BB101: 336.8951318 | BC101: 145672.9626 | BE101: 5.04 | BG101: 5.28 | BI101: 5.4 | BK101: 5.88
A102: 2013-11-01 | B102: 64440.73641 | C102: 13519.49553 | D102: 26713.22542 | E102: 9170.427671 | F102: 113843.885 | G102: 26.78323487 | M102: 15.57987518 | O102: 35.35546024 | Q102: 8.891373155 | U102: 6.638980796 | W102: 11.09109851 | Y102: 1.571033556 | AA102: 1.38616923 | AC102: 1.815295578 | AE102: 4.36 | AG102: 7723.180771 | AH102: 4490.232432 | AI102: 12536.06735 | AJ102: 3776.91235 | AK102: 20803.21213 | AL102: 64414.5255 | AM102: 3356.135 | AN102: 12862.89014 | AO102: 529.3123544 | AP102: 12542.64111 | AQ102: 42.82159088 | AR102: 89380.61242 | AS102: 9543.293333 | AT102: 11320.06271 | AU102: 13232.23039 | AV102: 1080.914 | AW102: 167.3743365 | AX102: 17938.02726 | AY102: 8086.671622 | AZ102: 793.356855 | BA102: 4540.55608 | BB102: 334.2636581 | BC102: 146667.7232 | BE102: 4.68 | BG102: 4.8 | BI102: 4.92 | BK102: 5.88
A103: 2013-12-01 | B103: 64939.08873 | C103: 13615.16979 | D103: 27049.08633 | E103: 8667.500302 | F103: 114270.8452 | G103: 26.06178523 | M103: 15.98790361 | O103: 34.3783696 | Q103: 8.345716183 | U103: 6.439636052 | W103: 10.43775091 | Y103: 1.648652681 | AA103: 1.512873937 | AC103: 1.851940651 | AE103: 4.36 | AG103: 8296.81585 | AH103: 4693.221 | AI103: 13455.1953 | AJ103: 3963.4767 | AK103: 22111.893 | AL103: 64506.849 | AM103: 3345.568 | AN103: 12513.921 | AO103: 533.9515013 | AP103: 11940.18806 | AQ103: 41.97109907 | AR103: 91030.02334 | AS103: 9628.805 | AT103: 10362.365 | AU103: 13167.667 | AV103: 993.772 | AW103: 176.2998985 | AX103: 17974.28425 | AY103: 8280.124362 | AZ103: 796.0142885 | BA103: 4638.750146 | BB103: 329.4559565 | BC103: 147441.149 | BE103: 4.56 | BG103: 4.8 | BI103: 5.16 | BK103: 5.88
A104: 2014-01-01 | B104: 65565.12998 | C104: 13773.69532 | D104: 27428.24566 | E104: 8975.018932 | F104: 115742.0899 | G104: 26.41 | H104: 1021.52 | I104: 36.44 | J104: 258.44 | K104: 11.76 | L104: 133.53 | M104: 16.78 | N104: 295.28 | O104: 33.02 | P104: 334.27 | Q104: 8.57 | R104: 4195.61 | S104: 27.89 | T104: 14.57 | U104: 6.42 | V104: 2200.95 | W104: 10.82 | X104: 1980.09 | Y104: 1.98 | Z104: 774.17 | AA104: 2.03 | AB104: 343.21 | AC104: 1.94 | AD104: 430.96 | AE104: 4.32 | AF104: 294.9671667 | AG104: 8057.889727 | AH104: 4742.973 | AI104: 13837.76035 | AJ104: 3773.01935 | AK104: 22353.7527 | AL104: 65180.911 | AM104: 3353.626 | AN104: 12347.78139 | AO104: 547.0896768 | AP104: 11691.02381 | AQ104: 39.21578027 | AR104: 92052.92117 | AS104: 9790.473023 | AT104: 9793.545999 | AU104: 12909.16561 | AV104: 900.929 | AW104: 186.3517275 | AX104: 18178.54595 | AY104: 8505.93544 | AZ104: 795.096631 | BA104: 4766.21681 | BB104: 335.5088718 | BC104: 148011.2389 | BE104: 4.44 | BF104: 9300.39 | BG104: 4.56 | BH104: 3429.64 | BI104: 4.8 | BJ104: 993.41
A105: 2014-02-01 | B105: 65694.84556 | C105: 13843.87441 | D105: 27727.26189 | E105: 9020.470008 | F105: 116286.4519 | G105: 26.87 | H105: 871.88 | I105: 35.62 | J105: 237.14 | K105: 12.06 | L105: 106.98 | M105: 16.79 | N105: 239.78 | O105: 33.56 | P105: 287.98 | Q105: 8.53 | R105: 3487.69 | S105: 29.52 | T105: 12.76 | U105: 6.35 | V105: 1621.42 | W105: 10.29 | X105: 1853.51 | Y105: 1.57 | Z105: 782.78 | AA105: 1.47 | AB105: 431.43 | AC105: 1.7 | AD105: 351.35 | AE105: 4.3 | AF105: 251.6502177 | AG105: 8099.734 | AH105: 4725.875 | AI105: 13371.68085 | AJ105: 4010.84215 | AK105: 22108.398 | AL105: 65782.935 | AM105: 3372.81 | AN105: 12632.76537 | AO105: 560.3866485 | AP105: 11963.84254 | AQ105: 40.67483272 | AR105: 92452.77764 | AS105: 10309.054 | AT105: 10897.807 | AU105: 13093.853 | AV105: 918.096 | AW105: 185.551322 | AX105: 18294.09346 | AY105: 9002.908458 | AZ105: 807.3783305 | BA105: 5185.023621 | BB105: 345.4907124 | BC105: 150431.0049 | BE105: 4.2 | BF105: 7720.18 | BG105: 4.44 | BH105: 2401.89 | BI105: 4.68 | BJ105: 536.78 | BK105: 3.84 | BL105: 0.01
A106: 2014-03-01 | B106: 65259.35584 | C106: 13964.76669 | D106: 28090.00814 | E106: 8768.749837 | F106: 116082.8805 | G106: 24.53 | H106: 1073.3 | I106: 35.32 | J106: 247.18 | K106: 10.23 | L106: 165.8 | M106: 15.11 | N106: 343.98 | O106: 33.85 | P106: 316.34 | Q106: 8.47 | R106: 3713.81 | S106: 26.78 | T106: 16.68 | U106: 6.26 | V106: 2160.28 | W106: 11.38 | X106: 1536.85 | Y106: 1.57 | Z106: 1043.63 | AA106: 1.4 | AB106: 655.05 | AC106: 1.85 | AD106: 388.58 | AE106: 4.3 | AF106: 281.6198384 | AG106: 8025.049762 | AH106: 4689.072 | AI106: 13477.24815 | AJ106: 4007.330802 | AK106: 22173.65095 | AL106: 65792.7295 | AM106: 3402.75 | AN106: 11578.96928 | AO106: 566.4482851 | AP106: 10994.503 | AQ106: 41.76180738 | AR106: 92478.28321 | AS106: 10474.85406 | AT106: 11101.57014 | AU106: 13085.51921 | AV106: 899.897 | AW106: 176.063963 | AX106: 18296.76718 | AY106: 9691.970098 | AZ106: 823.805222 | BA106: 5466.502569 | BB106: 351.3972886 | BC106: 151210.8302 | BE106: 4.08 | BF106: 9448.66 | BG106: 4.08 | BH106: 3099.97 | BI106: 4.32 | BJ106: 808.07 | BK106: 3.72 | BL106: 0.01
A107: 2014-04-01 | B107: 65388.11441 | C107: 14089.38533 | D107: 28511.88761 | E107: 9119.93308 | F107: 117109.3204 | G107: 26.13 | H107: 1183.63 | I107: 33.64 | J107: 391.18 | K107: 12.45 | L107: 148.37 | M107: 15.25 | N107: 323.66 | O107: 34.28 | P107: 320.42 | Q107: 8.72 | R107: 3526.75 | S107: 30.96 | T107: 29.42 | U107: 5.97 | V107: 1739.73 | W107: 11.07 | X107: 1757.6 | Y107: 1.59 | Z107: 881.93 | AA107: 1.47 | AB107: 516.07 | AC107: 1.77 | AD107: 365.86 | AE107: 4.25 | AF107: 296.7644804 | AG107: 7978.462 | AH107: 4728.2 | AI107: 13686.0896 | AJ107: 4185.14515 | AK107: 22599.43475 | AL107: 65189.604 | AM107: 3434.453 | AN107: 11800.63152 | AO107: 570.7383943 | AP107: 11068.40473 | AQ107: 41.3690137 | AR107: 92485.08793 | AS107: 10962.51131 | AT107: 11030.3387 | AU107: 13065.09322 | AV107: 877.835 | AW107: 181.6311015 | AX107: 18190.36731 | AY107: 10463.29905 | AZ107: 839.368596 | BA107: 5942.643758 | BB107: 358.3423227 | BC107: 151794.5461 | BE107: 3.96 | BF107: 8907.43 | BG107: 3.96 | BH107: 3031.67 | BI107: 4.44 | BJ107: 923.71 | BK107: 3.48 | BL107: 0.01
A108: 2014-05-01 | B108: 65766.53499 | C108: 14118.0007 | D108: 28889.13608 | E108: 9037.204993 | F108: 117810.8768 | G108: 27.43 | H108: 1203.28 | I108: 34 | J108: 431.57 | K108: 20.01 | L108: 145.09 | M108: 15.47 | N108: 318.39 | O108: 34.06 | P108: 308.23 | Q108: 8.55 | R108: 3379.36 | S108: 32.91 | T108: 31.81 | U108: 5.8 | V108: 1745.64 | W108: 11.07 | X108: 1601.91 | Y108: 1.24 | Z108: 941.88 | AA108: 1.02 | AB108: 603.1 | AC108: 1.63 | AD108: 338.78 | AE108: 4.14 | AF108: 264.6340405 | AG108: 8098.402 | AH108: 4767.138 | AI108: 13853.7285 | AJ108: 4294.509155 | AK108: 22915.37565 | AL108: 64416.8575 | AM108: 3477.185 | AN108: 13061.71361 | AO108: 576.2732831 | AP108: 11996.69826 | AQ108: 41.77475914 | AR108: 92408.93202 | AS108: 11531.50484 | AT108: 11528.68108 | AU108: 13402.51535 | AV108: 1226.149 | AW108: 187.930158 | AX108: 18192.79591 | AY108: 11306.62367 | AZ108: 859.1868495 | BA108: 6551.438387 | BB108: 364.9034709 | BC108: 153727.977 | BE108: 3.96 | BF108: 8423.9 | BG108: 4.08 | BH108: 2657.56 | BI108: 4.32 | BJ108: 632.86 | BK108: 3.96 | BL108: 0.01
A109: 2014-06-01 | B109: 66168.76429 | C109: 14148.0135 | D109: 29223.80319 | E109: 8734.664857 | F109: 118275.2458 | G109: 26.58 | H109: 1219.64 | I109: 33.32 | J109: 456.09 | K109: 14.91 | L109: 144.3 | M109: 15.23 | N109: 314.79 | O109: 33.75 | P109: 304.46 | Q109: 8.22 | R109: 4164.32 | S109: 31.5 | T109: 30.27 | U109: 6.2 | V109: 1801.48 | W109: 9.48 | X109: 2332.57 | Y109: 1.37 | Z109: 903.65 | AA109: 1.19 | AB109: 581.3 | AC109: 1.69 | AD109: 322.35 | AE109: 3.94 | AF109: 306.401568 | AG109: 8142.111 | AH109: 4789.139 | AI109: 13997.23755 | AJ109: 4346.7734 | AK109: 23133.14995 | AL109: 64522.267 | AM109: 3525.183 | AN109: 11618.2262 | AO109: 579.2409038 | AP109: 10680.25414 | AQ109: 43.95184846 | AR109: 92653.86106 | AS109: 11357.527 | AT109: 11247.935 | AU109: 13809.134 | AV109: 1460.053 | AW109: 182.6638925 | AX109: 18311.78024 | AY109: 12122.16297 | AZ109: 877.422797 | BA109: 6737.742823 | BB109: 368.1484186 | BC109: 154916.6487 | BE109: 3.96 | BF109: 8168.76 | BG109: 4.2 | BH109: 2687.11 | BI109: 4.44 | BJ109: 812.44 | BK109: 4.68 | BL109: 0.06
A110: 2014-07-01 | B110: 66458.07809 | C110: 14241.05607 | D110: 29476.75781 | E110: 9040.994939 | F110: 119216.8869 | G110: 24.96 | H110: 1274.88 | I110: 32.18 | J110: 435.69 | K110: 10.64 | L110: 174.29 | M110: 15.2 | N110: 343.26 | O110: 33.34 | P110: 321.64 | Q110: 8.05 | R110: 4186.56 | S110: 27.47 | T110: 29.61 | U110: 5.65 | V110: 2042.07 | W110: 10.1 | X110: 2114.88 | Y110: 1.24 | Z110: 1190.11 | AA110: 1.11 | AB110: 730.84 | AC110: 1.44 | AD110: 459.27 | AE110: 3.86 | AF110: 311.323801 | AG110: 7977.778 | AH110: 4768.593 | AI110: 13890.89735 | AJ110: 4270.79322 | AK110: 22930.28357 | AL110: 65535.362 | AM110: 3583.246 | AN110: 10195.74389 | AO110: 578.5772415 | AP110: 9364.251398 | AQ110: 47.35186328 | AR110: 93411.60944 | AS110: 11362.42308 | AT110: 10767.75051 | AU110: 14046.02238 | AV110: 1050.223 | AW110: 173.867798 | AX110: 18397.32063 | AY110: 12841.64171 | AZ110: 902.9998345 | BA110: 6913.055369 | BB110: 371.8997311 | BC110: 155668.9033 | BE110: 3.96 | BF110: 8824.3 | BG110: 3.96 | BH110: 3262.48 | BI110: 4.32 | BJ110: 963.04 | BK110: 3.12 | BL110: 0.12
A111: 2014-08-01 | B111: 67327.85147 | C111: 14354.08587 | D111: 29800.06376 | E111: 9032.480256 | F111: 120514.4814 | G111: 24.74 | H111: 1285.79 | I111: 32.27 | J111: 457.91 | K111: 9.88 | L111: 156.22 | M111: 14.59 | N111: 361.72 | O111: 32.94 | P111: 309.94 | Q111: 7.67 | R111: 3819.06 | S111: 27.75 | T111: 33.46 | U111: 5.5 | V111: 1700.85 | W111: 9.11 | X111: 2084.75 | Y111: 1.34 | Z111: 976.91 | AA111: 1.29 | AB111: 543.06 | AC111: 1.41 | AD111: 433.85 | AE111: 3.67 | AF111: 293.8659592 | AG111: 8142.2068 | AH111: 4708.005 | AI111: 13914.76855 | AJ111: 3996.736217 | AK111: 22619.50977 | AL111: 66249.8855 | AM111: 3557.901 | AN111: 10125.50444 | AO111: 580.9804452 | AP111: 9296.569046 | AQ111: 47.31253304 | AR111: 93789.89957 | AS111: 11740.02381 | AT111: 10785.49735 | AU111: 14195.3027 | AV111: 1037.117 | AW111: 158.6078035 | AX111: 18474.57864 | AY111: 13840.92013 | AZ111: 939.1599185 | BA111: 7451.891363 | BB111: 379.3008717 | BC111: 157129.9147 | BE111: 3.6 | BF111: 7757.09 | BG111: 3.6 | BH111: 3134.47 | BI111: 3.72 | BJ111: 779.25 | BK111: 4.08 | BL111: 10.01
A112: 2014-09-01 | B112: 67730.49743 | C112: 14426.4324 | D112: 30172.77529 | E112: 9044.939628 | F112: 121374.6448 | G112: 24.96 | H112: 1255.37 | I112: 32.62 | J112: 461.46 | K112: 9.5 | L112: 146.07 | M112: 14.39 | N112: 333.04 | O112: 32.1 | P112: 314.8 | Q112: 7.35 | R112: 4319.62 | S112: 28.8 | T112: 32.31 | U112: 5.26 | V112: 1969.09 | W112: 8.83 | X112: 2318.22 | Y112: 1.28 | Z112: 882.22 | AA112: 1.05 | AB112: 522.47 | AC112: 1.62 | AD112: 359.75 | AE112: 3.58 | AF112: 342.0490768 | AG112: 8182.405 | AH112: 4883.958 | AI112: 13997.46245 | AJ112: 4368.39255 | AK112: 23249.813 | AL112: 66266.083 | AM112: 3571.933 | AN112: 10315.9784 | AO112: 585.7812696 | AP112: 9567.077671 | AQ112: 46.63268591 | AR112: 94375.87832 | AS112: 12239.687 | AT112: 10599.541 | AU112: 14604.149 | AV112: 1108.257 | AW112: 141.705615 | AX112: 18568.04982 | AY112: 14025.23819 | AZ112: 959.4785785 | BA112: 7661.078455 | BB112: 381.3919444 | BC112: 158579.5141 | BE112: 3.48 | BF112: 9017.58 | BG112: 3.36 | BH112: 2822.52 | BI112: 3.6 | BJ112: 821.76 | BK112: 4.8 | BL112: 0.14
A113: 2014-10-01 | B113: 68033.96448 | C113: 14542.21416 | D113: 30651.80229 | E113: 8692.367348 | F113: 121920.3483 | G113: 24.14 | H113: 1300.6 | I113: 31.3 | J113: 472.02 | K113: 9.69 | L113: 150.46 | M113: 14.48 | N113: 361.82 | O113: 31.38 | P113: 316.3 | Q113: 7.31 | R113: 4469.86 | S113: 28.63 | T113: 32.69 | U113: 5.32 | V113: 2143.92 | W113: 8.87 | X113: 2293.25 | Y113: 1.42 | Z113: 860.82 | AA113: 1.22 | AB113: 530.72 | AC113: 1.73 | AD113: 330.1 | AE113: 3.57 | AF113: 412.4767328 | AG113: 8046.06 | AH113: 4801.429 | AI113: 13795.696 | AJ113: 4223.494 | AK113: 22820.619 | AL113: 66838.039 | AM113: 3599.472 | AN113: 11948.00488 | AO113: 592.4296304 | AP113: 11080.32581 | AQ113: 47.58121715 | AR113: 94670.65749 | AS113: 12176.286 | AT113: 10892.788 | AU113: 14768.473 | AV113: 962.396 | AW113: 139.3263925 | AX113: 18576.10536 | AY113: 13029.71335 | AZ113: 954.715182 | BA113: 7294.574496 | BB113: 380.2610853 | BC113: 158495.6252 | BE113: 3.6 | BF113: 9399.98 | BG113: 3.48 | BH113: 3280.31 | BI113: 3.84 | BJ113: 581.77 | BK113: 5.16 | BL113: 0.09
A114: 2014-11-01 | B114: 69824.92146 | C114: 14691.02463 | D114: 31194.06084 | E114: 9048.802358 | F114: 124758.8093 | G114: 23.93 | H114: 1307.4 | I114: 30.91 | J114: 473.45 | K114: 9.78 | L114: 162.75 | M114: 14.76 | N114: 356.66 | O114: 31.16 | P114: 314.54 | Q114: 6.9 | R114: 4997.38 | S114: 28.26 | T114: 32.45 | U114: 5.22 | V114: 2399.86 | W114: 8.2 | X114: 2565.07 | Y114: 1.51 | Z114: 691.16 | AA114: 1.4 | AB114: 402.48 | AC114: 1.67 | AD114: 288.68 | AE114: 3.65 | AF114: 394.1671121 | AG114: 8346.979 | AH114: 4879.197 | AI114: 14020.1812 | AJ114: 5062.41955 | AK114: 23961.79775 | AL114: 68224.4285 | AM114: 3627.876 | AN114: 12672.88379 | AO114: 596.6191588 | AP114: 11731.43625 | AQ114: 47.95572395 | AR114: 97304.21323 | AS114: 12254.16206 | AT114: 10275.04279 | AU114: 14985.44582 | AV114: 879.59 | AW114: 143.9688685 | AX114: 18583.10363 | AY114: 12798.34139 | AZ114: 968.2970798 | BA114: 7057.491477 | BB114: 381.0249202 | BC114: 160753.6485 | BE114: 3.48 | BF114: 9032.11 | BG114: 3.6 | BH114: 3814.51 | BI114: 3.84 | BJ114: 643.58 | BK114: 4.68 | BL114: 0.66
A115: 2014-12-01 | B115: 70255.53153 | C115: 14760.74409 | D115: 31579.01178 | E115: 8819.990372 | F115: 125415.2778 | G115: 23.7 | H115: 1485.97 | I115: 30.32 | J115: 494.01 | K115: 9.01 | L115: 210.01 | M115: 15.01 | N115: 350.82 | O115: 30.35 | P115: 431.13 | Q115: 6.88 | R115: 6192.72 | S115: 25.77 | T115: 37.85 | U115: 5.27 | V115: 2760.47 | W115: 7.97 | X115: 3394.4 | Y115: 1.39 | Z115: 1000.5 | AA115: 1.23 | AB115: 660.22 | AC115: 1.71 | AD115: 340.28 | AE115: 3.73 | AF115: 384.8509115 | AG115: 8715.19525 | AH115: 5160.604 | AI115: 15039.2947 | AJ115: 5290.9196 | AK115: 25490.8183 | AL115: 69242.272 | AM115: 3636.725 | AN115: 12662.70743 | AO115: 599.5634241 | AP115: 11862.82929 | AQ115: 47.8727942 | AR115: 99721.38407 | AS115: 12683.85649 | AT115: 9484.976591 | AU115: 15401.51595 | AV115: 1136.301 | AW115: 196.9249723 | AX115: 18594.18638 | AY115: 12995.36661 | AZ115: 989.552399 | BA115: 6954.387857 | BB115: 389.7298653 | BC115: 163859.9467 | BE115: 3.48 | BF115: 9397.91 | BG115: 3.6 | BH115: 3072.63 | BI115: 3.84 | BJ115: 561.81 | BK115: 3.12 | BL115: 0.01
A116: 2015-01-01 | B116: 70467.61302 | C116: 14828.78995 | D116: 31737.14896 | E116: 9523.636449 | F116: 126557.1884 | G116: 24.09 | H116: 1320.72 | I116: 29.65 | J116: 485.44 | K116: 10.07 | L116: 161.16 | M116: 15.33 | N116: 312.73 | O116: 30.47 | P116: 361.39 | Q116: 7.07 | R116: 4236.09 | S116: 25.26 | T116: 39.55 | U116: 5.28 | V116: 1967.05 | W116: 8.32 | X116: 2229.49 | Y116: 1.6 | Z116: 786.02 | AA116: 1.52 | AB116: 439.27 | AC116: 1.7 | AD116: 346.75 | AE116: 3.75 | AF116: 369.753407 | AG116: 8826.117334 | AH116: 5142.750501 | AI116: 15547.2187 | AJ116: 4724.8112 | AK116: 25414.7804 | AL116: 69418.6425 | AM116: 3650.973 | AN116: 13476.61784 | AO116: 614.0085672 | AP116: 12577.72662 | AQ116: 46.77360521 | AR116: 99950.52209 | AS116: 13130.56195 | AT116: 9589.866561 | AU116: 15374.20457 | AV116: 1083.888 | AW116: 227.2442853 | AX116: 18486.30926 | AY116: 13028.37942 | AZ116: 1004.806149 | BA116: 6893.084381 | BB116: 403.4105662 | BC116: 164579.2873 | BE116: 3.36 | BF116: 9179.32 | BG116: 3.24 | BH116: 3838.85 | BI116: 3.48 | BJ116: 464.93 | BK116: 5.4 | BL116: 0.18
A117: 2015-02-01 | B117: 70127.49067 | C117: 14883.44406 | D117: 31939.02477 | E117: 9126.025769 | F117: 126075.9853 | G117: 25.23 | H117: 1250.31 | I117: 30.42 | J117: 512.09 | K117: 10.8 | L117: 137.16 | M117: 15.4 | N117: 268.61 | O117: 31.15 | P117: 332.45 | Q117: 7.13 | R117: 3559.23 | S117: 23.74 | T117: 38.74 | U117: 5.52 | V117: 1322.56 | W117: 7.8 | X117: 2197.93 | Y117: 1.68 | Z117: 866.26 | AA117: 1.66 | AB117: 571.12 | AC117: 1.74 | AD117: 295.14 | AE117: 3.73 | AF117: 314.7116059 | AG117: 9072.602 | AH117: 5188.517379 | AI117: 15391.7826 | AJ117: 4756.13485 | AK117: 25336.43483 | AL117: 69137.1035 | AM117: 3669.621 | AN117: 13464.06769 | AO117: 632.7346301 | AP117: 12542.35088 | AQ117: 47.3766216 | AR117: 99650.23415 | AS117: 13338.5216 | AT117: 10184.926 | AU117: 15739.519 | AV117: 940.647 | AW117: 205.2087835 | AX117: 18399.15891 | AY117: 13647.40167 | AZ117: 1031.045629 | BA117: 7096.806027 | BB117: 408.1114949 | BC117: 165631.7452 | BE117: 3.24 | BF117: 6110.93 | BG117: 3.24 | BH117: 2277.55 | BI117: 3.6 | BJ117: 311.9 | BK117: 5.16 | BL117: 10.62
A118: 2015-03-01 | B118: 70094.1534 | C118: 14984.89749 | D118: 32327.5347 | E118: 9152.581286 | F118: 126559.1669 | G118: 23.3 | H118: 1476.29 | I118: 30.64 | J118: 493.72 | K118: 9.8 | L118: 195.81 | M118: 13.73 | N118: 402.87 | O118: 30.79 | P118: 383.89 | Q118: 7.15 | R118: 4380.53 | S118: 23.41 | T118: 40.51 | U118: 5.45 | V118: 1877.68 | W118: 8.17 | X118: 2462.34 | Y118: 1.46 | Z118: 817.86 | AA118: 1.22 | AB118: 489 | AC118: 1.81 | AD118: 328.86 | AE118: 3.67 | AF118: 388.7179187 | AG118: 8878.899808 | AH118: 5184.078906 | AI118: 15487.5511 | AJ118: 4414.2668 | AK118: 25085.89681 | AL118: 69548.4275 | AM118: 3705.513 | AN118: 11904.06062 | AO118: 641.62365 | AP118: 11373.88233 | AQ118: 59.7775907 | AR118: 99451.86166 | AS118: 13055.86028 | AT118: 9967.373872 | AU118: 15803.28186 | AV118: 912.9 | AW118: 205.7216605 | AX118: 18278.32248 | AY118: 14539.25212 | AZ118: 1053.32967 | BA118: 7311.221943 | BB118: 409.8475904 | BC118: 165546.8341 | BE118: 3.36 | BF118: 9471.19 | BG118: 3.48 | BH118: 3913.4 | BI118: 3.72 | BJ118: 890.31 | BK118: 5.16 | BL118: 2.04
A119: 2015-04-01 | B119: 70180.50611 | C119: 15085.988 | D119: 32816.12944 | E119: 9141.618814 | F119: 127224.2424 | G119: 23.62 | H119: 1379 | I119: 30.34 | J119: 480.61 | K119: 9.92 | L119: 172.53 | M119: 14.2 | N119: 360.85 | O119: 30.56 | P119: 365.01 | Q119: 7.04 | R119: 4470.03 | S119: 24.35 | T119: 34.38 | U119: 5.57 | V119: 1886.75 | W119: 7.89 | X119: 2548.9 | Y119: 1.59 | Z119: 697.73 | AA119: 1.55 | AB119: 413.72 | AC119: 1.66 | AD119: 284.01 | AE119: 3.6 | AF119: 371.8620866 | AG119: 8864.913116 | AH119: 5203.552914 | AI119: 15606.2384 | AJ119: 4667.7036 | AK119: 25477.49491 | AL119: 70453.226 | AM119: 3747.868 | AN119: 11921.30909 | AO119: 640.165705 | AP119: 11498.95143 | AQ119: 73.2845248 | AR119: 100667.8278 | AS119: 12963.29143 | AT119: 9746.058519 | AU119: 15891.18092 | AV119: 714.964 | AW119: 201.090092 | AX119: 18329.93332 | AY119: 14774.93378 | AZ119: 1072.419974 | BA119: 7229.984442 | BB119: 412.388113 | BC119: 166719.3272 | BE119: 3.36 | BF119: 10739.23 | BG119: 3.6 | BH119: 4475.59 | BI119: 3.84 | BJ119: 751.95 | BK119: 4.68 | BL119: 2.14
A120: 2015-05-01 | B120: 71322.35712 | C120: 14931.115 | D120: 33276.68512 | E120: 9443.744469 | F120: 128973.9017 | G120: 23.78 | H120: 1347.58 | I120: 29.94 | J120: 513.14 | K120: 9.79 | L120: 147.69 | M120: 14.09 | N120: 344.9 | O120: 30.35 | P120: 341.85 | Q120: 6.88 | R120: 5169.83 | S120: 27.28 | T120: 34.49 | U120: 5.28 | V120: 2459.53 | W120: 8.08 | X120: 2675.81 | Y120: 1.38 | Z120: 1050.76 | AA120: 1.24 | AB120: 772.8 | AC120: 1.77 | AD120: 277.96 | AE120: 3.61 | AF120: 338.6992947 | AG120: 9360.241617 | AH120: 5334.619242 | AI120: 15875.383 | AJ120: 4746.82415 | AK120: 25956.82639 | AL120: 70801.217 | AM120: 3807.353 | AN120: 12193.99735 | AO120: 634.8859205 | AP120: 11803.47908 | AQ120: 65.60226733 | AR120: 101525.1983 | AS120: 13209.36698 | AT120: 10273.83767 | AU120: 16652.28961 | AV120: 670.124 | AW120: 191.9154015 | AX120: 18536.23105 | AY120: 14600.03263 | AZ120: 1087.14833 | BA120: 6884.715945 | BB120: 416.9722607 | BC120: 169444.4558 | BE120: 3.48 | BF120: 8807.17 | BG120: 3.72 | BH120: 2848.75 | BI120: 3.96 | BJ120: 1310.9 | BK120: 3.48 | BL120: 0.02
A121: 2015-06-01 | B121: 71562.74355 | C121: 14969.74562 | D121: 33659.7144 | E121: 9459.942252 | F121: 129652.1458 | G121: 23.48 | H121: 1505.92 | I121: 28.84 | J121: 621.72 | K121: 9.4 | L121: 152.72 | M121: 13.97 | N121: 374.08 | O121: 30.11 | P121: 357.4 | Q121: 7.06 | R121: 4394.98 | S121: 26.98 | T121: 34.42 | U121: 5.71 | V121: 2164.85 | W121: 8.08 | X121: 2195.71 | Y121: 1.68 | Z121: 786.85 | AA121: 1.6 | AB121: 457.37 | AC121: 1.79 | AD121: 329.48 | AE121: 3.66 | AF121: 354.2569897 | AG121: 9207.026537 | AH121: 5380.34316 | AI121: 16190.16595 | AJ121: 4894.1824 | AK121: 26464.69151 | AL121: 71297.1295 | AM121: 3874.821 | AN121: 10893.6815 | AO121: 630.3021338 | AP121: 10657.81403 | AQ121: 53.74163181 | AR121: 102449.07 | AS121: 13138.29339 | AT121: 9618.983597 | AU121: 17489.83624 | AV121: 625.748 | AW121: 188.2490725 | AX121: 18517.85163 | AY121: 14818.10757 | AZ121: 1093.431324 | BA121: 6679.909689 | BB121: 418.4632043 | BC121: 170841.1979 | BE121: 3.48 | BF121: 10244.49 | BG121: 3.72 | BH121: 3624.96 | BI121: 3.96 | BJ121: 1191.78
A122: 2015-07-01 | B122: 72405.91758 | C122: 15119.75806 | D122: 34057.18255 | E122: 9869.690447 | F122: 131452.5486 | G122: 22.91 | H122: 1552.34 | I122: 28.34 | J122: 585.44 | K122: 9.46 | L122: 159.17 | M122: 14.25 | N122: 414.2 | O122: 29.4 | P122: 393.53 | Q122: 6.83 | R122: 4807.92 | S122: 25.73 | T122: 37.06 | U122: 5.53 | V122: 2055.35 | W122: 7.56 | X122: 2715.51 | Y122: 1.55 | Z122: 998.26 | AA122: 1.46 | AB122: 599.8 | AC122: 1.69 | AD122: 398.46 | AE122: 3.67 | AF122: 379.6610199 | AG122: 9221.036235 | AH122: 5331.025297 | AI122: 16112.98905 | AJ122: 4858.94085 | AK122: 26302.9552 | AL122: 72876.938 | AM122: 3911.563 | AN122: 12324.47537 | AO122: 629.1083495 | AP122: 11871.82024 | AQ122: 50.52274912 | AR122: 104122.6969 | AS122: 13486.67746 | AT122: 9710.081006 | AU122: 18422.9604 | AV122: 836.305 | AW122: 187.6014355 | AX122: 18594.80765 | AY122: 15397.27214 | AZ122: 1125.30505 | BA122: 6884.752599 | BB122: 423.8553078 | BC122: 174575.0992 | BE122: 3.48 | BF122: 12744.23 | BG122: 3.72 | BH122: 4976.34 | BI122: 3.84 | BJ122: 1197.78 | BK122: 2.88 | BL122: 0.01
A123: 2015-08-01 | B123: 72956.08469 | C123: 15212.8619 | D123: 34450.45057 | E123: 10140.18159 | F123: 132759.5788 | G123: 23.52 | H123: 1648.09 | I123: 29.77 | J123: 668.82 | K123: 9.47 | L123: 165.73 | M123: 13.96 | N123: 422.18 | O123: 29.11 | P123: 391.36 | Q123: 7.07 | R123: 4083.66 | S123: 25.15 | T123: 40.68 | U123: 5.7 | V123: 1780.88 | W123: 7.82 | X123: 2262.1 | Y123: 1.59 | Z123: 1114.07 | AA123: 1.52 | AB123: 691.26 | AC123: 1.7 | AD123: 422.81 | AE123: 3.63 | AF123: 341.1258173 | AG123: 9281.872971 | AH123: 5309.774591 | AI123: 15969.94775 | AJ123: 4927.299035 | AK123: 26207.02138 | AL123: 74528.4105 | AM123: 3952.243143 | AN123: 12435.47502 | AO123: 638.5563383 | AP123: 11974.52688 | AQ123: 48.08223622 | AR123: 105739.0973 | AS123: 14081.39548 | AT123: 10151.41907 | AU123: 18792.22075 | AV123: 614.6302857 | AW123: 192.2264735 | AX123: 18803.08476 | AY123: 16062.83734 | AZ123: 1120.089806 | BA123: 7206.208428 | BB123: 439.6898268 | BC123: 177911.103 | BE123: 3.6 | BF123: 10210.57 | BG123: 3.72 | BH123: 5084.7 | BI123: 3.96 | BJ123: 1704.95 | BK123: 2.88 | BL123: 0.01
A124: 2015-09-01 | B124: 74374.98091 | C124: 15318.95111 | D124: 34969.09535 | E124: 9950.781261 | F124: 134613.8086 | G124: 23.23 | H124: 1562.47 | I124: 29.4 | J124: 618.67 | K124: 9.45 | L124: 154.74 | M124: 13.93 | N124: 415.75 | O124: 29.06 | P124: 373.31 | Q124: 6.34 | R124: 5721.95 | S124: 25.5 | T124: 32.37 | U124: 5.52 | V124: 2475.63 | W124: 6.78 | X124: 3213.95 | Y124: 1.58 | Z124: 889.41 | AA124: 1.2 | AB124: 511.11 | AC124: 2.09 | AD124: 378.3 | AE124: 3.65 | AF124: 359.8277918 | AG124: 9308.615982 | AH124: 5432.638092 | AI124: 15997.23605 | AJ124: 5049.2496 | AK124: 26479.12374 | AL124: 75273.118 | AM124: 3994.699 | AN124: 11276.48309 | AO124: 650.3782642 | AP124: 11006.06256 | AQ124: 47.09145157 | AR124: 106620.6481 | AS124: 14046.93452 | AT124: 9950.487984 | AU124: 19439.84449 | AV124: 690.818 | AW124: 188.53326 | AX124: 18817.07779 | AY124: 15995.92409 | AZ124: 1108.821951 | BA124: 7179.662686 | BB124: 448.1671938 | BC124: 179231.2603 | BE124: 3.72 | BF124: 10811.49 | BG124: 3.96 | BH124: 4502.2 | BI124: 4.32 | BJ124: 1276.9 | BK124: 3.84 | BL124: 0.01
A125: 2015-10-01 | B125: 74857.11219 | C125: 15454.55641 | D125: 35453.70579 | E125: 9723.623326 | F125: 135488.9977 | G125: 23.14 | H125: 1628.95 | I125: 28.62 | J125: 671.7 | K125: 10.11 | L125: 166.65 | M125: 14.3 | N125: 407.8 | O125: 28.61 | P125: 382.8 | Q125: 6.24 | R125: 5998.76 | S125: 26.01 | T125: 38.91 | U125: 5.76 | V125: 1992.6 | W125: 6.28 | X125: 3967.25 | Y125: 1.52 | Z125: 942.28 | AA125: 1.27 | AB125: 625.58 | AC125: 2.02 | AD125: 316.7 | AE125: 3.64 | AF125: 358.1980353 | AG125: 9313.417157 | AH125: 5406.51888 | AI125: 16036.97045 | AJ125: 4783.22715 | AK125: 26226.71648 | AL125: 76298.9815 | AM125: 4046.295 | AN125: 12895.18227 | AO125: 655.2222197 | AP125: 12577.90143 | AQ125: 46.61823641 | AR125: 107497.8778 | AS125: 14183.5433 | AT125: 10205.30667 | AU125: 19827.07123 | AV125: 1012.457 | AW125: 172.358159 | AX125: 18858.93468 | AY125: 15625.41678 | AZ125: 1114.915371 | BA125: 6856.090974 | BB125: 451.0327521 | BC125: 181190.7573 | BE125: 3.72 | BF125: 10504.67 | BG125: 4.08 | BH125: 3843.29 | BI125: 4.68 | BJ125: 842.11 | BK125: 3.6 | BL125: 0.01
A126: 2015-11-01 | B126: 75881.90439 | C126: 15620.0482 | D126: 35930.22474 | E126: 9838.678268 | F126: 137270.8556 | G126: 22.71 | H126: 1729.56 | I126: 28.42 | J126: 684.6 | K126: 10.01 | L126: 219.18 | M126: 14.68 | N126: 429.66 | O126: 28.6 | P126: 396.12 | Q126: 6.93 | R126: 4608.09 | S126: 25.69 | T126: 40.8 | U126: 5.61 | V126: 1936.25 | W126: 7.61 | X126: 2631.04 | Y126: 1.57 | Z126: 1064.6 | AA126: 1.38 | AB126: 748.59 | AC126: 2.01 | AD126: 316.01 | AE126: 3.72 | AF126: 381.4501715 | AG126: 9403.93153 | AH126: 5444.231194 | AI126: 16236.31145 | AJ126: 4992.0007 | AK126: 26672.54334 | AL126: 77029.8195 | AM126: 4203.139 | AN126: 13128.00434 | AO126: 659.5811884 | AP126: 12711.17988 | AQ126: 44.96797964 | AR126: 108936.9395 | AS126: 14497.63365 | AT126: 9999.312836 | AU126: 20349.4138 | AV126: 920.13 | AW126: 159.849122 | AX126: 18856.41959 | AY126: 15205.18186 | AZ126: 1132.919375 | BA126: 6329.888519 | BB126: 455.2294881 | BC126: 183272.6817 | BE126: 3.84 | BF126: 10157.05 | BG126: 4.32 | BH126: 3187.35 | BI126: 4.92 | BJ126: 829.86 | BK126: 2.4 | BL126: 0.13
A127: 2015-12-01 | B127: 76628.98025 | C127: 15792.3211 | D127: 36337.55289 | E127: 9626.082123 | F127: 138384.9364 | G127: 22.83 | H127: 1785.51 | I127: 28.56 | J127: 722.65 | K127: 9.62 | L127: 243.69 | M127: 14.97 | N127: 407.43 | O127: 28.35 | P127: 411.74 | Q127: 6.86 | R127: 5872.34 | S127: 25.65 | T127: 42.22 | U127: 5.91 | V127: 2590.86 | W127: 7.37 | X127: 3239.26 | Y127: 1.83 | Z127: 1045.9 | AA127: 1.59 | AB127: 703.42 | AC127: 2.33 | AD127: 342.48 | AE127: 3.77 | AF127: 387.3291529 | AG127: 9701.93858 | AH127: 5679.27348 | AI127: 17150.63315 | AJ127: 5380.1329 | AK127: 28210.03953 | AL127: 77307.4295 | AM127: 4071.246 | AN127: 13029.31103 | AO127: 663.4072696 | AP127: 12517.89872 | AQ127: 42.45348065 | AR127: 110721.0811 | AS127: 14524.2373 | AT127: 9013.17631 | AU127: 20421.029 | AV127: 834.29 | AW127: 146.9191875 | AX127: 18754.9356 | AY127: 14386.52525 | AZ127: 1128.310043 | BA127: 5631.841964 | BB127: 455.0307701 | BC127: 183843.6311 | BE127: 3.96 | BF127: 9501.43 | BG127: 4.44 | BH127: 3035.07 | BI127: 5.04 | BJ127: 781.77 | BK127: 3.89 | BL127: 0.02
A128: 2016-01-01 | B128: 76909.28362 | C128: 15890.97804 | D128: 36583.84548 | E128: 9723.548054 | F128: 139107.6552 | G128: 23.39 | H128: 1664.67 | I128: 28.27 | J128: 722.53 | K128: 10.25 | L128: 194.38 | M128: 15.45 | N128: 360.4 | O128: 28.29 | P128: 387.36 | Q128: 7.28 | R128: 4804.64 | S128: 26.13 | T128: 44.05 | U128: 6.13 | V128: 1878.88 | W128: 7.74 | X128: 2881.71 | Y128: 1.89 | Z128: 877.18 | AA128: 1.56 | AB128: 546.83 | AC128: 2.44 | AD128: 330.35 | AE128: 3.832336445 | AF128: 326.4534375 | AG128: 9837.795577 | AH128: 5657.760447 | AI128: 17805.4914 | AJ128: 5355.3672 | AK128: 28818.61905 | AL128: 77857.243 | AM128: 4081.34 | AN128: 13050.2783 | AO128: 665.973599 | AP128: 12535.38222 | AQ128: 41.07917035 | AR128: 111896.9926 | AS128: 14341.74469 | AT128: 8950.267592 | AU128: 20136.19778 | AV128: 765.064 | AW128: 114.7664075 | AX128: 18788.68376 | AY128: 13892.68772 | AZ128: 1103.788426 | BA128: 5315.359511 | BB128: 454.5066657 | BC128: 184220.3268 | BE128: 3.96 | BF128: 10663.38 | BG128: 4.44 | BH128: 4040.11 | BI128: 4.92 | BJ128: 684.33 | BK128: 6.28 | BL128: 11.99
A129: 2016-02-01 | B129: 76958.32612 | C129: 15977.51775 | D129: 36897.02856 | E129: 9759.670523 | F129: 139592.543 | G129: 23.87 | H129: 1682.73 | I129: 28.66 | J129: 762.53 | K129: 10.63 | L129: 185.4 | M129: 15.35 | N129: 356.74 | O129: 28.75 | P129: 378.06 | Q129: 7.75 | R129: 3787.1 | S129: 26.94 | T129: 45.38 | U129: 6.36 | V129: 1285.65 | W129: 8.13 | X129: 2456.07 | Y129: 1.67 | Z129: 949.07 | AA129: 1.43 | AB129: 653.97 | AC129: 2.19 | AD129: 295.1 | AE129: 3.828542547 | AF129: 279.5623905 | AG129: 9881.92754 | AH129: 5701.472784 | AI129: 17604.6434 | AJ129: 5029.71005 | AK129: 28335.82623 | AL129: 78229.5775 | AM129: 4105.194 | AN129: 12149.95685 | AO129: 670.1787336 | AP129: 11566.70931 | AQ129: 41.55628877 | AR129: 111882.4677 | AS129: 14397.7196 | AT129: 9670.475486 | AU129: 20329.02882 | AV129: 1009.983 | AW129: 97.2685295 | AX129: 18862.7709 | AY129: 13972.88742 | AZ129: 1081.497366 | BA129: 5593.26893 | BB129: 459.0082164 | BC129: 185251.8217 | BE129: 3.84 | BF129: 8127.54 | BG129: 4.32 | BH129: 4325.28 | BI129: 4.68 | BJ129: 658.72 | BK129: 4.74 | BL129: 0.03
A130: 2016-03-01 | B130: 76499.36454 | C130: 16125.04506 | D130: 37249.33251 | E130: 9538.357154 | F130: 139412.0993 | G130: 22.69 | H130: 1871.41 | I130: 28.74 | J130: 759.06 | K130: 9.47 | L130: 227.54 | M130: 14.01 | N130: 476.48 | O130: 28.93 | P130: 408.33 | Q130: 7.71 | R130: 4258.34 | S130: 25.41 | T130: 48.79 | U130: 6.1 | V130: 1742.07 | W130: 8.5 | X130: 2467.48 | Y130: 1.85 | Z130: 872.64 | AA130: 1.6 | AB130: 594.62 | AC130: 2.37 | AD130: 278.02 | AE130: 3.805622256 | AF130: 364.0335485 | AG130: 9965.108722 | AH130: 5684.251463 | AI130: 17211.32185 | AJ130: 4636.5459 | AK130: 27532.11921 | AL130: 79208.841 | AM130: 4144.058 | AN130: 12247.22295 | AO130: 686.4945097 | AP130: 11625.9844 | AQ130: 41.41282592 | AR130: 112151.3384 | AS130: 14441.96263 | AT130: 9194.784853 | AU130: 20381.63267 | AV130: 746.735 | AW130: 109.08516 | AX130: 18927.66718 | AY130: 14274.35333 | AZ130: 1095.949728 | BA130: 5907.991387 | BB130: 460.3226973 | BC130: 184955.1949 | BE130: 3.84 | BF130: 9483.32 | BG130: 4.2 | BH130: 4143.38 | BI130: 4.56 | BJ130: 755.11 | BK130: 5.1 | BL130: 0.09
A131: 2016-04-01 | B131: 76906.6148 | C131: 16248.96405 | D131: 37550.43324 | E131: 9445.977972 | F131: 140151.9901 | G131: 23.31 | H131: 1752.05 | I131: 29.26 | J131: 752.51 | K131: 9.51 | L131: 202.11 | M131: 14.24 | N131: 417.4 | O131: 28.81 | P131: 380.03 | Q131: 7.47 | R131: 4334.17 | S131: 26.92 | T131: 46.84 | U131: 5.92 | V131: 1971.86 | W131: 8.39 | X131: 2315.47 | Y131: 1.92 | Z131: 767.16 | AA131: 1.75 | AB131: 484.1 | AC131: 2.21 | AD131: 283.06 | AE131: 3.78533942 | AF131: 332.6305014 | AG131: 9801.402606 | AH131: 5656.874247 | AI131: 17270.3228 | AJ131: 4664.5282 | AK131: 27591.72525 | AL131: 79718.096 | AM131: 4186.943 | AN131: 13605.31746 | AO131: 704.6780735 | AP131: 12757.35482 | AQ131: 40.52140103 | AR131: 113008.8836 | AS131: 14473.50314 | AT131: 9374.665327 | AU131: 20394.83562 | AV131: 342.719 | AW131: 133.0507935 | AX131: 18951.63335 | AY131: 14497.18077 | AZ131: 1108.789265 | BA131: 6195.582242 | BB131: 457.4293381 | BC131: 185632.2492 | BE131: 3.72 | BF131: 9700.89 | BG131: 3.96 | BH131: 2603.42 | BI131: 4.32 | BJ131: 821.61 | BK131: 4.33 | BL131: 0.06
A132: 2016-05-01 | B132: 77802.40712 | C132: 16284.82216 | D132: 37851.38638 | E132: 10030.67371 | F132: 141969.2894 | G132: 22.87 | H132: 1784.19 | I132: 28.62 | J132: 743.35 | K132: 9.72 | L132: 205.75 | M132: 14.25 | N132: 438.41 | O132: 28.44 | P132: 396.68 | Q132: 7.45 | R132: 4193.1 | S132: 26.12 | T132: 49.04 | U132: 5.77 | V132: 2049.03 | W132: 8.66 | X132: 2095.03 | Y132: 1.63 | Z132: 1023.67 | AA132: 1.38 | AB132: 744.52 | AC132: 2.3 | AD132: 279.15 | AE132: 3.788066653 | AF132: 342.9537544 | AG132: 9947.175277 | AH132: 5714.136396 | AI132: 17509.4827 | AJ132: 4364.4739 | AK132: 27588.093 | AL132: 79905.5435 | AM132: 4241.536 | AN132: 13940.32921 | AO132: 707.9429104 | AP132: 13117.70581 | AQ132: 40.81068536 | AR132: 113224.9281 | AS132: 14918.09963 | AT132: 10118.83868 | AU132: 21591.54046 | AV132: 342.094 | AW132: 162.5087985 | AX132: 18977.74953 | AY132: 14864.77825 | AZ132: 1121.167303 | BA132: 6434.236398 | BB132: 459.7832367 | BC132: 188427.6851 | BE132: 3.72 | BF132: 10016.82 | BG132: 3.96 | BH132: 3741.32 | BI132: 4.32 | BJ132: 699.12 | BK132: 3.06 | BL132: 0.06
A133: 2016-06-01 | B133: 77961.40401 | C133: 16355.81727 | D133: 38123.10271 | E133: 9538.048015 | F133: 141978.372 | G133: 23.12 | H133: 1708.61 | I133: 28.56 | J133: 738.11 | K133: 10.68 | L133: 184.67 | M133: 14.22 | N133: 417.59 | O133: 28.57 | P133: 368.24 | Q133: 7.16 | R133: 4471.74 | S133: 26.43 | T133: 47.84 | U133: 5.78 | V133: 2020.83 | W133: 7.93 | X133: 2403.07 | Y133: 1.7 | Z133: 1097.93 | AA133: 1.46 | AB133: 805.08 | AC133: 2.37 | AD133: 292.85 | AE133: 3.756538019 | AF133: 303.9987378 | AG133: 9880.875557 | AH133: 5756.179516 | AI133: 17257.4023 | AJ133: 4774.15865 | AK133: 27787.74047 | AL133: 80733.0015 | AM133: 4300.334 | AN133: 12817.67851 | AO133: 718.9076481 | AP133: 12283.71988 | AQ133: 43.107268 | AR133: 114030.835 | AS133: 15262.87138 | AT133: 9876.988377 | AU133: 22661.29307 | AV133: 213.357 | AW133: 184.41608 | AX133: 18953.41609 | AY133: 15215.96172 | AZ133: 1118.944068 | BA133: 6544.965811 | BB133: 454.9773507 | BC133: 190518.1396 | BE133: 3.72 | BF133: 9297.15 | BG133: 3.96 | BH133: 3757.02 | BI133: 4.2 | BJ133: 736.51 | BK133: 3 | BL133: 0.01
A134: 2016-07-01 | B134: 78720.04652 | C134: 16461.59112 | D134: 38388.82258 | E134: 9648.77962 | F134: 143219.2398 | G134: 23.19 | H134: 1733.04 | I134: 28.34 | J134: 750.04 | K134: 10.8 | L134: 181.35 | M134: 14.58 | N134: 423.51 | O134: 28.57 | P134: 378.14 | Q134: 6.81 | R134: 5509.4 | S134: 26.08 | T134: 49.73 | U134: 5.68 | V134: 1973.32 | W134: 7.17 | X134: 3486.35 | Y134: 1.7 | Z134: 826.14 | AA134: 1.42 | AB134: 525.49 | AC134: 2.2 | AD134: 300.65 | AE134: 3.726151404 | AF134: 309.5849854 | AG134: 9808.721735 | AH134: 5755.090913 | AI134: 16907.03085 | AJ134: 4622.65995 | AK134: 27284.78171 | AL134: 81044.4625 | AM134: 4329.216 | AN134: 12863.65802 | AO134: 755.7402226 | AP134: 12199.03362 | AQ134: 45.32260017 | AR134: 114033.5022 | AS134: 15158.08126 | AT134: 10806.00535 | AU134: 23846.5774 | AV134: 212.466 | AW134: 209.318744 | AX134: 18888.66226 | AY134: 15535.06827 | AZ134: 1116.716308 | BA134: 6816.800531 | BB134: 451.7743346 | BC134: 192537.823 | BE134: 3.72 | BF134: 10322.46 | BG134: 3.96 | BH134: 3162.21 | BI134: 4.2 | BJ134: 1616.13 | BK134: 4.19 | BL134: 0.09
A135: 2016-08-01 | B135: 79253.89133 | C135: 16600.65725 | D135: 38668.3738 | E135: 9761.292044 | F135: 144284.2144 | G135: 22.78 | H135: 1859.21 | I135: 28.22 | J135: 760.42 | K135: 10.67 | L135: 208.62 | M135: 14.38 | N135: 475.16 | O135: 28.51 | P135: 415.01 | Q135: 6.75 | R135: 5185.12 | S135: 24.82 | T135: 52.48 | U135: 5.79 | V135: 1724.27 | W135: 6.96 | X135: 3408.37 | Y135: 1.66 | Z135: 1018.43 | AA135: 1.28 | AB135: 698.05 | AC135: 2.48 | AD135: 320.38 | AE135: 3.720552392 | AF135: 336.8342951 | AG135: 9868.472228 | AH135: 5710.037086 | AI135: 16768.1348 | AJ135: 4489.7028 | AK135: 26967.87469 | AL135: 81457.952 | AM135: 4355.658 | AN135: 12799.43375 | AO135: 779.5335006 | AP135: 12111.34373 | AQ135: 42.00970625 | AR135: 114207.0985 | AS135: 15190.66536 | AT135: 10694.33583 | AU135: 25208.82348 | AV135: 457.5409138 | AW135: 236.537953 | AX135: 19059.28834 | AY135: 16146.14844 | AZ135: 1135.143187 | BA135: 7174.881052 | BB135: 461.6602439 | BC135: 194699.0407 | BE135: 3.72 | BF135: 11363.06 | BG135: 3.84 | BH135: 3136.39 | BI135: 4.08 | BJ135: 1181.87
A136: 2016-09-01 | B136: 78914.83739 | C136: 16693.43858 | D136: 38877.24006 | E136: 9590.443577 | F136: 144075.9596 | G136: 23.16 | H136: 1757.78 | I136: 28.28 | J136: 766.47 | K136: 10.67 | L136: 182.21 | M136: 14.35 | N136: 416.1 | O136: 28.28 | P136: 393 | Q136: 6.88 | R136: 4527.66 | S136: 26.43 | T136: 49.93 | U136: 5.86 | V136: 1638.01 | W136: 7.12 | X136: 2839.72 | Y136: 1.79 | Z136: 928.03 | AA136: 1.42 | AB136: 609.74 | AC136: 2.5 | AD136: 318.29 | AE136: 3.663713554 | AF136: 321.3203387 | AG136: 9852.847075 | AH136: 5858.227198 | AI136: 16724.2289 | AJ136: 4662.8067 | AK136: 27245.2628 | AL136: 82580.36958 | AM136: 4383.023 | AN136: 13719.86845 | AO136: 779.4522154 | AP136: 12980.45266 | AQ136: 41.45353826 | AR136: 115686.0698 | AS136: 14986.54257 | AT136: 10307.50847 | AU136: 25832.68817 | AV136: 224.088 | AW136: 249.881426 | AX136: 19335.48559 | AY136: 16755.27485 | AZ136: 1146.323257 | BA136: 7553.800715 | BB136: 470.6293478 | BC136: 196499.4321 | BE136: 3.72 | BF136: 10733.99 | BG136: 3.96 | BH136: 3404.27 | BI136: 4.08 | BJ136: 1360.51 | BK136: 3.97 | BL136: 0.16
A137: 2016-10-01 | B137: 79154.5452 | C137: 16802.97934 | D137: 39065.73854 | E137: 9127.347267 | F137: 144150.6103 | G137: 23.2 | H137: 1725.02 | I137: 28.13 | J137: 753.02 | K137: 10.77 | L137: 179.27 | M137: 14.61 | N137: 398.58 | O137: 28.11 | P137: 394.15 | Q137: 7.68 | R137: 3656.26 | S137: 26.28 | T137: 50.45 | U137: 5.62 | V137: 1831.96 | W137: 9.27 | X137: 1773.85 | Y137: 1.96 | Z137: 836.87 | AA137: 1.66 | AB137: 542.04 | AC137: 2.52 | AD137: 294.83 | AE137: 3.558044109 | AF137: 268.8744318 | AG137: 9983.213152 | AH137: 5845.642227 | AI137: 16680.6456 | AJ137: 4593.77655 | AK137: 27120.06438 | AL137: 83881.74358 | AM137: 4408.993 | AN137: 14932.28183 | AO137: 714.0616973 | AP137: 14195.55536 | AQ137: 44.56622936 | AR137: 116817.0229 | AS137: 14724.729 | AT137: 10134.48631 | AU137: 26046.34613 | AV137: 269.024 | AW137: 258.4530665 | AX137: 19499.24802 | AY137: 16696.19675 | AZ137: 1145.963569 | BA137: 7527.904953 | BB137: 472.8777726 | BC137: 197590.687 | BE137: 3.72 | BF137: 9451.81 | BG137: 3.96 | BH137: 4068.95 | BI137: 4.08 | BJ137: 897.13 | BK137: 4.7 | BL137: 0.05
A138: 2016-11-01 | B138: 80074.99694 | C138: 16996.71901 | D138: 39397.55224 | E138: 9456.596283 | F138: 145925.8645 | G138: 22.64 | H138: 1899.59 | I138: 28.18 | J138: 768.07 | K138: 9.82 | L138: 235.93 | M138: 14.73 | N138: 462.46 | O138: 28.25 | P138: 433.13 | Q138: 7.57 | R138: 4332.05 | S138: 25.97 | T138: 52.72 | U138: 5.61 | V138: 2044.92 | W138: 8.92 | X138: 2234.41 | Y138: 1.84 | Z138: 1005.78 | AA138: 1.59 | AB138: 666.8 | AC138: 2.34 | AD138: 338.98 | AE138: 3.510301705 | AF138: 367.3178358 | AG138: 10033.10099 | AH138: 5857.367063 | AI138: 17129.4913 | AJ138: 4884.0195 | AK138: 27870.87786 | AL138: 83894.1615 | AM138: 4411.979 | AN138: 14338.48406 | AO138: 716.1095512 | AP138: 13789.62323 | AQ138: 41.64037775 | AR138: 117400.3484 | AS138: 14913.62708 | AT138: 9458.18263 | AU138: 26563.27451 | AV138: 396.18 | AW138: 267.512052 | AX138: 19661.68692 | AY138: 15509.99561 | AZ138: 1131.835822 | BA138: 6710.600317 | BB138: 460.7064953 | BC138: 198131.3362 | BE138: 3.6 | BF138: 9779.82 | BG138: 3.96 | BH138: 3577.35 | BI138: 4.08 | BJ138: 1007.4 | BK138: 3.96 | BL138: 0.01
A139: 2016-12-01 | B139: 80383.10421 | C139: 17084.00847 | D139: 39818.56235 | E139: 8922.041264 | F139: 146207.7163 | G139: 22.38 | H139: 1942.87 | I139: 28.01 | J139: 804.31 | K139: 7.86 | L139: 247.37 | M139: 14.58 | N139: 444.28 | O139: 28.03 | P139: 446.91 | Q139: 7.64 | R139: 4902.92 | S139: 25.73 | T139: 56.44 | U139: 5.53 | V139: 2614.74 | W139: 9.66 | X139: 2231.74 | Y139: 2.35 | Z139: 993.63 | AA139: 2.2 | AB139: 655.98 | AC139: 2.63 | AD139: 337.65 | AE139: 3.588765866 | AF139: 422.2043034 | AG139: 10171.73623 | AH139: 6057.664141 | AI139: 18025.41335 | AJ139: 5286.8968 | AK139: 29369.97429 | AL139: 83646.7365 | AM139: 4396.467 | AN139: 15085.26534 | AO139: 744.0890385 | AP139: 14344.53091 | AQ139: 48.74132456 | AR139: 118849.2599 | AS139: 14588.9067 | AT139: 8249.401307 | AU139: 26652.13396 | AV139: 541.281 | AW139: 279.313601 | AX139: 20247.36621 | AY139: 15690.6552 | AZ139: 1120.356357 | BA139: 6883.429319 | BB139: 466.0071982 | BC139: 198869.2378 | BE139: 3.72 | BF139: 9144.57 | BG139: 3.96 | BH139: 3540.71 | BI139: 4.2 | BJ139: 691.29 | BK139: 4.99 | BL139: 129.59
A140: 2017-01-01 | B140: 79954.53432 | C140: 17174.98206 | D140: 39981.12941 | E140: 8837.803084 | F140: 145948.4489 | G140: 23.04 | H140: 1830.16 | I140: 27.9 | J140: 817.04 | K140: 8.51 | L140: 221.41 | M140: 15.27 | N140: 377.75 | O140: 28.3 | P140: 413.96 | Q140: 7.88 | R140: 3901.33 | S140: 25.18 | T140: 56.88 | U140: 5.51 | V140: 1931.07 | W140: 9.76 | X140: 1913.38 | Y140: 2.21 | Z140: 845.22 | AA140: 2.14 | AB140: 442.16 | AC140: 2.29 | AD140: 403.06 | AE140: 3.616186992 | AF140: 312.7177005 | AG140: 10241.67225 | AH140: 6020.246474 | AI140: 18252.03274 | AJ140: 5241.545862 | AK140: 29513.82507 | AL140: 81901.43047 | AM140: 4389.214026 | AN140: 14143.91961 | AO140: 772.0275193 | AP140: 13529.00392 | AQ140: 45.62566228 | AR140: 117145.7871 | AS140: 16706.41124 | AT140: 8019.099477 | AU140: 27114.95878 | AV140: 209.054 | AW140: 285.397675 | AX140: 20470.90602 | AY140: 15936.91099 | AZ140: 1123.611689 | BA140: 6989.964117 | BB140: 465.8160236 | BC140: 199556.3568 | BE140: 3.48 | BF140: 9577.72 | BG140: 3.6 | BH140: 3225.79 | BI140: 3.72 | BJ140: 823.24 | BK140: 2.64 | BL140: 191.94
A141: 2017-02-01 | B141: 80161.87409 | C141: 17240.20069 | D141: 40304.22663 | E141: 8926.842738 | F141: 146633.1441 | G141: 23.34 | H141: 1719.31 | I141: 27.94 | J141: 810.54 | K141: 8.51 | L141: 196.75 | M141: 15.12 | N141: 340.75 | O141: 28.68 | P141: 371.27 | Q141: 8.84 | R141: 2482.12 | S141: 25.56 | T141: 56.09 | U141: 5.58 | V141: 1122.56 | W141: 10.93 | X141: 1303.47 | Y141: 2.16 | Z141: 655.83 | AA141: 1.86 | AB141: 388.17 | AC141: 2.6 | AD141: 267.66 | AE141: 3.55 | AF141: 309.29669 | AG141: 10225.16109 | AH141: 6023.707905 | AI141: 17644.10296 | AJ141: 5415.903242 | AK141: 29083.71411 | AL141: 81274.8156 | AM141: 4396.342559 | AN141: 13198.92802 | AO141: 803.2175 | AP141: 12647.0591 | AQ141: 42.112 | AR141: 116067.8467 | AS141: 16704.18114 | AT141: 8640.026344 | AU141: 27444.39873 | AV141: 259.3752174 | AW141: 276.0514975 | AX141: 20918.59557 | AY141: 17106.95806 | AZ141: 1144.078461 | BA141: 7546.288317 | BB141: 466.5151925 | BC141: 200548.7082 | BE141: 3.36 | BF141: 9033.85 | BG141: 3.36 | BH141: 2820.07 | BI141: 3.6 | BJ141: 922.05 | BK141: 4.08 | BL141: 0.04
A142: 2017-03-01 | B142: 80355.75696 | C142: 17405.83593 | D142: 40749.19516 | E142: 9154.672375 | F142: 147665.4604 | G142: 22.02 | H142: 2094.53 | I142: 28.34 | J142: 826.76 | K142: 7.03 | L142: 270.13 | M142: 13.59 | N142: 509.15 | O142: 28.4 | P142: 488.49 | Q142: 8.18 | R142: 3405.2 | S142: 24.33 | T142: 62.01 | U142: 5.32 | V142: 1833.2 | W142: 10.99 | X142: 1509.99 | Y142: 2.33 | Z142: 822.33 | AA142: 2.07 | AB142: 519.39 | AC142: 2.77 | AD142: 302.94 | AE142: 3.47 | AF142: 405.0272332 | AG142: 10170.88634 | AH142: 6015.647452 | AI142: 17770.8668 | AJ142: 5280 | AK142: 29066.51425 | AL142: 82641.10815 | AM142: 4426.393633 | AN142: 14804.17464 | AO142: 818.331 | AP142: 13985.27004 | AQ142: 40.965 | AR142: 117730.2866 | AS142: 16571.34726 | AT142: 8640.026344 | AU142: 27444.39873 | AV142: 28.871 | AW142: 276.0514975 | AX142: 20918.59557 | AY142: 17106.95806 | AZ142: 1157.555709 | BA142: 7546.288317 | BB142: 466.8843249 | BC142: 201860.9182 | BE142: 3.24 | BF142: 9909.43 | BG142: 3.24 | BH142: 5173.11 | BI142: 3.48 | BJ142: 1052.49 | BK142: 3.84 | BL142: 0.05
A143: 2017-04-01 | B143: 81360.19444 | C143: 17461.69419 | D143: 41064.78514 | E143: 9382.320485 | F143: 149268.9943 | G143: 22.83 | H143: 1750.45 | I143: 28.26 | J143: 808.92 | K143: 7.32 | L143: 210.51 | M143: 13.99 | N143: 364.42 | O143: 28.56 | P143: 366.6 | Q143: 7.48 | R143: 3406.58 | S143: 25.81 | T143: 59.11 | U143: 4.77 | V143: 1752.82 | W143: 9.79 | X143: 1594.65 | Y143: 2.35 | Z143: 931.64 | AA143: 2.17 | AB143: 613.97 | AC143: 2.7 | AD143: 317.67 | AE143: 3.42 | AF143: 317.2571023 | AG143: 10173.49789 | AH143: 6015.647452 | AI143: 18270.8668 | AJ143: 5577.189154 | AK143: 29863.7034 | AL143: 81479.20317 | AM143: 4462.284666 | AN143: 16386.02869 | AO143: 848.239 | AP143: 15155.81595 | AQ143: 53.9945 | AR143: 117829.6485 | AS143: 16556.4973 | AT143: 9693.93387 | AU143: 27398.36113 | AV143: 432.717 | AW143: 276.3811995 | AX143: 21053.0153 | AY143: 17603.6903 | AZ143: 1182.863693 | BA143: 7947.400989 | BB143: 475.9914214 | BC143: 203603.7159 | BE143: 3 | BF143: 7818.87 | BG143: 3 | BH143: 2756.91 | BI143: 3.24 | BJ143: 1272.01 | BK143: 3.6 | BL143: 0.01
A144: 2017-05-01 | B144: 80590.02968 | C144: 17453.94588 | D144: 41467.19089 | E144: 9284.141506 | F144: 148795.308 | G144: 21.88 | H144: 1942 | I144: 27.51 | J144: 820.12 | K144: 7.84 | L144: 259.04 | M144: 13.72 | N144: 444.34 | O144: 28.18 | P144: 418.5 | Q144: 7.03 | R144: 4113.43 | S144: 24.63 | T144: 62.59 | U144: 4.88 | V144: 1946.77 | W144: 8.49 | X144: 2104.07 | Y144: 2.23 | Z144: 973.94 | AA144: 1.97 | AB144: 624.25 | AC144: 2.69 | AD144: 349.69 | AE144: 3.36 | AF144: 426.7453961 | AG144: 10250.94192 | AH144: 6040.285186 | AI144: 18534.83829 | AJ144: 5560.621058 | AK144: 30135.74454 | AL144: 82342.59978 | AM144: 4515.046048 | AN144: 15161.18358 | AO144: 873.034 | AP144: 14174.28351 | AQ144: 63.3685 | AR144: 118789.9559 | AS144: 15733.48403 | AT144: 9226.392543 | AU144: 27204.85677 | AV144: 421.124 | AW144: 281.898105 | AX144: 21248.6196 | AY144: 18028.97046 | AZ144: 1204.465299 | BA144: 7748.571573 | BB144: 486.8829841 | BC144: 203904.3122 | BE144: 2.88 | BF144: 9702.39 | BG144: 2.88 | BH144: 4313.68 | BI144: 3.24 | BJ144: 1018.69 | BK144: 2.64 | BL144: 0.03
A145: 2017-06-01 | B145: 80890.06175 | C145: 17492.82258 | D145: 41831.58577 | E145: 8908.642906 | F145: 149123.113 | G145: 22.2 | H145: 1826.07 | I145: 27.42 | J145: 813.01 | K145: 8.21 | L145: 207.72 | M145: 13.53 | N145: 419.33 | O145: 28.15 | P145: 386.01 | Q145: 7.25 | R145: 3501.97 | S145: 24.69 | T145: 61.07 | U145: 4.8 | V145: 1603.54 | W145: 8.81 | X145: 1837.36 | Y145: 2.49 | Z145: 861.58 | AA145: 2.24 | AB145: 540.15 | AC145: 2.91 | AD145: 321.43 | AE145: 3.29 | AF145: 421.3706261 | AG145: 10178.99049 | AH145: 6160.304685 | AI145: 18783.0105 | AJ145: 5568.779857 | AK145: 30512.09504 | AL145: 82742.17426 | AM145: 4563.783875 | AN145: 15229.43423 | AO145: 877.0505 | AP145: 14372.68568 | AQ145: 55.4035 | AR145: 119496.4487 | AS145: 15848.35201 | AT145: 8872.167706 | AU145: 28171.73226 | AV145: 365.323 | AW145: 280.3710395 | AX145: 21360.06229 | AY145: 18309.83126 | AZ145: 1219.384664 | BA145: 7423.051398 | BB145: 493.9710057 | BC145: 206006.6506 | BE145: 2.76 | BF145: 8780.31 | BG145: 2.88 | BH145: 3577.87 | BI145: 3.12 | BJ145: 1492.05 | BK145: 4.2 | BL145: 50
A146: 2017-07-01 | B146: 80745.53373 | C146: 17509.46205 | D146: 41994.57085 | E146: 8802.215906 | F146: 149051.7825 | G146: 22.01 | H146: 1838.69 | I146: 27.01 | J146: 810.68 | K146: 8.35 | L146: 221.59 | M146: 13.83 | N146: 410.4 | O146: 27.88 | P146: 396.02 | Q146: 7.08 | R146: 3713.63 | S146: 24.17 | T146: 61.98 | U146: 4.81 | V146: 1813.45 | W146: 8.75 | X146: 1838.2 | Y146: 2.39 | Z146: 866.38 | AA146: 2.07 | AB146: 524.08 | AC146: 2.87 | AD146: 342.3 | AE146: 3.2 | AF146: 443.3622058 | AG146: 10546.31042 | AH146: 6066.109059 | AI146: 18397.71298 | AJ146: 5594.177958 | AK146: 30058 | AL146: 83688.64506 | AM146: 4579.333774 | AN146: 15457.03675 | AO146: 889.056 | AP146: 14557.93499 | AQ146: 62.435 | AR146: 120051.7016 | AS146: 15394.25239 | AT146: 9261.837432 | AU146: 28657.00409 | AV146: 460.402381 | AW146: 256.475711 | AX146: 21285.73556 | AY146: 18310.46137 | AZ146: 1226.21805 | BA146: 7107.408922 | BB146: 493.5892437 | BC146: 207303.0904 | BE146: 2.76 | BF146: 9125.05 | BG146: 2.88 | BH146: 4571.93 | BI146: 3.36 | BJ146: 1124.13 | BK146: 4.2 | BL146: 141.59
A147: 2017-08-01 | B147: 80903.17256 | C147: 17650.37307 | D147: 42289.81433 | E147: 8411.453133 | F147: 149254.8131 | G147: 21.45 | H147: 1965.22 | I147: 26.81 | J147: 822.02 | K147: 7.8 | L147: 230.18 | M147: 13.39 | N147: 494.89 | O147: 27.96 | P147: 418.13 | Q147: 6.79 | R147: 4079.17 | S147: 23.09 | T147: 65.6 | U147: 4.54 | V147: 2089.79 | W147: 8.68 | X147: 1923.78 | Y147: 2.52 | Z147: 707.6 | AA147: 2.17 | AB147: 363.82 | AC147: 2.89 | AD147: 343.78 | AE147: 3.19 | AF147: 490.8840265 | AG147: 10169.82875 | AH147: 5984.493832 | AI147: 18233.13748 | AJ147: 5607.040048 | AK147: 29824.67136 | AL147: 83701.09882 | AM147: 4587.24431 | AN147: 14208.35193 | AO147: 905.1875 | AP147: 13628.28736 | AQ147: 69.657 | AR147: 119528.6096 | AS147: 14495.58616 | AT147: 8903.04124 | AU147: 28845.79197 | AV147: 447.8695455 | AW147: 223.04943 | AX147: 21388.30609 | AY147: 18601.86558 | AZ147: 1240.632199 | BA147: 6953.485667 | BB147: 491.5475008 | BC147: 206229.7186 | BE147: 2.64 | BF147: 9911.7 | BG147: 2.88 | BH147: 4336.3 | BI147: 3.12 | BJ147: 674.08 | BK147: 4.44 | BL147: 100.16
A148: 2017-09-01 | B148: 81675.13058 | C148: 17714.2515 | D148: 42703.93455 | E148: 8285.813081 | F148: 150379.1297 | G148: 22.06 | H148: 1788.68 | I148: 27.13 | J148: 804.03 | K148: 7.47 | L148: 197.19 | M148: 13.4 | N148: 396.58 | O148: 27.8 | P148: 390.88 | Q148: 6.9 | R148: 3493.5 | S148: 24.64 | T148: 62.27 | U148: 4.56 | V148: 1693.27 | W148: 8.55 | X148: 1737.96 | Y148: 2.59 | Z148: 721.93 | AA148: 2.4 | AB148: 425.68 | AC148: 2.87 | AD148: 296.25 | AE148: 3.2 | AF148: 482.6693209 | AG148: 10427.17599 | AH148: 6118.531759 | AI148: 18291.97537 | AJ148: 5749.608851 | AK148: 30160.11598 | AL148: 85528.54601 | AM148: 4607.992971 | AN148: 15248.86486 | AO148: 905.0236524 | AP148: 14587.47409 | AQ148: 72.14790025 | AR148: 121790.9215 | AS148: 14697.95873 | AT148: 8017.625726 | AU148: 28868.58717 | AV148: 345.0974491 | AW148: 208.4236356 | AX148: 21620.19233 | AY148: 19303.6359 | AZ148: 1252.851235 | BA148: 7367.433014 | BB148: 493.7801247 | BC148: 208244.0805 | BE148: 2.64 | BF148: 9260.57 | BG148: 2.76 | BH148: 3480.84 | BI148: 3.24 | BJ148: 1077.22 | BK148: 4.32 | BL148: 30.95
A149: 2017-10-01 | B149: 81711.34206 | C149: 17795.13761 | D149: 42952.96279 | E149: 8291.494433 | F149: 150750.9369 | G149: 21.65 | H149: 1918.25 | I149: 26.74 | J149: 830.89 | K149: 7.8 | L149: 228.38 | M149: 13.57 | N149: 440.65 | O149: 27.6 | P149: 418.33 | Q149: 6.67 | R149: 3926.68 | S149: 24.17 | T149: 64.87 | U149: 4.6 | V149: 1850.65 | W149: 8.01 | X149: 2011.16 | Y149: 2.4 | Z149: 775.44 | AA149: 2.07 | AB149: 477.43 | AC149: 2.93 | AD149: 298.01 | AE149: 3.26 | AF149: 517.9339913 | AG149: 10561.91091 | AH149: 6094.427333 | AI149: 18498.61327 | AJ149: 5783.92471 | AK149: 30376.96531 | AL149: 85355.00665 | AM149: 4631.984678 | AN149: 16596.1985 | AO149: 900.4412217 | AP149: 15933.67358 | AQ149: 79.40868738 | AR149: 121847.5141 | AS149: 14590.56943 | AT149: 8628.576632 | AU149: 28532.04686 | AV149: 357.3434822 | AW149: 215.5731565 | AX149: 21803.30515 | AY149: 19235.57243 | AZ149: 1252.45812 | BA149: 7342.942903 | BB149: 492.5683722 | BC149: 208627.4481 | BE149: 2.64 | BF149: 10543.55 | BG149: 2.88 | BH149: 5023.96 | BI149: 3.24 | BJ149: 694.1 | BK149: 4.68 | BL149: 102.15
A150: 2017-11-01 | B150: 82799.15729 | C150: 17984.94489 | D150: 43422.23641 | E150: 8490.39004 | F150: 152696.7286 | G150: 21.15 | H150: 2027.01 | I150: 26.87 | J150: 833.51 | K150: 7.18 | L150: 265.89 | M150: 13.51 | N150: 500.04 | O150: 27.63 | P150: 427.57 | Q150: 6.57 | R150: 4244.27 | S150: 24.02 | T150: 66.32 | U150: 4.54 | V150: 2300.52 | W150: 8.43 | X150: 1877.43 | Y150: 2.57 | Z150: 797.48 | AA150: 2.3 | AB150: 450.08 | AC150: 2.91 | AD150: 347.4 | AE150: 3.35 | AF150: 533.1931533 | AG150: 10535.54966 | AH150: 6112.345189 | AI150: 18489.77008 | AJ150: 6060.797923 | AK150: 30662.91319 | AL150: 85619.24275 | AM150: 4629.95861 | AN150: 15997.57075 | AO150: 813.7315 | AP150: 15026.48656 | AQ150: 55.4975 | AR150: 122641.4327 | AS150: 14066.98658 | AT150: 8774.661912 | AU150: 29193.96217 | AV150: 404.2681225 | AW150: 237.787481 | AX150: 21534.24902 | AY150: 18024.65147 | AZ150: 1242.287362 | BA150: 6813.500071 | BB150: 471.3260144 | BC150: 208835.4608 | BE150: 2.64 | BF150: 9817.93 | BG150: 2.88 | BH150: 4240.04 | BI150: 3.24 | BJ150: 641.89
A151: 2017-12-01 | B151: 83099.37537 | C151: 18048.3378 | D151: 43842.48219 | E151: 8101.919358 | F151: 153092.1147 | G151: 21.34 | H151: 1952.14 | I151: 26.86 | J151: 847 | K151: 6.29 | L151: 268.52 | M151: 13.98 | N151: 430.14 | O151: 27.59 | P151: 406.48 | Q151: 6.5 | R151: 4538.87 | S151: 24.23 | T151: 66.78 | U151: 4.61 | V151: 2201.43 | W151: 7.81 | X151: 2270.66 | Y151: 2.73 | Z151: 1097.73 | AA151: 2.51 | AB151: 758 | AC151: 3.23 | AD151: 339.73 | AE151: 3.48 | AF151: 481.9537203 | AG151: 11232.8879 | AH151: 6364.868428 | AI151: 19704.75706 | AJ151: 6251.405045 | AK151: 32321.03054 | AL151: 86202.56225 | AM151: 4623.974827 | AN151: 14946.23343 | AO151: 806.3495 | AP151: 14510.37989 | AQ151: 46.559 | AR151: 124343.2117 | AS151: 14307.83463 | AT151: 7412.897392 | AU151: 28147.15532 | AV151: 400.2039972 | AW151: 237.12423 | AX151: 21575.06044 | AY151: 17941.72749 | AZ151: 1235.589838 | BA151: 6778.522021 | BB151: 471.6668804 | BC151: 208350.6161 | BE151: 2.76 | BF151: 9293.29 | BG151: 3.12 | BH151: 3659.31 | BI151: 3.36 | BJ151: 540
A152: 2018-01-01 | B152: 82671.63504 | C152: 18196.14936 | D152: 44112.07839 | E152: 8019.013416 | F152: 152998.8762 | G152: 21.67 | H152: 1952.67 | I152: 26.77 | J152: 841.66 | K152: 7.86 | L152: 241.68 | M152: 13.99 | N152: 453.44 | O152: 27.77 | P152: 415.89 | Q152: 6.38 | R152: 4581.45 | S152: 23.68 | T152: 67.2 | U152: 4.54 | V152: 2461.47 | W152: 8.01 | X152: 2052.78 | Y152: 2.87 | Z152: 821.39 | AA152: 2.66 | AB152: 472.46 | AC152: 3.15 | AD152: 348.93 | AE152: 3.52 | AF152: 430.7068064 | AG152: 11222.68081 | AH152: 6310.19695 | AI152: 19899.8088 | AJ152: 6298.973875 | AK152: 32508.97963 | AL152: 86407.21285 | AM152: 4640.099504 | AN152: 15026.08063 | AO152: 836.239 | AP152: 14192.90661 | AQ152: 68.4225 | AR152: 125157.2825 | AS152: 14472.74168 | AT152: 6356.815321 | AU152: 28011.31389 | AV152: 397.2154254 | AW152: 251.5465615 | AX152: 21541.11678 | AY152: 18299.08807 | AZ152: 1248.535061 | BA152: 6914.225136 | BB152: 473.1074758 | BC152: 208348.3227 | BE152: 2.76 | BF152: 10364.74 | BG152: 2.76 | BH152: 4277.32 | BI152: 3.24 | BJ152: 985.92 | BK152: 4.32 | BL152: 0.01
A153: 2018-02-01 | B153: 82835.91168 | C153: 18244.44605 | D153: 44446.20745 | E153: 7875.980337 | F153: 153402.5455 | G153: 22.45 | H153: 1809.07 | I153: 27.27 | J153: 846.58 | K153: 8.45 | L153: 198.31 | M153: 13.9 | N153: 395.42 | O153: 28.06 | P153: 368.76 | Q153: 6.94 | R153: 3482.29 | S153: 24.73 | T153: 65.3 | U153: 4.64 | V153: 1357.55 | W153: 7.9 | X153: 2059.44 | Y153: 2.93 | Z153: 636.76 | AA153: 2.69 | AB153: 367.23 | AC153: 3.26 | AD153: 269.53 | AE153: 3.54 | AF153: 372.7905753 | AG153: 10914.08335 | AH153: 6306.026683 | AI153: 19655.27476 | AJ153: 6325.077969 | AK153: 32286.37942 | AL153: 86308.45217 | AM153: 4665.735222 | AN153: 14328.56538 | AO153: 858.0605 | AP153: 13840.95272 | AQ153: 72.989 | AR153: 124533.251 | AS153: 14557.27667 | AT153: 6638.836385 | AU153: 28016.11121 | AV153: 401.7714861 | AW153: 281.134382 | AX153: 21559.68905 | AY153: 18584.79304 | AZ153: 1274.468662 | BA153: 6962.775559 | BB153: 470.8079384 | BC153: 208413.7483 | BE153: 2.64 | BF153: 8046.16 | BG153: 2.76 | BH153: 3436.95 | BI153: 3.12 | BJ153: 1189.2 | BK153: 2.28 | BL153: 143.03
A154: 2018-03-01 | B154: 84394.75968 | C154: 18402.94207 | D154: 44720.65761 | E154: 7974.048768 | F154: 155492.4081 | G154: 20.91 | H154: 2057.81 | I154: 27.4 | J154: 844.83 | K154: 6.95 | L154: 268.41 | M154: 12.75 | N154: 556.41 | O154: 28.13 | P154: 388.16 | Q154: 6.19 | R154: 4712.47 | S154: 23.09 | T154: 71.28 | U154: 4.25 | V154: 2577.3 | W154: 8.02 | X154: 2063.89 | Y154: 3.02 | Z154: 747.38 | AA154: 2.73 | AB154: 477.32 | AC154: 3.53 | AD154: 270.06 | AE154: 3.5 | AF154: 393.2707019 | AG154: 10979.83067 | AH154: 6311.707014 | AI154: 19951.4928 | AJ154: 6291.124206 | AK154: 32554.32402 | AL154: 87254.05643 | AM154: 4687.61725 | AN154: 16017.66895 | AO154: 859.785 | AP154: 14847.08357 | AQ154: 77.4805 | AR154: 126448.8876 | AS154: 14546.53916 | AT154: 5594.980538 | AU154: 28021.01551 | AV154: 393.395644 | AW154: 306.796234 | AX154: 21631.57822 | AY154: 18513.15639 | AZ154: 1245.425851 | BA154: 6357.991318 | BB154: 480.8442855 | BC154: 209862.9395 | BE154: 2.64 | BF154: 10392.68 | BG154: 2.76 | BH154: 4731.3 | BI154: 3.24 | BJ154: 909.28 | BK154: 2.64 | BL154: 0.01
A155: 2018-04-01 | B155: 84929.46144 | C155: 18504.61702 | D155: 44979.31737 | E155: 8237.553128 | F155: 156650.949 | G155: 21.2 | H155: 2003.16 | I155: 27.27 | J155: 830.46 | K155: 7.81 | L155: 265.68 | M155: 13.08 | N155: 503.99 | O155: 27.68 | P155: 403.03 | Q155: 6.27 | R155: 4286.47 | S155: 23.99 | T155: 69.84 | U155: 4.43 | V155: 2309.72 | W155: 7.86 | X155: 1906.91 | Y155: 3.15 | Z155: 906.35 | AA155: 2.93 | AB155: 542.34 | AC155: 3.48 | AD155: 364.01 | AE155: 3.45 | AF155: 400.6773003 | AG155: 10818.24881 | AH155: 6263.390296 | AI155: 20232.15048 | AJ155: 6340.233467 | AK155: 32835.77424 | AL155: 89232.96267 | AM155: 4724.84679 | AN155: 17798.92757 | AO155: 855.4055 | AP155: 16226.86985 | AQ155: 93.9195 | AR155: 129127.1274 | AS155: 14645.0011 | AT155: 6551.581264 | AU155: 28188.95548 | AV155: 385.6136581 | AW155: 346.528362 | AX155: 21991.69405 | AY155: 18609.86833 | AZ155: 1252.950525 | BA155: 5728.970362 | BB155: 483.5616287 | BC155: 214886.7882 | BE155: 2.64 | BF155: 10100.3 | BG155: 2.88 | BH155: 3322.29 | BI155: 3.24 | BJ155: 1351.8 | BK155: 4.2 | BL155: 225.53
A156: 2018-05-01 | B156: 86289.31697 | C156: 18590.37426 | D156: 45299.76446 | E156: 8985.306674 | F156: 159164.7624 | G156: 20.98 | H156: 1939.72 | I156: 26.5 | J156: 830.85 | K156: 7.91 | L156: 245.36 | M156: 12.97 | N156: 475.77 | O156: 27.25 | P156: 387.74 | Q156: 6.14 | R156: 5912.26 | S156: 23.51 | T156: 68.35 | U156: 4.62 | V156: 2417.77 | W156: 6.86 | X156: 3426.14 | Y156: 3.22 | Z156: 973.48 | AA156: 2.89 | AB156: 640.39 | AC156: 3.86 | AD156: 333.09 | AE156: 3.41 | AF156: 363.573908 | AG156: 11136.64158 | AH156: 6290.684091 | AI156: 20707.7643 | AJ156: 6414.829409 | AK156: 33413.2778 | AL156: 90316.21484 | AM156: 4769.170839 | AN156: 16292.56691 | AO156: 864.7455 | AP156: 15107.52835 | AQ156: 77.881 | AR156: 130470.5665 | AS156: 14544.36398 | AT156: 5897.061597 | AU156: 28354.12929 | AV156: 391.4016879 | AW156: 349.3049655 | AX156: 22289.90173 | AY156: 18834.56262 | AZ156: 1258.022498 | BA156: 5474.706523 | BB156: 486.5353423 | BC156: 216428.073 | BE156: 2.52 | BF156: 10726.25 | BG156: 2.76 | BH156: 5661.47 | BI156: 3.24 | BJ156: 1318.48 | BK156: 3.24 | BL156: 0.01
A157: 2018-06-01 | B157: 87137.35838 | C157: 18666.34291 | D157: 45673.64041 | E157: 9315.897524 | F157: 160793.2392 | G157: 21.29 | H157: 1893.29 | I157: 26.64 | J157: 840.2 | K157: 8.28 | L157: 208.07 | M157: 12.7 | N157: 473.42 | O157: 27.41 | P157: 371.6 | Q157: 6.05 | R157: 4829.77 | S157: 23.6 | T157: 69.11 | U157: 4.71 | V157: 2159.41 | W157: 6.7 | X157: 2601.25 | Y157: 3.38 | Z157: 930.43 | AA157: 3.21 | AB157: 531.2 | AC157: 3.61 | AD157: 399.23 | AE157: 3.34 | AF157: 386.0016519 | AG157: 11247.0015 | AH157: 6293.634006 | AI157: 20985.96019 | AJ157: 6547.106719 | AK157: 33826.70092 | AL157: 91382.73615 | AM157: 4822.006555 | AN157: 16513.12076 | AO157: 879.125 | AP157: 15234.37615 | AQ157: 64.1925 | AR157: 132125.1207 | AS157: 14650.73309 | AT157: 6218.521882 | AU157: 28839.55359 | AV157: 396.2671459 | AW157: 356.3254775 | AX157: 22332.03315 | AY157: 19142.97709 | AZ157: 1256.222983 | BA157: 5481.303097 | BB157: 487.5601391 | BC157: 219348.8919 | BE157: 2.52 | BF157: 9018.6 | BG157: 2.76 | BH157: 4704.83 | BI157: 3.36 | BJ157: 1030.82 | BK157: 4.44 | BL157: 50
A158: 2018-07-01 | B158: 87318.7131 | C158: 18766.56096 | D158: 45936.2231 | E158: 9199.787721 | F158: 161221.2849 | G158: 20.98 | H158: 1875.93 | I158: 26.27 | J158: 789.69 | K158: 8.01 | L158: 230.1 | M158: 13.19 | N158: 463.25 | O158: 27.14 | P158: 392.89 | Q158: 6.23 | R158: 4386.76 | S158: 23.09 | T158: 73.32 | U158: 4.33 | V158: 2135.8 | W158: 7.53 | X158: 2177.64 | Y158: 3.62 | Z158: 984.43 | AA158: 3.59 | AB158: 600.33 | AC158: 3.67 | AD158: 384.1 | AE158: 3.33 | AF158: 350.81 | AG158: 11372.23849 | AH158: 6298.296987 | AI158: 20826.63108 | AJ158: 6506.763165 | AK158: 33631.69123 | AL158: 91182.92655 | AM158: 4849.382053 | AN158: 16611.66994 | AO158: 873.2625 | AP158: 15028.4118 | AQ158: 63.3295 | AR158: 132057.191 | AS158: 14765.48296 | AT158: 7092.272708 | AU158: 29789.20454 | AV158: 395.1241492 | AW158: 383.591476 | AX158: 22646.81942 | AY158: 19453.17993 | AZ158: 1262.654844 | BA158: 5709.912719 | BB158: 486.2215583 | BC158: 221649.3867 | BE158: 2.64 | BF158: 9862.55 | BG158: 2.88 | BH158: 4331.11 | BI158: 3.36 | BJ158: 867.57 | BK158: 2.52 | BL158: 111.51
A159: 2018-08-01 | B159: 88775.14086 | C159: 18972.61899 | D159: 46342.3298 | E159: 9599.649461 | F159: 163689.7391 | G159: 20.46 | H159: 2093.12 | I159: 26.08 | J159: 851.53 | K159: 7.6 | L159: 240.36 | M159: 12.89 | N159: 582.82 | O159: 27.1 | P159: 418.41 | Q159: 6.32 | R159: 4562.16 | S159: 21.81 | T159: 74.27 | U159: 4.57 | V159: 1927.91 | W159: 7.19 | X159: 2559.98 | Y159: 3.45 | Z159: 923.38 | AA159: 3.33 | AB159: 401.67 | AC159: 3.55 | AD159: 521.71 | AE159: 3.23 | AF159: 415.2 | AG159: 11077.13464 | AH159: 6263.708122 | AI159: 20480.39463 | AJ159: 6448.709673 | AK159: 33192.81243 | AL159: 91652.24194 | AM159: 4870.551221 | AN159: 16533.90805 | AO159: 874.6595 | AP159: 14787.05946 | AQ159: 59.391 | AR159: 132277.7227 | AS159: 14481.33806 | AT159: 7329.762452 | AU159: 30745.07566 | AV159: 350.1033673 | AW159: 389.277501 | AX159: 23090.2964 | AY159: 19835.20161 | AZ159: 1281.055357 | BA159: 6011.861173 | BB159: 488.4931111 | BC159: 223279.4788 | BE159: 2.64 | BF159: 10265.24 | BG159: 2.88 | BH159: 5062.28 | BI159: 3.36 | BJ159: 1216.82 | BK159: 4.32 | BL159: 75
A160: 2018-09-01 | B160: 89204.98033 | C160: 19052.45156 | D160: 46676.20578 | E160: 9122.847436 | F160: 164056.4851 | G160: 21.32 | H160: 1831.22 | I160: 26.36 | J160: 848.26 | K160: 7.96 | L160: 199.77 | M160: 12.78 | N160: 430.04 | O160: 27.17 | P160: 353.15 | Q160: 5.98 | R160: 4370.86 | S160: 22.81 | T160: 69.03 | U160: 4.44 | V160: 1851.98 | W160: 6.65 | X160: 2449.85 | Y160: 3.57 | Z160: 803.73 | AA160: 3.58 | AB160: 333.88 | AC160: 3.56 | AD160: 469.85 | AE160: 3.22 | AF160: 331.73 | AG160: 11312.61185 | AH160: 6461.639965 | AI160: 20905.64651 | AJ160: 6732.491314 | AK160: 34099.77779 | AL160: 92419.0206 | AM160: 4896.406328 | AN160: 16362.92468 | AO160: 882.222 | AP160: 14743.01564 | AQ160: 61.465 | AR160: 133855.8708 | AS160: 15185.08971 | AT160: 6902.424627 | AU160: 31517.33993 | AV160: 348.3200143 | AW160: 398.793631 | AX160: 23401.062 | AY160: 20111.76024 | AZ160: 1285.372623 | BA160: 5866.266545 | BB160: 491.2439681 | BC160: 226648.523 | BE160: 2.64 | BF160: 9504.23 | BG160: 3 | BH160: 2998.92 | BI160: 3.48 | BJ160: 688.93
A161: 2018-10-01 | B161: 89863.31778 | C161: 19289.9915 | D161: 47074.83585 | E161: 9667.048299 | F161: 165895.1934 | G161: 20.13 | H161: 2163.15 | I161: 25.73 | J161: 863.52 | K161: 7.47 | L161: 296.53 | M161: 13.07 | N161: 568.19 | O161: 26.89 | P161: 434.91 | Q161: 6.01 | R161: 5342.93 | S161: 22.5 | T161: 73.97 | U161: 4.69 | V161: 2197.6 | W161: 6.55 | X161: 3071.36 | Y161: 3.72 | Z161: 886.55 | AA161: 3.46 | AB161: 491.36 | AC161: 4.05 | AD161: 395.19 | AE161: 3.17 | AF161: 424.25 | AG161: 11256.56472 | AH161: 6375.703162 | AI161: 20655.78691 | AJ161: 6660.657955 | AK161: 33692.14803 | AL161: 91533.81486 | AM161: 4927.33652 | AN161: 16490.34153 | AO161: 882.264 | AP161: 14577.32761 | AQ161: 77.8495 | AR161: 132870.7278 | AS161: 14868.2171 | AT161: 7604.683401 | AU161: 32178.40421 | AV161: 337.5540668 | AW161: 393.6251165 | AX161: 23702.36024 | AY161: 19850.60103 | AZ161: 1261.602245 | BA161: 5360.678361 | BB161: 490.2431314 | BC161: 227216.8537 | BE161: 2.76 | BF161: 12141.62 | BG161: 3.24 | BH161: 3993.07 | BI161: 3.96 | BJ161: 908.71 | BK161: 4.32 | BL161: 0.01
A162: 2018-11-01 | B162: 90742.53034 | C162: 19532.64139 | D162: 47545.12822 | E162: 9345.985068 | F162: 167166.285 | G162: 20.71 | H162: 2190.76 | I162: 26.02 | J162: 880.59 | K162: 7.22 | L162: 265.67 | M162: 13.29 | N162: 537.61 | O162: 26.42 | P162: 506.89 | Q162: 6.05 | R162: 5219.46 | S162: 22.78 | T162: 74.71 | U162: 4.74 | V162: 2403.07 | W162: 6.74 | X162: 2741.68 | Y162: 4 | Z162: 723.48 | AA162: 3.81 | AB162: 322.74 | AC162: 4.15 | AD162: 400.74 | AE162: 3.23 | AF162: 434.63 | AG162: 11207.21009 | AH162: 6358.934732 | AI162: 20913.92159 | AJ162: 6649.956544 | AK162: 33922.81287 | AL162: 93197.33345 | AM162: 4936.67034 | AN162: 18348.16059 | AO162: 880.218 | AP162: 15648.8482 | AQ162: 79.666 | AR162: 135556.6811 | AS162: 15534.51409 | AT162: 7917.343374 | AU162: 32454.22726 | AV162: 337.8861526 | AW162: 385.931891 | AX162: 24096.33643 | AY162: 19446.14487 | AZ162: 1245.433828 | BA162: 5158.156958 | BB162: 493.7956841 | BC162: 231322.5463 | BE162: 2.76 | BF162: 10103.89 | BG162: 3.48 | BH162: 4570.85 | BI162: 3.96 | BJ162: 1375.6 | BK162: 3.36 | BL162: 77
A163: 2018-12-01 | B163: 91402.66127 | C163: 19630.78132 | D163: 47976.33255 | E163: 9538.610997 | F163: 168548.3861 | G163: 20.58 | H163: 2054.94 | I163: 25.95 | J163: 889.63 | K163: 6.55 | L163: 282.35 | M163: 13.46 | N163: 474.31 | O163: 26.86 | P163: 408.65 | Q163: 6.18 | R163: 4865.71 | S163: 22.73 | T163: 73.95 | U163: 4.9 | V163: 2132.19 | W163: 6.74 | X163: 2659.57 | Y163: 3.92 | Z163: 1241.68 | AA163: 3.75 | AB163: 853.22 | AC163: 4.28 | AD163: 388.46 | AE163: 3.28 | AF163: 458.65 | AG163: 11720.63338 | AH163: 6590.892314 | AI163: 21814.71575 | AJ163: 7047.397161 | AK163: 35453.00523 | AL163: 94277.29874 | AM163: 4936.910469 | AN163: 17781.5227 | AO163: 882.468 | AP163: 15595.98037 | AQ163: 70.6985 | AR163: 137664.5263 | AS163: 15657.66967 | AT163: 7195.444065 | AU163: 33029.68854 | AV163: 341.936694 | AW163: 419.6236915 | AX163: 24320.14988 | AY163: 19251.81531 | AZ163: 1242.429666 | BA163: 4317.950874 | BB163: 493.3275452 | BC163: 234312.0054 | BE163: 2.88 | BF163: 9802.7 | BG163: 3.48 | BH163: 4974.71 | BI163: 3.96 | BJ163: 357.77
A164: 2019-01-01 | B164: 90887.77818 | C164: 19783.87607 | D164: 48286.27346 | E164: 9213.464503 | F164: 168171.3922 | G164: 21.55 | H164: 2148.52 | I164: 26.27 | J164: 896.73 | K164: 9.64 | L164: 262.93 | M164: 14.04 | N164: 501.58 | O164: 27 | P164: 487.28 | Q164: 6.28 | R164: 5222.25 | S164: 23.38 | T164: 73.86 | U164: 4.9 | V164: 2220.6 | W164: 6.9 | X164: 2927.79 | Y164: 3.91 | Z164: 1154.07 | AA164: 3.69 | AB164: 704.67 | AC164: 4.26 | AD164: 449.4 | AE164: 3.24 | AF164: 433.28 | AG164: 11691.12069 | AH164: 6532.70484 | AI164: 21795.68474 | AJ164: 7184.582232 | AK164: 35512.97181 | AL164: 93709.26963 | AM164: 4950.404408 | AN164: 17021.42125 | AO164: 881.1295417 | AP164: 15063.44051 | AQ164: 75.27516667 | AR164: 136936.481 | AS164: 15436.63549 | AT164: 7168.002893 | AU164: 33487.3385 | AV164: 337.7844801 | AW164: 495.9553051 | AX164: 24315.46099 | AY164: 19658.11717 | AZ164: 1255.446549 | BA164: 3663.8103 | BB164: 490.5541664 | BC164: 234936.8579 | BE164: 2.76 | BF164: 10624.66 | BG164: 3.24 | BH164: 4212.75 | BI164: 3.72 | BJ164: 1128.18 | BK164: 2.16 | BL164: 159.15
A165: 2019-02-01 | B165: 91035.00781 | C165: 19816.82215 | D165: 48511.19925 | E165: 9219.540627 | F165: 168582.5698 | G165: 22.14 | H165: 1890.33 | I165: 26.33 | J165: 903.3 | K165: 10.04 | L165: 211.09 | M165: 13.78 | N165: 399.78 | O165: 27.74 | P165: 376.16 | Q165: 6.78 | R165: 3918.56 | S165: 23.69 | T165: 73.17 | U165: 5.08 | V165: 1416.64 | W165: 7.27 | X165: 2428.75 | Y165: 4.02 | Z165: 792.85 | AA165: 3.85 | AB165: 470.82 | AC165: 4.28 | AD165: 322.03 | AE165: 3.23 | AF165: 330.47 | AG165: 11874.10377 | AH165: 6544.185759 | AI165: 21221.84115 | AJ165: 7193.128616 | AK165: 34959.15553 | AL165: 93025.23625 | AM165: 4960.199388 | AN165: 17089.71313 | AO165: 872.7787535 | AP165: 15069.27863 | AQ165: 72.84476389 | AR165: 135764.9597 | AS165: 15807.35318 | AT165: 7564.209158 | AU165: 34131.75939 | AV165: 336.5040231 | AW165: 554.29137 | AX165: 24336.42524 | AY165: 19692.27337 | AZ165: 1261.536026 | BA165: 3640.952907 | BB165: 491.2762677 | BC165: 235317.0822 | BE165: 2.88 | BF165: 8776.01 | BG165: 3.24 | BH165: 3026.97 | BI165: 3.6 | BJ165: 647.81 | BK165: 4.2 | BL165: 135.78

Sheet Base gráficos 1
B1: COLOCACIONES | H1: TASAS DE INTERÉS | T1: AGREGADOS MONETARIOS
B2: Colocaciones balances individuales | G2: consumo ($) | L2: comerciales ($) | P2: comercio exterior (US$) | S2: vivienda (UF) | T2: M1 | X2: M2 | AH2: M3
B3: comerciales | C3: consumo | D3: vivienda | E3: comercio exterior | F3: Total | G3: Consumo promedio | H3: Tarjetas de crédito rotativo | I3: Tarjetas de crédito cuota | J3: crédito en cuotas | K3: sobregiros | L3: Comercio promedio | M3: Tarjeta crédito y otros | N3: Crédito en cuotas | O3: Sobregiros | P3: Comex promedio | Q3: Exportación | R3: Importación | T3: Circulante | U3: Cuentas corrientes netas de canje | V3: Depósitos y ahorros a la vista | W3: M1 | X3: M1 | Y3: Depósitos plazo | Z3: Ahorro plazo | AA3: Cuotas de fondos mutuos en instrumentos < 1 año | AB3: Captaciones de Cooperativas | AC3: Inversiones de fondos mutuos en instrumentos < 1 año | AD3: Inversiones de Cooperativas | AE3: Fondos mutuos neto en M2 | AF3: Cooperativas neto en M2 | AG3: M2 | AH3: M2 | AI3: Dep en moneda extranjera | AJ3: Doc del BCCH | AK3: Bonos de Tesoreria | AL3: Letras de crédito | AM3: Efectos de comercio | AN3: Bono de Empresa | AO3: Cuotas del resto de FM | AP3: Cuotas de APV AFP | AQ3: Inversión del resto FM | AR3: Inversión de AFP | AS3: Fondos mutuos neto en M3 | AT3: AFP neto en M3 | AU3: M3
B4: Variación anual, porcentaje | G4: Incidencia en la tasa mensual | T4: Incidencia en la variación anual, porcentaje | W4: Variación anual, porcentaje | X4: Incidencia en la variación anual, porcentaje | AG4: Variación anual, porcentaje | AH4: Incidencia en la variación anual, porcentaje | AU4: Variación anual, porcentaje
B5: Fuente: Banco Central de Chile y Superintendencia de Bancos e Instituciones Financieras. | G5: Fuente: Banco Central de Chile | T5: Fuente: Banco Central de Chile
A7: 2006-01-01 | G7: =+'Base original'!G8 -> 26.84010551 | L7: =+'Base original'!Q8 -> 10.27317257 | P7: =+'Base original'!Y8 -> 5.289234388 | S7: =+'Base original'!AE8 -> 5.31
A8: 2006-02-01 | G8: =+'Base original'!G9 -> 28.08001067 | L8: =+'Base original'!Q9 -> 10.69175166 | P8: =+'Base original'!Y9 -> 5.488292681 | S8: =+'Base original'!AE9 -> 5.33
A9: 2006-03-01 | G9: =+'Base original'!G10 -> 25.2206299 | L9: =+'Base original'!Q10 -> 10.24201215 | P9: =+'Base original'!Y10 -> 5.847508201 | S9: =+'Base original'!AE10 -> 5.22
A10: 2006-04-01 | G10: =+'Base original'!G11 -> 26.81238125 | L10: =+'Base original'!Q11 -> 10.69633422 | P10: =+'Base original'!Y11 -> 5.653472987 | S10: =+'Base original'!AE11 -> 5.04
A11: 2006-05-01 | G11: =+'Base original'!G12 -> 27.49968525 | L11: =+'Base original'!Q12 -> 10.69976304 | P11: =+'Base original'!Y12 -> 6.069324926 | S11: =+'Base original'!AE12 -> 5.03
A12: 2006-06-01 | G12: =+'Base original'!G13 -> 27.54061454 | L12: =+'Base original'!Q13 -> 10.0914888 | P12: =+'Base original'!Y13 -> 6.098626848 | S12: =+'Base original'!AE13 -> 5
A13: 2006-07-01 | G13: =+'Base original'!G14 -> 27.28323577 | L13: =+'Base original'!Q14 -> 9.956696994 | P13: =+'Base original'!Y14 -> 6.294930372 | S13: =+'Base original'!AE14 -> 5.1
A14: 2006-08-01 | G14: =+'Base original'!G15 -> 26.63961018 | L14: =+'Base original'!Q15 -> 10.30839481 | P14: =+'Base original'!Y15 -> 6.222757439 | S14: =+'Base original'!AE15 -> 5.05
A15: 2006-09-01 | G15: =+'Base original'!G16 -> 26.5372798 | L15: =+'Base original'!Q16 -> 10.34509493 | P15: =+'Base original'!Y16 -> 6.288846604 | S15: =+'Base original'!AE16 -> 5.01
A16: 2006-10-01 | G16: =+'Base original'!G17 -> 26.87426644 | L16: =+'Base original'!Q17 -> 10.32842561 | P16: =+'Base original'!Y17 -> 6.177634104 | S16: =+'Base original'!AE17 -> 4.95
A17: 2006-11-01 | G17: =+'Base original'!G18 -> 26.97083773 | L17: =+'Base original'!Q18 -> 10.16942247 | P17: =+'Base original'!Y18 -> 6.107811217 | S17: =+'Base original'!AE18 -> 4.82
A18: 2006-12-01 | G18: =+'Base original'!G19 -> 27.08498 | L18: =+'Base original'!Q19 -> 10.24621563 | P18: =+'Base original'!Y19 -> 6.077732562 | S18: =+'Base original'!AE19 -> 4.77
A19: 2007-01-01 | B19: =+'Base original'!B20/'Base original'!B8*100-100 -> 16.33492726 | C19: =+'Base original'!C20/'Base original'!C8*100-100 -> 23.21425783 | D19: =+'Base original'!D20/'Base original'!D8*100-100 -> 17.29515509 | E19: =+'Base original'!E20/'Base original'!E8*100-100 -> 26.75615925 | F19: =+'Base original'!F20/'Base original'!F8*100-100 -> 18.30423227 | G19: =+'Base original'!G20 -> 27.90456465 | L19: =+'Base original'!Q20 -> 10.08135097 | P19: =+'Base original'!Y20 -> 6.104881737 | S19: =+'Base original'!AE20 -> 4.68 | T19: =+('Base original'!AH20/'Base original'!AH8*100-100)*'Base original'!AH8/'Base original'!$AK8 -> 3.303152313 | U19: =+('Base original'!AI20/'Base original'!AI8*100-100)*'Base original'!AI8/'Base original'!$AK8 -> 8.597820421 | V19: =+('Base original'!AJ20/'Base original'!AJ8*100-100)*'Base original'!AJ8/'Base original'!$AK8 -> 4.123077065 | W19: =+('Base original'!AK20/'Base original'!AK8*100-100)*'Base original'!AK8/'Base original'!$AK8 -> 16.0240498 | X19: =+('Base original'!AK20/'Base original'!AK8*100-100)*'Base original'!AK8/'Base original'!$AR8 -> 3.649142399 | Y19: =+('Base original'!AL20/'Base original'!AL8*100-100)*'Base original'!AL8/'Base original'!$AR8 -> 14.8824868 | Z19: =+('Base original'!AM20/'Base original'!AM8*100-100)*'Base original'!AM8/'Base original'!$AR8 -> 0.09235253816 | AA19: =+('Base original'!AN20/'Base original'!AN8*100-100)*'Base original'!AN8/'Base original'!$AR8 -> 3.68905264 | AB19: =+('Base original'!AO20/'Base original'!AO8*100-100)*'Base original'!AO8/'Base original'!$AR8 -> 0.1818500515 | AC19: =+('Base original'!AP20/'Base original'!AP8*100-100)*'Base original'!AP8/'Base original'!$AR8 -> 3.742426577 | AD19: =+('Base original'!AQ20/'Base original'!AQ8*100-100)*'Base original'!AQ8/'Base original'!$AR8 -> 0.01075893546 | AE19: =+(('Base original'!AN20-'Base original'!AP20)/('Base original'!AN8-'Base original'!AP8)*100-100)*(('Base original'!AN8-'Base original'!AP8)/'Base original'!AR8) -> -0.05337393679 | AF19: =+(('Base original'!AO20-'Base original'!AQ20)/('Base original'!AO8-'Base original'!AQ8)*100-100)*(('Base original'!AO8-'Base original'!AQ8)/'Base original'!AR8) -> 0.1710911161 | AG19: =+('Base original'!AR20/'Base original'!AR8*100-100)*'Base original'!AR8/'Base original'!$AR8 -> 18.74169892 | AH19: =+('Base original'!AR20/'Base original'!AR8*100-100)*'Base original'!AR8/'Base original'!$BC8 -> 10.67639878 | AI19: =+('Base original'!AS20/'Base original'!AS8*100-100)*'Base original'!AS8/'Base original'!$BC8 -> 0.6278393679 | AJ19: =+('Base original'!AT20/'Base original'!AT8*100-100)*'Base original'!AT8/'Base original'!$BC8 -> -2.15481771 | AK19: =+('Base original'!AU20/'Base original'!AU8*100-100)*'Base original'!AU8/'Base original'!$BC8 -> -0.002670709825 | AL19: =+('Base original'!AV20/'Base original'!AV8*100-100)*'Base original'!AV8/'Base original'!$BC8 -> 0.1688539167 | AM19: =+('Base original'!AW20/'Base original'!AW8*100-100)*'Base original'!AW8/'Base original'!$BC8 -> 0.01420954586 | AN19: =+('Base original'!AX20/'Base original'!AX8*100-100)*'Base original'!AX8/'Base original'!$BC8 -> 1.76128177 | AO19: =+('Base original'!AY20/'Base original'!AY8*100-100)*'Base original'!AY8/'Base original'!$BC8 -> 1.920565643 | AP19: =+('Base original'!AZ20/'Base original'!AZ8*100-100)*'Base original'!AZ8/'Base original'!$BC8 -> 0.2560115046 | AQ19: =+('Base original'!BA20/'Base original'!BA8*100-100)*'Base original'!BA8/'Base original'!$BC8 -> 0.6365362948 | AR19: =+('Base original'!BB20/'Base original'!BB8*100-100)*'Base original'!BB8/'Base original'!$BC8 -> 0.07984737578 | AS19: =+(('Base original'!AY20-'Base original'!BA20)/('Base original'!AY8-'Base original'!BA8)*100-100)*('Base original'!AY8-'Base original'!BA8)/'Base original'!$BC8 -> 1.284029348 | AT19: =+(('Base original'!AZ20-'Base original'!BB20)/('Base original'!AZ8-'Base original'!BB8)*100-100)*('Base original'!AZ8-'Base original'!BB8)/'Base original'!$BC8 -> 0.1761641288 | AU19: =+('Base original'!BC20/'Base original'!BC8*100-100)*'Base original'!BC8/'Base original'!$BC8 -> 12.55128844
A20: 2007-02-01 | B20: =+'Base original'!B21/'Base original'!B9*100-100 -> 17.14859936 | C20: =+'Base original'!C21/'Base original'!C9*100-100 -> 22.5728734 | D20: =+'Base original'!D21/'Base original'!D9*100-100 -> 17.64643932 | E20: =+'Base original'!E21/'Base original'!E9*100-100 -> 25.44007659 | F20: =+'Base original'!F21/'Base original'!F9*100-100 -> 18.66457983 | G20: =+'Base original'!G21 -> 28.68203617 | L20: =+'Base original'!Q21 -> 9.948701138 | P20: =+'Base original'!Y21 -> 6.092187817 | S20: =+'Base original'!AE21 -> 4.58 | T20: =+('Base original'!AH21/'Base original'!AH9*100-100)*'Base original'!AH9/'Base original'!$AK9 -> 3.383511937 | U20: =+('Base original'!AI21/'Base original'!AI9*100-100)*'Base original'!AI9/'Base original'!$AK9 -> 9.409473171 | V20: =+('Base original'!AJ21/'Base original'!AJ9*100-100)*'Base original'!AJ9/'Base original'!$AK9 -> 2.98618311 | W20: =+('Base original'!AK21/'Base original'!AK9*100-100)*'Base original'!AK9/'Base original'!$AK9 -> 15.77916822 | X20: =+('Base original'!AK21/'Base original'!AK9*100-100)*'Base original'!AK9/'Base original'!$AR9 -> 3.55106709 | Y20: =+('Base original'!AL21/'Base original'!AL9*100-100)*'Base original'!AL9/'Base original'!$AR9 -> 15.34608996 | Z20: =+('Base original'!AM21/'Base original'!AM9*100-100)*'Base original'!AM9/'Base original'!$AR9 -> 0.1085232959 | AA20: =+('Base original'!AN21/'Base original'!AN9*100-100)*'Base original'!AN9/'Base original'!$AR9 -> 3.008182284 | AB20: =+('Base original'!AO21/'Base original'!AO9*100-100)*'Base original'!AO9/'Base original'!$AR9 -> 0.1482058528 | AC20: =+('Base original'!AP21/'Base original'!AP9*100-100)*'Base original'!AP9/'Base original'!$AR9 -> 3.289329174 | AD20: =+('Base original'!AQ21/'Base original'!AQ9*100-100)*'Base original'!AQ9/'Base original'!$AR9 -> 0.01863380768 | AE20: =+(('Base original'!AN21-'Base original'!AP21)/('Base original'!AN9-'Base original'!AP9)*100-100)*(('Base original'!AN9-'Base original'!AP9)/'Base original'!AR9) -> -0.2811468903 | AF20: =+(('Base original'!AO21-'Base original'!AQ21)/('Base original'!AO9-'Base original'!AQ9)*100-100)*(('Base original'!AO9-'Base original'!AQ9)/'Base original'!AR9) -> 0.1295720451 | AG20: =+('Base original'!AR21/'Base original'!AR9*100-100)*'Base original'!AR9/'Base original'!$AR9 -> 18.8541055 | AH20: =+('Base original'!AR21/'Base original'!AR9*100-100)*'Base original'!AR9/'Base original'!$BC9 -> 10.75338227 | AI20: =+('Base original'!AS21/'Base original'!AS9*100-100)*'Base original'!AS9/'Base original'!$BC9 -> 0.6397557029 | AJ20: =+('Base original'!AT21/'Base original'!AT9*100-100)*'Base original'!AT9/'Base original'!$BC9 -> -2.227539472 | AK20: =+('Base original'!AU21/'Base original'!AU9*100-100)*'Base original'!AU9/'Base original'!$BC9 -> -0.006155584734 | AL20: =+('Base original'!AV21/'Base original'!AV9*100-100)*'Base original'!AV9/'Base original'!$BC9 -> 0.1631059911 | AM20: =+('Base original'!AW21/'Base original'!AW9*100-100)*'Base original'!AW9/'Base original'!$BC9 -> 0.00916535959 | AN20: =+('Base original'!AX21/'Base original'!AX9*100-100)*'Base original'!AX9/'Base original'!$BC9 -> 2.073258753 | AO20: =+('Base original'!AY21/'Base original'!AY9*100-100)*'Base original'!AY9/'Base original'!$BC9 -> 1.844702912 | AP20: =+('Base original'!AZ21/'Base original'!AZ9*100-100)*'Base original'!AZ9/'Base original'!$BC9 -> 0.2483659409 | AQ20: =+('Base original'!BA21/'Base original'!BA9*100-100)*'Base original'!BA9/'Base original'!$BC9 -> 0.5938268787 | AR20: =+('Base original'!BB21/'Base original'!BB9*100-100)*'Base original'!BB9/'Base original'!$BC9 -> 0.06999001869 | AS20: =+(('Base original'!AY21-'Base original'!BA21)/('Base original'!AY9-'Base original'!BA9)*100-100)*('Base original'!AY9-'Base original'!BA9)/'Base original'!$BC9 -> 1.250876034 | AT20: =+(('Base original'!AZ21-'Base original'!BB21)/('Base original'!AZ9-'Base original'!BB9)*100-100)*('Base original'!AZ9-'Base original'!BB9)/'Base original'!$BC9 -> 0.1783759223 | AU20: =+('Base original'!BC21/'Base original'!BC9*100-100)*'Base original'!BC9/'Base original'!$BC9 -> 12.83422498
A21: 2007-03-01 | B21: =+'Base original'!B22/'Base original'!B10*100-100 -> 16.07735532 | C21: =+'Base original'!C22/'Base original'!C10*100-100 -> 21.01775333 | D21: =+'Base original'!D22/'Base original'!D10*100-100 -> 17.78992747 | E21: =+'Base original'!E22/'Base original'!E10*100-100 -> 21.75534482 | F21: =+'Base original'!F22/'Base original'!F10*100-100 -> 17.56350979 | G21: =+'Base original'!G22 -> 26.98843784 | L21: =+'Base original'!Q22 -> 9.818966191 | P21: =+'Base original'!Y22 -> 5.992904891 | S21: =+'Base original'!AE22 -> 4.56 | T21: =+('Base original'!AH22/'Base original'!AH10*100-100)*'Base original'!AH10/'Base original'!$AK10 -> 3.439183615 | U21: =+('Base original'!AI22/'Base original'!AI10*100-100)*'Base original'!AI10/'Base original'!$AK10 -> 10.96171471 | V21: =+('Base original'!AJ22/'Base original'!AJ10*100-100)*'Base original'!AJ10/'Base original'!$AK10 -> 2.071504646 | W21: =+('Base original'!AK22/'Base original'!AK10*100-100)*'Base original'!AK10/'Base original'!$AK10 -> 16.47240297 | X21: =+('Base original'!AK22/'Base original'!AK10*100-100)*'Base original'!AK10/'Base original'!$AR10 -> 3.647178643 | Y21: =+('Base original'!AL22/'Base original'!AL10*100-100)*'Base original'!AL10/'Base original'!$AR10 -> 15.01542963 | Z21: =+('Base original'!AM22/'Base original'!AM10*100-100)*'Base original'!AM10/'Base original'!$AR10 -> 0.1125619851 | AA21: =+('Base original'!AN22/'Base original'!AN10*100-100)*'Base original'!AN10/'Base original'!$AR10 -> 2.971424967 | AB21: =+('Base original'!AO22/'Base original'!AO10*100-100)*'Base original'!AO10/'Base original'!$AR10 -> 0.1439548267 | AC21: =+('Base original'!AP22/'Base original'!AP10*100-100)*'Base original'!AP10/'Base original'!$AR10 -> 3.208236824 | AD21: =+('Base original'!AQ22/'Base original'!AQ10*100-100)*'Base original'!AQ10/'Base original'!$AR10 -> 0.01688576609 | AE21: =+(('Base original'!AN22-'Base original'!AP22)/('Base original'!AN10-'Base original'!AP10)*100-100)*(('Base original'!AN10-'Base original'!AP10)/'Base original'!AR10) -> -0.2368118569 | AF21: =+(('Base original'!AO22-'Base original'!AQ22)/('Base original'!AO10-'Base original'!AQ10)*100-100)*(('Base original'!AO10-'Base original'!AQ10)/'Base original'!AR10) -> 0.1270690606 | AG21: =+('Base original'!AR22/'Base original'!AR10*100-100)*'Base original'!AR10/'Base original'!$AR10 -> 18.66542746 | AH21: =+('Base original'!AR22/'Base original'!AR10*100-100)*'Base original'!AR10/'Base original'!$BC10 -> 10.71176529 | AI21: =+('Base original'!AS22/'Base original'!AS10*100-100)*'Base original'!AS10/'Base original'!$BC10 -> 0.7530405383 | AJ21: =+('Base original'!AT22/'Base original'!AT10*100-100)*'Base original'!AT10/'Base original'!$BC10 -> -2.035061593 | AK21: =+('Base original'!AU22/'Base original'!AU10*100-100)*'Base original'!AU10/'Base original'!$BC10 -> -0.0462276525 | AL21: =+('Base original'!AV22/'Base original'!AV10*100-100)*'Base original'!AV10/'Base original'!$BC10 -> 0.0911744805 | AM21: =+('Base original'!AW22/'Base original'!AW10*100-100)*'Base original'!AW10/'Base original'!$BC10 -> 0.02639172578 | AN21: =+('Base original'!AX22/'Base original'!AX10*100-100)*'Base original'!AX10/'Base original'!$BC10 -> 2.007844073 | AO21: =+('Base original'!AY22/'Base original'!AY10*100-100)*'Base original'!AY10/'Base original'!$BC10 -> 1.960335596 | AP21: =+('Base original'!AZ22/'Base original'!AZ10*100-100)*'Base original'!AZ10/'Base original'!$BC10 -> 0.2427499477 | AQ21: =+('Base original'!BA22/'Base original'!BA10*100-100)*'Base original'!BA10/'Base original'!$BC10 -> 0.700897499 | AR21: =+('Base original'!BB22/'Base original'!BB10*100-100)*'Base original'!BB10/'Base original'!$BC10 -> 0.07524843908 | AS21: =+(('Base original'!AY22-'Base original'!BA22)/('Base original'!AY10-'Base original'!BA10)*100-100)*('Base original'!AY10-'Base original'!BA10)/'Base original'!$BC10 -> 1.259438097 | AT21: =+(('Base original'!AZ22-'Base original'!BB22)/('Base original'!AZ10-'Base original'!BB10)*100-100)*('Base original'!AZ10-'Base original'!BB10)/'Base original'!$BC10 -> 0.1675015086 | AU21: =+('Base original'!BC22/'Base original'!BC10*100-100)*'Base original'!BC10/'Base original'!$BC10 -> 12.93586647
A22: 2007-04-01 | B22: =+'Base original'!B23/'Base original'!B11*100-100 -> 15.2637193 | C22: =+'Base original'!C23/'Base original'!C11*100-100 -> 20.40501776 | D22: =+'Base original'!D23/'Base original'!D11*100-100 -> 18.23745499 | E22: =+'Base original'!E23/'Base original'!E11*100-100 -> 24.63912784 | F22: =+'Base original'!F23/'Base original'!F11*100-100 -> 17.35272767 | G22: =+'Base original'!G23 -> 27.73739058 | L22: =+'Base original'!Q23 -> 9.949041121 | P22: =+'Base original'!Y23 -> 6.026521309 | S22: =+'Base original'!AE23 -> 4.54 | T22: =+('Base original'!AH23/'Base original'!AH11*100-100)*'Base original'!AH11/'Base original'!$AK11 -> 3.429518741 | U22: =+('Base original'!AI23/'Base original'!AI11*100-100)*'Base original'!AI11/'Base original'!$AK11 -> 10.39902431 | V22: =+('Base original'!AJ23/'Base original'!AJ11*100-100)*'Base original'!AJ11/'Base original'!$AK11 -> 3.972217494 | W22: =+('Base original'!AK23/'Base original'!AK11*100-100)*'Base original'!AK11/'Base original'!$AK11 -> 17.80076054 | X22: =+('Base original'!AK23/'Base original'!AK11*100-100)*'Base original'!AK11/'Base original'!$AR11 -> 3.936911299 | Y22: =+('Base original'!AL23/'Base original'!AL11*100-100)*'Base original'!AL11/'Base original'!$AR11 -> 14.86350976 | Z22: =+('Base original'!AM23/'Base original'!AM11*100-100)*'Base original'!AM11/'Base original'!$AR11 -> 0.1082275561 | AA22: =+('Base original'!AN23/'Base original'!AN11*100-100)*'Base original'!AN11/'Base original'!$AR11 -> 2.992432557 | AB22: =+('Base original'!AO23/'Base original'!AO11*100-100)*'Base original'!AO11/'Base original'!$AR11 -> 0.1576641198 | AC22: =+('Base original'!AP23/'Base original'!AP11*100-100)*'Base original'!AP11/'Base original'!$AR11 -> 2.961820695 | AD22: =+('Base original'!AQ23/'Base original'!AQ11*100-100)*'Base original'!AQ11/'Base original'!$AR11 -> 0.008572479693 | AE22: =+(('Base original'!AN23-'Base original'!AP23)/('Base original'!AN11-'Base original'!AP11)*100-100)*(('Base original'!AN11-'Base original'!AP11)/'Base original'!AR11) -> 0.03061186161 | AF22: =+(('Base original'!AO23-'Base original'!AQ23)/('Base original'!AO11-'Base original'!AQ11)*100-100)*(('Base original'!AO11-'Base original'!AQ11)/'Base original'!AR11) -> 0.1490916401 | AG22: =+('Base original'!AR23/'Base original'!AR11*100-100)*'Base original'!AR11/'Base original'!$AR11 -> 19.08835212 | AH22: =+('Base original'!AR23/'Base original'!AR11*100-100)*'Base original'!AR11/'Base original'!$BC11 -> 11.02799954 | AI22: =+('Base original'!AS23/'Base original'!AS11*100-100)*'Base original'!AS11/'Base original'!$BC11 -> 0.7799702907 | AJ22: =+('Base original'!AT23/'Base original'!AT11*100-100)*'Base original'!AT11/'Base original'!$BC11 -> -2.012603106 | AK22: =+('Base original'!AU23/'Base original'!AU11*100-100)*'Base original'!AU11/'Base original'!$BC11 -> -0.09319620986 | AL22: =+('Base original'!AV23/'Base original'!AV11*100-100)*'Base original'!AV11/'Base original'!$BC11 -> -0.3371293416 | AM22: =+('Base original'!AW23/'Base original'!AW11*100-100)*'Base original'!AW11/'Base original'!$BC11 -> 0.06965454608 | AN22: =+('Base original'!AX23/'Base original'!AX11*100-100)*'Base original'!AX11/'Base original'!$BC11 -> 1.758430103 | AO22: =+('Base original'!AY23/'Base original'!AY11*100-100)*'Base original'!AY11/'Base original'!$BC11 -> 2.352376074 | AP22: =+('Base original'!AZ23/'Base original'!AZ11*100-100)*'Base original'!AZ11/'Base original'!$BC11 -> 0.2550765205 | AQ22: =+('Base original'!BA23/'Base original'!BA11*100-100)*'Base original'!BA11/'Base original'!$BC11 -> 0.7817438631 | AR22: =+('Base original'!BB23/'Base original'!BB11*100-100)*'Base original'!BB11/'Base original'!$BC11 -> 0.07559434042 | AS22: =+(('Base original'!AY23-'Base original'!BA23)/('Base original'!AY11-'Base original'!BA11)*100-100)*('Base original'!AY11-'Base original'!BA11)/'Base original'!$BC11 -> 1.570632211 | AT22: =+(('Base original'!AZ23-'Base original'!BB23)/('Base original'!AZ11-'Base original'!BB11)*100-100)*('Base original'!AZ11-'Base original'!BB11)/'Base original'!$BC11 -> 0.1794821801 | AU22: =+('Base original'!BC23/'Base original'!BC11*100-100)*'Base original'!BC11/'Base original'!$BC11 -> 12.94324021
A23: 2007-05-01 | B23: =+'Base original'!B24/'Base original'!B12*100-100 -> 16.38686719 | C23: =+'Base original'!C24/'Base original'!C12*100-100 -> 19.58556621 | D23: =+'Base original'!D24/'Base original'!D12*100-100 -> 18.58973613 | E23: =+'Base original'!E24/'Base original'!E12*100-100 -> 21.97933134 | F23: =+'Base original'!F24/'Base original'!F12*100-100 -> 17.76245734 | G23: =+'Base original'!G24 -> 27.88672215 | L23: =+'Base original'!Q24 -> 10.02925436 | P23: =+'Base original'!Y24 -> 6.07313798 | S23: =+'Base original'!AE24 -> 4.39 | T23: =+('Base original'!AH24/'Base original'!AH12*100-100)*'Base original'!AH12/'Base original'!$AK12 -> 3.468242644 | U23: =+('Base original'!AI24/'Base original'!AI12*100-100)*'Base original'!AI12/'Base original'!$AK12 -> 9.215002456 | V23: =+('Base original'!AJ24/'Base original'!AJ12*100-100)*'Base original'!AJ12/'Base original'!$AK12 -> 4.902915195 | W23: =+('Base original'!AK24/'Base original'!AK12*100-100)*'Base original'!AK12/'Base original'!$AK12 -> 17.5861603 | X23: =+('Base original'!AK24/'Base original'!AK12*100-100)*'Base original'!AK12/'Base original'!$AR12 -> 3.872361683 | Y23: =+('Base original'!AL24/'Base original'!AL12*100-100)*'Base original'!AL12/'Base original'!$AR12 -> 15.09635631 | Z23: =+('Base original'!AM24/'Base original'!AM12*100-100)*'Base original'!AM12/'Base original'!$AR12 -> 0.09905875158 | AA23: =+('Base original'!AN24/'Base original'!AN12*100-100)*'Base original'!AN12/'Base original'!$AR12 -> 3.228765929 | AB23: =+('Base original'!AO24/'Base original'!AO12*100-100)*'Base original'!AO12/'Base original'!$AR12 -> 0.1844976402 | AC23: =+('Base original'!AP24/'Base original'!AP12*100-100)*'Base original'!AP12/'Base original'!$AR12 -> 3.0131944 | AD23: =+('Base original'!AQ24/'Base original'!AQ12*100-100)*'Base original'!AQ12/'Base original'!$AR12 -> 0.01490745511 | AE23: =+(('Base original'!AN24-'Base original'!AP24)/('Base original'!AN12-'Base original'!AP12)*100-100)*(('Base original'!AN12-'Base original'!AP12)/'Base original'!AR12) -> 0.2155715293 | AF23: =+(('Base original'!AO24-'Base original'!AQ24)/('Base original'!AO12-'Base original'!AQ12)*100-100)*(('Base original'!AO12-'Base original'!AQ12)/'Base original'!AR12) -> 0.169590185 | AG23: =+('Base original'!AR24/'Base original'!AR12*100-100)*'Base original'!AR12/'Base original'!$AR12 -> 19.45293846 | AH23: =+('Base original'!AR24/'Base original'!AR12*100-100)*'Base original'!AR12/'Base original'!$BC12 -> 11.27325176 | AI23: =+('Base original'!AS24/'Base original'!AS12*100-100)*'Base original'!AS12/'Base original'!$BC12 -> 0.7415846094 | AJ23: =+('Base original'!AT24/'Base original'!AT12*100-100)*'Base original'!AT12/'Base original'!$BC12 -> -1.865527279 | AK23: =+('Base original'!AU24/'Base original'!AU12*100-100)*'Base original'!AU12/'Base original'!$BC12 -> 0.003647980101 | AL23: =+('Base original'!AV24/'Base original'!AV12*100-100)*'Base original'!AV12/'Base original'!$BC12 -> -0.1989973145 | AM23: =+('Base original'!AW24/'Base original'!AW12*100-100)*'Base original'!AW12/'Base original'!$BC12 -> 0.09652223714 | AN23: =+('Base original'!AX24/'Base original'!AX12*100-100)*'Base original'!AX12/'Base original'!$BC12 -> 1.749637584 | AO23: =+('Base original'!AY24/'Base original'!AY12*100-100)*'Base original'!AY12/'Base original'!$BC12 -> 2.579652547 | AP23: =+('Base original'!AZ24/'Base original'!AZ12*100-100)*'Base original'!AZ12/'Base original'!$BC12 -> 0.2822873329 | AQ23: =+('Base original'!BA24/'Base original'!BA12*100-100)*'Base original'!BA12/'Base original'!$BC12 -> 0.7008930496 | AR23: =+('Base original'!BB24/'Base original'!BB12*100-100)*'Base original'!BB12/'Base original'!$BC12 -> 0.06831671826 | AS23: =+(('Base original'!AY24-'Base original'!BA24)/('Base original'!AY12-'Base original'!BA12)*100-100)*('Base original'!AY12-'Base original'!BA12)/'Base original'!$BC12 -> 1.878759497 | AT23: =+(('Base original'!AZ24-'Base original'!BB24)/('Base original'!AZ12-'Base original'!BB12)*100-100)*('Base original'!AZ12-'Base original'!BB12)/'Base original'!$BC12 -> 0.2139706147 | AU23: =+('Base original'!BC24/'Base original'!BC12*100-100)*'Base original'!BC12/'Base original'!$BC12 -> 13.89284969
A24: 2007-06-01 | B24: =+'Base original'!B25/'Base original'!B13*100-100 -> 16.89509453 | C24: =+'Base original'!C25/'Base original'!C13*100-100 -> 18.78566119 | D24: =+'Base original'!D25/'Base original'!D13*100-100 -> 19.50113262 | E24: =+'Base original'!E25/'Base original'!E13*100-100 -> 12.48910373 | F24: =+'Base original'!F25/'Base original'!F13*100-100 -> 17.24185689 | G24: =+'Base original'!G25 -> 27.94304786 | L24: =+'Base original'!Q25 -> 9.824916651 | P24: =+'Base original'!Y25 -> 6.135268702 | S24: =+'Base original'!AE25 -> 4.42 | T24: =+('Base original'!AH25/'Base original'!AH13*100-100)*'Base original'!AH13/'Base original'!$AK13 -> 3.212815464 | U24: =+('Base original'!AI25/'Base original'!AI13*100-100)*'Base original'!AI13/'Base original'!$AK13 -> 9.313436805 | V24: =+('Base original'!AJ25/'Base original'!AJ13*100-100)*'Base original'!AJ13/'Base original'!$AK13 -> 3.72307653 | W24: =+('Base original'!AK25/'Base original'!AK13*100-100)*'Base original'!AK13/'Base original'!$AK13 -> 16.2493288 | X24: =+('Base original'!AK25/'Base original'!AK13*100-100)*'Base original'!AK13/'Base original'!$AR13 -> 3.589904905 | Y24: =+('Base original'!AL25/'Base original'!AL13*100-100)*'Base original'!AL13/'Base original'!$AR13 -> 16.04483055 | Z24: =+('Base original'!AM25/'Base original'!AM13*100-100)*'Base original'!AM13/'Base original'!$AR13 -> 0.0772216934 | AA24: =+('Base original'!AN25/'Base original'!AN13*100-100)*'Base original'!AN13/'Base original'!$AR13 -> 3.562083629 | AB24: =+('Base original'!AO25/'Base original'!AO13*100-100)*'Base original'!AO13/'Base original'!$AR13 -> 0.2110180217 | AC24: =+('Base original'!AP25/'Base original'!AP13*100-100)*'Base original'!AP13/'Base original'!$AR13 -> 3.480314498 | AD24: =+('Base original'!AQ25/'Base original'!AQ13*100-100)*'Base original'!AQ13/'Base original'!$AR13 -> 0.02621131363 | AE24: =+(('Base original'!AN25-'Base original'!AP25)/('Base original'!AN13-'Base original'!AP13)*100-100)*(('Base original'!AN13-'Base original'!AP13)/'Base original'!AR13) -> 0.08176913035 | AF24: =+(('Base original'!AO25-'Base original'!AQ25)/('Base original'!AO13-'Base original'!AQ13)*100-100)*(('Base original'!AO13-'Base original'!AQ13)/'Base original'!AR13) -> 0.1848067081 | AG24: =+('Base original'!AR25/'Base original'!AR13*100-100)*'Base original'!AR13/'Base original'!$AR13 -> 19.97853299 | AH24: =+('Base original'!AR25/'Base original'!AR13*100-100)*'Base original'!AR13/'Base original'!$BC13 -> 11.63331336 | AI24: =+('Base original'!AS25/'Base original'!AS13*100-100)*'Base original'!AS13/'Base original'!$BC13 -> 0.4984193913 | AJ24: =+('Base original'!AT25/'Base original'!AT13*100-100)*'Base original'!AT13/'Base original'!$BC13 -> -1.911772646 | AK24: =+('Base original'!AU25/'Base original'!AU13*100-100)*'Base original'!AU13/'Base original'!$BC13 -> 0.1253079473 | AL24: =+('Base original'!AV25/'Base original'!AV13*100-100)*'Base original'!AV13/'Base original'!$BC13 -> -0.3381620559 | AM24: =+('Base original'!AW25/'Base original'!AW13*100-100)*'Base original'!AW13/'Base original'!$BC13 -> 0.1083348797 | AN24: =+('Base original'!AX25/'Base original'!AX13*100-100)*'Base original'!AX13/'Base original'!$BC13 -> 1.855129967 | AO24: =+('Base original'!AY25/'Base original'!AY13*100-100)*'Base original'!AY13/'Base original'!$BC13 -> 2.932311226 | AP24: =+('Base original'!AZ25/'Base original'!AZ13*100-100)*'Base original'!AZ13/'Base original'!$BC13 -> 0.3250375328 | AQ24: =+('Base original'!BA25/'Base original'!BA13*100-100)*'Base original'!BA13/'Base original'!$BC13 -> 0.634105251 | AR24: =+('Base original'!BB25/'Base original'!BB13*100-100)*'Base original'!BB13/'Base original'!$BC13 -> 0.07322102393 | AS24: =+(('Base original'!AY25-'Base original'!BA25)/('Base original'!AY13-'Base original'!BA13)*100-100)*('Base original'!AY13-'Base original'!BA13)/'Base original'!$BC13 -> 2.298205975 | AT24: =+(('Base original'!AZ25-'Base original'!BB25)/('Base original'!AZ13-'Base original'!BB13)*100-100)*('Base original'!AZ13-'Base original'!BB13)/'Base original'!$BC13 -> 0.2518165088 | AU24: =+('Base original'!BC25/'Base original'!BC13*100-100)*'Base original'!BC13/'Base original'!$BC13 -> 14.52059332
A25: 2007-07-01 | B25: =+'Base original'!B26/'Base original'!B14*100-100 -> 17.24830532 | C25: =+'Base original'!C26/'Base original'!C14*100-100 -> 18.4423871 | D25: =+'Base original'!D26/'Base original'!D14*100-100 -> 19.62536295 | E25: =+'Base original'!E26/'Base original'!E14*100-100 -> 16.83053086 | F25: =+'Base original'!F26/'Base original'!F14*100-100 -> 17.85595629 | G25: =+'Base original'!G26 -> 28.85455598 | L25: =+'Base original'!Q26 -> 9.985638792 | P25: =+'Base original'!Y26 -> 6.062530955 | S25: =+'Base original'!AE26 -> 4.51 | T25: =+('Base original'!AH26/'Base original'!AH14*100-100)*'Base original'!AH14/'Base original'!$AK14 -> 3.211884232 | U25: =+('Base original'!AI26/'Base original'!AI14*100-100)*'Base original'!AI14/'Base original'!$AK14 -> 10.44598118 | V25: =+('Base original'!AJ26/'Base original'!AJ14*100-100)*'Base original'!AJ14/'Base original'!$AK14 -> 5.210329004 | W25: =+('Base original'!AK26/'Base original'!AK14*100-100)*'Base original'!AK14/'Base original'!$AK14 -> 18.86819441 | X25: =+('Base original'!AK26/'Base original'!AK14*100-100)*'Base original'!AK14/'Base original'!$AR14 -> 4.093016465 | Y25: =+('Base original'!AL26/'Base original'!AL14*100-100)*'Base original'!AL14/'Base original'!$AR14 -> 16.76640444 | Z25: =+('Base original'!AM26/'Base original'!AM14*100-100)*'Base original'!AM14/'Base original'!$AR14 -> 0.06445584164 | AA25: =+('Base original'!AN26/'Base original'!AN14*100-100)*'Base original'!AN14/'Base original'!$AR14 -> 3.277375038 | AB25: =+('Base original'!AO26/'Base original'!AO14*100-100)*'Base original'!AO14/'Base original'!$AR14 -> 0.234466939 | AC25: =+('Base original'!AP26/'Base original'!AP14*100-100)*'Base original'!AP14/'Base original'!$AR14 -> 2.850612487 | AD25: =+('Base original'!AQ26/'Base original'!AQ14*100-100)*'Base original'!AQ14/'Base original'!$AR14 -> 0.02541562946 | AE25: =+(('Base original'!AN26-'Base original'!AP26)/('Base original'!AN14-'Base original'!AP14)*100-100)*(('Base original'!AN14-'Base original'!AP14)/'Base original'!AR14) -> 0.4267625506 | AF25: =+(('Base original'!AO26-'Base original'!AQ26)/('Base original'!AO14-'Base original'!AQ14)*100-100)*(('Base original'!AO14-'Base original'!AQ14)/'Base original'!AR14) -> 0.2090513096 | AG25: =+('Base original'!AR26/'Base original'!AR14*100-100)*'Base original'!AR14/'Base original'!$AR14 -> 21.55969061 | AH25: =+('Base original'!AR26/'Base original'!AR14*100-100)*'Base original'!AR14/'Base original'!$BC14 -> 12.61808792 | AI25: =+('Base original'!AS26/'Base original'!AS14*100-100)*'Base original'!AS14/'Base original'!$BC14 -> 0.4886405114 | AJ25: =+('Base original'!AT26/'Base original'!AT14*100-100)*'Base original'!AT14/'Base original'!$BC14 -> -1.765234071 | AK25: =+('Base original'!AU26/'Base original'!AU14*100-100)*'Base original'!AU14/'Base original'!$BC14 -> 0.1610146262 | AL25: =+('Base original'!AV26/'Base original'!AV14*100-100)*'Base original'!AV14/'Base original'!$BC14 -> -0.3926227665 | AM25: =+('Base original'!AW26/'Base original'!AW14*100-100)*'Base original'!AW14/'Base original'!$BC14 -> 0.08556739545 | AN25: =+('Base original'!AX26/'Base original'!AX14*100-100)*'Base original'!AX14/'Base original'!$BC14 -> 1.946356953 | AO25: =+('Base original'!AY26/'Base original'!AY14*100-100)*'Base original'!AY14/'Base original'!$BC14 -> 3.241870103 | AP25: =+('Base original'!AZ26/'Base original'!AZ14*100-100)*'Base original'!AZ14/'Base original'!$BC14 -> 0.3557081039 | AQ25: =+('Base original'!BA26/'Base original'!BA14*100-100)*'Base original'!BA14/'Base original'!$BC14 -> 0.5273051535 | AR25: =+('Base original'!BB26/'Base original'!BB14*100-100)*'Base original'!BB14/'Base original'!$BC14 -> 0.08066415091 | AS25: =+(('Base original'!AY26-'Base original'!BA26)/('Base original'!AY14-'Base original'!BA14)*100-100)*('Base original'!AY14-'Base original'!BA14)/'Base original'!$BC14 -> 2.714564949 | AT25: =+(('Base original'!AZ26-'Base original'!BB26)/('Base original'!AZ14-'Base original'!BB14)*100-100)*('Base original'!AZ14-'Base original'!BB14)/'Base original'!$BC14 -> 0.275043953 | AU25: =+('Base original'!BC26/'Base original'!BC14*100-100)*'Base original'!BC14/'Base original'!$BC14 -> 16.13141947
A26: 2007-08-01 | B26: =+'Base original'!B27/'Base original'!B15*100-100 -> 18.04252988 | C26: =+'Base original'!C27/'Base original'!C15*100-100 -> 17.64587823 | D26: =+'Base original'!D27/'Base original'!D15*100-100 -> 19.91402681 | E26: =+'Base original'!E27/'Base original'!E15*100-100 -> 18.47280879 | F26: =+'Base original'!F27/'Base original'!F15*100-100 -> 18.422651 | G26: =+'Base original'!G27 -> 27.59263685 | L26: =+'Base original'!Q27 -> 9.911397133 | P26: =+'Base original'!Y27 -> 6.19990909 | S26: =+'Base original'!AE27 -> 4.69 | T26: =+('Base original'!AH27/'Base original'!AH15*100-100)*'Base original'!AH15/'Base original'!$AK15 -> 3.199440033 | U26: =+('Base original'!AI27/'Base original'!AI15*100-100)*'Base original'!AI15/'Base original'!$AK15 -> 10.8500207 | V26: =+('Base original'!AJ27/'Base original'!AJ15*100-100)*'Base original'!AJ15/'Base original'!$AK15 -> 5.06699758 | W26: =+('Base original'!AK27/'Base original'!AK15*100-100)*'Base original'!AK15/'Base original'!$AK15 -> 19.11645831 | X26: =+('Base original'!AK27/'Base original'!AK15*100-100)*'Base original'!AK15/'Base original'!$AR15 -> 4.032896319 | Y26: =+('Base original'!AL27/'Base original'!AL15*100-100)*'Base original'!AL15/'Base original'!$AR15 -> 15.32335027 | Z26: =+('Base original'!AM27/'Base original'!AM15*100-100)*'Base original'!AM15/'Base original'!$AR15 -> 0.06548573326 | AA26: =+('Base original'!AN27/'Base original'!AN15*100-100)*'Base original'!AN15/'Base original'!$AR15 -> 4.42349654 | AB26: =+('Base original'!AO27/'Base original'!AO15*100-100)*'Base original'!AO15/'Base original'!$AR15 -> 0.2564329849 | AC26: =+('Base original'!AP27/'Base original'!AP15*100-100)*'Base original'!AP15/'Base original'!$AR15 -> 5.089869664 | AD26: =+('Base original'!AQ27/'Base original'!AQ15*100-100)*'Base original'!AQ15/'Base original'!$AR15 -> 0.02757729028 | AE26: =+(('Base original'!AN27-'Base original'!AP27)/('Base original'!AN15-'Base original'!AP15)*100-100)*(('Base original'!AN15-'Base original'!AP15)/'Base original'!AR15) -> -0.6663731242 | AF26: =+(('Base original'!AO27-'Base original'!AQ27)/('Base original'!AO15-'Base original'!AQ15)*100-100)*(('Base original'!AO15-'Base original'!AQ15)/'Base original'!AR15) -> 0.2288556947 | AG26: =+('Base original'!AR27/'Base original'!AR15*100-100)*'Base original'!AR15/'Base original'!$AR15 -> 18.98421489 | AH26: =+('Base original'!AR27/'Base original'!AR15*100-100)*'Base original'!AR15/'Base original'!$BC15 -> 11.20143906 | AI26: =+('Base original'!AS27/'Base original'!AS15*100-100)*'Base original'!AS15/'Base original'!$BC15 -> 0.5868538448 | AJ26: =+('Base original'!AT27/'Base original'!AT15*100-100)*'Base original'!AT15/'Base original'!$BC15 -> -2.04909557 | AK26: =+('Base original'!AU27/'Base original'!AU15*100-100)*'Base original'!AU15/'Base original'!$BC15 -> 0.14472217 | AL26: =+('Base original'!AV27/'Base original'!AV15*100-100)*'Base original'!AV15/'Base original'!$BC15 -> -0.2191070571 | AM26: =+('Base original'!AW27/'Base original'!AW15*100-100)*'Base original'!AW15/'Base original'!$BC15 -> 0.05588619795 | AN26: =+('Base original'!AX27/'Base original'!AX15*100-100)*'Base original'!AX15/'Base original'!$BC15 -> 1.989405599 | AO26: =+('Base original'!AY27/'Base original'!AY15*100-100)*'Base original'!AY15/'Base original'!$BC15 -> 3.057436682 | AP26: =+('Base original'!AZ27/'Base original'!AZ15*100-100)*'Base original'!AZ15/'Base original'!$BC15 -> 0.3304080452 | AQ26: =+('Base original'!BA27/'Base original'!BA15*100-100)*'Base original'!BA15/'Base original'!$BC15 -> 0.008111463868 | AR26: =+('Base original'!BB27/'Base original'!BB15*100-100)*'Base original'!BB15/'Base original'!$BC15 -> 0.07145890814 | AS26: =+(('Base original'!AY27-'Base original'!BA27)/('Base original'!AY15-'Base original'!BA15)*100-100)*('Base original'!AY15-'Base original'!BA15)/'Base original'!$BC15 -> 3.049325218 | AT26: =+(('Base original'!AZ27-'Base original'!BB27)/('Base original'!AZ15-'Base original'!BB15)*100-100)*('Base original'!AZ15-'Base original'!BB15)/'Base original'!$BC15 -> 0.2589491371 | AU26: =+('Base original'!BC27/'Base original'!BC15*100-100)*'Base original'!BC15/'Base original'!$BC15 -> 15.0183786
A27: 2007-09-01 | B27: =+'Base original'!B28/'Base original'!B16*100-100 -> 20.42543216 | C27: =+'Base original'!C28/'Base original'!C16*100-100 -> 16.69893249 | D27: =+'Base original'!D28/'Base original'!D16*100-100 -> 21.36893863 | E27: =+'Base original'!E28/'Base original'!E16*100-100 -> 14.48016208 | F27: =+'Base original'!F28/'Base original'!F16*100-100 -> 19.58836974 | G27: =+'Base original'!G28 -> 28.88864487 | L27: =+'Base original'!Q28 -> 10.12611294 | P27: =+'Base original'!Y28 -> 6.144116389 | S27: =+'Base original'!AE28 -> 4.79 | T27: =+('Base original'!AH28/'Base original'!AH16*100-100)*'Base original'!AH16/'Base original'!$AK16 -> 3.199995962 | U27: =+('Base original'!AI28/'Base original'!AI16*100-100)*'Base original'!AI16/'Base original'!$AK16 -> 9.997196849 | V27: =+('Base original'!AJ28/'Base original'!AJ16*100-100)*'Base original'!AJ16/'Base original'!$AK16 -> 5.531111633 | W27: =+('Base original'!AK28/'Base original'!AK16*100-100)*'Base original'!AK16/'Base original'!$AK16 -> 18.72830444 | X27: =+('Base original'!AK28/'Base original'!AK16*100-100)*'Base original'!AK16/'Base original'!$AR16 -> 4.001374069 | Y27: =+('Base original'!AL28/'Base original'!AL16*100-100)*'Base original'!AL16/'Base original'!$AR16 -> 14.51352175 | Z27: =+('Base original'!AM28/'Base original'!AM16*100-100)*'Base original'!AM16/'Base original'!$AR16 -> 0.08494919682 | AA27: =+('Base original'!AN28/'Base original'!AN16*100-100)*'Base original'!AN16/'Base original'!$AR16 -> 3.037789749 | AB27: =+('Base original'!AO28/'Base original'!AO16*100-100)*'Base original'!AO16/'Base original'!$AR16 -> 0.208423434 | AC27: =+('Base original'!AP28/'Base original'!AP16*100-100)*'Base original'!AP16/'Base original'!$AR16 -> 4.501175135 | AD27: =+('Base original'!AQ28/'Base original'!AQ16*100-100)*'Base original'!AQ16/'Base original'!$AR16 -> 0.02712119708 | AE27: =+(('Base original'!AN28-'Base original'!AP28)/('Base original'!AN16-'Base original'!AP16)*100-100)*(('Base original'!AN16-'Base original'!AP16)/'Base original'!AR16) -> -1.463385386 | AF27: =+(('Base original'!AO28-'Base original'!AQ28)/('Base original'!AO16-'Base original'!AQ16)*100-100)*(('Base original'!AO16-'Base original'!AQ16)/'Base original'!AR16) -> 0.1813022369 | AG27: =+('Base original'!AR28/'Base original'!AR16*100-100)*'Base original'!AR16/'Base original'!$AR16 -> 17.31776187 | AH27: =+('Base original'!AR28/'Base original'!AR16*100-100)*'Base original'!AR16/'Base original'!$BC16 -> 10.19757445 | AI27: =+('Base original'!AS28/'Base original'!AS16*100-100)*'Base original'!AS16/'Base original'!$BC16 -> 0.5752812453 | AJ27: =+('Base original'!AT28/'Base original'!AT16*100-100)*'Base original'!AT16/'Base original'!$BC16 -> -2.709336857 | AK27: =+('Base original'!AU28/'Base original'!AU16*100-100)*'Base original'!AU16/'Base original'!$BC16 -> 0.1673551214 | AL27: =+('Base original'!AV28/'Base original'!AV16*100-100)*'Base original'!AV16/'Base original'!$BC16 -> -0.2399518744 | AM27: =+('Base original'!AW28/'Base original'!AW16*100-100)*'Base original'!AW16/'Base original'!$BC16 -> 0.04200546871 | AN27: =+('Base original'!AX28/'Base original'!AX16*100-100)*'Base original'!AX16/'Base original'!$BC16 -> 1.98971936 | AO27: =+('Base original'!AY28/'Base original'!AY16*100-100)*'Base original'!AY16/'Base original'!$BC16 -> 2.916760687 | AP27: =+('Base original'!AZ28/'Base original'!AZ16*100-100)*'Base original'!AZ16/'Base original'!$BC16 -> 0.3165332731 | AQ27: =+('Base original'!BA28/'Base original'!BA16*100-100)*'Base original'!BA16/'Base original'!$BC16 -> -0.02493975486 | AR27: =+('Base original'!BB28/'Base original'!BB16*100-100)*'Base original'!BB16/'Base original'!$BC16 -> 0.05348315347 | AS27: =+(('Base original'!AY28-'Base original'!BA28)/('Base original'!AY16-'Base original'!BA16)*100-100)*('Base original'!AY16-'Base original'!BA16)/'Base original'!$BC16 -> 2.941700442 | AT27: =+(('Base original'!AZ28-'Base original'!BB28)/('Base original'!AZ16-'Base original'!BB16)*100-100)*('Base original'!AZ16-'Base original'!BB16)/'Base original'!$BC16 -> 0.2630501196 | AU27: =+('Base original'!BC28/'Base original'!BC16*100-100)*'Base original'!BC16/'Base original'!$BC16 -> 13.22739748
A28: 2007-10-01 | B28: =+'Base original'!B29/'Base original'!B17*100-100 -> 21.67826353 | C28: =+'Base original'!C29/'Base original'!C17*100-100 -> 16.15653429 | D28: =+'Base original'!D29/'Base original'!D17*100-100 -> 22.6689105 | E28: =+'Base original'!E29/'Base original'!E17*100-100 -> 14.35357267 | F28: =+'Base original'!F29/'Base original'!F17*100-100 -> 20.49779022 | G28: =+'Base original'!G29 -> 29.01098504 | L28: =+'Base original'!Q29 -> 10.15083518 | P28: =+'Base original'!Y29 -> 5.853360697 | S28: =+'Base original'!AE29 -> 4.83 | T28: =+('Base original'!AH29/'Base original'!AH17*100-100)*'Base original'!AH17/'Base original'!$AK17 -> 3.068645933 | U28: =+('Base original'!AI29/'Base original'!AI17*100-100)*'Base original'!AI17/'Base original'!$AK17 -> 10.06520646 | V28: =+('Base original'!AJ29/'Base original'!AJ17*100-100)*'Base original'!AJ17/'Base original'!$AK17 -> 5.617318533 | W28: =+('Base original'!AK29/'Base original'!AK17*100-100)*'Base original'!AK17/'Base original'!$AK17 -> 18.75117093 | X28: =+('Base original'!AK29/'Base original'!AK17*100-100)*'Base original'!AK17/'Base original'!$AR17 -> 3.93930582 | Y28: =+('Base original'!AL29/'Base original'!AL17*100-100)*'Base original'!AL17/'Base original'!$AR17 -> 15.87392772 | Z28: =+('Base original'!AM29/'Base original'!AM17*100-100)*'Base original'!AM17/'Base original'!$AR17 -> 0.118646595 | AA28: =+('Base original'!AN29/'Base original'!AN17*100-100)*'Base original'!AN17/'Base original'!$AR17 -> 2.025678207 | AB28: =+('Base original'!AO29/'Base original'!AO17*100-100)*'Base original'!AO17/'Base original'!$AR17 -> 0.1572997066 | AC28: =+('Base original'!AP29/'Base original'!AP17*100-100)*'Base original'!AP17/'Base original'!$AR17 -> 2.724067189 | AD28: =+('Base original'!AQ29/'Base original'!AQ17*100-100)*'Base original'!AQ17/'Base original'!$AR17 -> 0.01590640692 | AE28: =+(('Base original'!AN29-'Base original'!AP29)/('Base original'!AN17-'Base original'!AP17)*100-100)*(('Base original'!AN17-'Base original'!AP17)/'Base original'!AR17) -> -0.6983889823 | AF28: =+(('Base original'!AO29-'Base original'!AQ29)/('Base original'!AO17-'Base original'!AQ17)*100-100)*(('Base original'!AO17-'Base original'!AQ17)/'Base original'!AR17) -> 0.1413932997 | AG28: =+('Base original'!AR29/'Base original'!AR17*100-100)*'Base original'!AR17/'Base original'!$AR17 -> 19.37488445 | AH28: =+('Base original'!AR29/'Base original'!AR17*100-100)*'Base original'!AR17/'Base original'!$BC17 -> 11.34562946 | AI28: =+('Base original'!AS29/'Base original'!AS17*100-100)*'Base original'!AS17/'Base original'!$BC17 -> 0.7164886537 | AJ28: =+('Base original'!AT29/'Base original'!AT17*100-100)*'Base original'!AT17/'Base original'!$BC17 -> -2.528723643 | AK28: =+('Base original'!AU29/'Base original'!AU17*100-100)*'Base original'!AU17/'Base original'!$BC17 -> 0.1497638676 | AL28: =+('Base original'!AV29/'Base original'!AV17*100-100)*'Base original'!AV17/'Base original'!$BC17 -> -0.3175528069 | AM28: =+('Base original'!AW29/'Base original'!AW17*100-100)*'Base original'!AW17/'Base original'!$BC17 -> 0.03563687021 | AN28: =+('Base original'!AX29/'Base original'!AX17*100-100)*'Base original'!AX17/'Base original'!$BC17 -> 2.147908239 | AO28: =+('Base original'!AY29/'Base original'!AY17*100-100)*'Base original'!AY17/'Base original'!$BC17 -> 3.249217868 | AP28: =+('Base original'!AZ29/'Base original'!AZ17*100-100)*'Base original'!AZ17/'Base original'!$BC17 -> 0.3474992224 | AQ28: =+('Base original'!BA29/'Base original'!BA17*100-100)*'Base original'!BA17/'Base original'!$BC17 -> 0.4406446548 | AR28: =+('Base original'!BB29/'Base original'!BB17*100-100)*'Base original'!BB17/'Base original'!$BC17 -> 0.05801720619 | AS28: =+(('Base original'!AY29-'Base original'!BA29)/('Base original'!AY17-'Base original'!BA17)*100-100)*('Base original'!AY17-'Base original'!BA17)/'Base original'!$BC17 -> 2.808573214 | AT28: =+(('Base original'!AZ29-'Base original'!BB29)/('Base original'!AZ17-'Base original'!BB17)*100-100)*('Base original'!AZ17-'Base original'!BB17)/'Base original'!$BC17 -> 0.2894820162 | AU28: =+('Base original'!BC29/'Base original'!BC17*100-100)*'Base original'!BC17/'Base original'!$BC17 -> 14.64720587
A29: 2007-11-01 | B29: =+'Base original'!B30/'Base original'!B18*100-100 -> 22.69820311 | C29: =+'Base original'!C30/'Base original'!C18*100-100 -> 15.6949176 | D29: =+'Base original'!D30/'Base original'!D18*100-100 -> 23.25184646 | E29: =+'Base original'!E30/'Base original'!E18*100-100 -> 18.0280213 | F29: =+'Base original'!F30/'Base original'!F18*100-100 -> 21.47102673 | G29: =+'Base original'!G30 -> 28.91827827 | L29: =+'Base original'!Q30 -> 10.16639217 | P29: =+'Base original'!Y30 -> 5.682430127 | S29: =+'Base original'!AE30 -> 4.81 | T29: =+('Base original'!AH30/'Base original'!AH18*100-100)*'Base original'!AH18/'Base original'!$AK18 -> 3.01249231 | U29: =+('Base original'!AI30/'Base original'!AI18*100-100)*'Base original'!AI18/'Base original'!$AK18 -> 11.19637382 | V29: =+('Base original'!AJ30/'Base original'!AJ18*100-100)*'Base original'!AJ18/'Base original'!$AK18 -> 7.44154748 | W29: =+('Base original'!AK30/'Base original'!AK18*100-100)*'Base original'!AK18/'Base original'!$AK18 -> 21.65041361 | X29: =+('Base original'!AK30/'Base original'!AK18*100-100)*'Base original'!AK18/'Base original'!$AR18 -> 4.564530929 | Y29: =+('Base original'!AL30/'Base original'!AL18*100-100)*'Base original'!AL18/'Base original'!$AR18 -> 17.31265087 | Z29: =+('Base original'!AM30/'Base original'!AM18*100-100)*'Base original'!AM18/'Base original'!$AR18 -> 0.1573061343 | AA29: =+('Base original'!AN30/'Base original'!AN18*100-100)*'Base original'!AN18/'Base original'!$AR18 -> 4.734298282 | AB29: =+('Base original'!AO30/'Base original'!AO18*100-100)*'Base original'!AO18/'Base original'!$AR18 -> 0.1392976638 | AC29: =+('Base original'!AP30/'Base original'!AP18*100-100)*'Base original'!AP18/'Base original'!$AR18 -> 5.074690534 | AD29: =+('Base original'!AQ30/'Base original'!AQ18*100-100)*'Base original'!AQ18/'Base original'!$AR18 -> 0.00889704201 | AE29: =+(('Base original'!AN30-'Base original'!AP30)/('Base original'!AN18-'Base original'!AP18)*100-100)*(('Base original'!AN18-'Base original'!AP18)/'Base original'!AR18) -> -0.3403922518 | AF29: =+(('Base original'!AO30-'Base original'!AQ30)/('Base original'!AO18-'Base original'!AQ18)*100-100)*(('Base original'!AO18-'Base original'!AQ18)/'Base original'!AR18) -> 0.1304006217 | AG29: =+('Base original'!AR30/'Base original'!AR18*100-100)*'Base original'!AR18/'Base original'!$AR18 -> 21.82449631 | AH29: =+('Base original'!AR30/'Base original'!AR18*100-100)*'Base original'!AR18/'Base original'!$BC18 -> 12.81301682 | AI29: =+('Base original'!AS30/'Base original'!AS18*100-100)*'Base original'!AS18/'Base original'!$BC18 -> 0.732990107 | AJ29: =+('Base original'!AT30/'Base original'!AT18*100-100)*'Base original'!AT18/'Base original'!$BC18 -> -2.506694323 | AK29: =+('Base original'!AU30/'Base original'!AU18*100-100)*'Base original'!AU18/'Base original'!$BC18 -> 0.2344548837 | AL29: =+('Base original'!AV30/'Base original'!AV18*100-100)*'Base original'!AV18/'Base original'!$BC18 -> -0.4294668474 | AM29: =+('Base original'!AW30/'Base original'!AW18*100-100)*'Base original'!AW18/'Base original'!$BC18 -> 0.05932957766 | AN29: =+('Base original'!AX30/'Base original'!AX18*100-100)*'Base original'!AX18/'Base original'!$BC18 -> 2.347081868 | AO29: =+('Base original'!AY30/'Base original'!AY18*100-100)*'Base original'!AY18/'Base original'!$BC18 -> 3.226688876 | AP29: =+('Base original'!AZ30/'Base original'!AZ18*100-100)*'Base original'!AZ18/'Base original'!$BC18 -> 0.326226145 | AQ29: =+('Base original'!BA30/'Base original'!BA18*100-100)*'Base original'!BA18/'Base original'!$BC18 -> 0.5768232049 | AR29: =+('Base original'!BB30/'Base original'!BB18*100-100)*'Base original'!BB18/'Base original'!$BC18 -> 0.06976063308 | AS29: =+(('Base original'!AY30-'Base original'!BA30)/('Base original'!AY18-'Base original'!BA18)*100-100)*('Base original'!AY18-'Base original'!BA18)/'Base original'!$BC18 -> 2.649865671 | AT29: =+(('Base original'!AZ30-'Base original'!BB30)/('Base original'!AZ18-'Base original'!BB18)*100-100)*('Base original'!AZ18-'Base original'!BB18)/'Base original'!$BC18 -> 0.2564655119 | AU29: =+('Base original'!BC30/'Base original'!BC18*100-100)*'Base original'!BC18/'Base original'!$BC18 -> 16.15704327
A30: 2007-12-01 | B30: =+'Base original'!B31/'Base original'!B19*100-100 -> 22.59511209 | C30: =+'Base original'!C31/'Base original'!C19*100-100 -> 15.33834384 | D30: =+'Base original'!D31/'Base original'!D19*100-100 -> 24.37138124 | E30: =+'Base original'!E31/'Base original'!E19*100-100 -> 12.43479757 | F30: =+'Base original'!F31/'Base original'!F19*100-100 -> 21.08677118 | G30: =+'Base original'!G31 -> 29.9564244 | L30: =+'Base original'!Q31 -> 10.20759446 | P30: =+'Base original'!Y31 -> 5.890780774 | S30: =+'Base original'!AE31 -> 4.83 | T30: =+('Base original'!AH31/'Base original'!AH19*100-100)*'Base original'!AH19/'Base original'!$AK19 -> 2.939359681 | U30: =+('Base original'!AI31/'Base original'!AI19*100-100)*'Base original'!AI19/'Base original'!$AK19 -> 11.19054323 | V30: =+('Base original'!AJ31/'Base original'!AJ19*100-100)*'Base original'!AJ19/'Base original'!$AK19 -> 3.932357432 | W30: =+('Base original'!AK31/'Base original'!AK19*100-100)*'Base original'!AK19/'Base original'!$AK19 -> 18.06226035 | X30: =+('Base original'!AK31/'Base original'!AK19*100-100)*'Base original'!AK19/'Base original'!$AR19 -> 4.010915521 | Y30: =+('Base original'!AL31/'Base original'!AL19*100-100)*'Base original'!AL19/'Base original'!$AR19 -> 17.89963963 | Z30: =+('Base original'!AM31/'Base original'!AM19*100-100)*'Base original'!AM19/'Base original'!$AR19 -> 0.1907679789 | AA30: =+('Base original'!AN31/'Base original'!AN19*100-100)*'Base original'!AN19/'Base original'!$AR19 -> 4.045104165 | AB30: =+('Base original'!AO31/'Base original'!AO19*100-100)*'Base original'!AO19/'Base original'!$AR19 -> 0.121200169 | AC30: =+('Base original'!AP31/'Base original'!AP19*100-100)*'Base original'!AP19/'Base original'!$AR19 -> 4.308985635 | AD30: =+('Base original'!AQ31/'Base original'!AQ19*100-100)*'Base original'!AQ19/'Base original'!$AR19 -> 0.009550045343 | AE30: =+(('Base original'!AN31-'Base original'!AP31)/('Base original'!AN19-'Base original'!AP19)*100-100)*(('Base original'!AN19-'Base original'!AP19)/'Base original'!AR19) -> -0.2638814697 | AF30: =+(('Base original'!AO31-'Base original'!AQ31)/('Base original'!AO19-'Base original'!AQ19)*100-100)*(('Base original'!AO19-'Base original'!AQ19)/'Base original'!AR19) -> 0.1116501236 | AG30: =+('Base original'!AR31/'Base original'!AR19*100-100)*'Base original'!AR19/'Base original'!$AR19 -> 21.94909179 | AH30: =+('Base original'!AR31/'Base original'!AR19*100-100)*'Base original'!AR19/'Base original'!$BC19 -> 13.04000993 | AI30: =+('Base original'!AS31/'Base original'!AS19*100-100)*'Base original'!AS19/'Base original'!$BC19 -> 0.7881223048 | AJ30: =+('Base original'!AT31/'Base original'!AT19*100-100)*'Base original'!AT19/'Base original'!$BC19 -> -2.762541119 | AK30: =+('Base original'!AU31/'Base original'!AU19*100-100)*'Base original'!AU19/'Base original'!$BC19 -> 0.4137038596 | AL30: =+('Base original'!AV31/'Base original'!AV19*100-100)*'Base original'!AV19/'Base original'!$BC19 -> -0.506266754 | AM30: =+('Base original'!AW31/'Base original'!AW19*100-100)*'Base original'!AW19/'Base original'!$BC19 -> 0.03891639295 | AN30: =+('Base original'!AX31/'Base original'!AX19*100-100)*'Base original'!AX19/'Base original'!$BC19 -> 2.220494655 | AO30: =+('Base original'!AY31/'Base original'!AY19*100-100)*'Base original'!AY19/'Base original'!$BC19 -> 2.668102365 | AP30: =+('Base original'!AZ31/'Base original'!AZ19*100-100)*'Base original'!AZ19/'Base original'!$BC19 -> 0.2577922735 | AQ30: =+('Base original'!BA31/'Base original'!BA19*100-100)*'Base original'!BA19/'Base original'!$BC19 -> 0.4938122781 | AR30: =+('Base original'!BB31/'Base original'!BB19*100-100)*'Base original'!BB19/'Base original'!$BC19 -> 0.07060611475 | AS30: =+(('Base original'!AY31-'Base original'!BA31)/('Base original'!AY19-'Base original'!BA19)*100-100)*('Base original'!AY19-'Base original'!BA19)/'Base original'!$BC19 -> 2.174290087 | AT30: =+(('Base original'!AZ31-'Base original'!BB31)/('Base original'!AZ19-'Base original'!BB19)*100-100)*('Base original'!AZ19-'Base original'!BB19)/'Base original'!$BC19 -> 0.1871861587 | AU30: =+('Base original'!BC31/'Base original'!BC19*100-100)*'Base original'!BC19/'Base original'!$BC19 -> 15.59391551
A31: 2008-01-01 | B31: =+'Base original'!B32/'Base original'!B20*100-100 -> 21.35491589 | C31: =+'Base original'!C32/'Base original'!C20*100-100 -> 15.32727926 | D31: =+'Base original'!D32/'Base original'!D20*100-100 -> 25.46052031 | E31: =+'Base original'!E32/'Base original'!E20*100-100 -> 2.937968793 | F31: =+'Base original'!F32/'Base original'!F20*100-100 -> 19.69588787 | G31: =+'Base original'!G32 -> 32.06297709 | L31: =+'Base original'!Q32 -> 10.54607256 | P31: =+'Base original'!Y32 -> 4.909974714 | S31: =+'Base original'!AE32 -> 4.8 | T31: =+('Base original'!AH32/'Base original'!AH20*100-100)*'Base original'!AH20/'Base original'!$AK20 -> 2.801458169 | U31: =+('Base original'!AI32/'Base original'!AI20*100-100)*'Base original'!AI20/'Base original'!$AK20 -> 10.68633109 | V31: =+('Base original'!AJ32/'Base original'!AJ20*100-100)*'Base original'!AJ20/'Base original'!$AK20 -> 2.575382883 | W31: =+('Base original'!AK32/'Base original'!AK20*100-100)*'Base original'!AK20/'Base original'!$AK20 -> 16.06317214 | X31: =+('Base original'!AK32/'Base original'!AK20*100-100)*'Base original'!AK20/'Base original'!$AR20 -> 3.574329624 | Y31: =+('Base original'!AL32/'Base original'!AL20*100-100)*'Base original'!AL20/'Base original'!$AR20 -> 17.77534433 | Z31: =+('Base original'!AM32/'Base original'!AM20*100-100)*'Base original'!AM20/'Base original'!$AR20 -> 0.2206985613 | AA31: =+('Base original'!AN32/'Base original'!AN20*100-100)*'Base original'!AN20/'Base original'!$AR20 -> 2.553244445 | AB31: =+('Base original'!AO32/'Base original'!AO20*100-100)*'Base original'!AO20/'Base original'!$AR20 -> 0.1486425058 | AC31: =+('Base original'!AP32/'Base original'!AP20*100-100)*'Base original'!AP20/'Base original'!$AR20 -> 2.94364299 | AD31: =+('Base original'!AQ32/'Base original'!AQ20*100-100)*'Base original'!AQ20/'Base original'!$AR20 -> 0.01632460689 | AE31: =+(('Base original'!AN32-'Base original'!AP32)/('Base original'!AN20-'Base original'!AP20)*100-100)*(('Base original'!AN20-'Base original'!AP20)/'Base original'!AR20) -> -0.3903985445 | AF31: =+(('Base original'!AO32-'Base original'!AQ32)/('Base original'!AO20-'Base original'!AQ20)*100-100)*(('Base original'!AO20-'Base original'!AQ20)/'Base original'!AR20) -> 0.1323178989 | AG31: =+('Base original'!AR32/'Base original'!AR20*100-100)*'Base original'!AR20/'Base original'!$AR20 -> 21.31229187 | AH31: =+('Base original'!AR32/'Base original'!AR20*100-100)*'Base original'!AR20/'Base original'!$BC20 -> 12.80851475 | AI31: =+('Base original'!AS32/'Base original'!AS20*100-100)*'Base original'!AS20/'Base original'!$BC20 -> 0.8794115489 | AJ31: =+('Base original'!AT32/'Base original'!AT20*100-100)*'Base original'!AT20/'Base original'!$BC20 -> -1.827743166 | AK31: =+('Base original'!AU32/'Base original'!AU20*100-100)*'Base original'!AU20/'Base original'!$BC20 -> 0.5441962637 | AL31: =+('Base original'!AV32/'Base original'!AV20*100-100)*'Base original'!AV20/'Base original'!$BC20 -> -0.3365994667 | AM31: =+('Base original'!AW32/'Base original'!AW20*100-100)*'Base original'!AW20/'Base original'!$BC20 -> 0.0116514615 | AN31: =+('Base original'!AX32/'Base original'!AX20*100-100)*'Base original'!AX20/'Base original'!$BC20 -> 1.929427265 | AO31: =+('Base original'!AY32/'Base original'!AY20*100-100)*'Base original'!AY20/'Base original'!$BC20 -> 1.686130755 | AP31: =+('Base original'!AZ32/'Base original'!AZ20*100-100)*'Base original'!AZ20/'Base original'!$BC20 -> 0.1639874757 | AQ31: =+('Base original'!BA32/'Base original'!BA20*100-100)*'Base original'!BA20/'Base original'!$BC20 -> 0.4084552162 | AR31: =+('Base original'!BB32/'Base original'!BB20*100-100)*'Base original'!BB20/'Base original'!$BC20 -> 0.06958934249 | AS31: =+(('Base original'!AY32-'Base original'!BA32)/('Base original'!AY20-'Base original'!BA20)*100-100)*('Base original'!AY20-'Base original'!BA20)/'Base original'!$BC20 -> 1.277675539 | AT31: =+(('Base original'!AZ32-'Base original'!BB32)/('Base original'!AZ20-'Base original'!BB20)*100-100)*('Base original'!AZ20-'Base original'!BB20)/'Base original'!$BC20 -> 0.09439813322 | AU31: =+('Base original'!BC32/'Base original'!BC20*100-100)*'Base original'!BC20/'Base original'!$BC20 -> 15.38093233
A32: 2008-02-01 | B32: =+'Base original'!B33/'Base original'!B21*100-100 -> 21.17543487 | C32: =+'Base original'!C33/'Base original'!C21*100-100 -> 15.17123318 | D32: =+'Base original'!D33/'Base original'!D21*100-100 -> 25.15165791 | E32: =+'Base original'!E33/'Base original'!E21*100-100 -> 4.311551383 | F32: =+'Base original'!F33/'Base original'!F21*100-100 -> 19.64871402 | G32: =+'Base original'!G33 -> 31.96068943 | L32: =+'Base original'!Q33 -> 10.52429586 | P32: =+'Base original'!Y33 -> 4.19445297 | S32: =+'Base original'!AE33 -> 4.9 | T32: =+('Base original'!AH33/'Base original'!AH21*100-100)*'Base original'!AH21/'Base original'!$AK21 -> 2.915518614 | U32: =+('Base original'!AI33/'Base original'!AI21*100-100)*'Base original'!AI21/'Base original'!$AK21 -> 8.996626214 | V32: =+('Base original'!AJ33/'Base original'!AJ21*100-100)*'Base original'!AJ21/'Base original'!$AK21 -> 4.305827948 | W32: =+('Base original'!AK33/'Base original'!AK21*100-100)*'Base original'!AK21/'Base original'!$AK21 -> 16.21797278 | X32: =+('Base original'!AK33/'Base original'!AK21*100-100)*'Base original'!AK21/'Base original'!$AR21 -> 3.555392695 | Y32: =+('Base original'!AL33/'Base original'!AL21*100-100)*'Base original'!AL21/'Base original'!$AR21 -> 17.42987521 | Z32: =+('Base original'!AM33/'Base original'!AM21*100-100)*'Base original'!AM21/'Base original'!$AR21 -> 0.252727475 | AA32: =+('Base original'!AN33/'Base original'!AN21*100-100)*'Base original'!AN21/'Base original'!$AR21 -> 4.058439522 | AB32: =+('Base original'!AO33/'Base original'!AO21*100-100)*'Base original'!AO21/'Base original'!$AR21 -> 0.1697726602 | AC32: =+('Base original'!AP33/'Base original'!AP21*100-100)*'Base original'!AP21/'Base original'!$AR21 -> 3.911669452 | AD32: =+('Base original'!AQ33/'Base original'!AQ21*100-100)*'Base original'!AQ21/'Base original'!$AR21 -> 0.01131316042 | AE32: =+(('Base original'!AN33-'Base original'!AP33)/('Base original'!AN21-'Base original'!AP21)*100-100)*(('Base original'!AN21-'Base original'!AP21)/'Base original'!AR21) -> 0.1467700701 | AF32: =+(('Base original'!AO33-'Base original'!AQ33)/('Base original'!AO21-'Base original'!AQ21)*100-100)*(('Base original'!AO21-'Base original'!AQ21)/'Base original'!AR21) -> 0.1584594997 | AG32: =+('Base original'!AR33/'Base original'!AR21*100-100)*'Base original'!AR21/'Base original'!$AR21 -> 21.54322495 | AH32: =+('Base original'!AR33/'Base original'!AR21*100-100)*'Base original'!AR21/'Base original'!$BC21 -> 12.94264997 | AI32: =+('Base original'!AS33/'Base original'!AS21*100-100)*'Base original'!AS21/'Base original'!$BC21 -> 0.7583641361 | AJ32: =+('Base original'!AT33/'Base original'!AT21*100-100)*'Base original'!AT21/'Base original'!$BC21 -> -1.18045115 | AK32: =+('Base original'!AU33/'Base original'!AU21*100-100)*'Base original'!AU21/'Base original'!$BC21 -> 0.3802671247 | AL32: =+('Base original'!AV33/'Base original'!AV21*100-100)*'Base original'!AV21/'Base original'!$BC21 -> -0.4248297961 | AM32: =+('Base original'!AW33/'Base original'!AW21*100-100)*'Base original'!AW21/'Base original'!$BC21 -> 0.00893664665 | AN32: =+('Base original'!AX33/'Base original'!AX21*100-100)*'Base original'!AX21/'Base original'!$BC21 -> 1.755531144 | AO32: =+('Base original'!AY33/'Base original'!AY21*100-100)*'Base original'!AY21/'Base original'!$BC21 -> 1.109289522 | AP32: =+('Base original'!AZ33/'Base original'!AZ21*100-100)*'Base original'!AZ21/'Base original'!$BC21 -> 0.1090481875 | AQ32: =+('Base original'!BA33/'Base original'!BA21*100-100)*'Base original'!BA21/'Base original'!$BC21 -> 0.6880464409 | AR32: =+('Base original'!BB33/'Base original'!BB21*100-100)*'Base original'!BB21/'Base original'!$BC21 -> 0.06611310093 | AS32: =+(('Base original'!AY33-'Base original'!BA33)/('Base original'!AY21-'Base original'!BA21)*100-100)*('Base original'!AY21-'Base original'!BA21)/'Base original'!$BC21 -> 0.4212430812 | AT32: =+(('Base original'!AZ33-'Base original'!BB33)/('Base original'!AZ21-'Base original'!BB21)*100-100)*('Base original'!AZ21-'Base original'!BB21)/'Base original'!$BC21 -> 0.04293508652 | AU32: =+('Base original'!BC33/'Base original'!BC21*100-100)*'Base original'!BC21/'Base original'!$BC21 -> 14.70464624
A33: 2008-03-01 | B33: =+'Base original'!B34/'Base original'!B22*100-100 -> 20.35201516 | C33: =+'Base original'!C34/'Base original'!C22*100-100 -> 14.2047277 | D33: =+'Base original'!D34/'Base original'!D22*100-100 -> 25.07241103 | E33: =+'Base original'!E34/'Base original'!E22*100-100 -> 3.541958352 | F33: =+'Base original'!F34/'Base original'!F22*100-100 -> 18.9839677 | G33: =+'Base original'!G34 -> 29.8751708 | L33: =+'Base original'!Q34 -> 10.60816322 | P33: =+'Base original'!Y34 -> 3.909952199 | S33: =+'Base original'!AE34 -> 4.82 | T33: =+('Base original'!AH34/'Base original'!AH22*100-100)*'Base original'!AH22/'Base original'!$AK22 -> 2.980118499 | U33: =+('Base original'!AI34/'Base original'!AI22*100-100)*'Base original'!AI22/'Base original'!$AK22 -> 7.41003447 | V33: =+('Base original'!AJ34/'Base original'!AJ22*100-100)*'Base original'!AJ22/'Base original'!$AK22 -> 4.643332085 | W33: =+('Base original'!AK34/'Base original'!AK22*100-100)*'Base original'!AK22/'Base original'!$AK22 -> 15.03348505 | X33: =+('Base original'!AK34/'Base original'!AK22*100-100)*'Base original'!AK22/'Base original'!$AR22 -> 3.267071023 | Y33: =+('Base original'!AL34/'Base original'!AL22*100-100)*'Base original'!AL22/'Base original'!$AR22 -> 17.23661033 | Z33: =+('Base original'!AM34/'Base original'!AM22*100-100)*'Base original'!AM22/'Base original'!$AR22 -> 0.255169935 | AA33: =+('Base original'!AN34/'Base original'!AN22*100-100)*'Base original'!AN22/'Base original'!$AR22 -> 2.932932291 | AB33: =+('Base original'!AO34/'Base original'!AO22*100-100)*'Base original'!AO22/'Base original'!$AR22 -> 0.1847389744 | AC33: =+('Base original'!AP34/'Base original'!AP22*100-100)*'Base original'!AP22/'Base original'!$AR22 -> 2.659424569 | AD33: =+('Base original'!AQ34/'Base original'!AQ22*100-100)*'Base original'!AQ22/'Base original'!$AR22 -> 0.007176731759 | AE33: =+(('Base original'!AN34-'Base original'!AP34)/('Base original'!AN22-'Base original'!AP22)*100-100)*(('Base original'!AN22-'Base original'!AP22)/'Base original'!AR22) -> 0.2735077221 | AF33: =+(('Base original'!AO34-'Base original'!AQ34)/('Base original'!AO22-'Base original'!AQ22)*100-100)*(('Base original'!AO22-'Base original'!AQ22)/'Base original'!AR22) -> 0.1775622426 | AG33: =+('Base original'!AR34/'Base original'!AR22*100-100)*'Base original'!AR22/'Base original'!$AR22 -> 21.20992125 | AH33: =+('Base original'!AR34/'Base original'!AR22*100-100)*'Base original'!AR22/'Base original'!$BC22 -> 12.78952702 | AI33: =+('Base original'!AS34/'Base original'!AS22*100-100)*'Base original'!AS22/'Base original'!$BC22 -> 0.6190038664 | AJ33: =+('Base original'!AT34/'Base original'!AT22*100-100)*'Base original'!AT22/'Base original'!$BC22 -> -1.142353945 | AK33: =+('Base original'!AU34/'Base original'!AU22*100-100)*'Base original'!AU22/'Base original'!$BC22 -> 0.4486625261 | AL33: =+('Base original'!AV34/'Base original'!AV22*100-100)*'Base original'!AV22/'Base original'!$BC22 -> -0.4799701154 | AM33: =+('Base original'!AW34/'Base original'!AW22*100-100)*'Base original'!AW22/'Base original'!$BC22 -> -0.005819809259 | AN33: =+('Base original'!AX34/'Base original'!AX22*100-100)*'Base original'!AX22/'Base original'!$BC22 -> 1.770535203 | AO33: =+('Base original'!AY34/'Base original'!AY22*100-100)*'Base original'!AY22/'Base original'!$BC22 -> 1.137205652 | AP33: =+('Base original'!AZ34/'Base original'!AZ22*100-100)*'Base original'!AZ22/'Base original'!$BC22 -> 0.09499719422 | AQ33: =+('Base original'!BA34/'Base original'!BA22*100-100)*'Base original'!BA22/'Base original'!$BC22 -> 0.9155306094 | AR33: =+('Base original'!BB34/'Base original'!BB22*100-100)*'Base original'!BB22/'Base original'!$BC22 -> 0.07094198261 | AS33: =+(('Base original'!AY34-'Base original'!BA34)/('Base original'!AY22-'Base original'!BA22)*100-100)*('Base original'!AY22-'Base original'!BA22)/'Base original'!$BC22 -> 0.2216750424 | AT33: =+(('Base original'!AZ34-'Base original'!BB34)/('Base original'!AZ22-'Base original'!BB22)*100-100)*('Base original'!AZ22-'Base original'!BB22)/'Base original'!$BC22 -> 0.02405521161 | AU33: =+('Base original'!BC34/'Base original'!BC22*100-100)*'Base original'!BC22/'Base original'!$BC22 -> 14.245315
A34: 2008-04-01 | B34: =+'Base original'!B35/'Base original'!B23*100-100 -> 21.2278013 | C34: =+'Base original'!C35/'Base original'!C23*100-100 -> 14.16514624 | D34: =+'Base original'!D35/'Base original'!D23*100-100 -> 25.82327366 | E34: =+'Base original'!E35/'Base original'!E23*100-100 -> 13.14160843 | F34: =+'Base original'!F35/'Base original'!F23*100-100 -> 20.50549586 | G34: =+'Base original'!G35 -> 30.12632972 | L34: =+'Base original'!Q35 -> 10.5928774 | P34: =+'Base original'!Y35 -> 4.016354928 | S34: =+'Base original'!AE35 -> 4.76 | T34: =+('Base original'!AH35/'Base original'!AH23*100-100)*'Base original'!AH23/'Base original'!$AK23 -> 2.678962475 | U34: =+('Base original'!AI35/'Base original'!AI23*100-100)*'Base original'!AI23/'Base original'!$AK23 -> 6.537000807 | V34: =+('Base original'!AJ35/'Base original'!AJ23*100-100)*'Base original'!AJ23/'Base original'!$AK23 -> 3.070358892 | W34: =+('Base original'!AK35/'Base original'!AK23*100-100)*'Base original'!AK23/'Base original'!$AK23 -> 12.28632217 | X34: =+('Base original'!AK35/'Base original'!AK23*100-100)*'Base original'!AK23/'Base original'!$AR23 -> 2.687928919 | Y34: =+('Base original'!AL35/'Base original'!AL23*100-100)*'Base original'!AL23/'Base original'!$AR23 -> 17.46719338 | Z34: =+('Base original'!AM35/'Base original'!AM23*100-100)*'Base original'!AM23/'Base original'!$AR23 -> 0.2804465501 | AA34: =+('Base original'!AN35/'Base original'!AN23*100-100)*'Base original'!AN23/'Base original'!$AR23 -> 1.993475946 | AB34: =+('Base original'!AO35/'Base original'!AO23*100-100)*'Base original'!AO23/'Base original'!$AR23 -> 0.2030878546 | AC34: =+('Base original'!AP35/'Base original'!AP23*100-100)*'Base original'!AP23/'Base original'!$AR23 -> 2.078616717 | AD34: =+('Base original'!AQ35/'Base original'!AQ23*100-100)*'Base original'!AQ23/'Base original'!$AR23 -> 0.004426055508 | AE34: =+(('Base original'!AN35-'Base original'!AP35)/('Base original'!AN23-'Base original'!AP23)*100-100)*(('Base original'!AN23-'Base original'!AP23)/'Base original'!AR23) -> -0.08514077106 | AF34: =+(('Base original'!AO35-'Base original'!AQ35)/('Base original'!AO23-'Base original'!AQ23)*100-100)*(('Base original'!AO23-'Base original'!AQ23)/'Base original'!AR23) -> 0.1986617991 | AG34: =+('Base original'!AR35/'Base original'!AR23*100-100)*'Base original'!AR23/'Base original'!$AR23 -> 20.54908988 | AH34: =+('Base original'!AR35/'Base original'!AR23*100-100)*'Base original'!AR23/'Base original'!$BC23 -> 12.51785556 | AI34: =+('Base original'!AS35/'Base original'!AS23*100-100)*'Base original'!AS23/'Base original'!$BC23 -> 0.922371509 | AJ34: =+('Base original'!AT35/'Base original'!AT23*100-100)*'Base original'!AT23/'Base original'!$BC23 -> -1.048160216 | AK34: =+('Base original'!AU35/'Base original'!AU23*100-100)*'Base original'!AU23/'Base original'!$BC23 -> 0.6135514184 | AL34: =+('Base original'!AV35/'Base original'!AV23*100-100)*'Base original'!AV23/'Base original'!$BC23 -> 0.04961328232 | AM34: =+('Base original'!AW35/'Base original'!AW23*100-100)*'Base original'!AW23/'Base original'!$BC23 -> 0.004340606664 | AN34: =+('Base original'!AX35/'Base original'!AX23*100-100)*'Base original'!AX23/'Base original'!$BC23 -> 2.074380369 | AO34: =+('Base original'!AY35/'Base original'!AY23*100-100)*'Base original'!AY23/'Base original'!$BC23 -> 0.995776649 | AP34: =+('Base original'!AZ35/'Base original'!AZ23*100-100)*'Base original'!AZ23/'Base original'!$BC23 -> 0.05673898814 | AQ34: =+('Base original'!BA35/'Base original'!BA23*100-100)*'Base original'!BA23/'Base original'!$BC23 -> 0.831796529 | AR34: =+('Base original'!BB35/'Base original'!BB23*100-100)*'Base original'!BB23/'Base original'!$BC23 -> 0.05816116643 | AS34: =+(('Base original'!AY35-'Base original'!BA35)/('Base original'!AY23-'Base original'!BA23)*100-100)*('Base original'!AY23-'Base original'!BA23)/'Base original'!$BC23 -> 0.16398012 | AT34: =+(('Base original'!AZ35-'Base original'!BB35)/('Base original'!AZ23-'Base original'!BB23)*100-100)*('Base original'!AZ23-'Base original'!BB23)/'Base original'!$BC23 -> -0.001422178293 | AU34: =+('Base original'!BC35/'Base original'!BC23*100-100)*'Base original'!BC23/'Base original'!$BC23 -> 15.29651047
A35: 2008-05-01 | B35: =+'Base original'!B36/'Base original'!B24*100-100 -> 21.44424436 | C35: =+'Base original'!C36/'Base original'!C24*100-100 -> 13.47332675 | D35: =+'Base original'!D36/'Base original'!D24*100-100 -> 25.07038997 | E35: =+'Base original'!E36/'Base original'!E24*100-100 -> 19.10242591 | F35: =+'Base original'!F36/'Base original'!F24*100-100 -> 20.94932519 | G35: =+'Base original'!G36 -> 30.9324869 | L35: =+'Base original'!Q36 -> 10.67956961 | P35: =+'Base original'!Y36 -> 4.116003773 | S35: =+'Base original'!AE36 -> 4.63 | T35: =+('Base original'!AH36/'Base original'!AH24*100-100)*'Base original'!AH24/'Base original'!$AK24 -> 2.998157785 | U35: =+('Base original'!AI36/'Base original'!AI24*100-100)*'Base original'!AI24/'Base original'!$AK24 -> 7.416153804 | V35: =+('Base original'!AJ36/'Base original'!AJ24*100-100)*'Base original'!AJ24/'Base original'!$AK24 -> 4.698149718 | W35: =+('Base original'!AK36/'Base original'!AK24*100-100)*'Base original'!AK24/'Base original'!$AK24 -> 15.11246131 | X35: =+('Base original'!AK36/'Base original'!AK24*100-100)*'Base original'!AK24/'Base original'!$AR24 -> 3.275664847 | Y35: =+('Base original'!AL36/'Base original'!AL24*100-100)*'Base original'!AL24/'Base original'!$AR24 -> 16.62977249 | Z35: =+('Base original'!AM36/'Base original'!AM24*100-100)*'Base original'!AM24/'Base original'!$AR24 -> 0.3227015292 | AA35: =+('Base original'!AN36/'Base original'!AN24*100-100)*'Base original'!AN24/'Base original'!$AR24 -> 4.334768775 | AB35: =+('Base original'!AO36/'Base original'!AO24*100-100)*'Base original'!AO24/'Base original'!$AR24 -> 0.204491015 | AC35: =+('Base original'!AP36/'Base original'!AP24*100-100)*'Base original'!AP24/'Base original'!$AR24 -> 4.392305078 | AD35: =+('Base original'!AQ36/'Base original'!AQ24*100-100)*'Base original'!AQ24/'Base original'!$AR24 -> 0.004503257682 | AE35: =+(('Base original'!AN36-'Base original'!AP36)/('Base original'!AN24-'Base original'!AP24)*100-100)*(('Base original'!AN24-'Base original'!AP24)/'Base original'!AR24) -> -0.05753630293 | AF35: =+(('Base original'!AO36-'Base original'!AQ36)/('Base original'!AO24-'Base original'!AQ24)*100-100)*(('Base original'!AO24-'Base original'!AQ24)/'Base original'!AR24) -> 0.1999877574 | AG35: =+('Base original'!AR36/'Base original'!AR24*100-100)*'Base original'!AR24/'Base original'!$AR24 -> 20.37059032 | AH35: =+('Base original'!AR36/'Base original'!AR24*100-100)*'Base original'!AR24/'Base original'!$BC24 -> 12.38134958 | AI35: =+('Base original'!AS36/'Base original'!AS24*100-100)*'Base original'!AS24/'Base original'!$BC24 -> 1.331353194 | AJ35: =+('Base original'!AT36/'Base original'!AT24*100-100)*'Base original'!AT24/'Base original'!$BC24 -> -0.5571897655 | AK35: =+('Base original'!AU36/'Base original'!AU24*100-100)*'Base original'!AU24/'Base original'!$BC24 -> 0.7121418356 | AL35: =+('Base original'!AV36/'Base original'!AV24*100-100)*'Base original'!AV24/'Base original'!$BC24 -> -0.2938600566 | AM35: =+('Base original'!AW36/'Base original'!AW24*100-100)*'Base original'!AW24/'Base original'!$BC24 -> 0.03469423875 | AN35: =+('Base original'!AX36/'Base original'!AX24*100-100)*'Base original'!AX24/'Base original'!$BC24 -> 2.383201565 | AO35: =+('Base original'!AY36/'Base original'!AY24*100-100)*'Base original'!AY24/'Base original'!$BC24 -> 0.9003031203 | AP35: =+('Base original'!AZ36/'Base original'!AZ24*100-100)*'Base original'!AZ24/'Base original'!$BC24 -> 0.04289098924 | AQ35: =+('Base original'!BA36/'Base original'!BA24*100-100)*'Base original'!BA24/'Base original'!$BC24 -> 0.8870689353 | AR35: =+('Base original'!BB36/'Base original'!BB24*100-100)*'Base original'!BB24/'Base original'!$BC24 -> 0.04388100528 | AS35: =+(('Base original'!AY36-'Base original'!BA36)/('Base original'!AY24-'Base original'!BA24)*100-100)*('Base original'!AY24-'Base original'!BA24)/'Base original'!$BC24 -> 0.01323418507 | AT35: =+(('Base original'!AZ36-'Base original'!BB36)/('Base original'!AZ24-'Base original'!BB24)*100-100)*('Base original'!AZ24-'Base original'!BB24)/'Base original'!$BC24 -> -0.0009900160449 | AU35: =+('Base original'!BC36/'Base original'!BC24*100-100)*'Base original'!BC24/'Base original'!$BC24 -> 16.00393476
A36: 2008-06-01 | B36: =+'Base original'!B37/'Base original'!B25*100-100 -> 22.02472461 | C36: =+'Base original'!C37/'Base original'!C25*100-100 -> 13.12629055 | D36: =+'Base original'!D37/'Base original'!D25*100-100 -> 24.87876397 | E36: =+'Base original'!E37/'Base original'!E25*100-100 -> 32.75970701 | F36: =+'Base original'!F37/'Base original'!F25*100-100 -> 22.48867907 | G36: =+'Base original'!G37 -> 30.74424815 | L36: =+'Base original'!Q37 -> 10.87630127 | P36: =+'Base original'!Y37 -> 4.238679367 | S36: =+'Base original'!AE37 -> 4.72 | T36: =+('Base original'!AH37/'Base original'!AH25*100-100)*'Base original'!AH25/'Base original'!$AK25 -> 2.944090868 | U36: =+('Base original'!AI37/'Base original'!AI25*100-100)*'Base original'!AI25/'Base original'!$AK25 -> 10.41594824 | V36: =+('Base original'!AJ37/'Base original'!AJ25*100-100)*'Base original'!AJ25/'Base original'!$AK25 -> 2.024787771 | W36: =+('Base original'!AK37/'Base original'!AK25*100-100)*'Base original'!AK25/'Base original'!$AK25 -> 15.38482688 | X36: =+('Base original'!AK37/'Base original'!AK25*100-100)*'Base original'!AK25/'Base original'!$AR25 -> 3.293267726 | Y36: =+('Base original'!AL37/'Base original'!AL25*100-100)*'Base original'!AL25/'Base original'!$AR25 -> 14.82662837 | Z36: =+('Base original'!AM37/'Base original'!AM25*100-100)*'Base original'!AM25/'Base original'!$AR25 -> 0.3560677553 | AA36: =+('Base original'!AN37/'Base original'!AN25*100-100)*'Base original'!AN25/'Base original'!$AR25 -> 2.935716846 | AB36: =+('Base original'!AO37/'Base original'!AO25*100-100)*'Base original'!AO25/'Base original'!$AR25 -> 0.212510653 | AC36: =+('Base original'!AP37/'Base original'!AP25*100-100)*'Base original'!AP25/'Base original'!$AR25 -> 2.986566852 | AD36: =+('Base original'!AQ37/'Base original'!AQ25*100-100)*'Base original'!AQ25/'Base original'!$AR25 -> 0.01306562672 | AE36: =+(('Base original'!AN37-'Base original'!AP37)/('Base original'!AN25-'Base original'!AP25)*100-100)*(('Base original'!AN25-'Base original'!AP25)/'Base original'!AR25) -> -0.05085000671 | AF36: =+(('Base original'!AO37-'Base original'!AQ37)/('Base original'!AO25-'Base original'!AQ25)*100-100)*(('Base original'!AO25-'Base original'!AQ25)/'Base original'!AR25) -> 0.1994450263 | AG36: =+('Base original'!AR37/'Base original'!AR25*100-100)*'Base original'!AR25/'Base original'!$AR25 -> 18.62455887 | AH36: =+('Base original'!AR37/'Base original'!AR25*100-100)*'Base original'!AR25/'Base original'!$BC25 -> 11.36176453 | AI36: =+('Base original'!AS37/'Base original'!AS25*100-100)*'Base original'!AS25/'Base original'!$BC25 -> 2.065012648 | AJ36: =+('Base original'!AT37/'Base original'!AT25*100-100)*'Base original'!AT25/'Base original'!$BC25 -> 0.2313192158 | AK36: =+('Base original'!AU37/'Base original'!AU25*100-100)*'Base original'!AU25/'Base original'!$BC25 -> 0.714092343 | AL36: =+('Base original'!AV37/'Base original'!AV25*100-100)*'Base original'!AV25/'Base original'!$BC25 -> -0.1873733041 | AM36: =+('Base original'!AW37/'Base original'!AW25*100-100)*'Base original'!AW25/'Base original'!$BC25 -> 0.04492248756 | AN36: =+('Base original'!AX37/'Base original'!AX25*100-100)*'Base original'!AX25/'Base original'!$BC25 -> 2.487510942 | AO36: =+('Base original'!AY37/'Base original'!AY25*100-100)*'Base original'!AY25/'Base original'!$BC25 -> 0.6507872519 | AP36: =+('Base original'!AZ37/'Base original'!AZ25*100-100)*'Base original'!AZ25/'Base original'!$BC25 -> 0.01031149171 | AQ36: =+('Base original'!BA37/'Base original'!BA25*100-100)*'Base original'!BA25/'Base original'!$BC25 -> 0.9308634515 | AR36: =+('Base original'!BB37/'Base original'!BB25*100-100)*'Base original'!BB25/'Base original'!$BC25 -> 0.03090575231 | AS36: =+(('Base original'!AY37-'Base original'!BA37)/('Base original'!AY25-'Base original'!BA25)*100-100)*('Base original'!AY25-'Base original'!BA25)/'Base original'!$BC25 -> -0.2800761996 | AT36: =+(('Base original'!AZ37-'Base original'!BB37)/('Base original'!AZ25-'Base original'!BB25)*100-100)*('Base original'!AZ25-'Base original'!BB25)/'Base original'!$BC25 -> -0.0205942606 | AU36: =+('Base original'!BC37/'Base original'!BC25*100-100)*'Base original'!BC25/'Base original'!$BC25 -> 16.41657841
A37: 2008-07-01 | B37: =+'Base original'!B38/'Base original'!B26*100-100 -> 21.58154513 | C37: =+'Base original'!C38/'Base original'!C26*100-100 -> 12.294786 | D37: =+'Base original'!D38/'Base original'!D26*100-100 -> 25.2057987 | E37: =+'Base original'!E38/'Base original'!E26*100-100 -> 27.19567264 | F37: =+'Base original'!F38/'Base original'!F26*100-100 -> 21.6759579 | G37: =+'Base original'!G38 -> 31.24031374 | L37: =+'Base original'!Q38 -> 11.42875372 | P37: =+'Base original'!Y38 -> 4.404424868 | S37: =+'Base original'!AE38 -> 4.87 | T37: =+('Base original'!AH38/'Base original'!AH26*100-100)*'Base original'!AH26/'Base original'!$AK26 -> 2.878181068 | U37: =+('Base original'!AI38/'Base original'!AI26*100-100)*'Base original'!AI26/'Base original'!$AK26 -> 8.510920898 | V37: =+('Base original'!AJ38/'Base original'!AJ26*100-100)*'Base original'!AJ26/'Base original'!$AK26 -> -2.538941319 | W37: =+('Base original'!AK38/'Base original'!AK26*100-100)*'Base original'!AK26/'Base original'!$AK26 -> 8.850160646 | X37: =+('Base original'!AK38/'Base original'!AK26*100-100)*'Base original'!AK26/'Base original'!$AR26 -> 1.877328974 | Y37: =+('Base original'!AL38/'Base original'!AL26*100-100)*'Base original'!AL26/'Base original'!$AR26 -> 14.08912062 | Z37: =+('Base original'!AM38/'Base original'!AM26*100-100)*'Base original'!AM26/'Base original'!$AR26 -> 0.4114989271 | AA37: =+('Base original'!AN38/'Base original'!AN26*100-100)*'Base original'!AN26/'Base original'!$AR26 -> 2.32836967 | AB37: =+('Base original'!AO38/'Base original'!AO26*100-100)*'Base original'!AO26/'Base original'!$AR26 -> 0.2233506555 | AC37: =+('Base original'!AP38/'Base original'!AP26*100-100)*'Base original'!AP26/'Base original'!$AR26 -> 2.59274723 | AD37: =+('Base original'!AQ38/'Base original'!AQ26*100-100)*'Base original'!AQ26/'Base original'!$AR26 -> 0.01457290511 | AE37: =+(('Base original'!AN38-'Base original'!AP38)/('Base original'!AN26-'Base original'!AP26)*100-100)*(('Base original'!AN26-'Base original'!AP26)/'Base original'!AR26) -> -0.2643775603 | AF37: =+(('Base original'!AO38-'Base original'!AQ38)/('Base original'!AO26-'Base original'!AQ26)*100-100)*(('Base original'!AO26-'Base original'!AQ26)/'Base original'!AR26) -> 0.2087777504 | AG37: =+('Base original'!AR38/'Base original'!AR26*100-100)*'Base original'!AR26/'Base original'!$AR26 -> 16.32234872 | AH37: =+('Base original'!AR38/'Base original'!AR26*100-100)*'Base original'!AR26/'Base original'!$BC26 -> 9.999390489 | AI37: =+('Base original'!AS38/'Base original'!AS26*100-100)*'Base original'!AS26/'Base original'!$BC26 -> 2.709299214 | AJ37: =+('Base original'!AT38/'Base original'!AT26*100-100)*'Base original'!AT26/'Base original'!$BC26 -> 1.113510732 | AK37: =+('Base original'!AU38/'Base original'!AU26*100-100)*'Base original'!AU26/'Base original'!$BC26 -> 0.7462972744 | AL37: =+('Base original'!AV38/'Base original'!AV26*100-100)*'Base original'!AV26/'Base original'!$BC26 -> -0.1334029301 | AM37: =+('Base original'!AW38/'Base original'!AW26*100-100)*'Base original'!AW26/'Base original'!$BC26 -> 0.04351517147 | AN37: =+('Base original'!AX38/'Base original'!AX26*100-100)*'Base original'!AX26/'Base original'!$BC26 -> 2.513075787 | AO37: =+('Base original'!AY38/'Base original'!AY26*100-100)*'Base original'!AY26/'Base original'!$BC26 -> 0.1557646958 | AP37: =+('Base original'!AZ38/'Base original'!AZ26*100-100)*'Base original'!AZ26/'Base original'!$BC26 -> -0.04600297121 | AQ37: =+('Base original'!BA38/'Base original'!BA26*100-100)*'Base original'!BA26/'Base original'!$BC26 -> 0.9968684643 | AR37: =+('Base original'!BB38/'Base original'!BB26*100-100)*'Base original'!BB26/'Base original'!$BC26 -> 0.04108423573 | AS37: =+(('Base original'!AY38-'Base original'!BA38)/('Base original'!AY26-'Base original'!BA26)*100-100)*('Base original'!AY26-'Base original'!BA26)/'Base original'!$BC26 -> -0.8411037685 | AT37: =+(('Base original'!AZ38-'Base original'!BB38)/('Base original'!AZ26-'Base original'!BB26)*100-100)*('Base original'!AZ26-'Base original'!BB26)/'Base original'!$BC26 -> -0.08708720694 | AU37: =+('Base original'!BC38/'Base original'!BC26*100-100)*'Base original'!BC26/'Base original'!$BC26 -> 16.06349476
A38: 2008-08-01 | B38: =+'Base original'!B39/'Base original'!B27*100-100 -> 20.73425617 | C38: =+'Base original'!C39/'Base original'!C27*100-100 -> 11.16750021 | D38: =+'Base original'!D39/'Base original'!D27*100-100 -> 24.76098549 | E38: =+'Base original'!E39/'Base original'!E27*100-100 -> 25.12779867 | F38: =+'Base original'!F39/'Base original'!F27*100-100 -> 20.77160171 | G38: =+'Base original'!G39 -> 32.01457109 | L38: =+'Base original'!Q39 -> 11.87277186 | P38: =+'Base original'!Y39 -> 4.682843065 | S38: =+'Base original'!AE39 -> 4.82 | T38: =+('Base original'!AH39/'Base original'!AH27*100-100)*'Base original'!AH27/'Base original'!$AK27 -> 2.873446656 | U38: =+('Base original'!AI39/'Base original'!AI27*100-100)*'Base original'!AI27/'Base original'!$AK27 -> 5.989285695 | V38: =+('Base original'!AJ39/'Base original'!AJ27*100-100)*'Base original'!AJ27/'Base original'!$AK27 -> 1.457447007 | W38: =+('Base original'!AK39/'Base original'!AK27*100-100)*'Base original'!AK27/'Base original'!$AK27 -> 10.32017936 | X38: =+('Base original'!AK39/'Base original'!AK27*100-100)*'Base original'!AK27/'Base original'!$AR27 -> 2.179612504 | Y38: =+('Base original'!AL39/'Base original'!AL27*100-100)*'Base original'!AL27/'Base original'!$AR27 -> 14.34269424 | Z38: =+('Base original'!AM39/'Base original'!AM27*100-100)*'Base original'!AM27/'Base original'!$AR27 -> 0.4547931036 | AA38: =+('Base original'!AN39/'Base original'!AN27*100-100)*'Base original'!AN27/'Base original'!$AR27 -> 2.104523713 | AB38: =+('Base original'!AO39/'Base original'!AO27*100-100)*'Base original'!AO27/'Base original'!$AR27 -> 0.2328609227 | AC38: =+('Base original'!AP39/'Base original'!AP27*100-100)*'Base original'!AP27/'Base original'!$AR27 -> 2.112095108 | AD38: =+('Base original'!AQ39/'Base original'!AQ27*100-100)*'Base original'!AQ27/'Base original'!$AR27 -> 0.0103961971 | AE38: =+(('Base original'!AN39-'Base original'!AP39)/('Base original'!AN27-'Base original'!AP27)*100-100)*(('Base original'!AN27-'Base original'!AP27)/'Base original'!AR27) -> -0.007571395218 | AF38: =+(('Base original'!AO39-'Base original'!AQ39)/('Base original'!AO27-'Base original'!AQ27)*100-100)*(('Base original'!AO27-'Base original'!AQ27)/'Base original'!AR27) -> 0.2224647255 | AG38: =+('Base original'!AR39/'Base original'!AR27*100-100)*'Base original'!AR27/'Base original'!$AR27 -> 17.19199318 | AH38: =+('Base original'!AR39/'Base original'!AR27*100-100)*'Base original'!AR27/'Base original'!$BC27 -> 10.49372111 | AI38: =+('Base original'!AS39/'Base original'!AS27*100-100)*'Base original'!AS27/'Base original'!$BC27 -> 2.947261954 | AJ38: =+('Base original'!AT39/'Base original'!AT27*100-100)*'Base original'!AT27/'Base original'!$BC27 -> 2.139100026 | AK38: =+('Base original'!AU39/'Base original'!AU27*100-100)*'Base original'!AU27/'Base original'!$BC27 -> 0.9431170415 | AL38: =+('Base original'!AV39/'Base original'!AV27*100-100)*'Base original'!AV27/'Base original'!$BC27 -> -0.1965463151 | AM38: =+('Base original'!AW39/'Base original'!AW27*100-100)*'Base original'!AW27/'Base original'!$BC27 -> 0.05451061603 | AN38: =+('Base original'!AX39/'Base original'!AX27*100-100)*'Base original'!AX27/'Base original'!$BC27 -> 2.774063199 | AO38: =+('Base original'!AY39/'Base original'!AY27*100-100)*'Base original'!AY27/'Base original'!$BC27 -> -0.1176140385 | AP38: =+('Base original'!AZ39/'Base original'!AZ27*100-100)*'Base original'!AZ27/'Base original'!$BC27 -> -0.07442387971 | AQ38: =+('Base original'!BA39/'Base original'!BA27*100-100)*'Base original'!BA27/'Base original'!$BC27 -> 1.132596904 | AR38: =+('Base original'!BB39/'Base original'!BB27*100-100)*'Base original'!BB27/'Base original'!$BC27 -> 0.0465396574 | AS38: =+(('Base original'!AY39-'Base original'!BA39)/('Base original'!AY27-'Base original'!BA27)*100-100)*('Base original'!AY27-'Base original'!BA27)/'Base original'!$BC27 -> -1.250210942 | AT38: =+(('Base original'!AZ39-'Base original'!BB39)/('Base original'!AZ27-'Base original'!BB27)*100-100)*('Base original'!AZ27-'Base original'!BB27)/'Base original'!$BC27 -> -0.1209635371 | AU38: =+('Base original'!BC39/'Base original'!BC27*100-100)*'Base original'!BC27/'Base original'!$BC27 -> 17.78405315
A39: 2008-09-01 | B39: =+'Base original'!B40/'Base original'!B28*100-100 -> 20.23680607 | C39: =+'Base original'!C40/'Base original'!C28*100-100 -> 10.44001469 | D39: =+'Base original'!D40/'Base original'!D28*100-100 -> 23.74625345 | E39: =+'Base original'!E40/'Base original'!E28*100-100 -> 36.8691849 | F39: =+'Base original'!F40/'Base original'!F28*100-100 -> 21.22982782 | G39: =+'Base original'!G40 -> 34.02436491 | L39: =+'Base original'!Q40 -> 12.80472031 | P39: =+'Base original'!Y40 -> 5.126385627 | S39: =+'Base original'!AE40 -> 4.8 | T39: =+('Base original'!AH40/'Base original'!AH28*100-100)*'Base original'!AH28/'Base original'!$AK28 -> 2.717544369 | U39: =+('Base original'!AI40/'Base original'!AI28*100-100)*'Base original'!AI28/'Base original'!$AK28 -> 7.980095608 | V39: =+('Base original'!AJ40/'Base original'!AJ28*100-100)*'Base original'!AJ28/'Base original'!$AK28 -> -2.364652049 | W39: =+('Base original'!AK40/'Base original'!AK28*100-100)*'Base original'!AK28/'Base original'!$AK28 -> 8.332987928 | X39: =+('Base original'!AK40/'Base original'!AK28*100-100)*'Base original'!AK28/'Base original'!$AR28 -> 1.801780747 | Y39: =+('Base original'!AL40/'Base original'!AL28*100-100)*'Base original'!AL28/'Base original'!$AR28 -> 14.5908955 | Z39: =+('Base original'!AM40/'Base original'!AM28*100-100)*'Base original'!AM28/'Base original'!$AR28 -> 0.4725575432 | AA39: =+('Base original'!AN40/'Base original'!AN28*100-100)*'Base original'!AN28/'Base original'!$AR28 -> 1.076858541 | AB39: =+('Base original'!AO40/'Base original'!AO28*100-100)*'Base original'!AO28/'Base original'!$AR28 -> 0.2271327931 | AC39: =+('Base original'!AP40/'Base original'!AP28*100-100)*'Base original'!AP28/'Base original'!$AR28 -> 0.2996801654 | AD39: =+('Base original'!AQ40/'Base original'!AQ28*100-100)*'Base original'!AQ28/'Base original'!$AR28 -> 0.00645733659 | AE39: =+(('Base original'!AN40-'Base original'!AP40)/('Base original'!AN28-'Base original'!AP28)*100-100)*(('Base original'!AN28-'Base original'!AP28)/'Base original'!AR28) -> 0.7771783753 | AF39: =+(('Base original'!AO40-'Base original'!AQ40)/('Base original'!AO28-'Base original'!AQ28)*100-100)*(('Base original'!AO28-'Base original'!AQ28)/'Base original'!AR28) -> 0.2206754565 | AG39: =+('Base original'!AR40/'Base original'!AR28*100-100)*'Base original'!AR28/'Base original'!$AR28 -> 17.86308762 | AH39: =+('Base original'!AR40/'Base original'!AR28*100-100)*'Base original'!AR28/'Base original'!$BC28 -> 10.89867981 | AI39: =+('Base original'!AS40/'Base original'!AS28*100-100)*'Base original'!AS28/'Base original'!$BC28 -> 3.159092083 | AJ39: =+('Base original'!AT40/'Base original'!AT28*100-100)*'Base original'!AT28/'Base original'!$BC28 -> 3.197592462 | AK39: =+('Base original'!AU40/'Base original'!AU28*100-100)*'Base original'!AU28/'Base original'!$BC28 -> 1.106332081 | AL39: =+('Base original'!AV40/'Base original'!AV28*100-100)*'Base original'!AV28/'Base original'!$BC28 -> -0.3428160098 | AM39: =+('Base original'!AW40/'Base original'!AW28*100-100)*'Base original'!AW28/'Base original'!$BC28 -> 0.08422133128 | AN39: =+('Base original'!AX40/'Base original'!AX28*100-100)*'Base original'!AX28/'Base original'!$BC28 -> 3.031112673 | AO39: =+('Base original'!AY40/'Base original'!AY28*100-100)*'Base original'!AY28/'Base original'!$BC28 -> -0.6434021795 | AP39: =+('Base original'!AZ40/'Base original'!AZ28*100-100)*'Base original'!AZ28/'Base original'!$BC28 -> -0.1393640807 | AQ39: =+('Base original'!BA40/'Base original'!BA28*100-100)*'Base original'!BA28/'Base original'!$BC28 -> 0.7835093484 | AR39: =+('Base original'!BB40/'Base original'!BB28*100-100)*'Base original'!BB28/'Base original'!$BC28 -> 0.06441032061 | AS39: =+(('Base original'!AY40-'Base original'!BA40)/('Base original'!AY28-'Base original'!BA28)*100-100)*('Base original'!AY28-'Base original'!BA28)/'Base original'!$BC28 -> -1.426911528 | AT39: =+(('Base original'!AZ40-'Base original'!BB40)/('Base original'!AZ28-'Base original'!BB28)*100-100)*('Base original'!AZ28-'Base original'!BB28)/'Base original'!$BC28 -> -0.2037744013 | AU39: =+('Base original'!BC40/'Base original'!BC28*100-100)*'Base original'!BC28/'Base original'!$BC28 -> 19.5035285
A40: 2008-10-01 | B40: =+'Base original'!B41/'Base original'!B29*100-100 -> 22.17036803 | C40: =+'Base original'!C41/'Base original'!C29*100-100 -> 9.148232845 | D40: =+'Base original'!D41/'Base original'!D29*100-100 -> 23.13558143 | E40: =+'Base original'!E41/'Base original'!E29*100-100 -> 61.59700316 | F40: =+'Base original'!F41/'Base original'!F29*100-100 -> 24.14709582 | G40: =+'Base original'!G41 -> 35.7608978 | L40: =+'Base original'!Q41 -> 15.14850576 | P40: =+'Base original'!Y41 -> 8.027125743 | S40: =+'Base original'!AE41 -> 5.34 | T40: =+('Base original'!AH41/'Base original'!AH29*100-100)*'Base original'!AH29/'Base original'!$AK29 -> 3.122677712 | U40: =+('Base original'!AI41/'Base original'!AI29*100-100)*'Base original'!AI29/'Base original'!$AK29 -> 9.388448051 | V40: =+('Base original'!AJ41/'Base original'!AJ29*100-100)*'Base original'!AJ29/'Base original'!$AK29 -> 0.8246665426 | W40: =+('Base original'!AK41/'Base original'!AK29*100-100)*'Base original'!AK29/'Base original'!$AK29 -> 13.33579231 | X40: =+('Base original'!AK41/'Base original'!AK29*100-100)*'Base original'!AK29/'Base original'!$AR29 -> 2.78698778 | Y40: =+('Base original'!AL41/'Base original'!AL29*100-100)*'Base original'!AL29/'Base original'!$AR29 -> 15.80565786 | Z40: =+('Base original'!AM41/'Base original'!AM29*100-100)*'Base original'!AM29/'Base original'!$AR29 -> 0.4679807411 | AA40: =+('Base original'!AN41/'Base original'!AN29*100-100)*'Base original'!AN29/'Base original'!$AR29 -> 1.198590973 | AB40: =+('Base original'!AO41/'Base original'!AO29*100-100)*'Base original'!AO29/'Base original'!$AR29 -> 0.2082162988 | AC40: =+('Base original'!AP41/'Base original'!AP29*100-100)*'Base original'!AP29/'Base original'!$AR29 -> 0.1163983001 | AD40: =+('Base original'!AQ41/'Base original'!AQ29*100-100)*'Base original'!AQ29/'Base original'!$AR29 -> 0.002364802346 | AE40: =+(('Base original'!AN41-'Base original'!AP41)/('Base original'!AN29-'Base original'!AP29)*100-100)*(('Base original'!AN29-'Base original'!AP29)/'Base original'!AR29) -> 1.082192673 | AF40: =+(('Base original'!AO41-'Base original'!AQ41)/('Base original'!AO29-'Base original'!AQ29)*100-100)*(('Base original'!AO29-'Base original'!AQ29)/'Base original'!AR29) -> 0.2058514965 | AG40: =+('Base original'!AR41/'Base original'!AR29*100-100)*'Base original'!AR29/'Base original'!$AR29 -> 20.34867055 | AH40: =+('Base original'!AR41/'Base original'!AR29*100-100)*'Base original'!AR29/'Base original'!$BC29 -> 12.4072349 | AI40: =+('Base original'!AS41/'Base original'!AS29*100-100)*'Base original'!AS29/'Base original'!$BC29 -> 3.411857696 | AJ40: =+('Base original'!AT41/'Base original'!AT29*100-100)*'Base original'!AT29/'Base original'!$BC29 -> 3.113191209 | AK40: =+('Base original'!AU41/'Base original'!AU29*100-100)*'Base original'!AU29/'Base original'!$BC29 -> 1.321635946 | AL40: =+('Base original'!AV41/'Base original'!AV29*100-100)*'Base original'!AV29/'Base original'!$BC29 -> -0.293051413 | AM40: =+('Base original'!AW41/'Base original'!AW29*100-100)*'Base original'!AW29/'Base original'!$BC29 -> 0.09931055832 | AN40: =+('Base original'!AX41/'Base original'!AX29*100-100)*'Base original'!AX29/'Base original'!$BC29 -> 3.004452872 | AO40: =+('Base original'!AY41/'Base original'!AY29*100-100)*'Base original'!AY29/'Base original'!$BC29 -> -1.883892037 | AP40: =+('Base original'!AZ41/'Base original'!AZ29*100-100)*'Base original'!AZ29/'Base original'!$BC29 -> -0.2855785118 | AQ40: =+('Base original'!BA41/'Base original'!BA29*100-100)*'Base original'!BA29/'Base original'!$BC29 -> 0.2330325093 | AR40: =+('Base original'!BB41/'Base original'!BB29*100-100)*'Base original'!BB29/'Base original'!$BC29 -> 0.05282329013 | AS40: =+(('Base original'!AY41-'Base original'!BA41)/('Base original'!AY29-'Base original'!BA29)*100-100)*('Base original'!AY29-'Base original'!BA29)/'Base original'!$BC29 -> -2.116924547 | AT40: =+(('Base original'!AZ41-'Base original'!BB41)/('Base original'!AZ29-'Base original'!BB29)*100-100)*('Base original'!AZ29-'Base original'!BB29)/'Base original'!$BC29 -> -0.338401802 | AU40: =+('Base original'!BC41/'Base original'!BC29*100-100)*'Base original'!BC29/'Base original'!$BC29 -> 20.60930542
A41: 2008-11-01 | B41: =+'Base original'!B42/'Base original'!B30*100-100 -> 19.53722489 | C41: =+'Base original'!C42/'Base original'!C30*100-100 -> 8.077160323 | D41: =+'Base original'!D42/'Base original'!D30*100-100 -> 22.72275315 | E41: =+'Base original'!E42/'Base original'!E30*100-100 -> 51.40255611 | F41: =+'Base original'!F42/'Base original'!F30*100-100 -> 21.62517545 | G41: =+'Base original'!G42 -> 36.07184204 | L41: =+'Base original'!Q42 -> 15.12878623 | P41: =+'Base original'!Y42 -> 5.927597244 | S41: =+'Base original'!AE42 -> 5.69 | T41: =+('Base original'!AH42/'Base original'!AH30*100-100)*'Base original'!AH30/'Base original'!$AK30 -> 3.029090343 | U41: =+('Base original'!AI42/'Base original'!AI30*100-100)*'Base original'!AI30/'Base original'!$AK30 -> 7.287635063 | V41: =+('Base original'!AJ42/'Base original'!AJ30*100-100)*'Base original'!AJ30/'Base original'!$AK30 -> -2.87439985 | W41: =+('Base original'!AK42/'Base original'!AK30*100-100)*'Base original'!AK30/'Base original'!$AK30 -> 7.442325556 | X41: =+('Base original'!AK42/'Base original'!AK30*100-100)*'Base original'!AK30/'Base original'!$AR30 -> 1.566814514 | Y41: =+('Base original'!AL42/'Base original'!AL30*100-100)*'Base original'!AL30/'Base original'!$AR30 -> 15.89435622 | Z41: =+('Base original'!AM42/'Base original'!AM30*100-100)*'Base original'!AM30/'Base original'!$AR30 -> 0.4582735025 | AA41: =+('Base original'!AN42/'Base original'!AN30*100-100)*'Base original'!AN30/'Base original'!$AR30 -> -0.2231424379 | AB41: =+('Base original'!AO42/'Base original'!AO30*100-100)*'Base original'!AO30/'Base original'!$AR30 -> 0.2210746748 | AC41: =+('Base original'!AP42/'Base original'!AP30*100-100)*'Base original'!AP30/'Base original'!$AR30 -> -1.078668433 | AD41: =+('Base original'!AQ42/'Base original'!AQ30*100-100)*'Base original'!AQ30/'Base original'!$AR30 -> 0.005851329701 | AE41: =+(('Base original'!AN42-'Base original'!AP42)/('Base original'!AN30-'Base original'!AP30)*100-100)*(('Base original'!AN30-'Base original'!AP30)/'Base original'!AR30) -> 0.8555259952 | AF41: =+(('Base original'!AO42-'Base original'!AQ42)/('Base original'!AO30-'Base original'!AQ30)*100-100)*(('Base original'!AO30-'Base original'!AQ30)/'Base original'!AR30) -> 0.2152233451 | AG41: =+('Base original'!AR42/'Base original'!AR30*100-100)*'Base original'!AR30/'Base original'!$AR30 -> 18.99019358 | AH41: =+('Base original'!AR42/'Base original'!AR30*100-100)*'Base original'!AR30/'Base original'!$BC30 -> 11.69299151 | AI41: =+('Base original'!AS42/'Base original'!AS30*100-100)*'Base original'!AS30/'Base original'!$BC30 -> 3.673618808 | AJ41: =+('Base original'!AT42/'Base original'!AT30*100-100)*'Base original'!AT30/'Base original'!$BC30 -> 2.749735277 | AK41: =+('Base original'!AU42/'Base original'!AU30*100-100)*'Base original'!AU30/'Base original'!$BC30 -> 1.438012999 | AL41: =+('Base original'!AV42/'Base original'!AV30*100-100)*'Base original'!AV30/'Base original'!$BC30 -> -0.3014100601 | AM41: =+('Base original'!AW42/'Base original'!AW30*100-100)*'Base original'!AW30/'Base original'!$BC30 -> 0.1100777225 | AN41: =+('Base original'!AX42/'Base original'!AX30*100-100)*'Base original'!AX30/'Base original'!$BC30 -> 2.888907001 | AO41: =+('Base original'!AY42/'Base original'!AY30*100-100)*'Base original'!AY30/'Base original'!$BC30 -> -2.666232243 | AP41: =+('Base original'!AZ42/'Base original'!AZ30*100-100)*'Base original'!AZ30/'Base original'!$BC30 -> -0.3493040957 | AQ41: =+('Base original'!BA42/'Base original'!BA30*100-100)*'Base original'!BA30/'Base original'!$BC30 -> -0.003426807406 | AR41: =+('Base original'!BB42/'Base original'!BB30*100-100)*'Base original'!BB30/'Base original'!$BC30 -> 0.01747265436 | AS41: =+(('Base original'!AY42-'Base original'!BA42)/('Base original'!AY30-'Base original'!BA30)*100-100)*('Base original'!AY30-'Base original'!BA30)/'Base original'!$BC30 -> -2.662805436 | AT41: =+(('Base original'!AZ42-'Base original'!BB42)/('Base original'!AZ30-'Base original'!BB30)*100-100)*('Base original'!AZ30-'Base original'!BB30)/'Base original'!$BC30 -> -0.36677675 | AU41: =+('Base original'!BC42/'Base original'!BC30*100-100)*'Base original'!BC30/'Base original'!$BC30 -> 19.22235107
A42: 2008-12-01 | B42: =+'Base original'!B43/'Base original'!B31*100-100 -> 15.25357333 | C42: =+'Base original'!C43/'Base original'!C31*100-100 -> 6.764548534 | D42: =+'Base original'!D43/'Base original'!D31*100-100 -> 21.1695724 | E42: =+'Base original'!E43/'Base original'!E31*100-100 -> 44.87859877 | F42: =+'Base original'!F43/'Base original'!F31*100-100 -> 17.98661627 | G42: =+'Base original'!G43 -> 36.85158168 | L42: =+'Base original'!Q43 -> 14.91091061 | P42: =+'Base original'!Y43 -> 5.831500249 | S42: =+'Base original'!AE43 -> 5.77 | T42: =+('Base original'!AH43/'Base original'!AH31*100-100)*'Base original'!AH31/'Base original'!$AK31 -> 2.709810402 | U42: =+('Base original'!AI43/'Base original'!AI31*100-100)*'Base original'!AI31/'Base original'!$AK31 -> 4.617272104 | V42: =+('Base original'!AJ43/'Base original'!AJ31*100-100)*'Base original'!AJ31/'Base original'!$AK31 -> -0.6336040182 | W42: =+('Base original'!AK43/'Base original'!AK31*100-100)*'Base original'!AK31/'Base original'!$AK31 -> 6.693478488 | X42: =+('Base original'!AK43/'Base original'!AK31*100-100)*'Base original'!AK31/'Base original'!$AR31 -> 1.438983494 | Y42: =+('Base original'!AL43/'Base original'!AL31*100-100)*'Base original'!AL31/'Base original'!$AR31 -> 14.15346083 | Z42: =+('Base original'!AM43/'Base original'!AM31*100-100)*'Base original'!AM31/'Base original'!$AR31 -> 0.4394370867 | AA42: =+('Base original'!AN43/'Base original'!AN31*100-100)*'Base original'!AN31/'Base original'!$AR31 -> 0.711469569 | AB42: =+('Base original'!AO43/'Base original'!AO31*100-100)*'Base original'!AO31/'Base original'!$AR31 -> 0.2572402651 | AC42: =+('Base original'!AP43/'Base original'!AP31*100-100)*'Base original'!AP31/'Base original'!$AR31 -> -0.0690161985 | AD42: =+('Base original'!AQ43/'Base original'!AQ31*100-100)*'Base original'!AQ31/'Base original'!$AR31 -> 0.011969599 | AE42: =+(('Base original'!AN43-'Base original'!AP43)/('Base original'!AN31-'Base original'!AP31)*100-100)*(('Base original'!AN31-'Base original'!AP31)/'Base original'!AR31) -> 0.7804857675 | AF42: =+(('Base original'!AO43-'Base original'!AQ43)/('Base original'!AO31-'Base original'!AQ31)*100-100)*(('Base original'!AO31-'Base original'!AQ31)/'Base original'!AR31) -> 0.2452706661 | AG42: =+('Base original'!AR43/'Base original'!AR31*100-100)*'Base original'!AR31/'Base original'!$AR31 -> 17.05763784 | AH42: =+('Base original'!AR43/'Base original'!AR31*100-100)*'Base original'!AR31/'Base original'!$BC31 -> 10.69113595 | AI42: =+('Base original'!AS43/'Base original'!AS31*100-100)*'Base original'!AS31/'Base original'!$BC31 -> 3.35681726 | AJ42: =+('Base original'!AT43/'Base original'!AT31*100-100)*'Base original'!AT31/'Base original'!$BC31 -> 2.990077516 | AK42: =+('Base original'!AU43/'Base original'!AU31*100-100)*'Base original'!AU31/'Base original'!$BC31 -> 1.341005671 | AL42: =+('Base original'!AV43/'Base original'!AV31*100-100)*'Base original'!AV31/'Base original'!$BC31 -> -0.4275947855 | AM42: =+('Base original'!AW43/'Base original'!AW31*100-100)*'Base original'!AW31/'Base original'!$BC31 -> 0.1514658689 | AN42: =+('Base original'!AX43/'Base original'!AX31*100-100)*'Base original'!AX31/'Base original'!$BC31 -> 2.936112729 | AO42: =+('Base original'!AY43/'Base original'!AY31*100-100)*'Base original'!AY31/'Base original'!$BC31 -> -2.664280245 | AP42: =+('Base original'!AZ43/'Base original'!AZ31*100-100)*'Base original'!AZ31/'Base original'!$BC31 -> -0.3280851547 | AQ42: =+('Base original'!BA43/'Base original'!BA31*100-100)*'Base original'!BA31/'Base original'!$BC31 -> -0.08574242478 | AR42: =+('Base original'!BB43/'Base original'!BB31*100-100)*'Base original'!BB31/'Base original'!$BC31 -> 0.0002926362621 | AS42: =+(('Base original'!AY43-'Base original'!BA43)/('Base original'!AY31-'Base original'!BA31)*100-100)*('Base original'!AY31-'Base original'!BA31)/'Base original'!$BC31 -> -2.57853782 | AT42: =+(('Base original'!AZ43-'Base original'!BB43)/('Base original'!AZ31-'Base original'!BB31)*100-100)*('Base original'!AZ31-'Base original'!BB31)/'Base original'!$BC31 -> -0.328377791 | AU42: =+('Base original'!BC43/'Base original'!BC31*100-100)*'Base original'!BC31/'Base original'!$BC31 -> 18.1321046
A43: 2009-01-01 | B43: =+'Base original'!B44/'Base original'!B32*100-100 -> 13.92605067 | C43: =+'Base original'!C44/'Base original'!C32*100-100 -> 5.380483709 | D43: =+'Base original'!D44/'Base original'!D32*100-100 -> 18.63429965 | E43: =+'Base original'!E44/'Base original'!E32*100-100 -> 46.9582296 | F43: =+'Base original'!F44/'Base original'!F32*100-100 -> 16.53815593 | G43: =+'Base original'!G44 -> 36.33417145 | L43: =+'Base original'!Q44 -> 13.51124586 | P43: =+'Base original'!Y44 -> 5.323566282 | S43: =+'Base original'!AE44 -> 5.92 | T43: =+('Base original'!AH44/'Base original'!AH32*100-100)*'Base original'!AH32/'Base original'!$AK32 -> 2.497035505 | U43: =+('Base original'!AI44/'Base original'!AI32*100-100)*'Base original'!AI32/'Base original'!$AK32 -> 3.508599975 | V43: =+('Base original'!AJ44/'Base original'!AJ32*100-100)*'Base original'!AJ32/'Base original'!$AK32 -> -0.6283851589 | W43: =+('Base original'!AK44/'Base original'!AK32*100-100)*'Base original'!AK32/'Base original'!$AK32 -> 5.377250321 | X43: =+('Base original'!AK44/'Base original'!AK32*100-100)*'Base original'!AK32/'Base original'!$AR32 -> 1.144756636 | Y43: =+('Base original'!AL44/'Base original'!AL32*100-100)*'Base original'!AL32/'Base original'!$AR32 -> 12.57004124 | Z43: =+('Base original'!AM44/'Base original'!AM32*100-100)*'Base original'!AM32/'Base original'!$AR32 -> 0.4007795695 | AA43: =+('Base original'!AN44/'Base original'!AN32*100-100)*'Base original'!AN32/'Base original'!$AR32 -> 4.361424727 | AB43: =+('Base original'!AO44/'Base original'!AO32*100-100)*'Base original'!AO32/'Base original'!$AR32 -> 0.2493136832 | AC43: =+('Base original'!AP44/'Base original'!AP32*100-100)*'Base original'!AP32/'Base original'!$AR32 -> 3.416119037 | AD43: =+('Base original'!AQ44/'Base original'!AQ32*100-100)*'Base original'!AQ32/'Base original'!$AR32 -> 0.01335236463 | AE43: =+(('Base original'!AN44-'Base original'!AP44)/('Base original'!AN32-'Base original'!AP32)*100-100)*(('Base original'!AN32-'Base original'!AP32)/'Base original'!AR32) -> 0.9453056893 | AF43: =+(('Base original'!AO44-'Base original'!AQ44)/('Base original'!AO32-'Base original'!AQ32)*100-100)*(('Base original'!AO32-'Base original'!AQ32)/'Base original'!AR32) -> 0.2359613186 | AG43: =+('Base original'!AR44/'Base original'!AR32*100-100)*'Base original'!AR32/'Base original'!$AR32 -> 15.29684445 | AH43: =+('Base original'!AR44/'Base original'!AR32*100-100)*'Base original'!AR32/'Base original'!$BC32 -> 9.665876274 | AI43: =+('Base original'!AS44/'Base original'!AS32*100-100)*'Base original'!AS32/'Base original'!$BC32 -> 3.084450222 | AJ43: =+('Base original'!AT44/'Base original'!AT32*100-100)*'Base original'!AT32/'Base original'!$BC32 -> 2.516785878 | AK43: =+('Base original'!AU44/'Base original'!AU32*100-100)*'Base original'!AU32/'Base original'!$BC32 -> 1.256349558 | AL43: =+('Base original'!AV44/'Base original'!AV32*100-100)*'Base original'!AV32/'Base original'!$BC32 -> -0.6077409721 | AM43: =+('Base original'!AW44/'Base original'!AW32*100-100)*'Base original'!AW32/'Base original'!$BC32 -> 0.1736214447 | AN43: =+('Base original'!AX44/'Base original'!AX32*100-100)*'Base original'!AX32/'Base original'!$BC32 -> 3.255435047 | AO43: =+('Base original'!AY44/'Base original'!AY32*100-100)*'Base original'!AY32/'Base original'!$BC32 -> -2.016619013 | AP43: =+('Base original'!AZ44/'Base original'!AZ32*100-100)*'Base original'!AZ32/'Base original'!$BC32 -> -0.2806682277 | AQ43: =+('Base original'!BA44/'Base original'!BA32*100-100)*'Base original'!BA32/'Base original'!$BC32 -> 0.205129057 | AR43: =+('Base original'!BB44/'Base original'!BB32*100-100)*'Base original'!BB32/'Base original'!$BC32 -> -0.01951098999 | AS43: =+(('Base original'!AY44-'Base original'!BA44)/('Base original'!AY32-'Base original'!BA32)*100-100)*('Base original'!AY32-'Base original'!BA32)/'Base original'!$BC32 -> -2.22174807 | AT43: =+(('Base original'!AZ44-'Base original'!BB44)/('Base original'!AZ32-'Base original'!BB32)*100-100)*('Base original'!AZ32-'Base original'!BB32)/'Base original'!$BC32 -> -0.2611572377 | AU43: =+('Base original'!BC44/'Base original'!BC32*100-100)*'Base original'!BC32/'Base original'!$BC32 -> 16.86187214
A44: 2009-02-01 | B44: =+'Base original'!B45/'Base original'!B33*100-100 -> 11.42682459 | C44: =+'Base original'!C45/'Base original'!C33*100-100 -> 3.850262605 | D44: =+'Base original'!D45/'Base original'!D33*100-100 -> 16.59682269 | E44: =+'Base original'!E45/'Base original'!E33*100-100 -> 36.02129932 | F44: =+'Base original'!F45/'Base original'!F33*100-100 -> 13.60115863 | G44: =+'Base original'!G45 -> 36.18977679 | L44: =+'Base original'!Q45 -> 12.21579471 | P44: =+'Base original'!Y45 -> 5.117256562 | S44: =+'Base original'!AE45 -> 5.53 | T44: =+('Base original'!AH45/'Base original'!AH33*100-100)*'Base original'!AH33/'Base original'!$AK33 -> 2.138468809 | U44: =+('Base original'!AI45/'Base original'!AI33*100-100)*'Base original'!AI33/'Base original'!$AK33 -> 4.472883684 | V44: =+('Base original'!AJ45/'Base original'!AJ33*100-100)*'Base original'!AJ33/'Base original'!$AK33 -> -2.885769632 | W44: =+('Base original'!AK45/'Base original'!AK33*100-100)*'Base original'!AK33/'Base original'!$AK33 -> 3.725582861 | X44: =+('Base original'!AK45/'Base original'!AK33*100-100)*'Base original'!AK33/'Base original'!$AR33 -> 0.7809581758 | Y44: =+('Base original'!AL45/'Base original'!AL33*100-100)*'Base original'!AL33/'Base original'!$AR33 -> 10.76314329 | Z44: =+('Base original'!AM45/'Base original'!AM33*100-100)*'Base original'!AM33/'Base original'!$AR33 -> 0.3436298527 | AA44: =+('Base original'!AN45/'Base original'!AN33*100-100)*'Base original'!AN33/'Base original'!$AR33 -> 4.990785044 | AB44: =+('Base original'!AO45/'Base original'!AO33*100-100)*'Base original'!AO33/'Base original'!$AR33 -> 0.2383738618 | AC44: =+('Base original'!AP45/'Base original'!AP33*100-100)*'Base original'!AP33/'Base original'!$AR33 -> 4.151213729 | AD44: =+('Base original'!AQ45/'Base original'!AQ33*100-100)*'Base original'!AQ33/'Base original'!$AR33 -> 0.01878097093 | AE44: =+(('Base original'!AN45-'Base original'!AP45)/('Base original'!AN33-'Base original'!AP33)*100-100)*(('Base original'!AN33-'Base original'!AP33)/'Base original'!AR33) -> 0.8395713159 | AF44: =+(('Base original'!AO45-'Base original'!AQ45)/('Base original'!AO33-'Base original'!AQ33)*100-100)*(('Base original'!AO33-'Base original'!AQ33)/'Base original'!AR33) -> 0.2195928909 | AG44: =+('Base original'!AR45/'Base original'!AR33*100-100)*'Base original'!AR33/'Base original'!$AR33 -> 12.94689553 | AH44: =+('Base original'!AR45/'Base original'!AR33*100-100)*'Base original'!AR33/'Base original'!$BC33 -> 8.241910206 | AI44: =+('Base original'!AS45/'Base original'!AS33*100-100)*'Base original'!AS33/'Base original'!$BC33 -> 3.016288893 | AJ44: =+('Base original'!AT45/'Base original'!AT33*100-100)*'Base original'!AT33/'Base original'!$BC33 -> 2.297361599 | AK44: =+('Base original'!AU45/'Base original'!AU33*100-100)*'Base original'!AU33/'Base original'!$BC33 -> 1.502363598 | AL44: =+('Base original'!AV45/'Base original'!AV33*100-100)*'Base original'!AV33/'Base original'!$BC33 -> -0.4844087964 | AM44: =+('Base original'!AW45/'Base original'!AW33*100-100)*'Base original'!AW33/'Base original'!$BC33 -> 0.2091615958 | AN44: =+('Base original'!AX45/'Base original'!AX33*100-100)*'Base original'!AX33/'Base original'!$BC33 -> 3.465355686 | AO44: =+('Base original'!AY45/'Base original'!AY33*100-100)*'Base original'!AY33/'Base original'!$BC33 -> -1.236181819 | AP44: =+('Base original'!AZ45/'Base original'!AZ33*100-100)*'Base original'!AZ33/'Base original'!$BC33 -> -0.2525179568 | AQ44: =+('Base original'!BA45/'Base original'!BA33*100-100)*'Base original'!BA33/'Base original'!$BC33 -> 0.5771651323 | AR44: =+('Base original'!BB45/'Base original'!BB33*100-100)*'Base original'!BB33/'Base original'!$BC33 -> -0.0131382912 | AS44: =+(('Base original'!AY45-'Base original'!BA45)/('Base original'!AY33-'Base original'!BA33)*100-100)*('Base original'!AY33-'Base original'!BA33)/'Base original'!$BC33 -> -1.813346951 | AT44: =+(('Base original'!AZ45-'Base original'!BB45)/('Base original'!AZ33-'Base original'!BB33)*100-100)*('Base original'!AZ33-'Base original'!BB33)/'Base original'!$BC33 -> -0.2393796656 | AU44: =+('Base original'!BC45/'Base original'!BC33*100-100)*'Base original'!BC33/'Base original'!$BC33 -> 16.19530616
A45: 2009-03-01 | B45: =+'Base original'!B46/'Base original'!B34*100-100 -> 9.11651237 | C45: =+'Base original'!C46/'Base original'!C34*100-100 -> 2.820031559 | D45: =+'Base original'!D46/'Base original'!D34*100-100 -> 15.1063322 | E45: =+'Base original'!E46/'Base original'!E34*100-100 -> 30.72665462 | F45: =+'Base original'!F46/'Base original'!F34*100-100 -> 11.36667338 | G45: =+'Base original'!G46 -> 32.23109006 | L45: =+'Base original'!Q46 -> 10.05881629 | P45: =+'Base original'!Y46 -> 4.683590798 | S45: =+'Base original'!AE46 -> 4.9 | T45: =+('Base original'!AH46/'Base original'!AH34*100-100)*'Base original'!AH34/'Base original'!$AK34 -> 2.282784086 | U45: =+('Base original'!AI46/'Base original'!AI34*100-100)*'Base original'!AI34/'Base original'!$AK34 -> 6.001951652 | V45: =+('Base original'!AJ46/'Base original'!AJ34*100-100)*'Base original'!AJ34/'Base original'!$AK34 -> -2.931181385 | W45: =+('Base original'!AK46/'Base original'!AK34*100-100)*'Base original'!AK34/'Base original'!$AK34 -> 5.353554352 | X45: =+('Base original'!AK46/'Base original'!AK34*100-100)*'Base original'!AK34/'Base original'!$AR34 -> 1.104147847 | Y45: =+('Base original'!AL46/'Base original'!AL34*100-100)*'Base original'!AL34/'Base original'!$AR34 -> 7.94736751 | Z45: =+('Base original'!AM46/'Base original'!AM34*100-100)*'Base original'!AM34/'Base original'!$AR34 -> 0.3131957836 | AA45: =+('Base original'!AN46/'Base original'!AN34*100-100)*'Base original'!AN34/'Base original'!$AR34 -> 4.386986834 | AB45: =+('Base original'!AO46/'Base original'!AO34*100-100)*'Base original'!AO34/'Base original'!$AR34 -> 0.2294863499 | AC45: =+('Base original'!AP46/'Base original'!AP34*100-100)*'Base original'!AP34/'Base original'!$AR34 -> 3.751815984 | AD45: =+('Base original'!AQ46/'Base original'!AQ34*100-100)*'Base original'!AQ34/'Base original'!$AR34 -> 0.0226627979 | AE45: =+(('Base original'!AN46-'Base original'!AP46)/('Base original'!AN34-'Base original'!AP34)*100-100)*(('Base original'!AN34-'Base original'!AP34)/'Base original'!AR34) -> 0.6351708493 | AF45: =+(('Base original'!AO46-'Base original'!AQ46)/('Base original'!AO34-'Base original'!AQ34)*100-100)*(('Base original'!AO34-'Base original'!AQ34)/'Base original'!AR34) -> 0.206823552 | AG45: =+('Base original'!AR46/'Base original'!AR34*100-100)*'Base original'!AR34/'Base original'!$AR34 -> 10.20670554 | AH45: =+('Base original'!AR46/'Base original'!AR34*100-100)*'Base original'!AR34/'Base original'!$BC34 -> 6.529813588 | AI45: =+('Base original'!AS46/'Base original'!AS34*100-100)*'Base original'!AS34/'Base original'!$BC34 -> 3.025393029 | AJ45: =+('Base original'!AT46/'Base original'!AT34*100-100)*'Base original'!AT34/'Base original'!$BC34 -> 2.984901196 | AK45: =+('Base original'!AU46/'Base original'!AU34*100-100)*'Base original'!AU34/'Base original'!$BC34 -> 1.520664263 | AL45: =+('Base original'!AV46/'Base original'!AV34*100-100)*'Base original'!AV34/'Base original'!$BC34 -> -0.6286683642 | AM45: =+('Base original'!AW46/'Base original'!AW34*100-100)*'Base original'!AW34/'Base original'!$BC34 -> 0.2528780289 | AN45: =+('Base original'!AX46/'Base original'!AX34*100-100)*'Base original'!AX34/'Base original'!$BC34 -> 3.497057576 | AO45: =+('Base original'!AY46/'Base original'!AY34*100-100)*'Base original'!AY34/'Base original'!$BC34 -> -1.09380197 | AP45: =+('Base original'!AZ46/'Base original'!AZ34*100-100)*'Base original'!AZ34/'Base original'!$BC34 -> -0.2524861724 | AQ45: =+('Base original'!BA46/'Base original'!BA34*100-100)*'Base original'!BA34/'Base original'!$BC34 -> 0.7415230217 | AR45: =+('Base original'!BB46/'Base original'!BB34*100-100)*'Base original'!BB34/'Base original'!$BC34 -> -0.02181334237 | AS45: =+(('Base original'!AY46-'Base original'!BA46)/('Base original'!AY34-'Base original'!BA34)*100-100)*('Base original'!AY34-'Base original'!BA34)/'Base original'!$BC34 -> -1.835324992 | AT45: =+(('Base original'!AZ46-'Base original'!BB46)/('Base original'!AZ34-'Base original'!BB34)*100-100)*('Base original'!AZ34-'Base original'!BB34)/'Base original'!$BC34 -> -0.2306728301 | AU45: =+('Base original'!BC46/'Base original'!BC34*100-100)*'Base original'!BC34/'Base original'!$BC34 -> 15.1160415
A46: 2009-04-01 | B46: =+'Base original'!B47/'Base original'!B35*100-100 -> 7.729474345 | C46: =+'Base original'!C47/'Base original'!C35*100-100 -> 2.022545014 | D46: =+'Base original'!D47/'Base original'!D35*100-100 -> 13.1399209 | E46: =+'Base original'!E47/'Base original'!E35*100-100 -> 9.965763716 | F46: =+'Base original'!F47/'Base original'!F35*100-100 -> 8.393857943 | G46: =+'Base original'!G47 -> 29.97497029 | L46: =+'Base original'!Q47 -> 8.766351447 | P46: =+'Base original'!Y47 -> 3.947299689 | S46: =+'Base original'!AE47 -> 4.42 | T46: =+('Base original'!AH47/'Base original'!AH35*100-100)*'Base original'!AH35/'Base original'!$AK35 -> 2.46304931 | U46: =+('Base original'!AI47/'Base original'!AI35*100-100)*'Base original'!AI35/'Base original'!$AK35 -> 7.125194282 | V46: =+('Base original'!AJ47/'Base original'!AJ35*100-100)*'Base original'!AJ35/'Base original'!$AK35 -> -1.782317622 | W46: =+('Base original'!AK47/'Base original'!AK35*100-100)*'Base original'!AK35/'Base original'!$AK35 -> 7.80592597 | X46: =+('Base original'!AK47/'Base original'!AK35*100-100)*'Base original'!AK35/'Base original'!$AR35 -> 1.590681499 | Y46: =+('Base original'!AL47/'Base original'!AL35*100-100)*'Base original'!AL35/'Base original'!$AR35 -> 5.908428571 | Z46: =+('Base original'!AM47/'Base original'!AM35*100-100)*'Base original'!AM35/'Base original'!$AR35 -> 0.3167241539 | AA46: =+('Base original'!AN47/'Base original'!AN35*100-100)*'Base original'!AN35/'Base original'!$AR35 -> 5.663310302 | AB46: =+('Base original'!AO47/'Base original'!AO35*100-100)*'Base original'!AO35/'Base original'!$AR35 -> 0.2132340323 | AC46: =+('Base original'!AP47/'Base original'!AP35*100-100)*'Base original'!AP35/'Base original'!$AR35 -> 5.496273614 | AD46: =+('Base original'!AQ47/'Base original'!AQ35*100-100)*'Base original'!AQ35/'Base original'!$AR35 -> 0.01210410779 | AE46: =+(('Base original'!AN47-'Base original'!AP47)/('Base original'!AN35-'Base original'!AP35)*100-100)*(('Base original'!AN35-'Base original'!AP35)/'Base original'!AR35) -> 0.1670366876 | AF46: =+(('Base original'!AO47-'Base original'!AQ47)/('Base original'!AO35-'Base original'!AQ35)*100-100)*(('Base original'!AO35-'Base original'!AQ35)/'Base original'!AR35) -> 0.2011299245 | AG46: =+('Base original'!AR47/'Base original'!AR35*100-100)*'Base original'!AR35/'Base original'!$AR35 -> 8.184000837 | AH46: =+('Base original'!AR47/'Base original'!AR35*100-100)*'Base original'!AR35/'Base original'!$BC35 -> 5.212556579 | AI46: =+('Base original'!AS47/'Base original'!AS35*100-100)*'Base original'!AS35/'Base original'!$BC35 -> 2.342101268 | AJ46: =+('Base original'!AT47/'Base original'!AT35*100-100)*'Base original'!AT35/'Base original'!$BC35 -> 3.171756078 | AK46: =+('Base original'!AU47/'Base original'!AU35*100-100)*'Base original'!AU35/'Base original'!$BC35 -> 1.431241278 | AL46: =+('Base original'!AV47/'Base original'!AV35*100-100)*'Base original'!AV35/'Base original'!$BC35 -> -0.7740189838 | AM46: =+('Base original'!AW47/'Base original'!AW35*100-100)*'Base original'!AW35/'Base original'!$BC35 -> 0.2650732343 | AN46: =+('Base original'!AX47/'Base original'!AX35*100-100)*'Base original'!AX35/'Base original'!$BC35 -> 3.829877797 | AO46: =+('Base original'!AY47/'Base original'!AY35*100-100)*'Base original'!AY35/'Base original'!$BC35 -> -1.149721425 | AP46: =+('Base original'!AZ47/'Base original'!AZ35*100-100)*'Base original'!AZ35/'Base original'!$BC35 -> -0.2298671916 | AQ46: =+('Base original'!BA47/'Base original'!BA35*100-100)*'Base original'!BA35/'Base original'!$BC35 -> 0.7137575456 | AR46: =+('Base original'!BB47/'Base original'!BB35*100-100)*'Base original'!BB35/'Base original'!$BC35 -> -0.02364201411 | AS46: =+(('Base original'!AY47-'Base original'!BA47)/('Base original'!AY35-'Base original'!BA35)*100-100)*('Base original'!AY35-'Base original'!BA35)/'Base original'!$BC35 -> -1.863478971 | AT46: =+(('Base original'!AZ47-'Base original'!BB47)/('Base original'!AZ35-'Base original'!BB35)*100-100)*('Base original'!AZ35-'Base original'!BB35)/'Base original'!$BC35 -> -0.2062251775 | AU46: =+('Base original'!BC47/'Base original'!BC35*100-100)*'Base original'!BC35/'Base original'!$BC35 -> 13.4088831
A47: 2009-05-01 | B47: =+'Base original'!B48/'Base original'!B36*100-100 -> 5.808529583 | C47: =+'Base original'!C48/'Base original'!C36*100-100 -> 1.33634861 | D47: =+'Base original'!D48/'Base original'!D36*100-100 -> 12.17029718 | E47: =+'Base original'!E48/'Base original'!E36*100-100 -> -2.399493265 | F47: =+'Base original'!F48/'Base original'!F36*100-100 -> 5.867166996 | G47: =+'Base original'!G48 -> 29.56658702 | L47: =+'Base original'!Q48 -> 8.071368334 | P47: =+'Base original'!Y48 -> 3.776842156 | S47: =+'Base original'!AE48 -> 4.455645369 | T47: =+('Base original'!AH48/'Base original'!AH36*100-100)*'Base original'!AH36/'Base original'!$AK36 -> 2.268538075 | U47: =+('Base original'!AI48/'Base original'!AI36*100-100)*'Base original'!AI36/'Base original'!$AK36 -> 7.744178411 | V47: =+('Base original'!AJ48/'Base original'!AJ36*100-100)*'Base original'!AJ36/'Base original'!$AK36 -> -1.200650897 | W47: =+('Base original'!AK48/'Base original'!AK36*100-100)*'Base original'!AK36/'Base original'!$AK36 -> 8.812065589 | X47: =+('Base original'!AK48/'Base original'!AK36*100-100)*'Base original'!AK36/'Base original'!$AR36 -> 1.826602 | Y47: =+('Base original'!AL48/'Base original'!AL36*100-100)*'Base original'!AL36/'Base original'!$AR36 -> 4.820964647 | Z47: =+('Base original'!AM48/'Base original'!AM36*100-100)*'Base original'!AM36/'Base original'!$AR36 -> 0.3233716363 | AA47: =+('Base original'!AN48/'Base original'!AN36*100-100)*'Base original'!AN36/'Base original'!$AR36 -> 4.55585861 | AB47: =+('Base original'!AO48/'Base original'!AO36*100-100)*'Base original'!AO36/'Base original'!$AR36 -> 0.1968089528 | AC47: =+('Base original'!AP48/'Base original'!AP36*100-100)*'Base original'!AP36/'Base original'!$AR36 -> 4.607200075 | AD47: =+('Base original'!AQ48/'Base original'!AQ36*100-100)*'Base original'!AQ36/'Base original'!$AR36 -> 0.00835791306 | AE47: =+(('Base original'!AN48-'Base original'!AP48)/('Base original'!AN36-'Base original'!AP36)*100-100)*(('Base original'!AN36-'Base original'!AP36)/'Base original'!AR36) -> -0.05134146594 | AF47: =+(('Base original'!AO48-'Base original'!AQ48)/('Base original'!AO36-'Base original'!AQ36)*100-100)*(('Base original'!AO36-'Base original'!AQ36)/'Base original'!AR36) -> 0.1884510397 | AG47: =+('Base original'!AR48/'Base original'!AR36*100-100)*'Base original'!AR36/'Base original'!$AR36 -> 7.108047856 | AH47: =+('Base original'!AR48/'Base original'!AR36*100-100)*'Base original'!AR36/'Base original'!$BC36 -> 4.482934405 | AI47: =+('Base original'!AS48/'Base original'!AS36*100-100)*'Base original'!AS36/'Base original'!$BC36 -> 1.209867008 | AJ47: =+('Base original'!AT48/'Base original'!AT36*100-100)*'Base original'!AT36/'Base original'!$BC36 -> 2.750564869 | AK47: =+('Base original'!AU48/'Base original'!AU36*100-100)*'Base original'!AU36/'Base original'!$BC36 -> 1.304748694 | AL47: =+('Base original'!AV48/'Base original'!AV36*100-100)*'Base original'!AV36/'Base original'!$BC36 -> -0.650366269 | AM47: =+('Base original'!AW48/'Base original'!AW36*100-100)*'Base original'!AW36/'Base original'!$BC36 -> 0.2562809574 | AN47: =+('Base original'!AX48/'Base original'!AX36*100-100)*'Base original'!AX36/'Base original'!$BC36 -> 3.954909662 | AO47: =+('Base original'!AY48/'Base original'!AY36*100-100)*'Base original'!AY36/'Base original'!$BC36 -> -1.108835582 | AP47: =+('Base original'!AZ48/'Base original'!AZ36*100-100)*'Base original'!AZ36/'Base original'!$BC36 -> -0.2147388434 | AQ47: =+('Base original'!BA48/'Base original'!BA36*100-100)*'Base original'!BA36/'Base original'!$BC36 -> 0.5706706726 | AR47: =+('Base original'!BB48/'Base original'!BB36*100-100)*'Base original'!BB36/'Base original'!$BC36 -> -0.03576888975 | AS47: =+(('Base original'!AY48-'Base original'!BA48)/('Base original'!AY36-'Base original'!BA36)*100-100)*('Base original'!AY36-'Base original'!BA36)/'Base original'!$BC36 -> -1.679506255 | AT47: =+(('Base original'!AZ48-'Base original'!BB48)/('Base original'!AZ36-'Base original'!BB36)*100-100)*('Base original'!AZ36-'Base original'!BB36)/'Base original'!$BC36 -> -0.1789699536 | AU47: =+('Base original'!BC48/'Base original'!BC36*100-100)*'Base original'!BC36/'Base original'!$BC36 -> 11.45046312
A48: 2009-06-01 | B48: =+'Base original'!B49/'Base original'!B37*100-100 -> 2.848261871 | C48: =+'Base original'!C49/'Base original'!C37*100-100 -> 0.1622425609 | D48: =+'Base original'!D49/'Base original'!D37*100-100 -> 10.73803343 | E48: =+'Base original'!E49/'Base original'!E37*100-100 -> -23.01216392 | F48: =+'Base original'!F49/'Base original'!F37*100-100 -> 1.602554879 | G48: =+'Base original'!G49 -> 28.9061915 | L48: =+'Base original'!Q49 -> 7.984518349 | P48: =+'Base original'!Y49 -> 3.496964596 | S48: =+'Base original'!AE49 -> 4.61 | T48: =+('Base original'!AH49/'Base original'!AH37*100-100)*'Base original'!AH37/'Base original'!$AK37 -> 2.197927886 | U48: =+('Base original'!AI49/'Base original'!AI37*100-100)*'Base original'!AI37/'Base original'!$AK37 -> 8.094405101 | V48: =+('Base original'!AJ49/'Base original'!AJ37*100-100)*'Base original'!AJ37/'Base original'!$AK37 -> 0.4132723963 | W48: =+('Base original'!AK49/'Base original'!AK37*100-100)*'Base original'!AK37/'Base original'!$AK37 -> 10.70560538 | X48: =+('Base original'!AK49/'Base original'!AK37*100-100)*'Base original'!AK37/'Base original'!$AR37 -> 2.229049679 | Y48: =+('Base original'!AL49/'Base original'!AL37*100-100)*'Base original'!AL37/'Base original'!$AR37 -> 3.965414286 | Z48: =+('Base original'!AM49/'Base original'!AM37*100-100)*'Base original'!AM37/'Base original'!$AR37 -> 0.3159408021 | AA48: =+('Base original'!AN49/'Base original'!AN37*100-100)*'Base original'!AN37/'Base original'!$AR37 -> 4.043526283 | AB48: =+('Base original'!AO49/'Base original'!AO37*100-100)*'Base original'!AO37/'Base original'!$AR37 -> 0.1543982061 | AC48: =+('Base original'!AP49/'Base original'!AP37*100-100)*'Base original'!AP37/'Base original'!$AR37 -> 3.583308494 | AD48: =+('Base original'!AQ49/'Base original'!AQ37*100-100)*'Base original'!AQ37/'Base original'!$AR37 -> 0.008533576941 | AE48: =+(('Base original'!AN49-'Base original'!AP49)/('Base original'!AN37-'Base original'!AP37)*100-100)*(('Base original'!AN37-'Base original'!AP37)/'Base original'!AR37) -> 0.460217789 | AF48: =+(('Base original'!AO49-'Base original'!AQ49)/('Base original'!AO37-'Base original'!AQ37)*100-100)*(('Base original'!AO37-'Base original'!AQ37)/'Base original'!AR37) -> 0.1458646291 | AG48: =+('Base original'!AR49/'Base original'!AR37*100-100)*'Base original'!AR37/'Base original'!$AR37 -> 7.116487185 | AH48: =+('Base original'!AR49/'Base original'!AR37*100-100)*'Base original'!AR37/'Base original'!$BC37 -> 4.423695657 | AI48: =+('Base original'!AS49/'Base original'!AS37*100-100)*'Base original'!AS37/'Base original'!$BC37 -> 0.004194315921 | AJ48: =+('Base original'!AT49/'Base original'!AT37*100-100)*'Base original'!AT37/'Base original'!$BC37 -> 2.513382135 | AK48: =+('Base original'!AU49/'Base original'!AU37*100-100)*'Base original'!AU37/'Base original'!$BC37 -> 1.261625557 | AL48: =+('Base original'!AV49/'Base original'!AV37*100-100)*'Base original'!AV37/'Base original'!$BC37 -> -0.7991405452 | AM48: =+('Base original'!AW49/'Base original'!AW37*100-100)*'Base original'!AW37/'Base original'!$BC37 -> 0.2279734065 | AN48: =+('Base original'!AX49/'Base original'!AX37*100-100)*'Base original'!AX37/'Base original'!$BC37 -> 3.733681343 | AO48: =+('Base original'!AY49/'Base original'!AY37*100-100)*'Base original'!AY37/'Base original'!$BC37 -> -1.013790831 | AP48: =+('Base original'!AZ49/'Base original'!AZ37*100-100)*'Base original'!AZ37/'Base original'!$BC37 -> -0.1861536096 | AQ48: =+('Base original'!BA49/'Base original'!BA37*100-100)*'Base original'!BA37/'Base original'!$BC37 -> 0.4519992216 | AR48: =+('Base original'!BB49/'Base original'!BB37*100-100)*'Base original'!BB37/'Base original'!$BC37 -> -0.05181213785 | AS48: =+(('Base original'!AY49-'Base original'!BA49)/('Base original'!AY37-'Base original'!BA37)*100-100)*('Base original'!AY37-'Base original'!BA37)/'Base original'!$BC37 -> -1.465790052 | AT48: =+(('Base original'!AZ49-'Base original'!BB49)/('Base original'!AZ37-'Base original'!BB37)*100-100)*('Base original'!AZ37-'Base original'!BB37)/'Base original'!$BC37 -> -0.1343414717 | AU48: =+('Base original'!BC49/'Base original'!BC37*100-100)*'Base original'!BC37/'Base original'!$BC37 -> 9.765280345
A49: 2009-07-01 | B49: =+'Base original'!B50/'Base original'!B38*100-100 -> 1.768445658 | C49: =+'Base original'!C50/'Base original'!C38*100-100 -> -0.2000263149 | D49: =+'Base original'!D50/'Base original'!D38*100-100 -> 9.231442079 | E49: =+'Base original'!E50/'Base original'!E38*100-100 -> -19.89023915 | F49: =+'Base original'!F50/'Base original'!F38*100-100 -> 1.082394406 | G49: =+'Base original'!G50 -> 27.90935239 | L49: =+'Base original'!Q50 -> 7.240847234 | P49: =+'Base original'!Y50 -> 2.713315794 | S49: =+'Base original'!AE50 -> 4.62 | T49: =+('Base original'!AH50/'Base original'!AH38*100-100)*'Base original'!AH38/'Base original'!$AK38 -> 2.337641454 | U49: =+('Base original'!AI50/'Base original'!AI38*100-100)*'Base original'!AI38/'Base original'!$AK38 -> 9.818222749 | V49: =+('Base original'!AJ50/'Base original'!AJ38*100-100)*'Base original'!AJ38/'Base original'!$AK38 -> 4.445812144 | W49: =+('Base original'!AK50/'Base original'!AK38*100-100)*'Base original'!AK38/'Base original'!$AK38 -> 16.60167635 | X49: =+('Base original'!AK50/'Base original'!AK38*100-100)*'Base original'!AK38/'Base original'!$AR38 -> 3.295392005 | Y49: =+('Base original'!AL50/'Base original'!AL38*100-100)*'Base original'!AL38/'Base original'!$AR38 -> 3.763676206 | Z49: =+('Base original'!AM50/'Base original'!AM38*100-100)*'Base original'!AM38/'Base original'!$AR38 -> 0.2826787621 | AA49: =+('Base original'!AN50/'Base original'!AN38*100-100)*'Base original'!AN38/'Base original'!$AR38 -> 7.422462033 | AB49: =+('Base original'!AO50/'Base original'!AO38*100-100)*'Base original'!AO38/'Base original'!$AR38 -> 0.1194951154 | AC49: =+('Base original'!AP50/'Base original'!AP38*100-100)*'Base original'!AP38/'Base original'!$AR38 -> 6.530138743 | AD49: =+('Base original'!AQ50/'Base original'!AQ38*100-100)*'Base original'!AQ38/'Base original'!$AR38 -> 0.0009974550533 | AE49: =+(('Base original'!AN50-'Base original'!AP50)/('Base original'!AN38-'Base original'!AP38)*100-100)*(('Base original'!AN38-'Base original'!AP38)/'Base original'!AR38) -> 0.8923232907 | AF49: =+(('Base original'!AO50-'Base original'!AQ50)/('Base original'!AO38-'Base original'!AQ38)*100-100)*(('Base original'!AO38-'Base original'!AQ38)/'Base original'!AR38) -> 0.1184976603 | AG49: =+('Base original'!AR50/'Base original'!AR38*100-100)*'Base original'!AR38/'Base original'!$AR38 -> 8.352567924 | AH49: =+('Base original'!AR50/'Base original'!AR38*100-100)*'Base original'!AR38/'Base original'!$BC38 -> 5.128358909 | AI49: =+('Base original'!AS50/'Base original'!AS38*100-100)*'Base original'!AS38/'Base original'!$BC38 -> -0.8456341418 | AJ49: =+('Base original'!AT50/'Base original'!AT38*100-100)*'Base original'!AT38/'Base original'!$BC38 -> 1.253140629 | AK49: =+('Base original'!AU50/'Base original'!AU38*100-100)*'Base original'!AU38/'Base original'!$BC38 -> 1.338267473 | AL49: =+('Base original'!AV50/'Base original'!AV38*100-100)*'Base original'!AV38/'Base original'!$BC38 -> -0.8125632817 | AM49: =+('Base original'!AW50/'Base original'!AW38*100-100)*'Base original'!AW38/'Base original'!$BC38 -> 0.2316185055 | AN49: =+('Base original'!AX50/'Base original'!AX38*100-100)*'Base original'!AX38/'Base original'!$BC38 -> 3.525966113 | AO49: =+('Base original'!AY50/'Base original'!AY38*100-100)*'Base original'!AY38/'Base original'!$BC38 -> -0.6576201778 | AP49: =+('Base original'!AZ50/'Base original'!AZ38*100-100)*'Base original'!AZ38/'Base original'!$BC38 -> -0.1359579805 | AQ49: =+('Base original'!BA50/'Base original'!BA38*100-100)*'Base original'!BA38/'Base original'!$BC38 -> 0.4953279939 | AR49: =+('Base original'!BB50/'Base original'!BB38*100-100)*'Base original'!BB38/'Base original'!$BC38 -> -0.06969377559 | AS49: =+(('Base original'!AY50-'Base original'!BA50)/('Base original'!AY38-'Base original'!BA38)*100-100)*('Base original'!AY38-'Base original'!BA38)/'Base original'!$BC38 -> -1.152948172 | AT49: =+(('Base original'!AZ50-'Base original'!BB50)/('Base original'!AZ38-'Base original'!BB38)*100-100)*('Base original'!AZ38-'Base original'!BB38)/'Base original'!$BC38 -> -0.06626420491 | AU49: =+('Base original'!BC50/'Base original'!BC38*100-100)*'Base original'!BC38/'Base original'!$BC38 -> 8.59994183
A50: 2009-08-01 | B50: =+'Base original'!B51/'Base original'!B39*100-100 -> 1.47751355 | C50: =+'Base original'!C51/'Base original'!C39*100-100 -> -0.8235564826 | D50: =+'Base original'!D51/'Base original'!D39*100-100 -> 7.815388836 | E50: =+'Base original'!E51/'Base original'!E39*100-100 -> -19.64061604 | F50: =+'Base original'!F51/'Base original'!F39*100-100 -> 0.592747986 | G50: =+'Base original'!G51 -> 24.57374351 | L50: =+'Base original'!Q51 -> 5.987396699 | P50: =+'Base original'!Y51 -> 3.394973906 | S50: =+'Base original'!AE51 -> 4.56 | T50: =+('Base original'!AH51/'Base original'!AH39*100-100)*'Base original'!AH39/'Base original'!$AK39 -> 2.720912668 | U50: =+('Base original'!AI51/'Base original'!AI39*100-100)*'Base original'!AI39/'Base original'!$AK39 -> 12.78365316 | V50: =+('Base original'!AJ51/'Base original'!AJ39*100-100)*'Base original'!AJ39/'Base original'!$AK39 -> 1.2442516 | W50: =+('Base original'!AK51/'Base original'!AK39*100-100)*'Base original'!AK39/'Base original'!$AK39 -> 16.74881743 | X50: =+('Base original'!AK51/'Base original'!AK39*100-100)*'Base original'!AK39/'Base original'!$AR39 -> 3.329915497 | Y50: =+('Base original'!AL51/'Base original'!AL39*100-100)*'Base original'!AL39/'Base original'!$AR39 -> 3.161008329 | Z50: =+('Base original'!AM51/'Base original'!AM39*100-100)*'Base original'!AM39/'Base original'!$AR39 -> 0.2552658611 | AA50: =+('Base original'!AN51/'Base original'!AN39*100-100)*'Base original'!AN39/'Base original'!$AR39 -> 7.745698775 | AB50: =+('Base original'!AO51/'Base original'!AO39*100-100)*'Base original'!AO39/'Base original'!$AR39 -> 0.08732779458 | AC50: =+('Base original'!AP51/'Base original'!AP39*100-100)*'Base original'!AP39/'Base original'!$AR39 -> 7.083232496 | AD50: =+('Base original'!AQ51/'Base original'!AQ39*100-100)*'Base original'!AQ39/'Base original'!$AR39 -> -0.005532077485 | AE50: =+(('Base original'!AN51-'Base original'!AP51)/('Base original'!AN39-'Base original'!AP39)*100-100)*(('Base original'!AN39-'Base original'!AP39)/'Base original'!AR39) -> 0.6624662788 | AF50: =+(('Base original'!AO51-'Base original'!AQ51)/('Base original'!AO39-'Base original'!AQ39)*100-100)*(('Base original'!AO39-'Base original'!AQ39)/'Base original'!AR39) -> 0.09285987206 | AG50: =+('Base original'!AR51/'Base original'!AR39*100-100)*'Base original'!AR39/'Base original'!$AR39 -> 7.501515839 | AH50: =+('Base original'!AR51/'Base original'!AR39*100-100)*'Base original'!AR39/'Base original'!$BC39 -> 4.5557907 | AI50: =+('Base original'!AS51/'Base original'!AS39*100-100)*'Base original'!AS39/'Base original'!$BC39 -> -0.8208514064 | AJ50: =+('Base original'!AT51/'Base original'!AT39*100-100)*'Base original'!AT39/'Base original'!$BC39 -> -0.1549070553 | AK50: =+('Base original'!AU51/'Base original'!AU39*100-100)*'Base original'!AU39/'Base original'!$BC39 -> 1.29505178 | AL50: =+('Base original'!AV51/'Base original'!AV39*100-100)*'Base original'!AV39/'Base original'!$BC39 -> -0.8380099725 | AM50: =+('Base original'!AW51/'Base original'!AW39*100-100)*'Base original'!AW39/'Base original'!$BC39 -> 0.2134621622 | AN50: =+('Base original'!AX51/'Base original'!AX39*100-100)*'Base original'!AX39/'Base original'!$BC39 -> 3.160295913 | AO50: =+('Base original'!AY51/'Base original'!AY39*100-100)*'Base original'!AY39/'Base original'!$BC39 -> -0.09383215901 | AP50: =+('Base original'!AZ51/'Base original'!AZ39*100-100)*'Base original'!AZ39/'Base original'!$BC39 -> -0.08027329204 | AQ50: =+('Base original'!BA51/'Base original'!BA39*100-100)*'Base original'!BA39/'Base original'!$BC39 -> 0.5700723625 | AR50: =+('Base original'!BB51/'Base original'!BB39*100-100)*'Base original'!BB39/'Base original'!$BC39 -> -0.07835345247 | AS50: =+(('Base original'!AY51-'Base original'!BA51)/('Base original'!AY39-'Base original'!BA39)*100-100)*('Base original'!AY39-'Base original'!BA39)/'Base original'!$BC39 -> -0.6639045215 | AT50: =+(('Base original'!AZ51-'Base original'!BB51)/('Base original'!AZ39-'Base original'!BB39)*100-100)*('Base original'!AZ39-'Base original'!BB39)/'Base original'!$BC39 -> -0.001919839571 | AU50: =+('Base original'!BC51/'Base original'!BC39*100-100)*'Base original'!BC39/'Base original'!$BC39 -> 6.74500776
A51: 2009-09-01 | B51: =+'Base original'!B52/'Base original'!B40*100-100 -> 0.190409256 | C51: =+'Base original'!C52/'Base original'!C40*100-100 -> -0.8847249328 | D51: =+'Base original'!D52/'Base original'!D40*100-100 -> 6.790161495 | E51: =+'Base original'!E52/'Base original'!E40*100-100 -> -27.82090243 | F51: =+'Base original'!F52/'Base original'!F40*100-100 -> -1.312811188 | G51: =+'Base original'!G52 -> 26.52326424 | L51: =+'Base original'!Q52 -> 5.774980921 | P51: =+'Base original'!Y52 -> 2.545047012 | S51: =+'Base original'!AE52 -> 4.49 | T51: =+('Base original'!AH52/'Base original'!AH40*100-100)*'Base original'!AH40/'Base original'!$AK40 -> 2.919564812 | U51: =+('Base original'!AI52/'Base original'!AI40*100-100)*'Base original'!AI40/'Base original'!$AK40 -> 12.93552088 | V51: =+('Base original'!AJ52/'Base original'!AJ40*100-100)*'Base original'!AJ40/'Base original'!$AK40 -> 4.786904633 | W51: =+('Base original'!AK52/'Base original'!AK40*100-100)*'Base original'!AK40/'Base original'!$AK40 -> 20.64199033 | X51: =+('Base original'!AK52/'Base original'!AK40*100-100)*'Base original'!AK40/'Base original'!$AR40 -> 4.102377931 | Y51: =+('Base original'!AL52/'Base original'!AL40*100-100)*'Base original'!AL40/'Base original'!$AR40 -> 1.038035561 | Z51: =+('Base original'!AM52/'Base original'!AM40*100-100)*'Base original'!AM40/'Base original'!$AR40 -> 0.2277257461 | AA51: =+('Base original'!AN52/'Base original'!AN40*100-100)*'Base original'!AN40/'Base original'!$AR40 -> 6.138261698 | AB51: =+('Base original'!AO52/'Base original'!AO40*100-100)*'Base original'!AO40/'Base original'!$AR40 -> 0.06960453026 | AC51: =+('Base original'!AP52/'Base original'!AP40*100-100)*'Base original'!AP40/'Base original'!$AR40 -> 5.849510131 | AD51: =+('Base original'!AQ52/'Base original'!AQ40*100-100)*'Base original'!AQ40/'Base original'!$AR40 -> -0.002534618749 | AE51: =+(('Base original'!AN52-'Base original'!AP52)/('Base original'!AN40-'Base original'!AP40)*100-100)*(('Base original'!AN40-'Base original'!AP40)/'Base original'!AR40) -> 0.2887515667 | AF51: =+(('Base original'!AO52-'Base original'!AQ52)/('Base original'!AO40-'Base original'!AQ40)*100-100)*(('Base original'!AO40-'Base original'!AQ40)/'Base original'!AR40) -> 0.07213914901 | AG51: =+('Base original'!AR52/'Base original'!AR40*100-100)*'Base original'!AR40/'Base original'!$AR40 -> 5.729029954 | AH51: =+('Base original'!AR52/'Base original'!AR40*100-100)*'Base original'!AR40/'Base original'!$BC40 -> 3.44743069 | AI51: =+('Base original'!AS52/'Base original'!AS40*100-100)*'Base original'!AS40/'Base original'!$BC40 -> -0.999358653 | AJ51: =+('Base original'!AT52/'Base original'!AT40*100-100)*'Base original'!AT40/'Base original'!$BC40 -> -0.459789453 | AK51: =+('Base original'!AU52/'Base original'!AU40*100-100)*'Base original'!AU40/'Base original'!$BC40 -> 1.250782179 | AL51: =+('Base original'!AV52/'Base original'!AV40*100-100)*'Base original'!AV40/'Base original'!$BC40 -> -0.8224353319 | AM51: =+('Base original'!AW52/'Base original'!AW40*100-100)*'Base original'!AW40/'Base original'!$BC40 -> 0.1752807968 | AN51: =+('Base original'!AX52/'Base original'!AX40*100-100)*'Base original'!AX40/'Base original'!$BC40 -> 2.15123741 | AO51: =+('Base original'!AY52/'Base original'!AY40*100-100)*'Base original'!AY40/'Base original'!$BC40 -> 0.8555204622 | AP51: =+('Base original'!AZ52/'Base original'!AZ40*100-100)*'Base original'!AZ40/'Base original'!$BC40 -> -0.001407877886 | AQ51: =+('Base original'!BA52/'Base original'!BA40*100-100)*'Base original'!BA40/'Base original'!$BC40 -> 0.9719050342 | AR51: =+('Base original'!BB52/'Base original'!BB40*100-100)*'Base original'!BB40/'Base original'!$BC40 -> -0.08306479529 | AS51: =+(('Base original'!AY52-'Base original'!BA52)/('Base original'!AY40-'Base original'!BA40)*100-100)*('Base original'!AY40-'Base original'!BA40)/'Base original'!$BC40 -> -0.1163845719 | AT51: =+(('Base original'!AZ52-'Base original'!BB52)/('Base original'!AZ40-'Base original'!BB40)*100-100)*('Base original'!AZ40-'Base original'!BB40)/'Base original'!$BC40 -> 0.08165691741 | AU51: =+('Base original'!BC52/'Base original'!BC40*100-100)*'Base original'!BC40/'Base original'!$BC40 -> 4.708419984
A52: 2009-10-01 | B52: =+'Base original'!B53/'Base original'!B41*100-100 -> -3.124849522 | C52: =+'Base original'!C53/'Base original'!C41*100-100 -> -0.301030871 | D52: =+'Base original'!D53/'Base original'!D41*100-100 -> 6.665499943 | E52: =+'Base original'!E53/'Base original'!E41*100-100 -> -38.26890364 | F52: =+'Base original'!F53/'Base original'!F41*100-100 -> -4.686929542 | G52: =+'Base original'!G53 -> 26.66781426 | L52: =+'Base original'!Q53 -> 5.613465454 | P52: =+'Base original'!Y53 -> 2.660928912 | S52: =+'Base original'!AE53 -> 4.35 | T52: =+('Base original'!AH53/'Base original'!AH41*100-100)*'Base original'!AH41/'Base original'!$AK41 -> 2.546920751 | U52: =+('Base original'!AI53/'Base original'!AI41*100-100)*'Base original'!AI41/'Base original'!$AK41 -> 12.2638103 | V52: =+('Base original'!AJ53/'Base original'!AJ41*100-100)*'Base original'!AJ41/'Base original'!$AK41 -> 3.695485048 | W52: =+('Base original'!AK53/'Base original'!AK41*100-100)*'Base original'!AK41/'Base original'!$AK41 -> 18.5062161 | X52: =+('Base original'!AK53/'Base original'!AK41*100-100)*'Base original'!AK41/'Base original'!$AR41 -> 3.64216535 | Y52: =+('Base original'!AL53/'Base original'!AL41*100-100)*'Base original'!AL41/'Base original'!$AR41 -> -2.697071905 | Z52: =+('Base original'!AM53/'Base original'!AM41*100-100)*'Base original'!AM41/'Base original'!$AR41 -> 0.2014083241 | AA52: =+('Base original'!AN53/'Base original'!AN41*100-100)*'Base original'!AN41/'Base original'!$AR41 -> 6.799325853 | AB52: =+('Base original'!AO53/'Base original'!AO41*100-100)*'Base original'!AO41/'Base original'!$AR41 -> 0.06027134651 | AC52: =+('Base original'!AP53/'Base original'!AP41*100-100)*'Base original'!AP41/'Base original'!$AR41 -> 6.261418255 | AD52: =+('Base original'!AQ53/'Base original'!AQ41*100-100)*'Base original'!AQ41/'Base original'!$AR41 -> 0.01265887215 | AE52: =+(('Base original'!AN53-'Base original'!AP53)/('Base original'!AN41-'Base original'!AP41)*100-100)*(('Base original'!AN41-'Base original'!AP41)/'Base original'!AR41) -> 0.5379075973 | AF52: =+(('Base original'!AO53-'Base original'!AQ53)/('Base original'!AO41-'Base original'!AQ41)*100-100)*(('Base original'!AO41-'Base original'!AQ41)/'Base original'!AR41) -> 0.04761247436 | AG52: =+('Base original'!AR53/'Base original'!AR41*100-100)*'Base original'!AR41/'Base original'!$AR41 -> 1.732021841 | AH52: =+('Base original'!AR53/'Base original'!AR41*100-100)*'Base original'!AR41/'Base original'!$BC41 -> 1.053786934 | AI52: =+('Base original'!AS53/'Base original'!AS41*100-100)*'Base original'!AS41/'Base original'!$BC41 -> -1.476109251 | AJ52: =+('Base original'!AT53/'Base original'!AT41*100-100)*'Base original'!AT41/'Base original'!$BC41 -> -0.4408440913 | AK52: =+('Base original'!AU53/'Base original'!AU41*100-100)*'Base original'!AU41/'Base original'!$BC41 -> 1.22355789 | AL52: =+('Base original'!AV53/'Base original'!AV41*100-100)*'Base original'!AV41/'Base original'!$BC41 -> -0.8551340795 | AM52: =+('Base original'!AW53/'Base original'!AW41*100-100)*'Base original'!AW41/'Base original'!$BC41 -> 0.1454153261 | AN52: =+('Base original'!AX53/'Base original'!AX41*100-100)*'Base original'!AX41/'Base original'!$BC41 -> 1.389779678 | AO52: =+('Base original'!AY53/'Base original'!AY41*100-100)*'Base original'!AY41/'Base original'!$BC41 -> 2.087543337 | AP52: =+('Base original'!AZ53/'Base original'!AZ41*100-100)*'Base original'!AZ41/'Base original'!$BC41 -> 0.1110444308 | AQ52: =+('Base original'!BA53/'Base original'!BA41*100-100)*'Base original'!BA41/'Base original'!$BC41 -> 1.573819153 | AR52: =+('Base original'!BB53/'Base original'!BB41*100-100)*'Base original'!BB41/'Base original'!$BC41 -> -0.08690433715 | AS52: =+(('Base original'!AY53-'Base original'!BA53)/('Base original'!AY41-'Base original'!BA41)*100-100)*('Base original'!AY41-'Base original'!BA41)/'Base original'!$BC41 -> 0.5137241835 | AT52: =+(('Base original'!AZ53-'Base original'!BB53)/('Base original'!AZ41-'Base original'!BB41)*100-100)*('Base original'!AZ41-'Base original'!BB41)/'Base original'!$BC41 -> 0.197948768 | AU52: =+('Base original'!BC53/'Base original'!BC41*100-100)*'Base original'!BC41/'Base original'!$BC41 -> 1.752125357
A53: 2009-11-01 | B53: =+'Base original'!B54/'Base original'!B42*100-100 -> -4.158929895 | C53: =+'Base original'!C54/'Base original'!C42*100-100 -> -0.2367642625 | D53: =+'Base original'!D54/'Base original'!D42*100-100 -> 6.886516476 | E53: =+'Base original'!E54/'Base original'!E42*100-100 -> -42.58371947 | F53: =+'Base original'!F54/'Base original'!F42*100-100 -> -5.625516256 | G53: =+'Base original'!G54 -> 27.25833994 | L53: =+'Base original'!Q54 -> 5.247571939 | P53: =+'Base original'!Y54 -> 2.546599361 | S53: =+'Base original'!AE54 -> 4.28 | T53: =+('Base original'!AH54/'Base original'!AH42*100-100)*'Base original'!AH42/'Base original'!$AK42 -> 2.473061812 | U53: =+('Base original'!AI54/'Base original'!AI42*100-100)*'Base original'!AI42/'Base original'!$AK42 -> 14.12245248 | V53: =+('Base original'!AJ54/'Base original'!AJ42*100-100)*'Base original'!AJ42/'Base original'!$AK42 -> 3.239550086 | W53: =+('Base original'!AK54/'Base original'!AK42*100-100)*'Base original'!AK42/'Base original'!$AK42 -> 19.83506438 | X53: =+('Base original'!AK54/'Base original'!AK42*100-100)*'Base original'!AK42/'Base original'!$AR42 -> 3.770567895 | Y53: =+('Base original'!AL54/'Base original'!AL42*100-100)*'Base original'!AL42/'Base original'!$AR42 -> -5.921662459 | Z53: =+('Base original'!AM54/'Base original'!AM42*100-100)*'Base original'!AM42/'Base original'!$AR42 -> 0.1329200979 | AA53: =+('Base original'!AN54/'Base original'!AN42*100-100)*'Base original'!AN42/'Base original'!$AR42 -> 5.911339429 | AB53: =+('Base original'!AO54/'Base original'!AO42*100-100)*'Base original'!AO42/'Base original'!$AR42 -> 0.03216703342 | AC53: =+('Base original'!AP54/'Base original'!AP42*100-100)*'Base original'!AP42/'Base original'!$AR42 -> 5.308484855 | AD53: =+('Base original'!AQ54/'Base original'!AQ42*100-100)*'Base original'!AQ42/'Base original'!$AR42 -> 0.01016774045 | AE53: =+(('Base original'!AN54-'Base original'!AP54)/('Base original'!AN42-'Base original'!AP42)*100-100)*(('Base original'!AN42-'Base original'!AP42)/'Base original'!AR42) -> 0.6028545746 | AF53: =+(('Base original'!AO54-'Base original'!AQ54)/('Base original'!AO42-'Base original'!AQ42)*100-100)*(('Base original'!AO42-'Base original'!AQ42)/'Base original'!AR42) -> 0.02199929297 | AG53: =+('Base original'!AR54/'Base original'!AR42*100-100)*'Base original'!AR42/'Base original'!$AR42 -> -1.393320599 | AH53: =+('Base original'!AR54/'Base original'!AR42*100-100)*'Base original'!AR42/'Base original'!$BC42 -> -0.8562504042 | AI53: =+('Base original'!AS54/'Base original'!AS42*100-100)*'Base original'!AS42/'Base original'!$BC42 -> -1.694246167 | AJ53: =+('Base original'!AT54/'Base original'!AT42*100-100)*'Base original'!AT42/'Base original'!$BC42 -> -0.0679379875 | AK53: =+('Base original'!AU54/'Base original'!AU42*100-100)*'Base original'!AU42/'Base original'!$BC42 -> 1.253217291 | AL53: =+('Base original'!AV54/'Base original'!AV42*100-100)*'Base original'!AV42/'Base original'!$BC42 -> -1.08189541 | AM53: =+('Base original'!AW54/'Base original'!AW42*100-100)*'Base original'!AW42/'Base original'!$BC42 -> 0.05305525111 | AN53: =+('Base original'!AX54/'Base original'!AX42*100-100)*'Base original'!AX42/'Base original'!$BC42 -> 1.403748785 | AO53: =+('Base original'!AY54/'Base original'!AY42*100-100)*'Base original'!AY42/'Base original'!$BC42 -> 2.631517733 | AP53: =+('Base original'!AZ54/'Base original'!AZ42*100-100)*'Base original'!AZ42/'Base original'!$BC42 -> 0.1699585774 | AQ53: =+('Base original'!BA54/'Base original'!BA42*100-100)*'Base original'!BA42/'Base original'!$BC42 -> 1.481570727 | AR53: =+('Base original'!BB54/'Base original'!BB42*100-100)*'Base original'!BB42/'Base original'!$BC42 -> -0.08134381112 | AS53: =+(('Base original'!AY54-'Base original'!BA54)/('Base original'!AY42-'Base original'!BA42)*100-100)*('Base original'!AY42-'Base original'!BA42)/'Base original'!$BC42 -> 1.149947006 | AT53: =+(('Base original'!AZ54-'Base original'!BB54)/('Base original'!AZ42-'Base original'!BB42)*100-100)*('Base original'!AZ42-'Base original'!BB42)/'Base original'!$BC42 -> 0.2513023885 | AU53: =+('Base original'!BC54/'Base original'!BC42*100-100)*'Base original'!BC42/'Base original'!$BC42 -> 0.410940754
A54: 2009-12-01 | B54: =+'Base original'!B55/'Base original'!B43*100-100 -> 0.5395345086 | C54: =+'Base original'!C55/'Base original'!C43*100-100 -> 0.8077955756 | D54: =+'Base original'!D55/'Base original'!D43*100-100 -> 7.131900088 | E54: =+'Base original'!E55/'Base original'!E43*100-100 -> -40.92991794 | F54: =+'Base original'!F55/'Base original'!F43*100-100 -> -2.339024026 | G54: =+'Base original'!G55 -> 26.55652398 | L54: =+'Base original'!Q55 -> 4.739766636 | P54: =+'Base original'!Y55 -> 2.220797364 | S54: =+'Base original'!AE55 -> 4.541432542 | T54: =+('Base original'!AH55/'Base original'!AH43*100-100)*'Base original'!AH43/'Base original'!$AK43 -> 2.495396886 | U54: =+('Base original'!AI55/'Base original'!AI43*100-100)*'Base original'!AI43/'Base original'!$AK43 -> 15.87216382 | V54: =+('Base original'!AJ55/'Base original'!AJ43*100-100)*'Base original'!AJ43/'Base original'!$AK43 -> 4.497195627 | W54: =+('Base original'!AK55/'Base original'!AK43*100-100)*'Base original'!AK43/'Base original'!$AK43 -> 22.86475634 | X54: =+('Base original'!AK55/'Base original'!AK43*100-100)*'Base original'!AK43/'Base original'!$AR43 -> 4.480315899 | Y54: =+('Base original'!AL55/'Base original'!AL43*100-100)*'Base original'!AL43/'Base original'!$AR43 -> -6.618545393 | Z54: =+('Base original'!AM55/'Base original'!AM43*100-100)*'Base original'!AM43/'Base original'!$AR43 -> 0.1169392908 | AA54: =+('Base original'!AN55/'Base original'!AN43*100-100)*'Base original'!AN43/'Base original'!$AR43 -> 5.323366601 | AB54: =+('Base original'!AO55/'Base original'!AO43*100-100)*'Base original'!AO43/'Base original'!$AR43 -> 0.006708145366 | AC54: =+('Base original'!AP55/'Base original'!AP43*100-100)*'Base original'!AP43/'Base original'!$AR43 -> 4.880085103 | AD54: =+('Base original'!AQ55/'Base original'!AQ43*100-100)*'Base original'!AQ43/'Base original'!$AR43 -> 0.00326342207 | AE54: =+(('Base original'!AN55-'Base original'!AP55)/('Base original'!AN43-'Base original'!AP43)*100-100)*(('Base original'!AN43-'Base original'!AP43)/'Base original'!AR43) -> 0.4432814978 | AF54: =+(('Base original'!AO55-'Base original'!AQ55)/('Base original'!AO43-'Base original'!AQ43)*100-100)*(('Base original'!AO43-'Base original'!AQ43)/'Base original'!AR43) -> 0.003444723296 | AG54: =+('Base original'!AR55/'Base original'!AR43*100-100)*'Base original'!AR43/'Base original'!$AR43 -> -1.574563982 | AH54: =+('Base original'!AR55/'Base original'!AR43*100-100)*'Base original'!AR43/'Base original'!$BC43 -> -0.9779059539 | AI54: =+('Base original'!AS55/'Base original'!AS43*100-100)*'Base original'!AS43/'Base original'!$BC43 -> -1.43970071 | AJ54: =+('Base original'!AT55/'Base original'!AT43*100-100)*'Base original'!AT43/'Base original'!$BC43 -> -0.1308409373 | AK54: =+('Base original'!AU55/'Base original'!AU43*100-100)*'Base original'!AU43/'Base original'!$BC43 -> 1.256050478 | AL54: =+('Base original'!AV55/'Base original'!AV43*100-100)*'Base original'!AV43/'Base original'!$BC43 -> -0.958899675 | AM54: =+('Base original'!AW55/'Base original'!AW43*100-100)*'Base original'!AW43/'Base original'!$BC43 -> -0.007318985307 | AN54: =+('Base original'!AX55/'Base original'!AX43*100-100)*'Base original'!AX43/'Base original'!$BC43 -> 1.354462681 | AO54: =+('Base original'!AY55/'Base original'!AY43*100-100)*'Base original'!AY43/'Base original'!$BC43 -> 2.766689046 | AP54: =+('Base original'!AZ55/'Base original'!AZ43*100-100)*'Base original'!AZ43/'Base original'!$BC43 -> 0.1850014286 | AQ54: =+('Base original'!BA55/'Base original'!BA43*100-100)*'Base original'!BA43/'Base original'!$BC43 -> 1.259203272 | AR54: =+('Base original'!BB55/'Base original'!BB43*100-100)*'Base original'!BB43/'Base original'!$BC43 -> -0.07690564561 | AS54: =+(('Base original'!AY55-'Base original'!BA55)/('Base original'!AY43-'Base original'!BA43)*100-100)*('Base original'!AY43-'Base original'!BA43)/'Base original'!$BC43 -> 1.507485774 | AT54: =+(('Base original'!AZ55-'Base original'!BB55)/('Base original'!AZ43-'Base original'!BB43)*100-100)*('Base original'!AZ43-'Base original'!BB43)/'Base original'!$BC43 -> 0.2619070742 | AU54: =+('Base original'!BC55/'Base original'!BC43*100-100)*'Base original'!BC43/'Base original'!$BC43 -> 0.865239746
A55: 2010-01-01 | B55: =+'Base original'!B56/'Base original'!B44*100-100 -> 1.702202424 | C55: =+'Base original'!C56/'Base original'!C44*100-100 -> 1.406485298 | D55: =+'Base original'!D56/'Base original'!D44*100-100 -> 7.481898842 | E55: =+'Base original'!E56/'Base original'!E44*100-100 -> -29.95339864 | F55: =+'Base original'!F56/'Base original'!F44*100-100 -> -0.271676367 | G55: =+'Base original'!G56 -> 30.35391496 | L55: =+'Base original'!Q56 -> 7.040624887 | P55: =+'Base original'!Y56 -> 1.837065704 | S55: =+'Base original'!AE56 -> 4.583830998 | T55: =+('Base original'!AH56/'Base original'!AH44*100-100)*'Base original'!AH44/'Base original'!$AK44 -> 2.779741091 | U55: =+('Base original'!AI56/'Base original'!AI44*100-100)*'Base original'!AI44/'Base original'!$AK44 -> 19.00723718 | V55: =+('Base original'!AJ56/'Base original'!AJ44*100-100)*'Base original'!AJ44/'Base original'!$AK44 -> 6.371268879 | W55: =+('Base original'!AK56/'Base original'!AK44*100-100)*'Base original'!AK44/'Base original'!$AK44 -> 28.15824715 | X55: =+('Base original'!AK56/'Base original'!AK44*100-100)*'Base original'!AK44/'Base original'!$AR44 -> 5.478831864 | Y55: =+('Base original'!AL56/'Base original'!AL44*100-100)*'Base original'!AL44/'Base original'!$AR44 -> -5.920276102 | Z55: =+('Base original'!AM56/'Base original'!AM44*100-100)*'Base original'!AM44/'Base original'!$AR44 -> 0.1842080335 | AA55: =+('Base original'!AN56/'Base original'!AN44*100-100)*'Base original'!AN44/'Base original'!$AR44 -> 3.750207754 | AB55: =+('Base original'!AO56/'Base original'!AO44*100-100)*'Base original'!AO44/'Base original'!$AR44 -> 0.005428527509 | AC55: =+('Base original'!AP56/'Base original'!AP44*100-100)*'Base original'!AP44/'Base original'!$AR44 -> 3.285344849 | AD55: =+('Base original'!AQ56/'Base original'!AQ44*100-100)*'Base original'!AQ44/'Base original'!$AR44 -> 0.000180950917 | AE55: =+(('Base original'!AN56-'Base original'!AP56)/('Base original'!AN44-'Base original'!AP44)*100-100)*(('Base original'!AN44-'Base original'!AP44)/'Base original'!AR44) -> 0.4648629057 | AF55: =+(('Base original'!AO56-'Base original'!AQ56)/('Base original'!AO44-'Base original'!AQ44)*100-100)*(('Base original'!AO44-'Base original'!AQ44)/'Base original'!AR44) -> 0.005247576592 | AG55: =+('Base original'!AR56/'Base original'!AR44*100-100)*'Base original'!AR44/'Base original'!$AR44 -> 0.2128742777 | AH55: =+('Base original'!AR56/'Base original'!AR44*100-100)*'Base original'!AR44/'Base original'!$BC44 -> 0.1327110699 | AI55: =+('Base original'!AS56/'Base original'!AS44*100-100)*'Base original'!AS44/'Base original'!$BC44 -> -1.167688653 | AJ55: =+('Base original'!AT56/'Base original'!AT44*100-100)*'Base original'!AT44/'Base original'!$BC44 -> -0.2576563504 | AK55: =+('Base original'!AU56/'Base original'!AU44*100-100)*'Base original'!AU44/'Base original'!$BC44 -> 1.329118704 | AL55: =+('Base original'!AV56/'Base original'!AV44*100-100)*'Base original'!AV44/'Base original'!$BC44 -> -0.9609092787 | AM55: =+('Base original'!AW56/'Base original'!AW44*100-100)*'Base original'!AW44/'Base original'!$BC44 -> -0.005978890793 | AN55: =+('Base original'!AX56/'Base original'!AX44*100-100)*'Base original'!AX44/'Base original'!$BC44 -> 1.037506766 | AO55: =+('Base original'!AY56/'Base original'!AY44*100-100)*'Base original'!AY44/'Base original'!$BC44 -> 2.816283182 | AP55: =+('Base original'!AZ56/'Base original'!AZ44*100-100)*'Base original'!AZ44/'Base original'!$BC44 -> 0.2056512814 | AQ55: =+('Base original'!BA56/'Base original'!BA44*100-100)*'Base original'!BA44/'Base original'!$BC44 -> 1.16204819 | AR55: =+('Base original'!BB56/'Base original'!BB44*100-100)*'Base original'!BB44/'Base original'!$BC44 -> -0.02323870761 | AS55: =+(('Base original'!AY56-'Base original'!BA56)/('Base original'!AY44-'Base original'!BA44)*100-100)*('Base original'!AY44-'Base original'!BA44)/'Base original'!$BC44 -> 1.654234992 | AT55: =+(('Base original'!AZ56-'Base original'!BB56)/('Base original'!AZ44-'Base original'!BB44)*100-100)*('Base original'!AZ44-'Base original'!BB44)/'Base original'!$BC44 -> 0.228889989 | AU55: =+('Base original'!BC56/'Base original'!BC44*100-100)*'Base original'!BC44/'Base original'!$BC44 -> 1.990228349
A56: 2010-02-01 | B56: =+'Base original'!B57/'Base original'!B45*100-100 -> 3.517441588 | C56: =+'Base original'!C57/'Base original'!C45*100-100 -> 2.311812815 | D56: =+'Base original'!D57/'Base original'!D45*100-100 -> 8.937570741 | E56: =+'Base original'!E57/'Base original'!E45*100-100 -> -27.59056686 | F56: =+'Base original'!F57/'Base original'!F45*100-100 -> 1.557876943 | G56: =+'Base original'!G57 -> 29.546126 | L56: =+'Base original'!Q57 -> 5.62794949 | P56: =+'Base original'!Y57 -> 1.978243918 | S56: =+'Base original'!AE57 -> 4.602983966 | T56: =+('Base original'!AH57/'Base original'!AH45*100-100)*'Base original'!AH45/'Base original'!$AK45 -> 3.377249601 | U56: =+('Base original'!AI57/'Base original'!AI45*100-100)*'Base original'!AI45/'Base original'!$AK45 -> 20.76528447 | V56: =+('Base original'!AJ57/'Base original'!AJ45*100-100)*'Base original'!AJ45/'Base original'!$AK45 -> 7.569251177 | W56: =+('Base original'!AK57/'Base original'!AK45*100-100)*'Base original'!AK45/'Base original'!$AK45 -> 31.71178525 | X56: =+('Base original'!AK57/'Base original'!AK45*100-100)*'Base original'!AK45/'Base original'!$AR45 -> 6.104721082 | Y56: =+('Base original'!AL57/'Base original'!AL45*100-100)*'Base original'!AL45/'Base original'!$AR45 -> -4.55516548 | Z56: =+('Base original'!AM57/'Base original'!AM45*100-100)*'Base original'!AM45/'Base original'!$AR45 -> 0.1697532367 | AA56: =+('Base original'!AN57/'Base original'!AN45*100-100)*'Base original'!AN45/'Base original'!$AR45 -> 1.203073531 | AB56: =+('Base original'!AO57/'Base original'!AO45*100-100)*'Base original'!AO45/'Base original'!$AR45 -> 0.004385444221 | AC56: =+('Base original'!AP57/'Base original'!AP45*100-100)*'Base original'!AP45/'Base original'!$AR45 -> 0.9284350869 | AD56: =+('Base original'!AQ57/'Base original'!AQ45*100-100)*'Base original'!AQ45/'Base original'!$AR45 -> -0.0009136342127 | AE56: =+(('Base original'!AN57-'Base original'!AP57)/('Base original'!AN45-'Base original'!AP45)*100-100)*(('Base original'!AN45-'Base original'!AP45)/'Base original'!AR45) -> 0.2746384443 | AF56: =+(('Base original'!AO57-'Base original'!AQ57)/('Base original'!AO45-'Base original'!AQ45)*100-100)*(('Base original'!AO45-'Base original'!AQ45)/'Base original'!AR45) -> 0.005299078434 | AG56: =+('Base original'!AR57/'Base original'!AR45*100-100)*'Base original'!AR45/'Base original'!$AR45 -> 1.999246361 | AH56: =+('Base original'!AR57/'Base original'!AR45*100-100)*'Base original'!AR45/'Base original'!$BC45 -> 1.237126937 | AI56: =+('Base original'!AS57/'Base original'!AS45*100-100)*'Base original'!AS45/'Base original'!$BC45 -> -1.100630746 | AJ56: =+('Base original'!AT57/'Base original'!AT45*100-100)*'Base original'!AT45/'Base original'!$BC45 -> -0.113862252 | AK56: =+('Base original'!AU57/'Base original'!AU45*100-100)*'Base original'!AU45/'Base original'!$BC45 -> 1.350630189 | AL56: =+('Base original'!AV57/'Base original'!AV45*100-100)*'Base original'!AV45/'Base original'!$BC45 -> -1.064900387 | AM56: =+('Base original'!AW57/'Base original'!AW45*100-100)*'Base original'!AW45/'Base original'!$BC45 -> -0.05789222744 | AN56: =+('Base original'!AX57/'Base original'!AX45*100-100)*'Base original'!AX45/'Base original'!$BC45 -> 0.7886685282 | AO56: =+('Base original'!AY57/'Base original'!AY45*100-100)*'Base original'!AY45/'Base original'!$BC45 -> 2.598252919 | AP56: =+('Base original'!AZ57/'Base original'!AZ45*100-100)*'Base original'!AZ45/'Base original'!$BC45 -> 0.2178873482 | AQ56: =+('Base original'!BA57/'Base original'!BA45*100-100)*'Base original'!BA45/'Base original'!$BC45 -> 0.7704641363 | AR56: =+('Base original'!BB57/'Base original'!BB45*100-100)*'Base original'!BB45/'Base original'!$BC45 -> -0.02227493908 | AS56: =+(('Base original'!AY57-'Base original'!BA57)/('Base original'!AY45-'Base original'!BA45)*100-100)*('Base original'!AY45-'Base original'!BA45)/'Base original'!$BC45 -> 1.827788783 | AT56: =+(('Base original'!AZ57-'Base original'!BB57)/('Base original'!AZ45-'Base original'!BB45)*100-100)*('Base original'!AZ45-'Base original'!BB45)/'Base original'!$BC45 -> 0.2401622873 | AU56: =+('Base original'!BC57/'Base original'!BC45*100-100)*'Base original'!BC45/'Base original'!$BC45 -> 3.107091112
A57: 2010-03-01 | B57: =+'Base original'!B58/'Base original'!B46*100-100 -> 4.861404973 | C57: =+'Base original'!C58/'Base original'!C46*100-100 -> 2.952607812 | D57: =+'Base original'!D58/'Base original'!D46*100-100 -> 9.482597953 | E57: =+'Base original'!E58/'Base original'!E46*100-100 -> -23.64631771 | F57: =+'Base original'!F58/'Base original'!F46*100-100 -> 3.004634872 | G57: =+'Base original'!G58 -> 27.98245903 | L57: =+'Base original'!Q58 -> 5.420358692 | P57: =+'Base original'!Y58 -> 2.201231503 | S57: =+'Base original'!AE58 -> 4.275585515 | T57: =+('Base original'!AH58/'Base original'!AH46*100-100)*'Base original'!AH46/'Base original'!$AK46 -> 3.851538642 | U57: =+('Base original'!AI58/'Base original'!AI46*100-100)*'Base original'!AI46/'Base original'!$AK46 -> 19.69122997 | V57: =+('Base original'!AJ58/'Base original'!AJ46*100-100)*'Base original'!AJ46/'Base original'!$AK46 -> 9.928690157 | W57: =+('Base original'!AK58/'Base original'!AK46*100-100)*'Base original'!AK46/'Base original'!$AK46 -> 33.47145877 | X57: =+('Base original'!AK58/'Base original'!AK46*100-100)*'Base original'!AK46/'Base original'!$AR46 -> 6.599344901 | Y57: =+('Base original'!AL58/'Base original'!AL46*100-100)*'Base original'!AL46/'Base original'!$AR46 -> -2.890624038 | Z57: =+('Base original'!AM58/'Base original'!AM46*100-100)*'Base original'!AM46/'Base original'!$AR46 -> 0.2245355685 | AA57: =+('Base original'!AN58/'Base original'!AN46*100-100)*'Base original'!AN46/'Base original'!$AR46 -> 1.87761385 | AB57: =+('Base original'!AO58/'Base original'!AO46*100-100)*'Base original'!AO46/'Base original'!$AR46 -> 0.0009263018501 | AC57: =+('Base original'!AP58/'Base original'!AP46*100-100)*'Base original'!AP46/'Base original'!$AR46 -> 1.192150481 | AD57: =+('Base original'!AQ58/'Base original'!AQ46*100-100)*'Base original'!AQ46/'Base original'!$AR46 -> -0.006298852581 | AE57: =+(('Base original'!AN58-'Base original'!AP58)/('Base original'!AN46-'Base original'!AP46)*100-100)*(('Base original'!AN46-'Base original'!AP46)/'Base original'!AR46) -> 0.6854633691 | AF57: =+(('Base original'!AO58-'Base original'!AQ58)/('Base original'!AO46-'Base original'!AQ46)*100-100)*(('Base original'!AO46-'Base original'!AQ46)/'Base original'!AR46) -> 0.007225154431 | AG57: =+('Base original'!AR58/'Base original'!AR46*100-100)*'Base original'!AR46/'Base original'!$AR46 -> 4.625944955 | AH57: =+('Base original'!AR58/'Base original'!AR46*100-100)*'Base original'!AR46/'Base original'!$BC46 -> 2.833269139 | AI57: =+('Base original'!AS58/'Base original'!AS46*100-100)*'Base original'!AS46/'Base original'!$BC46 -> -1.030961934 | AJ57: =+('Base original'!AT58/'Base original'!AT46*100-100)*'Base original'!AT46/'Base original'!$BC46 -> -0.4565915498 | AK57: =+('Base original'!AU58/'Base original'!AU46*100-100)*'Base original'!AU46/'Base original'!$BC46 -> 1.59704922 | AL57: =+('Base original'!AV58/'Base original'!AV46*100-100)*'Base original'!AV46/'Base original'!$BC46 -> -0.7487692934 | AM57: =+('Base original'!AW58/'Base original'!AW46*100-100)*'Base original'!AW46/'Base original'!$BC46 -> -0.1066590598 | AN57: =+('Base original'!AX58/'Base original'!AX46*100-100)*'Base original'!AX46/'Base original'!$BC46 -> 0.68273145 | AO57: =+('Base original'!AY58/'Base original'!AY46*100-100)*'Base original'!AY46/'Base original'!$BC46 -> 2.75702323 | AP57: =+('Base original'!AZ58/'Base original'!AZ46*100-100)*'Base original'!AZ46/'Base original'!$BC46 -> 0.240436753 | AQ57: =+('Base original'!BA58/'Base original'!BA46*100-100)*'Base original'!BA46/'Base original'!$BC46 -> 0.7416208671 | AR57: =+('Base original'!BB58/'Base original'!BB46*100-100)*'Base original'!BB46/'Base original'!$BC46 -> -0.02167221322 | AS57: =+(('Base original'!AY58-'Base original'!BA58)/('Base original'!AY46-'Base original'!BA46)*100-100)*('Base original'!AY46-'Base original'!BA46)/'Base original'!$BC46 -> 2.015402363 | AT57: =+(('Base original'!AZ58-'Base original'!BB58)/('Base original'!AZ46-'Base original'!BB46)*100-100)*('Base original'!AZ46-'Base original'!BB46)/'Base original'!$BC46 -> 0.2621089662 | AU57: =+('Base original'!BC58/'Base original'!BC46*100-100)*'Base original'!BC46/'Base original'!$BC46 -> 5.047579302
